Workbook

Sheet Disclaimer
B11: Programme Area: | E11: Carbon Capture and Storage
B13: Project: | D13: Aquifer Brine
B15: Title: | C15: Brine Production Cost Benefit Analysis Tool
B19: Abstract:
B20: This tool is part of the final set of project outputs covering the cost benefit analysis of the bring aquifer management for CO2 storage. It analyses any benefits of producing brine to manage pressure in aquifers used to store CO2. The model is a simple ready reckoner tool and includes all costs both opex and capex for the complete system from the shore based network, providing an excellent budget cost for initial risk assessment analysis.
B33: Context:
B34: This £200,000 nine-month long project, studied the impact of removing brine from undersea stores that could, in future, be used to store captured carbon dioxide. It was carried out by Heriot-Watt University, a founder member of the Scottish Carbon Capture & Storage (SCCS) research partnership, and Element Energy. T2 Petroleum Technology and Durham University also participated in the project. It built on earlier CCS research work and helped develop understanding of potential CO2 stores, such as depleted oil and gas reservoirs or saline aquifers, located beneath UK waters. It also helped to build confidence among future operators and investors for their operation. Reducing costs and minimising risks is crucial if CCS is to play a long-term role in decarbonising the UK’s future energy system.
B46: Disclaimer: The Energy Technologies Institute is making this document available to use under the Energy Technologies Institute Open Licence for Materials. Please refer to the Energy Technologies Institute website for the terms and conditions of this licence. The Information is licensed ‘as is’ and the Energy Technologies Institute excludes all representations, warranties, obligations and liabilities in relation to the Information to the maximum extent permitted by law. The Energy Technologies Institute is not liable for any errors or omissions in the Information and shall not be liable for any loss, injury or damage of any kind caused by its use. This exclusion of liability includes, but is not limited to, any direct, indirect, special, incidental, consequential, punitive, or exemplary damages in each case such as loss of revenue, data, anticipated profits, and lost business. The Energy Technologies Institute does not guarantee the continued supply of the Information. Notwithstanding any statement to the contrary contained on the face of this document, the Energy Technologies Institute confirms that it has the right to publish this document.

Sheet Front page
C2: Brine production CBA tool
C4: V100 25/01/2017
D8: Disclaimer
D10: Important note:
D11: The results produced by this model rely entirely on the inputs entered and underlying assumptions. All results should be challenged and checked before publication or off-model use. Element Energy accepts no responsibility for the use of custom model runs. Element Energy Limited gives no guarantee, nor should any be implied, with regards to the result of this model. This model is for use within ETI only and should not be distributed outside of ETI and should not be used for research or commercial purposes without the permission of Element Energy.
D28: For further queries please contact:
D29: Emrah.Durusut@element-energy.co.uk
D30: Foaad.Tahir@element-energy.co.uk | M30: Produced for
D31: © Element Energy 2016

Sheet Main Control
D2: Brine production CBA tool
D4: Control and Navigation Page
D7: Scenario definition
E9: Shoreline terminal selection
E10: Select nearest terminal | G10: Yes
E11: Select user defined terminal | G11: Bacton
E13: Financial inputs
E14: Discount rate | G14: 0
E16: Technical inputs
E17: Water treatment required for all sites | G17: No
E18: Injection well redundancy | G18: 0.1
E19: Brine production well redundancy | G19: 0
E20: Well remediation | G20: 0
E21: Maximum injection facility coverage radius (m) | G21: 5000
E22: Prevent use of subsea facilities for brine production | G22: No
D32: Analysis for selected storage site and injection scenario
E34: Storage site | G34: Firth of Forth
E35: Flow rate (Mt CO2/y) | G35: 5
E36: Injection duration (years) | G36: 20
E37: Brine production status | G37: No
E38: Well type | G38: Vertical
E39: Well conversion status | G39: No
E41: Total infrastructure (phased infrastructure based on data defined in the model database)
F42: Existing input | G42: User defined | H42: Final used
E43: CO2 injection wells (including redundancy) | F43: =OFFSET(StorageWellRequirements[[#Headers],[CO2 injection wells]],SUMIFS(StorageWellRequirements[ID],StorageWellRequirements[Description],Selected_storage_site,StorageWellRequirements[Flow rate (Mt CO2/y)],Selected_flow_rate,StorageWellRequirements[Injection duration (years)],Selected_injection_duration,StorageWellRequirements[Well type],Selected_well_type,StorageWellRequirements[Brine production status],Selected_brine_production_status,StorageWellRequirements[Well conversion status],Selected_brine_production_well_conversion_status),0)+ROUNDUP(OFFSET(StorageWellRequirements[[#Headers],[CO2 injection wells]],SUMIFS(StorageWellRequirements[ID],StorageWellRequirements[Description],Selected_storage_site,StorageWellRequirements[Flow rate (Mt CO2/y)],Selected_flow_rate,StorageWellRequirements[Injection duration (years)],Selected_injection_duration,StorageWellRequirements[Well type],Selected_well_type,StorageWellRequirements[Brine production status],Selected_brine_production_status,StorageWellRequirements[Well conversion status],Selected_brine_production_well_conversion_status),0)*Injection_well_redundancy,0) -> 7 | H43: =IF(ISBLANK(G43),F43,G43) -> 7
E44: Converted CO2 injection wells | F44: =OFFSET(StorageWellRequirements[[#Headers],[Converted CO2 injection wells]],SUMIFS(StorageWellRequirements[ID],StorageWellRequirements[Description],Selected_storage_site,StorageWellRequirements[Flow rate (Mt CO2/y)],Selected_flow_rate,StorageWellRequirements[Injection duration (years)],Selected_injection_duration,StorageWellRequirements[Well type],Selected_well_type,StorageWellRequirements[Brine production status],Selected_brine_production_status,StorageWellRequirements[Well conversion status],Selected_brine_production_well_conversion_status),0) -> 0 | H44: =IF(ISBLANK(G44),F44,G44) -> 0
E45: Brine production wells (including redundancy) | F45: =OFFSET(StorageWellRequirements[[#Headers],[Brine production wells]],SUMIFS(StorageWellRequirements[ID],StorageWellRequirements[Description],Selected_storage_site,StorageWellRequirements[Flow rate (Mt CO2/y)],Selected_flow_rate,StorageWellRequirements[Injection duration (years)],Selected_injection_duration,StorageWellRequirements[Well type],Selected_well_type,StorageWellRequirements[Brine production status],Selected_brine_production_status,StorageWellRequirements[Well conversion status],Selected_brine_production_well_conversion_status),0)+ROUNDUP(OFFSET(StorageWellRequirements[[#Headers],[Brine production wells]],SUMIFS(StorageWellRequirements[ID],StorageWellRequirements[Description],Selected_storage_site,StorageWellRequirements[Flow rate (Mt CO2/y)],Selected_flow_rate,StorageWellRequirements[Injection duration (years)],Selected_injection_duration,StorageWellRequirements[Well type],Selected_well_type,StorageWellRequirements[Brine production status],Selected_brine_production_status,StorageWellRequirements[Well conversion status],Selected_brine_production_well_conversion_status),0)*Brine_production_well_redundancy,0) -> 0 | H45: 0
E46: Bottom hole pressure (MPa) | F46: =OFFSET(StorageWellRequirements[[#Headers],[Bottom hole pressure (MPa)]],SUMIFS(StorageWellRequirements[ID],StorageWellRequirements[Description],Selected_storage_site,StorageWellRequirements[Flow rate (Mt CO2/y)],Selected_flow_rate,StorageWellRequirements[Injection duration (years)],Selected_injection_duration,StorageWellRequirements[Well type],Selected_well_type,StorageWellRequirements[Brine production status],Selected_brine_production_status,StorageWellRequirements[Well conversion status],Selected_brine_production_well_conversion_status),0) -> 36.5 | H46: 36.5
E47: Grid length (m) | F47: =OFFSET(StorageWellRequirements[[#Headers],[Grid length (m)]],SUMIFS(StorageWellRequirements[ID],StorageWellRequirements[Description],Selected_storage_site,StorageWellRequirements[Flow rate (Mt CO2/y)],Selected_flow_rate,StorageWellRequirements[Injection duration (years)],Selected_injection_duration,StorageWellRequirements[Well type],Selected_well_type,StorageWellRequirements[Brine production status],Selected_brine_production_status,StorageWellRequirements[Well conversion status],Selected_brine_production_well_conversion_status),0) -> 4000 | H47: 4000
E48: Grid width (m) | F48: =OFFSET(StorageWellRequirements[[#Headers],[Grid width (m)]],SUMIFS(StorageWellRequirements[ID],StorageWellRequirements[Description],Selected_storage_site,StorageWellRequirements[Flow rate (Mt CO2/y)],Selected_flow_rate,StorageWellRequirements[Injection duration (years)],Selected_injection_duration,StorageWellRequirements[Well type],Selected_well_type,StorageWellRequirements[Brine production status],Selected_brine_production_status,StorageWellRequirements[Well conversion status],Selected_brine_production_well_conversion_status),0) -> 2000 | H48: 2000
E49: Average well depth (m) | F49: =IF(OFFSET(StorageWellRequirements[[#Headers],[Average well depth (m)]],SUMIFS(StorageWellRequirements[ID],StorageWellRequirements[Description],Selected_storage_site,StorageWellRequirements[Flow rate (Mt CO2/y)],Selected_flow_rate,StorageWellRequirements[Injection duration (years)],Selected_injection_duration,StorageWellRequirements[Well type],Selected_well_type,StorageWellRequirements[Brine production status],Selected_brine_production_status,StorageWellRequirements[Well conversion status],Selected_brine_production_well_conversion_status),0)>0,OFFSET(StorageWellRequirements[[#Headers],[Average well depth (m)]],SUMIFS(StorageWellRequirements[ID],StorageWellRequirements[Description],Selected_storage_site,StorageWellRequirements[Flow rate (Mt CO2/y)],Selected_flow_rate,StorageWellRequirements[Injection duration (years)],Selected_injection_duration,StorageWellRequirements[Well type],Selected_well_type,StorageWellRequirements[Brine production status],Selected_brine_production_status,StorageWellRequirements[Well conversion status],Selected_brine_production_well_conversion_status),0),SUMIFS(StorageSiteSpecifications[Depth to storage (m)],StorageSiteSpecifications[Description],Selected_storage_site)) -> 2500 | H49: =IF(ISBLANK(G49),F49,G49) -> 2500
E50: Maximum brine production (m3/d) | F50: =OFFSET(StorageWellRequirements[[#Headers],[Maximum brine production (m3/d)]],SUMIFS(StorageWellRequirements[ID],StorageWellRequirements[Description],Selected_storage_site,StorageWellRequirements[Flow rate (Mt CO2/y)],Selected_flow_rate,StorageWellRequirements[Injection duration (years)],Selected_injection_duration,StorageWellRequirements[Well type],Selected_well_type,StorageWellRequirements[Brine production status],Selected_brine_production_status,StorageWellRequirements[Well conversion status],Selected_brine_production_well_conversion_status),0) -> 0 | H50: 0

Sheet Modelling inputs
C2: Brine production CBA tool
C4: =MID(CELL("filename",A1),FIND("]",CELL("filename",A1))+1,255) -> Modelling inputs
C7: Total terminals | E7: Total pipeline sizes | G7: Total flow rates | I7: Total durations | K7: Total injection facilities
C8: =COUNTA(ShorelineTerminals[Shoreline terminal]) -> 10 | E8: =COUNTA(PipelineSizes[Pipeline diameter (inches)]) -> 20 | G8: =COUNTA(FlowRates[Flow rate (Mt CO2/y)]) -> 7 | I8: =COUNTA(InjectionDurations[Injection duration (years)]) -> 4 | K8: =COUNTA(InjectionFacilities[Injection facility]) -> 4
C10: Shoreline terminal | E10: Pipeline diameter (inches) | G10: Flow rate (Mt CO2/y) | I10: Injection duration (years) | K10: Injection facility
C11: Bacton | E11: 4.5 | G11: 2 | I11: 10 | K11: Subsea
C12: Barrow | E12: 6 | G12: 5 | I12: 20 | K12: Small platform
C13: Easington Shore | E13: 8 | G13: 10 | I13: 30 | K13: Medium platform
C14: Forth | E14: 10 | G14: 15 | I14: 40 | K14: Large platform
C15: Humber | E15: 12 | G15: 20
C16: Milford Haven | E16: 14 | G16: 40
C17: St Fergus | E17: 16 | G17: 60
C18: Teesside | E18: 18
C19: Thames | E19: 20
C20: Wirral | E20: 22
E21: 24
E22: 26
E23: 28
E24: 32
E25: 36
E26: 40
E27: 44
E28: 48
E29: 52
E30: 56

Sheet Well requirements
C2: Brine production CBA tool
C4: =MID(CELL("filename",A1),FIND("]",CELL("filename",A1))+1,255) -> Well requirements
C8: ID | D8: Description | E8: Flow rate (Mt CO2/y) | F8: Injection duration (years) | G8: Brine production status | H8: Well type | I8: Well conversion status | J8: CO2 injection wells | K8: Converted CO2 injection wells | L8: Brine production wells | M8: Bottom hole pressure (MPa) | N8: Grid length (m) | O8: Grid width (m) | P8: Average well depth (m) | Q8: Maximum brine production (m3/d) | R8: Column1
C9: 1 | D9: Forties 5 | E9: 2 | F9: 10 | G9: No | H9: Vertical | I9: No | J9: 5 | M9: 39 | N9: 4000 | O9: 2400 | P9: 2775 | R9: =IF(StorageWellRequirements[[#This Row],[CO2 injection wells]]>0,1,0) -> 1
C10: 2 | D10: Forties 5 | E10: 2 | F10: 20 | G10: No | H10: Vertical | I10: No | J10: 6 | M10: 39 | N10: 4000 | O10: 3200 | P10: 2775 | R10: =IF(StorageWellRequirements[[#This Row],[CO2 injection wells]]>0,1,0) -> 1
C11: 3 | D11: Forties 5 | E11: 2 | F11: 30 | G11: No | H11: Vertical | I11: No | J11: 7 | M11: 39 | N11: 4000 | O11: 4800 | P11: 2775 | R11: =IF(StorageWellRequirements[[#This Row],[CO2 injection wells]]>0,1,0) -> 1
C12: 4 | D12: Forties 5 | E12: 2 | F12: 40 | G12: No | H12: Vertical | I12: No | J12: 7 | M12: 39 | N12: 4000 | O12: 4800 | P12: 2775 | R12: =IF(StorageWellRequirements[[#This Row],[CO2 injection wells]]>0,1,0) -> 1
C13: 5 | D13: Forties 5 | E13: 5 | F13: 10 | G13: No | H13: Vertical | I13: No | J13: 18 | M13: 39 | N13: 6000 | O13: 16800 | P13: 2750 | R13: =IF(StorageWellRequirements[[#This Row],[CO2 injection wells]]>0,1,0) -> 1
C14: 6 | D14: Forties 5 | E14: 5 | F14: 20 | G14: No | H14: Vertical | I14: No | J14: 21 | M14: 39 | N14: 6000 | O14: 16800 | P14: 2750 | R14: =IF(StorageWellRequirements[[#This Row],[CO2 injection wells]]>0,1,0) -> 1
C15: 7 | D15: Forties 5 | E15: 5 | F15: 30 | G15: No | H15: Vertical | I15: No | J15: 23 | M15: 39 | N15: 6000 | O15: 16800 | P15: 2750 | R15: =IF(StorageWellRequirements[[#This Row],[CO2 injection wells]]>0,1,0) -> 1
C16: 8 | D16: Forties 5 | E16: 5 | F16: 40 | G16: No | H16: Vertical | I16: No | J16: 23 | M16: 39 | N16: 6000 | O16: 16800 | P16: 2750 | R16: =IF(StorageWellRequirements[[#This Row],[CO2 injection wells]]>0,1,0) -> 1
C17: 9 | D17: Forties 5 | E17: 10 | F17: 10 | G17: No | H17: Vertical | I17: No | J17: 56 | M17: 39 | N17: 10000 | O17: 16800 | P17: 2725 | R17: =IF(StorageWellRequirements[[#This Row],[CO2 injection wells]]>0,1,0) -> 1
C18: 10 | D18: Forties 5 | E18: 10 | F18: 20 | G18: No | H18: Vertical | I18: No | J18: 78 | M18: 39 | N18: 10000 | O18: 16800 | P18: 2725 | R18: =IF(StorageWellRequirements[[#This Row],[CO2 injection wells]]>0,1,0) -> 1
C19: 11 | D19: Forties 5 | E19: 10 | F19: 30 | G19: No | H19: Vertical | I19: No | J19: 92 | M19: 39 | N19: 10000 | O19: 16800 | P19: 2725 | R19: =IF(StorageWellRequirements[[#This Row],[CO2 injection wells]]>0,1,0) -> 1
C20: 12 | D20: Forties 5 | E20: 10 | F20: 40 | G20: No | H20: Vertical | I20: No | J20: 92 | M20: 39 | N20: 10000 | O20: 16800 | P20: 2725 | R20: =IF(StorageWellRequirements[[#This Row],[CO2 injection wells]]>0,1,0) -> 1
C21: 13 | D21: Forties 5 | E21: 15 | F21: 10 | G21: No | H21: Vertical | I21: No | J21: 71 | M21: 39 | N21: 30000 | O21: 16800 | P21: 2700 | R21: =IF(StorageWellRequirements[[#This Row],[CO2 injection wells]]>0,1,0) -> 1
C22: 14 | D22: Forties 5 | E22: 15 | F22: 20 | G22: No | H22: Vertical | I22: No | R22: =IF(StorageWellRequirements[[#This Row],[CO2 injection wells]]>0,1,0) -> 0
C23: 15 | D23: Forties 5 | E23: 15 | F23: 30 | G23: No | H23: Vertical | I23: No | J23: 0 | M23: 0 | N23: 0 | O23: 0 | P23: 0 | R23: =IF(StorageWellRequirements[[#This Row],[CO2 injection wells]]>0,1,0) -> 0
C24: 16 | D24: Forties 5 | E24: 15 | F24: 40 | G24: No | H24: Vertical | I24: No | J24: 0 | M24: 0 | N24: 0 | O24: 0 | P24: 0 | R24: =IF(StorageWellRequirements[[#This Row],[CO2 injection wells]]>0,1,0) -> 0
C25: 17 | D25: Forties 5 | E25: 20 | F25: 10 | G25: No | H25: Vertical | I25: No | R25: =IF(StorageWellRequirements[[#This Row],[CO2 injection wells]]>0,1,0) -> 0
C26: 18 | D26: Forties 5 | E26: 20 | F26: 20 | G26: No | H26: Vertical | I26: No | J26: 0 | M26: 0 | N26: 0 | O26: 0 | P26: 0 | R26: =IF(StorageWellRequirements[[#This Row],[CO2 injection wells]]>0,1,0) -> 0
C27: 19 | D27: Forties 5 | E27: 20 | F27: 30 | G27: No | H27: Vertical | I27: No | J27: 0 | M27: 0 | N27: 0 | O27: 0 | P27: 0 | R27: =IF(StorageWellRequirements[[#This Row],[CO2 injection wells]]>0,1,0) -> 0
C28: 20 | D28: Forties 5 | E28: 20 | F28: 40 | G28: No | H28: Vertical | I28: No | J28: 0 | M28: 0 | N28: 0 | O28: 0 | P28: 0 | R28: =IF(StorageWellRequirements[[#This Row],[CO2 injection wells]]>0,1,0) -> 0
C29: 21 | D29: Forties 5 | E29: 40 | F29: 10 | G29: No | H29: Vertical | I29: No | J29: 0 | M29: 0 | N29: 0 | O29: 0 | P29: 0 | R29: =IF(StorageWellRequirements[[#This Row],[CO2 injection wells]]>0,1,0) -> 0
C30: 22 | D30: Forties 5 | E30: 40 | F30: 20 | G30: No | H30: Vertical | I30: No | J30: 0 | M30: 0 | N30: 0 | O30: 0 | P30: 0 | R30: =IF(StorageWellRequirements[[#This Row],[CO2 injection wells]]>0,1,0) -> 0
C31: 23 | D31: Forties 5 | E31: 40 | F31: 30 | G31: No | H31: Vertical | I31: No | J31: 0 | M31: 0 | N31: 0 | O31: 0 | P31: 0 | R31: =IF(StorageWellRequirements[[#This Row],[CO2 injection wells]]>0,1,0) -> 0
C32: 24 | D32: Forties 5 | E32: 40 | F32: 40 | G32: No | H32: Vertical | I32: No | J32: 0 | M32: 0 | N32: 0 | O32: 0 | P32: 0 | R32: =IF(StorageWellRequirements[[#This Row],[CO2 injection wells]]>0,1,0) -> 0
C33: 25 | D33: Forties 5 | E33: 60 | F33: 10 | G33: No | H33: Vertical | I33: No | J33: 0 | M33: 0 | N33: 0 | O33: 0 | P33: 0 | R33: =IF(StorageWellRequirements[[#This Row],[CO2 injection wells]]>0,1,0) -> 0
C34: 26 | D34: Forties 5 | E34: 60 | F34: 20 | G34: No | H34: Vertical | I34: No | J34: 0 | M34: 0 | N34: 0 | O34: 0 | P34: 0 | R34: =IF(StorageWellRequirements[[#This Row],[CO2 injection wells]]>0,1,0) -> 0
C35: 27 | D35: Forties 5 | E35: 60 | F35: 30 | G35: No | H35: Vertical | I35: No | J35: 0 | M35: 0 | N35: 0 | O35: 0 | P35: 0 | R35: =IF(StorageWellRequirements[[#This Row],[CO2 injection wells]]>0,1,0) -> 0
C36: 28 | D36: Forties 5 | E36: 60 | F36: 40 | G36: No | H36: Vertical | I36: No | J36: 0 | M36: 0 | N36: 0 | O36: 0 | P36: 0 | R36: =IF(StorageWellRequirements[[#This Row],[CO2 injection wells]]>0,1,0) -> 0
C37: 29 | D37: Forties 5 | E37: 2 | F37: 10 | G37: No | H37: Horizontal | I37: No | J37: 5 | M37: 38.3 | N37: 4000 | O37: 2400 | P37: 2775 | R37: =IF(StorageWellRequirements[[#This Row],[CO2 injection wells]]>0,1,0) -> 1
C38: 30 | D38: Forties 5 | E38: 2 | F38: 20 | G38: No | H38: Horizontal | I38: No | J38: 6 | M38: 39 | N38: 4000 | O38: 3200 | P38: 2775 | R38: =IF(StorageWellRequirements[[#This Row],[CO2 injection wells]]>0,1,0) -> 1
C39: 31 | D39: Forties 5 | E39: 2 | F39: 30 | G39: No | H39: Horizontal | I39: No | J39: 7 | M39: 39 | N39: 4000 | O39: 4800 | P39: 2775 | R39: =IF(StorageWellRequirements[[#This Row],[CO2 injection wells]]>0,1,0) -> 1
C40: 32 | D40: Forties 5 | E40: 2 | F40: 40 | G40: No | H40: Horizontal | I40: No | J40: 7 | M40: 39 | N40: 4000 | O40: 4800 | P40: 2775 | R40: =IF(StorageWellRequirements[[#This Row],[CO2 injection wells]]>0,1,0) -> 1
C41: 33 | D41: Forties 5 | E41: 5 | F41: 10 | G41: No | H41: Horizontal | I41: No | J41: 18 | M41: 38.3 | N41: 6000 | O41: 16800 | P41: 2750 | R41: =IF(StorageWellRequirements[[#This Row],[CO2 injection wells]]>0,1,0) -> 1
C42: 34 | D42: Forties 5 | E42: 5 | F42: 20 | G42: No | H42: Horizontal | I42: No | J42: 21 | M42: 39 | N42: 6000 | O42: 16800 | P42: 2750 | R42: =IF(StorageWellRequirements[[#This Row],[CO2 injection wells]]>0,1,0) -> 1
C43: 35 | D43: Forties 5 | E43: 5 | F43: 30 | G43: No | H43: Horizontal | I43: No | J43: 23 | M43: 39 | N43: 6000 | O43: 16800 | P43: 2750 | R43: =IF(StorageWellRequirements[[#This Row],[CO2 injection wells]]>0,1,0) -> 1
C44: 36 | D44: Forties 5 | E44: 5 | F44: 40 | G44: No | H44: Horizontal | I44: No | J44: 23 | M44: 39 | N44: 6000 | O44: 16800 | P44: 2750 | R44: =IF(StorageWellRequirements[[#This Row],[CO2 injection wells]]>0,1,0) -> 1
C45: 37 | D45: Forties 5 | E45: 10 | F45: 10 | G45: No | H45: Horizontal | I45: No | J45: 56 | M45: 39 | N45: 10000 | O45: 16800 | P45: 2725 | R45: =IF(StorageWellRequirements[[#This Row],[CO2 injection wells]]>0,1,0) -> 1
C46: 38 | D46: Forties 5 | E46: 10 | F46: 20 | G46: No | H46: Horizontal | I46: No | J46: 78 | M46: 39 | N46: 10000 | O46: 16800 | P46: 2725 | R46: =IF(StorageWellRequirements[[#This Row],[CO2 injection wells]]>0,1,0) -> 1
C47: 39 | D47: Forties 5 | E47: 10 | F47: 30 | G47: No | H47: Horizontal | I47: No | J47: 92 | M47: 39 | N47: 10000 | O47: 16800 | P47: 2725 | R47: =IF(StorageWellRequirements[[#This Row],[CO2 injection wells]]>0,1,0) -> 1
C48: 40 | D48: Forties 5 | E48: 10 | F48: 40 | G48: No | H48: Horizontal | I48: No | J48: 92 | M48: 39 | N48: 10000 | O48: 16800 | P48: 2725 | R48: =IF(StorageWellRequirements[[#This Row],[CO2 injection wells]]>0,1,0) -> 1
C49: 41 | D49: Forties 5 | E49: 15 | F49: 10 | G49: No | H49: Horizontal | I49: No | J49: 71 | M49: 39 | N49: 30000 | O49: 16800 | P49: 2700 | R49: =IF(StorageWellRequirements[[#This Row],[CO2 injection wells]]>0,1,0) -> 1
C50: 42 | D50: Forties 5 | E50: 15 | F50: 20 | G50: No | H50: Horizontal | I50: No | R50: =IF(StorageWellRequirements[[#This Row],[CO2 injection wells]]>0,1,0) -> 0
C51: 43 | D51: Forties 5 | E51: 15 | F51: 30 | G51: No | H51: Horizontal | I51: No | R51: =IF(StorageWellRequirements[[#This Row],[CO2 injection wells]]>0,1,0) -> 0
C52: 44 | D52: Forties 5 | E52: 15 | F52: 40 | G52: No | H52: Horizontal | I52: No | R52: =IF(StorageWellRequirements[[#This Row],[CO2 injection wells]]>0,1,0) -> 0
C53: 45 | D53: Forties 5 | E53: 20 | F53: 10 | G53: No | H53: Horizontal | I53: No | R53: =IF(StorageWellRequirements[[#This Row],[CO2 injection wells]]>0,1,0) -> 0
C54: 46 | D54: Forties 5 | E54: 20 | F54: 20 | G54: No | H54: Horizontal | I54: No | J54: 0 | M54: 0 | N54: 0 | O54: 0 | P54: 0 | R54: =IF(StorageWellRequirements[[#This Row],[CO2 injection wells]]>0,1,0) -> 0
C55: 47 | D55: Forties 5 | E55: 20 | F55: 30 | G55: No | H55: Horizontal | I55: No | J55: 0 | M55: 0 | N55: 0 | O55: 0 | P55: 0 | R55: =IF(StorageWellRequirements[[#This Row],[CO2 injection wells]]>0,1,0) -> 0
C56: 48 | D56: Forties 5 | E56: 20 | F56: 40 | G56: No | H56: Horizontal | I56: No | J56: 0 | M56: 0 | N56: 0 | O56: 0 | P56: 0 | R56: =IF(StorageWellRequirements[[#This Row],[CO2 injection wells]]>0,1,0) -> 0
C57: 49 | D57: Forties 5 | E57: 40 | F57: 10 | G57: No | H57: Horizontal | I57: No | M57: 0 | N57: 0 | O57: 0 | P57: 0 | R57: =IF(StorageWellRequirements[[#This Row],[CO2 injection wells]]>0,1,0) -> 0
C58: 50 | D58: Forties 5 | E58: 40 | F58: 20 | G58: No | H58: Horizontal | I58: No | M58: 0 | N58: 0 | O58: 0 | P58: 0 | R58: =IF(StorageWellRequirements[[#This Row],[CO2 injection wells]]>0,1,0) -> 0
C59: 51 | D59: Forties 5 | E59: 40 | F59: 30 | G59: No | H59: Horizontal | I59: No | M59: 0 | N59: 0 | O59: 0 | P59: 0 | R59: =IF(StorageWellRequirements[[#This Row],[CO2 injection wells]]>0,1,0) -> 0
C60: 52 | D60: Forties 5 | E60: 40 | F60: 40 | G60: No | H60: Horizontal | I60: No | M60: 0 | N60: 0 | O60: 0 | P60: 0 | R60: =IF(StorageWellRequirements[[#This Row],[CO2 injection wells]]>0,1,0) -> 0
C61: 53 | D61: Forties 5 | E61: 60 | F61: 10 | G61: No | H61: Horizontal | I61: No | M61: 0 | N61: 0 | O61: 0 | P61: 0 | R61: =IF(StorageWellRequirements[[#This Row],[CO2 injection wells]]>0,1,0) -> 0
C62: 54 | D62: Forties 5 | E62: 60 | F62: 20 | G62: No | H62: Horizontal | I62: No | M62: 0 | N62: 0 | O62: 0 | P62: 0 | R62: =IF(StorageWellRequirements[[#This Row],[CO2 injection wells]]>0,1,0) -> 0
C63: 55 | D63: Forties 5 | E63: 60 | F63: 30 | G63: No | H63: Horizontal | I63: No | M63: 0 | N63: 0 | O63: 0 | P63: 0 | R63: =IF(StorageWellRequirements[[#This Row],[CO2 injection wells]]>0,1,0) -> 0
C64: 56 | D64: Forties 5 | E64: 60 | F64: 40 | G64: No | H64: Horizontal | I64: No | M64: 0 | N64: 0 | O64: 0 | P64: 0 | R64: =IF(StorageWellRequirements[[#This Row],[CO2 injection wells]]>0,1,0) -> 0
C65: 57 | D65: Forties 5 | E65: 2 | F65: 10 | G65: Yes | H65: Vertical | I65: No | R65: =IF(StorageWellRequirements[[#This Row],[CO2 injection wells]]>0,1,0) -> 0
C66: 58 | D66: Forties 5 | E66: 2 | F66: 20 | G66: Yes | H66: Vertical | I66: No | R66: =IF(StorageWellRequirements[[#This Row],[CO2 injection wells]]>0,1,0) -> 0
C67: 59 | D67: Forties 5 | E67: 2 | F67: 30 | G67: Yes | H67: Vertical | I67: No | R67: =IF(StorageWellRequirements[[#This Row],[CO2 injection wells]]>0,1,0) -> 0
C68: 60 | D68: Forties 5 | E68: 2 | F68: 40 | G68: Yes | H68: Vertical | I68: No | R68: =IF(StorageWellRequirements[[#This Row],[CO2 injection wells]]>0,1,0) -> 0
C69: 61 | D69: Forties 5 | E69: 5 | F69: 10 | G69: Yes | H69: Vertical | I69: No | R69: =IF(StorageWellRequirements[[#This Row],[CO2 injection wells]]>0,1,0) -> 0
C70: 62 | D70: Forties 5 | E70: 5 | F70: 20 | G70: Yes | H70: Vertical | I70: No | R70: =IF(StorageWellRequirements[[#This Row],[CO2 injection wells]]>0,1,0) -> 0
C71: 63 | D71: Forties 5 | E71: 5 | F71: 30 | G71: Yes | H71: Vertical | I71: No | R71: =IF(StorageWellRequirements[[#This Row],[CO2 injection wells]]>0,1,0) -> 0
C72: 64 | D72: Forties 5 | E72: 5 | F72: 40 | G72: Yes | H72: Vertical | I72: No | R72: =IF(StorageWellRequirements[[#This Row],[CO2 injection wells]]>0,1,0) -> 0
C73: 65 | D73: Forties 5 | E73: 10 | F73: 10 | G73: Yes | H73: Vertical | I73: No | J73: 56 | L73: 4 | M73: 39 | N73: 10000 | O73: 16800 | P73: 2725 | Q73: 12326 | R73: =IF(StorageWellRequirements[[#This Row],[CO2 injection wells]]>0,1,0) -> 1
C74: 66 | D74: Forties 5 | E74: 10 | F74: 20 | G74: Yes | H74: Vertical | I74: No | J74: 74 | L74: 4 | M74: 39 | N74: 10000 | O74: 16800 | P74: 2725 | Q74: 13988 | R74: =IF(StorageWellRequirements[[#This Row],[CO2 injection wells]]>0,1,0) -> 1
C75: 67 | D75: Forties 5 | E75: 10 | F75: 30 | G75: Yes | H75: Vertical | I75: No | J75: 88 | L75: 4 | M75: 39 | N75: 10000 | O75: 16800 | P75: 2725 | Q75: 14945 | R75: =IF(StorageWellRequirements[[#This Row],[CO2 injection wells]]>0,1,0) -> 1
C76: 68 | D76: Forties 5 | E76: 10 | F76: 40 | G76: Yes | H76: Vertical | I76: No | J76: 88 | L76: 4 | M76: 39 | N76: 10000 | O76: 16800 | P76: 2725 | Q76: 12059 | R76: =IF(StorageWellRequirements[[#This Row],[CO2 injection wells]]>0,1,0) -> 1
C77: 69 | D77: Forties 5 | E77: 15 | F77: 10 | G77: Yes | H77: Vertical | I77: No | J77: 64 | L77: 7 | M77: 39 | N77: 30000 | O77: 16800 | P77: 2700 | Q77: 24972 | R77: =IF(StorageWellRequirements[[#This Row],[CO2 injection wells]]>0,1,0) -> 1
C78: 70 | D78: Forties 5 | E78: 15 | F78: 20 | G78: Yes | H78: Vertical | I78: No | J78: 89 | L78: 7 | M78: 39 | N78: 30000 | O78: 16800 | P78: 2700 | Q78: 26361 | R78: =IF(StorageWellRequirements[[#This Row],[CO2 injection wells]]>0,1,0) -> 1
C79: 71 | D79: Forties 5 | E79: 15 | F79: 30 | G79: Yes | H79: Vertical | I79: No | J79: 99 | L79: 7 | M79: 39 | N79: 30000 | O79: 16800 | P79: 2700 | Q79: 24769 | R79: =IF(StorageWellRequirements[[#This Row],[CO2 injection wells]]>0,1,0) -> 1
C80: 72 | D80: Forties 5 | E80: 15 | F80: 40 | G80: Yes | H80: Vertical | I80: No | J80: 0 | L80: 0 | M80: 0 | N80: 0 | O80: 0 | P80: 0 | Q80: 0 | R80: =IF(StorageWellRequirements[[#This Row],[CO2 injection wells]]>0,1,0) -> 0
C81: 73 | D81: Forties 5 | E81: 20 | F81: 10 | G81: Yes | H81: Vertical | I81: No | J81: 113 | L81: 7 | M81: 39 | N81: 30000 | O81: 16800 | P81: 2700 | Q81: 28062 | R81: =IF(StorageWellRequirements[[#This Row],[CO2 injection wells]]>0,1,0) -> 1
C82: 74 | D82: Forties 5 | E82: 20 | F82: 20 | G82: Yes | H82: Vertical | I82: No | J82: 113 | L82: 7 | M82: 39 | N82: 30000 | O82: 16800 | P82: 2700 | Q82: 32248 | R82: =IF(StorageWellRequirements[[#This Row],[CO2 injection wells]]>0,1,0) -> 1
C83: 75 | D83: Forties 5 | E83: 20 | F83: 30 | G83: Yes | H83: Vertical | I83: No | J83: 0 | K83: 0 | L83: 0 | M83: 0 | N83: 0 | O83: 0 | P83: 0 | Q83: 0 | R83: =IF(StorageWellRequirements[[#This Row],[CO2 injection wells]]>0,1,0) -> 0
C84: 76 | D84: Forties 5 | E84: 20 | F84: 40 | G84: Yes | H84: Vertical | I84: No | J84: 0 | K84: 0 | L84: 0 | M84: 0 | N84: 0 | O84: 0 | P84: 0 | Q84: 0 | R84: =IF(StorageWellRequirements[[#This Row],[CO2 injection wells]]>0,1,0) -> 0
C85: 77 | D85: Forties 5 | E85: 40 | F85: 10 | G85: Yes | H85: Vertical | I85: No | J85: 0 | K85: 0 | L85: 0 | M85: 0 | N85: 0 | O85: 0 | P85: 0 | Q85: 0 | R85: =IF(StorageWellRequirements[[#This Row],[CO2 injection wells]]>0,1,0) -> 0
C86: 78 | D86: Forties 5 | E86: 40 | F86: 20 | G86: Yes | H86: Vertical | I86: No | J86: 0 | K86: 0 | L86: 0 | M86: 0 | N86: 0 | O86: 0 | P86: 0 | Q86: 0 | R86: =IF(StorageWellRequirements[[#This Row],[CO2 injection wells]]>0,1,0) -> 0
C87: 79 | D87: Forties 5 | E87: 40 | F87: 30 | G87: Yes | H87: Vertical | I87: No | J87: 0 | K87: 0 | L87: 0 | M87: 0 | N87: 0 | O87: 0 | P87: 0 | Q87: 0 | R87: =IF(StorageWellRequirements[[#This Row],[CO2 injection wells]]>0,1,0) -> 0
C88: 80 | D88: Forties 5 | E88: 40 | F88: 40 | G88: Yes | H88: Vertical | I88: No | J88: 0 | K88: 0 | L88: 0 | M88: 0 | N88: 0 | O88: 0 | P88: 0 | Q88: 0 | R88: =IF(StorageWellRequirements[[#This Row],[CO2 injection wells]]>0,1,0) -> 0
C89: 81 | D89: Forties 5 | E89: 60 | F89: 10 | G89: Yes | H89: Vertical | I89: No | J89: 0 | K89: 0 | L89: 0 | M89: 0 | N89: 0 | O89: 0 | P89: 0 | Q89: 0 | R89: =IF(StorageWellRequirements[[#This Row],[CO2 injection wells]]>0,1,0) -> 0
C90: 82 | D90: Forties 5 | E90: 60 | F90: 20 | G90: Yes | H90: Vertical | I90: No | J90: 0 | K90: 0 | L90: 0 | M90: 0 | N90: 0 | O90: 0 | P90: 0 | Q90: 0 | R90: =IF(StorageWellRequirements[[#This Row],[CO2 injection wells]]>0,1,0) -> 0
C91: 83 | D91: Forties 5 | E91: 60 | F91: 30 | G91: Yes | H91: Vertical | I91: No | J91: 0 | K91: 0 | L91: 0 | M91: 0 | N91: 0 | O91: 0 | P91: 0 | Q91: 0 | R91: =IF(StorageWellRequirements[[#This Row],[CO2 injection wells]]>0,1,0) -> 0
C92: 84 | D92: Forties 5 | E92: 60 | F92: 40 | G92: Yes | H92: Vertical | I92: No | J92: 0 | K92: 0 | L92: 0 | M92: 0 | N92: 0 | O92: 0 | P92: 0 | Q92: 0 | R92: =IF(StorageWellRequirements[[#This Row],[CO2 injection wells]]>0,1,0) -> 0
C93: 85 | D93: Forties 5 | E93: 2 | F93: 10 | G93: Yes | H93: Horizontal | I93: No | J93: 0 | K93: 0 | L93: 0 | M93: 0 | N93: 0 | O93: 0 | P93: 0 | Q93: 0 | R93: =IF(StorageWellRequirements[[#This Row],[CO2 injection wells]]>0,1,0) -> 0
C94: 86 | D94: Forties 5 | E94: 2 | F94: 20 | G94: Yes | H94: Horizontal | I94: No | J94: 0 | K94: 0 | L94: 0 | M94: 0 | N94: 0 | O94: 0 | P94: 0 | Q94: 0 | R94: =IF(StorageWellRequirements[[#This Row],[CO2 injection wells]]>0,1,0) -> 0
C95: 87 | D95: Forties 5 | E95: 2 | F95: 30 | G95: Yes | H95: Horizontal | I95: No | J95: 0 | K95: 0 | L95: 0 | M95: 0 | N95: 0 | O95: 0 | P95: 0 | Q95: 0 | R95: =IF(StorageWellRequirements[[#This Row],[CO2 injection wells]]>0,1,0) -> 0
C96: 88 | D96: Forties 5 | E96: 2 | F96: 40 | G96: Yes | H96: Horizontal | I96: No | J96: 0 | K96: 0 | L96: 0 | M96: 0 | N96: 0 | O96: 0 | P96: 0 | Q96: 0 | R96: =IF(StorageWellRequirements[[#This Row],[CO2 injection wells]]>0,1,0) -> 0
C97: 89 | D97: Forties 5 | E97: 5 | F97: 10 | G97: Yes | H97: Horizontal | I97: No | J97: 15 | K97: 0 | L97: 3 | M97: 38.7 | N97: 14000 | O97: 16800 | P97: 2750 | Q97: 2216 | R97: =IF(StorageWellRequirements[[#This Row],[CO2 injection wells]]>0,1,0) -> 1
C98: 90 | D98: Forties 5 | E98: 5 | F98: 20 | G98: Yes | H98: Horizontal | I98: No | J98: 17 | K98: 0 | L98: 3 | M98: 39 | N98: 14000 | O98: 16800 | P98: 2750 | Q98: 2790 | R98: =IF(StorageWellRequirements[[#This Row],[CO2 injection wells]]>0,1,0) -> 1
C99: 91 | D99: Forties 5 | E99: 5 | F99: 30 | G99: Yes | H99: Horizontal | I99: No | J99: 21 | K99: 0 | L99: 3 | M99: 39 | N99: 14000 | O99: 16800 | P99: 2750 | Q99: 2948 | R99: =IF(StorageWellRequirements[[#This Row],[CO2 injection wells]]>0,1,0) -> 1
C100: 92 | D100: Forties 5 | E100: 5 | F100: 40 | G100: Yes | H100: Horizontal | I100: No | J100: 21 | K100: 0 | L100: 3 | M100: 39 | N100: 14000 | O100: 16800 | P100: 2750 | Q100: 2051 | R100: =IF(StorageWellRequirements[[#This Row],[CO2 injection wells]]>0,1,0) -> 1
C101: 93 | D101: Forties 5 | E101: 10 | F101: 10 | G101: Yes | H101: Horizontal | I101: No | J101: 34 | K101: 0 | L101: 12 | M101: 38.6 | N101: 30000 | O101: 16800 | P101: 2725 | Q101: 10642 | R101: =IF(StorageWellRequirements[[#This Row],[CO2 injection wells]]>0,1,0) -> 1
C102: 94 | D102: Forties 5 | E102: 10 | F102: 20 | G102: Yes | H102: Horizontal | I102: No | J102: 40 | K102: 0 | L102: 12 | M102: 39 | N102: 30000 | O102: 16800 | P102: 2725 | Q102: 10024 | R102: =IF(StorageWellRequirements[[#This Row],[CO2 injection wells]]>0,1,0) -> 1
C103: 95 | D103: Forties 5 | E103: 10 | F103: 30 | G103: Yes | H103: Horizontal | I103: No | J103: 45 | K103: 0 | L103: 16 | M103: 39 | N103: 30000 | O103: 16800 | P103: 2725 | Q103: 13733 | R103: =IF(StorageWellRequirements[[#This Row],[CO2 injection wells]]>0,1,0) -> 1
C104: 96 | D104: Forties 5 | E104: 10 | F104: 40 | G104: Yes | H104: Horizontal | I104: No | J104: 49 | K104: 0 | L104: 16 | M104: 39 | N104: 30000 | O104: 16800 | P104: 2725 | Q104: 8752 | R104: =IF(StorageWellRequirements[[#This Row],[CO2 injection wells]]>0,1,0) -> 1
C105: 97 | D105: Forties 5 | E105: 15 | F105: 10 | G105: Yes | H105: Horizontal | I105: No | J105: 51 | K105: 0 | L105: 20 | M105: 37.7 | N105: 30000 | O105: 16800 | P105: 2700 | Q105: 20034 | R105: =IF(StorageWellRequirements[[#This Row],[CO2 injection wells]]>0,1,0) -> 1
C106: 98 | D106: Forties 5 | E106: 15 | F106: 20 | G106: Yes | H106: Horizontal | I106: No | J106: 57 | K106: 0 | L106: 20 | M106: 39 | N106: 30000 | O106: 16800 | P106: 2700 | Q106: 18779 | R106: =IF(StorageWellRequirements[[#This Row],[CO2 injection wells]]>0,1,0) -> 1
C107: 99 | D107: Forties 5 | E107: 15 | F107: 30 | G107: Yes | H107: Horizontal | I107: No | J107: 63 | K107: 0 | L107: 22 | M107: 39 | N107: 30000 | O107: 16800 | P107: 2700 | Q107: 18268 | R107: =IF(StorageWellRequirements[[#This Row],[CO2 injection wells]]>0,1,0) -> 1
C108: 100 | D108: Forties 5 | E108: 15 | F108: 40 | G108: Yes | H108: Horizontal | I108: No | R108: =IF(StorageWellRequirements[[#This Row],[CO2 injection wells]]>0,1,0) -> 0
C109: 101 | D109: Forties 5 | E109: 20 | F109: 10 | G109: Yes | H109: Horizontal | I109: No | J109: 68 | K109: 0 | L109: 28 | M109: 37.2 | N109: 30000 | O109: 16800 | P109: 2700 | Q109: 27218 | R109: =IF(StorageWellRequirements[[#This Row],[CO2 injection wells]]>0,1,0) -> 1
C110: 102 | D110: Forties 5 | E110: 20 | F110: 20 | G110: Yes | H110: Horizontal | I110: No | J110: 84 | K110: 0 | L110: 28 | M110: 39 | N110: 30000 | O110: 16800 | P110: 2700 | Q110: 26342 | R110: =IF(StorageWellRequirements[[#This Row],[CO2 injection wells]]>0,1,0) -> 1
C111: 103 | D111: Forties 5 | E111: 20 | F111: 30 | G111: Yes | H111: Horizontal | I111: No | J111: 0 | K111: 0 | L111: 0 | M111: 0 | N111: 0 | O111: 0 | P111: 0 | Q111: 0 | R111: =IF(StorageWellRequirements[[#This Row],[CO2 injection wells]]>0,1,0) -> 0
C112: 104 | D112: Forties 5 | E112: 20 | F112: 40 | G112: Yes | H112: Horizontal | I112: No | J112: 0 | K112: 0 | L112: 0 | M112: 0 | N112: 0 | O112: 0 | P112: 0 | Q112: 0 | R112: =IF(StorageWellRequirements[[#This Row],[CO2 injection wells]]>0,1,0) -> 0
C113: 105 | D113: Forties 5 | E113: 40 | F113: 10 | G113: Yes | H113: Horizontal | I113: No | J113: 0 | K113: 0 | L113: 0 | M113: 0 | N113: 0 | O113: 0 | P113: 0 | Q113: 0 | R113: =IF(StorageWellRequirements[[#This Row],[CO2 injection wells]]>0,1,0) -> 0
C114: 106 | D114: Forties 5 | E114: 40 | F114: 20 | G114: Yes | H114: Horizontal | I114: No | J114: 0 | K114: 0 | L114: 0 | M114: 0 | N114: 0 | O114: 0 | P114: 0 | Q114: 0 | R114: =IF(StorageWellRequirements[[#This Row],[CO2 injection wells]]>0,1,0) -> 0
C115: 107 | D115: Forties 5 | E115: 40 | F115: 30 | G115: Yes | H115: Horizontal | I115: No | J115: 0 | K115: 0 | L115: 0 | M115: 0 | N115: 0 | O115: 0 | P115: 0 | Q115: 0 | R115: =IF(StorageWellRequirements[[#This Row],[CO2 injection wells]]>0,1,0) -> 0
C116: 108 | D116: Forties 5 | E116: 40 | F116: 40 | G116: Yes | H116: Horizontal | I116: No | J116: 0 | K116: 0 | L116: 0 | M116: 0 | N116: 0 | O116: 0 | P116: 0 | Q116: 0 | R116: =IF(StorageWellRequirements[[#This Row],[CO2 injection wells]]>0,1,0) -> 0
C117: 109 | D117: Forties 5 | E117: 60 | F117: 10 | G117: Yes | H117: Horizontal | I117: No | J117: 0 | K117: 0 | L117: 0 | M117: 0 | N117: 0 | O117: 0 | P117: 0 | Q117: 0 | R117: =IF(StorageWellRequirements[[#This Row],[CO2 injection wells]]>0,1,0) -> 0
C118: 110 | D118: Forties 5 | E118: 60 | F118: 20 | G118: Yes | H118: Horizontal | I118: No | J118: 0 | K118: 0 | L118: 0 | M118: 0 | N118: 0 | O118: 0 | P118: 0 | Q118: 0 | R118: =IF(StorageWellRequirements[[#This Row],[CO2 injection wells]]>0,1,0) -> 0
C119: 111 | D119: Forties 5 | E119: 60 | F119: 30 | G119: Yes | H119: Horizontal | I119: No | J119: 0 | K119: 0 | L119: 0 | M119: 0 | N119: 0 | O119: 0 | P119: 0 | Q119: 0 | R119: =IF(StorageWellRequirements[[#This Row],[CO2 injection wells]]>0,1,0) -> 0
C120: 112 | D120: Forties 5 | E120: 60 | F120: 40 | G120: Yes | H120: Horizontal | I120: No | J120: 0 | K120: 0 | L120: 0 | M120: 0 | N120: 0 | O120: 0 | P120: 0 | Q120: 0 | R120: =IF(StorageWellRequirements[[#This Row],[CO2 injection wells]]>0,1,0) -> 0
C121: 113 | D121: Forties 5 | E121: 2 | F121: 10 | G121: Yes | H121: Vertical | I121: Yes | R121: =IF(StorageWellRequirements[[#This Row],[CO2 injection wells]]>0,1,0) -> 0
C122: 114 | D122: Forties 5 | E122: 2 | F122: 20 | G122: Yes | H122: Vertical | I122: Yes | R122: =IF(StorageWellRequirements[[#This Row],[CO2 injection wells]]>0,1,0) -> 0
C123: 115 | D123: Forties 5 | E123: 2 | F123: 30 | G123: Yes | H123: Vertical | I123: Yes | R123: =IF(StorageWellRequirements[[#This Row],[CO2 injection wells]]>0,1,0) -> 0
C124: 116 | D124: Forties 5 | E124: 2 | F124: 40 | G124: Yes | H124: Vertical | I124: Yes | R124: =IF(StorageWellRequirements[[#This Row],[CO2 injection wells]]>0,1,0) -> 0
C125: 117 | D125: Forties 5 | E125: 5 | F125: 10 | G125: Yes | H125: Vertical | I125: Yes | R125: =IF(StorageWellRequirements[[#This Row],[CO2 injection wells]]>0,1,0) -> 0
... 156 more rows

Sheet Shoreline locations
C2: Brine production CBA tool
C4: =MID(CELL("filename",A1),FIND("]",CELL("filename",A1))+1,255) -> Shoreline locations
C8: ID | D8: Shoreline terminal | E8: Latitude | F8: Longitude
C9: 1 | D9: Bacton | E9: 52.86 | F9: 1.46
C10: 2 | D10: Barrow | E10: 54.09 | F10: -3.18
C11: 3 | D11: Easington Shore | E11: 53.65 | F11: 0.12
C12: 4 | D12: Forth | E12: 56.01 | F12: -3.69
C13: 5 | D13: Humber | E13: 53.36 | F13: 0.23
C14: 6 | D14: Milford Haven | E14: 51.7 | F14: -5.08
C15: 7 | D15: St Fergus | E15: 57.58 | F15: -1.84
C16: 8 | D16: Teesside | E16: 54.61 | F16: -1.19
C17: 9 | D17: Thames | E17: 51.44 | F17: 0.69
C18: 10 | D18: Wirral | E18: 53.34 | F18: -3.32

Sheet Storage specifications
C2: Brine production CBA tool
C4: =MID(CELL("filename",A1),FIND("]",CELL("filename",A1))+1,255) -> Storage specifications
D7: Total storage sites
D8: =COUNTA(StorageSiteSpecifications[Description]) -> 9
C10: ID | D10: Description | E10: Sink ID | F10: Type | G10: Risk score | H10: Latitude | I10: Longitude | J10: Capacity (Mt CO2) | K10: Area (m2) | L10: Water depth | M10: Depth to storage (m) | N10: Existing wells
C11: 1 | D11: Forties 5 | E11: 372 | F11: Saline Aquifer | G11: 183 | H11: 57.506401 | I11: 1.16623 | J11: 350 | K11: 124230000 | L11: 80 | M11: 2336 | N11: 1840
C12: 2 | D12: Bunter_zone4 | E12: 139 | F12: Saline Aquifer | G12: 152 | H12: 54.34 | I12: 1.64 | J12: 400 | K12: 104760000 | L12: 55 | M12: 1590 | N12: 409
C13: 3 | D13: Tay | E13: 235 | F13: Saline Aquifer | G13: 182 | H13: 57.21 | I13: 0.95 | J13: 100 | K13: 21880000 | L13: 110 | M13: 1992 | N13: 390
C14: 4 | D14: Firth of Forth | F14: Saline Aquifer | G14: 150 | H14: 56.3 | I14: -2.9 | J14: 100 | K14: 278000000 | L14: 50 | M14: 2150 | N14: 0
C15: 5 | D15: Firthcoal_015_13_CLONE | E15: 380 | F15: Saline Aquifer | G15: 172 | H15: 58.61 | I15: 0.44 | J15: 317 | K15: 598280000 | L15: 147 | M15: 3586.25 | N15: 5
C16: 6 | D16: Bunter Closure 35 | E16: 139.015 | F16: Saline Aquifer | G16: 144 | H16: 54.22 | I16: 1.03 | J16: 554 | K16: 158100000 | L16: 60 | M16: 1384.5 | N16: 2
C17: 7 | D17: Bunter Closure 36 | E17: 139.016 | F17: Saline Aquifer | G17: 144 | H17: 54.05 | I17: 2.12 | J17: 232 | K17: 71100000 | L17: 80 | M17: 1569 | N17: 17
C18: 8 | D18: Firth of Forth - delay 20 | F18: Saline Aquifer | G18: 150 | H18: 56.3 | I18: -2.9 | J18: 100 | K18: 278000000 | L18: 50 | M18: 2150 | N18: 0
C19: 9 | D19: Firth of Forth - 5 - 10 Mt/y | F19: Saline Aquifer | G19: 150 | H19: 56.3 | I19: -2.9 | J19: 100 | K19: 278000000 | L19: 50 | M19: 2150 | N19: 0
C20: 10
C21: 11
C22: 12
C23: 13
C24: 14
C25: 15
C26: 16
C27: 17
C28: 18
C29: 19
C30: 20
C31: 21
C32: 22
C33: 23
C34: 24
C35: 25
C36: 26
C37: 27
C38: 28
C39: 29
C40: 30
C41: 31
C42: 32
C43: 33
C44: 34
C45: 35
C46: 36
C47: 37
C48: 38
C49: 39
C50: 40
C51: 41
C52: 42
C53: 43
C54: 44
C55: 45
C56: 46
C57: 47
C58: 48
C59: 49
C60: 50
C61: 51
C62: 52
C63: 53
C64: 54
C65: 55
C66: 56
C67: 57
C68: 58
C69: 59
C70: 60
C71: 61
C72: 62
C73: 63
C74: 64
C75: 65
C76: 66
C77: 67
C78: 68
C79: 69
C80: 70
C81: 71
C82: 72
C83: 73
C84: 74
C85: 75
C86: 76
C87: 77
C88: 78
C89: 79
C90: 80
C91: 81
C92: 82
C93: 83
C94: 84
C95: 85
C96: 86
C97: 87
C98: 88
C99: 89
C100: 90
C101: 91
C102: 92
C103: 93
C104: 94
C105: 95
C106: 96
C107: 97
C108: 98
C109: 99
C110: 100
C111: 101
C112: 102
C113: 103
C114: 104
C115: 105
C116: 106
C117: 107
C118: 108
C119: 109
C120: 110
C121: 111
C122: 112
C123: 113
C124: 114
C125: 115
... 156 more rows

Sheet Engineering inputs
C2: Brine production CBA tool
C4: =MID(CELL("filename",A1),FIND("]",CELL("filename",A1))+1,255) -> Engineering inputs
C8: Physical constant | D8: Value | E8: Unit | G8: Injection facility | H8: Maximum wells | I8: Average distance of well from centroid to well spacing ratio | J8: Maximum distance of well from centroid to well spacing ratio | K8: Use with subsea brine production constraint | M8: Maximum wells | N8: Average distance of well from centroid to well spacing ratio | O8: Maximum distance of well from centroid to well spacing ratio | Q8: Storage type | R8: Seismic needed | S8: Field development | T8: Water discharging | U8: Oil processing | V8: Manned platform needed | X8: Initial unit | Y8: Final unit | Z8: Conversion value | AB8: Pressure (MPa) | AC8: Density (kg/m3) | AD8: Viscosity (Pas)
C9: Radius of Earth | D9: =6.37*10^6 -> 6370000 | E9: m | G9: Subsea | H9: 2 | I9: =1*0.5 -> 0.5 | J9: =1/2 -> 0.5 | K9: No | M9: 2 | N9: =1*0.5 -> 0.5 | O9: =1/2 -> 0.5 | Q9: Saline Aquifer | R9: Yes | S9: No | T9: Yes | U9: No | V9: No | X9: Mt | Y9: kg | Z9: =1*10^9 -> 1000000000 | AB9: 10 | AC9: 817.63 | AD9: 7.3877e-05
C10: Acceleration due to gravity | D10: 9.8 | E10: ms-2 | G10: Small platform | H10: 6 | I10: =1.8*0.5 -> 0.9 | J10: =SQRT(5)/2 -> 1.118033989 | K10: Yes | M10: 4 | N10: =1.4*0.5 -> 0.7 | O10: =SQRT(2)/2 -> 0.7071067812 | Q10: Gas Condensate | R10: No | S10: Yes | T10: Yes | U10: No | V10: No | X10: Year | Y10: second | Z10: =8760*60*60 -> 31536000 | AB10: 20 | AC10: 914.24 | AD10: 9.5038e-05
G11: Medium platform | H11: 12 | I11: =2.6*0.5 -> 1.3 | J11: =SQRT(13)/2 -> 1.802775638 | K11: Yes | M11: 6 | N11: =1.8*0.5 -> 0.9 | O11: =SQRT(5)/2 -> 1.118033989 | Q11: Oil & Gas | R11: No | S11: Yes | T11: No | U11: Yes | V11: Yes | X11: Inch | Y11: metre | Z11: 0.0254 | AB11: 25 | AC11: 942.98 | AD11: 0.00010291
C12: Engineering assumptions | D12: Value | E12: Unit | G12: Large platform | H12: 20 | I12: =3.4*0.5 -> 1.7 | J12: =5/2 -> 2.5 | K12: Yes | M12: 9 | N12: =2.4*0.5 -> 1.2 | O12: =SQRT(8)/2 -> 1.414213562 | Q12: Gas | R12: No | S12: Yes | T12: Yes | U12: No | V12: No | AB12: 30 | AC12: 966.52 | AD12: 0.00011004
C13: Minimum pipeline pressure | D13: 10 | E13: MPa | M13: 12 | N13: =2.6*0.5 -> 1.3 | O13: =SQRT(13)/2 -> 1.802775638 | AB13: 35 | AC13: 985.800849
C14: Maximum pipeline pressure | D14: 25 | E14: MPa | M14: 16 | N14: =3*0.5 -> 1.5 | O14: =SQRT(18)/2 -> 2.121320344 | AB14: 40 | AC14: 1001.593166
C15: Shoreline supply pressure | D15: 10 | E15: MPa | M15: 20 | N15: =3.4*0.5 -> 1.7 | O15: =5/2 -> 2.5 | AB15: 45 | AC15: 1014.528139
C16: Compressor efficiency | D16: 0.75 | AB16: 50 | AC16: 1034
C17: Routing factor | D17: 1.2 | AB17: 60 | AC17: 1059
C18: Pipeline roughness | D18: =45.6*10^-6 -> 4.56e-05 | E18: m | AB18: 70 | AC18: 1081
C19: Injection well diameter | D19: 4.5 | E19: inch | AB19: 80 | AC19: 1100
C20: Pipe utilisation factor | D20: 0.75 | AB20: 90 | AC20: 1117
C21: Well utilisation factor | D21: 0.9 | AB21: 100 | AC21: 1133
C22: Storage per appraisal well | D22: 2400 | E22: Mt CO2
C26: Transportation pre-FID | D26: 0.005
C27: Injection facility pre-FID | D27: 0.1
C28: Injection well pre-FID | D28: 0.01
C29: Contingency | D29: 0.3
C30: Transportation abatement | D30: 0.1
C31: Injection facility abatement | D31: 0.5
C32: Injection well abatement | D32: 0.3
C33: Post closure monitoring duration | D33: 20 | E33: years
C34: Monitoring frequency | D34: 5 | E34: years
C39: Infrastructure assumptions | D39: Timeline | E39: Unit
C40: Site appraisal | D40: -7 | E40: Years
C41: Pre FID | D41: -4 | E41: Years
C42: Construction start | D42: -3 | E42: Years
C43: Construction end | D43: -1 | E43: Years
C44: Operation | D44: 0 | E44: Years

Sheet Infrastructure unit cost
C2: Brine production CBA tool
C4: =MID(CELL("filename",A1),FIND("]",CELL("filename",A1))+1,255) -> Infrastructure unit cost
C8: Compressor capex (£/MW) | D8: Opex (share of capex) | E8: Cost of energy (£/MWh) | G8: Transmission pipeline length (km) | H8: Capex (£/inch/km) | I8: Opex (share of capex) | K8: Power cable capex (£/km) | L8: Opex (share of capex) | N8: Seismic appraisal cost (£/km2) | O8: HC field development (£/km2) | P8: Well remediation cost (share of capex) | R8: Injection facility type | S8: Maximum water depth (m) | T8: Capex (£) | U8: Opex (share of capex) | W8: Maximum water depth (m) | X8: Maximum depth to storage site (m) | Y8: Fixed capex (£) | Z8: Variable capex (£/m) | AA8: Opex (share of capex) | AC8: Maximum water depth (m) | AD8: Flow rate (Mt CO2/y) | AE8: Fixed capex (£) | AF8: Opex (share of capex) | AH8: Distribution pipeline length (km) | AI8: Capex (£/inch/km) | AJ8: Opex (share of capex) | AL8: Water processing fixed capex | AM8: Water processing marginal capex | AN8: Water processing opex (share of capex) | AO8: Oil processing fixed capex | AP8: Oil processing marginal capex | AQ8: Oil processing opex (share of capex) | AR8: Unit size brine production (m3/d) | AT8: Injection facility | AU8: Manned platform capex multiplier | AV8: Manned platform opex multiplier | AW8: Injection well capex multiplier | AX8: Brine processing capex multiplier | AY8: Oil processing capex multiplier
C9: 3750000 | D9: 0.04 | E9: 52 | G9: 1 | H9: 180288.4615 | I9: 0.01 | K9: 500000 | L9: 0 | N9: 31250 | O9: 17500 | P9: 0.25 | R9: Subsea | S9: 100 | T9: 20000000 | U9: 0.08 | W9: 100 | X9: 3000 | Y9: =10*10^6 -> 10000000 | Z9: 3600 | AA9: 0.03 | AC9: 100 | AD9: 0 | AE9: 50000000 | AF9: 0.02 | AH9: 0.1 | AI9: 362847.2222 | AJ9: 0.01 | AL9: =4000000*0.7 -> 2800000 | AM9: =4000000*0.3 -> 1200000 | AN9: 0.02 | AO9: =(5000000+41000000)*0.7 -> 32200000 | AP9: =(5000000+41000000)*0.3 -> 13800000 | AQ9: 0.02 | AR9: =100000*0.164 -> 16400 | AT9: Subsea | AU9: 1.5 | AV9: 1 | AW9: 1.25 | AX9: 1 | AY9: 1
G10: 25 | H10: 154246.7949 | I10: 0.01 | R10: Subsea | S10: 150 | T10: 30000000 | U10: 0.08 | W10: 150 | X10: 3000 | Y10: 10000000 | Z10: 3600 | AA10: 0.03 | AC10: 100 | AD10: 2 | AE10: 55000000 | AF10: 0.02 | AH10: 2 | AI10: 213541.6667 | AJ10: 0.01 | AT10: Small platform | AU10: 1.5 | AV10: 1 | AW10: 1 | AX10: 1 | AY10: 1
G11: 30 | H11: 138555.0214 | I11: 0.01 | R11: Subsea | S11: 300 | T11: 40000000 | U11: 0.08 | W11: 300 | X11: 3000 | Y11: 10000000 | Z11: 3600 | AA11: 0.03 | AC11: 100 | AD11: 5 | AE11: 55829596.75 | AF11: 0.02 | AH11: 4 | AI11: 138888.8889 | AJ11: 0.01 | AT11: Medium platform | AU11: 1.5 | AV11: 1 | AW11: 1 | AX11: 1 | AY11: 1
G12: 40 | H12: 116436.2981 | I12: 0.01 | R12: Small platform | S12: 100 | T12: 50000000 | U12: 0.06 | W12: 100 | X12: 20000 | Y12: 10000000 | Z12: 3600 | AA12: 0.03 | AC12: 100 | AD12: 10 | AE12: 57235247 | AF12: 0.02 | AH12: 7 | AI12: 107018.8492 | AJ12: 0.01 | AT12: Large platform | AU12: 1.5 | AV12: 1 | AW12: 1 | AX12: 1 | AY12: 1
G13: 50 | H13: 103165.0641 | I13: 0.01 | R13: Small platform | S13: 150 | T13: 75000000 | U13: 0.06 | W13: 150 | X13: 20000 | Y13: 10000000 | Z13: 3600 | AA13: 0.03 | AC13: 100 | AD13: 15 | AE13: 58616950.75 | AF13: 0.02 | AH13: 10 | AI13: 94184.02778 | AJ13: 0.01
G14: 60 | H14: 93482.90598 | I14: 0.01 | R14: Small platform | S14: 300 | T14: 100000000 | U14: 0.06 | W14: 300 | X14: 20000 | Y14: 10000000 | Z14: 3600 | AA14: 0.03 | AC14: 100 | AD14: 20 | AE14: 60000000 | AF14: 0.02 | AH14: 15 | AI14: 84259.25926 | AJ14: 0.01
G15: 80 | H15: 82632.21154 | I15: 0.01 | R15: Medium platform | S15: 100 | T15: 75000000 | U15: 0.06 | AC15: 100 | AD15: 40 | AE15: 65166272 | AF15: 0.02 | AH15: 20 | AI15: 79296.875 | AJ15: 0.01
G16: 100 | H16: 76121.79487 | I16: 0.01 | R16: Medium platform | S16: 150 | T16: 112500000 | U16: 0.06 | AC16: 100 | AD16: 60 | AE16: 70000000 | AF16: 0.02 | AH16: 30 | AI16: 74305.55556 | AJ16: 0.01
G17: 150 | H17: 67107.37179 | I17: 0.01 | R17: Medium platform | S17: 300 | T17: 150000000 | U17: 0.06 | AC17: 150 | AD17: 0 | AE17: 60000000 | AF17: 0.03 | AH17: 40 | AI17: 71831.59722 | AJ17: 0.01
G18: 200 | H18: 62600.16026 | I18: 0.01 | R18: Large platform | S18: 100 | T18: 100000000 | U18: 0.06 | AC18: 150 | AD18: 2 | AE18: 65000000 | AF18: 0.03 | AH18: 50 | AI18: 70347.22222 | AJ18: 0.01
G19: 250 | H19: 60096.15385 | I19: 0.01 | R19: Large platform | S19: 150 | T19: 150000000 | U19: 0.06 | AC19: 150 | AD19: 5 | AE19: 65829596.75 | AF19: 0.03
G20: 300 | H20: 58092.94872 | I20: 0.01 | R20: Large platform | S20: 300 | T20: 200000000 | U20: 0.06 | AC20: 150 | AD20: 10 | AE20: 67235247 | AF20: 0.03
G21: 400 | H21: 55964.54327 | I21: 0.01 | AC21: 150 | AD21: 15 | AE21: 68616950.75 | AF21: 0.03
G22: 500 | H22: 54587.33974 | I22: 0.01 | AC22: 150 | AD22: 20 | AE22: 70000000 | AF22: 0.03
G23: 600 | H23: 53669.20406 | I23: 0.01 | AC23: 150 | AD23: 40 | AE23: 75166272 | AF23: 0.03
G24: 700 | H24: 53084.9359 | I24: 0.01 | AC24: 150 | AD24: 60 | AE24: 80000000 | AF24: 0.03
AC25: 300 | AD25: 0 | AE25: 65000000 | AF25: 0.03
AC26: 300 | AD26: 2 | AE26: 70000000 | AF26: 0.03
AC27: 300 | AD27: 5 | AE27: 70829596.75 | AF27: 0.03
AC28: 300 | AD28: 10 | AE28: 72235247 | AF28: 0.03
AC29: 300 | AD29: 15 | AE29: 73616950.75 | AF29: 0.03
AC30: 300 | AD30: 20 | AE30: 75000000 | AF30: 0.03
AC31: 300 | AD31: 40 | AE31: 80166272 | AF31: 0.03
AC32: 300 | AD32: 60 | AE32: 85000000 | AF32: 0.03

Sheet Frictional pressure loss
R4: 1 | S4: 2 | T4: 3 | U4: 4 | V4: 5 | W4: 6 | X4: 7 | Y4: 8 | Z4: 9 | AA4: 10
C5: Calcualtion of pressure losses | I5: ID | J5: Flow rate (Mt CO2/y) | K5: Pipeline diameter (inches) | L5: Reynold's Number | M5: Friction factor | N5: Pressure drop (MPa/m) | R5: Flow rate (Mt CO2/y)
I6: 1 | J6: =IF(FrictionLossesBySizeFlow[[#This Row],[ID]]>Total_flow_rates*Total_pipeline_sizes,"",OFFSET(FlowRates[[#Headers],[Flow rate (Mt CO2/y)]],QUOTIENT(FrictionLossesBySizeFlow[[#This Row],[ID]]-1,Total_pipeline_sizes)+1,0)) -> 2 | K6: =IF(FrictionLossesBySizeFlow[[#This Row],[ID]]>Total_flow_rates*Total_pipeline_sizes,"",OFFSET(PipelineSizes[[#Headers],[Pipeline diameter (inches)]],MOD(FrictionLossesBySizeFlow[[#This Row],[ID]]-1,Total_pipeline_sizes)+1,0)) -> 4.5 | L6: =IF(FrictionLossesBySizeFlow[[#This Row],[ID]]>Total_flow_rates*Total_pipeline_sizes,"",4*FrictionLossesBySizeFlow[[#This Row],[Flow rate (Mt CO2/y)]]/Pipe_utilisation_factor*SUMIFS(ConversionFactors[Conversion value],ConversionFactors[Initial unit],"Mt",ConversionFactors[Final unit],"kg")/SUMIFS(ConversionFactors[Conversion value],ConversionFactors[Initial unit],"Year",ConversionFactors[Final unit],"second")/(PI()*SUMIFS(CO2PhysicalProperties[Viscosity (Pas)],CO2PhysicalProperties[Pressure (MPa)],Minimum_pipeline_pressure)*FrictionLossesBySizeFlow[[#This Row],[Pipeline diameter (inches)]]*SUMIFS(ConversionFactors[Conversion value],ConversionFactors[Initial unit],"Inch",ConversionFactors[Final unit],"metre"))) -> 12750193.1 | M6: =IF(FrictionLossesBySizeFlow[[#This Row],[ID]]>Total_flow_rates*Total_pipeline_sizes,"",1.325/(LN(Pipeline_roughness/(3.7*FrictionLossesBySizeFlow[[#This Row],[Pipeline diameter (inches)]]*SUMIFS(ConversionFactors[Conversion value],ConversionFactors[Initial unit],"Inch",ConversionFactors[Final unit],"metre"))+(5.74/FrictionLossesBySizeFlow[[#This Row],[Reynold''s Number]]^0.9)))^2) -> 0.01595208769 | N6: =IF(FrictionLossesBySizeFlow[[#This Row],[ID]]>Total_flow_rates*Total_pipeline_sizes,"",8*FrictionLossesBySizeFlow[[#This Row],[Friction factor]]*(FrictionLossesBySizeFlow[[#This Row],[Flow rate (Mt CO2/y)]]/Pipe_utilisation_factor*SUMIFS(ConversionFactors[Conversion value],ConversionFactors[Initial unit],"Mt",ConversionFactors[Final unit],"kg")/SUMIFS(ConversionFactors[Conversion value],ConversionFactors[Initial unit],"Year",ConversionFactors[Final unit],"second"))^2/(SUMIFS(CO2PhysicalProperties[Density (kg/m3)],CO2PhysicalProperties[Pressure (MPa)],Minimum_pipeline_pressure)*PI()^2*(FrictionLossesBySizeFlow[[#This Row],[Pipeline diameter (inches)]]*SUMIFS(ConversionFactors[Conversion value],ConversionFactors[Initial unit],"Inch",ConversionFactors[Final unit],"metre"))^5)/10^6) -> 0.005796209183 | Q6: Pipeline diameter (inches) | R6: =IF(R$4>Total_flow_rates,"",OFFSET(FlowRates[[#Headers],[Flow rate (Mt CO2/y)]],R$4,0)) -> 2 | S6: =IF(S$4>Total_flow_rates,"",OFFSET(FlowRates[[#Headers],[Flow rate (Mt CO2/y)]],S$4,0)) -> 5 | T6: =IF(T$4>Total_flow_rates,"",OFFSET(FlowRates[[#Headers],[Flow rate (Mt CO2/y)]],T$4,0)) -> 10 | U6: =IF(U$4>Total_flow_rates,"",OFFSET(FlowRates[[#Headers],[Flow rate (Mt CO2/y)]],U$4,0)) -> 15 | V6: =IF(V$4>Total_flow_rates,"",OFFSET(FlowRates[[#Headers],[Flow rate (Mt CO2/y)]],V$4,0)) -> 20 | W6: =IF(W$4>Total_flow_rates,"",OFFSET(FlowRates[[#Headers],[Flow rate (Mt CO2/y)]],W$4,0)) -> 40 | X6: =IF(X$4>Total_flow_rates,"",OFFSET(FlowRates[[#Headers],[Flow rate (Mt CO2/y)]],X$4,0)) -> 60 | Y6: =IF(Y$4>Total_flow_rates,"",OFFSET(FlowRates[[#Headers],[Flow rate (Mt CO2/y)]],Y$4,0)) ->  | Z6: =IF(Z$4>Total_flow_rates,"",OFFSET(FlowRates[[#Headers],[Flow rate (Mt CO2/y)]],Z$4,0)) ->  | AA6: =IF(AA$4>Total_flow_rates,"",OFFSET(FlowRates[[#Headers],[Flow rate (Mt CO2/y)]],AA$4,0)) -> 
I7: 2 | J7: =IF(FrictionLossesBySizeFlow[[#This Row],[ID]]>Total_flow_rates*Total_pipeline_sizes,"",OFFSET(FlowRates[[#Headers],[Flow rate (Mt CO2/y)]],QUOTIENT(FrictionLossesBySizeFlow[[#This Row],[ID]]-1,Total_pipeline_sizes)+1,0)) -> 2 | K7: =IF(FrictionLossesBySizeFlow[[#This Row],[ID]]>Total_flow_rates*Total_pipeline_sizes,"",OFFSET(PipelineSizes[[#Headers],[Pipeline diameter (inches)]],MOD(FrictionLossesBySizeFlow[[#This Row],[ID]]-1,Total_pipeline_sizes)+1,0)) -> 6 | L7: =IF(FrictionLossesBySizeFlow[[#This Row],[ID]]>Total_flow_rates*Total_pipeline_sizes,"",4*FrictionLossesBySizeFlow[[#This Row],[Flow rate (Mt CO2/y)]]/Pipe_utilisation_factor*SUMIFS(ConversionFactors[Conversion value],ConversionFactors[Initial unit],"Mt",ConversionFactors[Final unit],"kg")/SUMIFS(ConversionFactors[Conversion value],ConversionFactors[Initial unit],"Year",ConversionFactors[Final unit],"second")/(PI()*SUMIFS(CO2PhysicalProperties[Viscosity (Pas)],CO2PhysicalProperties[Pressure (MPa)],Minimum_pipeline_pressure)*FrictionLossesBySizeFlow[[#This Row],[Pipeline diameter (inches)]]*SUMIFS(ConversionFactors[Conversion value],ConversionFactors[Initial unit],"Inch",ConversionFactors[Final unit],"metre"))) -> 9562644.828 | M7: =IF(FrictionLossesBySizeFlow[[#This Row],[ID]]>Total_flow_rates*Total_pipeline_sizes,"",1.325/(LN(Pipeline_roughness/(3.7*FrictionLossesBySizeFlow[[#This Row],[Pipeline diameter (inches)]]*SUMIFS(ConversionFactors[Conversion value],ConversionFactors[Initial unit],"Inch",ConversionFactors[Final unit],"metre"))+(5.74/FrictionLossesBySizeFlow[[#This Row],[Reynold''s Number]]^0.9)))^2) -> 0.01503920451 | N7: =IF(FrictionLossesBySizeFlow[[#This Row],[ID]]>Total_flow_rates*Total_pipeline_sizes,"",8*FrictionLossesBySizeFlow[[#This Row],[Friction factor]]*(FrictionLossesBySizeFlow[[#This Row],[Flow rate (Mt CO2/y)]]/Pipe_utilisation_factor*SUMIFS(ConversionFactors[Conversion value],ConversionFactors[Initial unit],"Mt",ConversionFactors[Final unit],"kg")/SUMIFS(ConversionFactors[Conversion value],ConversionFactors[Initial unit],"Year",ConversionFactors[Final unit],"second"))^2/(SUMIFS(CO2PhysicalProperties[Density (kg/m3)],CO2PhysicalProperties[Pressure (MPa)],Minimum_pipeline_pressure)*PI()^2*(FrictionLossesBySizeFlow[[#This Row],[Pipeline diameter (inches)]]*SUMIFS(ConversionFactors[Conversion value],ConversionFactors[Initial unit],"Inch",ConversionFactors[Final unit],"metre"))^5)/10^6) -> 0.001296754323 | P7: 1 | Q7: =IF($P7>Total_pipeline_sizes,"",OFFSET(PipelineSizes[[#Headers],[Pipeline diameter (inches)]],$P7,0)) -> 4.5 | R7: =IF(OR($P7>Total_pipeline_sizes,R$4>Total_flow_rates),"",SUMIFS(FrictionLossesBySizeFlow[Pressure drop (MPa/m)],FrictionLossesBySizeFlow[Pipeline diameter (inches)],$Q7,FrictionLossesBySizeFlow[Flow rate (Mt CO2/y)],R$6)*10^3) -> 5.796209183 | S7: =IF(OR($P7>Total_pipeline_sizes,S$4>Total_flow_rates),"",SUMIFS(FrictionLossesBySizeFlow[Pressure drop (MPa/m)],FrictionLossesBySizeFlow[Pipeline diameter (inches)],$Q7,FrictionLossesBySizeFlow[Flow rate (Mt CO2/y)],S$6)*10^3) -> 36.13221872 | T7: =IF(OR($P7>Total_pipeline_sizes,T$4>Total_flow_rates),"",SUMIFS(FrictionLossesBySizeFlow[Pressure drop (MPa/m)],FrictionLossesBySizeFlow[Pipeline diameter (inches)],$Q7,FrictionLossesBySizeFlow[Flow rate (Mt CO2/y)],T$6)*10^3) -> 144.3917877 | U7: =IF(OR($P7>Total_pipeline_sizes,U$4>Total_flow_rates),"",SUMIFS(FrictionLossesBySizeFlow[Pressure drop (MPa/m)],FrictionLossesBySizeFlow[Pipeline diameter (inches)],$Q7,FrictionLossesBySizeFlow[Flow rate (Mt CO2/y)],U$6)*10^3) -> 324.7724172 | V7: =IF(OR($P7>Total_pipeline_sizes,V$4>Total_flow_rates),"",SUMIFS(FrictionLossesBySizeFlow[Pressure drop (MPa/m)],FrictionLossesBySizeFlow[Pipeline diameter (inches)],$Q7,FrictionLossesBySizeFlow[Flow rate (Mt CO2/y)],V$6)*10^3) -> 577.2726403 | W7: =IF(OR($P7>Total_pipeline_sizes,W$4>Total_flow_rates),"",SUMIFS(FrictionLossesBySizeFlow[Pressure drop (MPa/m)],FrictionLossesBySizeFlow[Pipeline diameter (inches)],$Q7,FrictionLossesBySizeFlow[Flow rate (Mt CO2/y)],W$6)*10^3) -> 2308.458505 | X7: =IF(OR($P7>Total_pipeline_sizes,X$4>Total_flow_rates),"",SUMIFS(FrictionLossesBySizeFlow[Pressure drop (MPa/m)],FrictionLossesBySizeFlow[Pipeline diameter (inches)],$Q7,FrictionLossesBySizeFlow[Flow rate (Mt CO2/y)],X$6)*10^3) -> 5193.529298 | Y7: =IF(OR($P7>Total_pipeline_sizes,Y$4>Total_flow_rates),"",SUMIFS(FrictionLossesBySizeFlow[Pressure drop (MPa/m)],FrictionLossesBySizeFlow[Pipeline diameter (inches)],$Q7,FrictionLossesBySizeFlow[Flow rate (Mt CO2/y)],Y$6)*10^3) ->  | Z7: =IF(OR($P7>Total_pipeline_sizes,Z$4>Total_flow_rates),"",SUMIFS(FrictionLossesBySizeFlow[Pressure drop (MPa/m)],FrictionLossesBySizeFlow[Pipeline diameter (inches)],$Q7,FrictionLossesBySizeFlow[Flow rate (Mt CO2/y)],Z$6)*10^3) ->  | AA7: =IF(OR($P7>Total_pipeline_sizes,AA$4>Total_flow_rates),"",SUMIFS(FrictionLossesBySizeFlow[Pressure drop (MPa/m)],FrictionLossesBySizeFlow[Pipeline diameter (inches)],$Q7,FrictionLossesBySizeFlow[Flow rate (Mt CO2/y)],AA$6)*10^3) -> 
I8: 3 | J8: =IF(FrictionLossesBySizeFlow[[#This Row],[ID]]>Total_flow_rates*Total_pipeline_sizes,"",OFFSET(FlowRates[[#Headers],[Flow rate (Mt CO2/y)]],QUOTIENT(FrictionLossesBySizeFlow[[#This Row],[ID]]-1,Total_pipeline_sizes)+1,0)) -> 2 | K8: =IF(FrictionLossesBySizeFlow[[#This Row],[ID]]>Total_flow_rates*Total_pipeline_sizes,"",OFFSET(PipelineSizes[[#Headers],[Pipeline diameter (inches)]],MOD(FrictionLossesBySizeFlow[[#This Row],[ID]]-1,Total_pipeline_sizes)+1,0)) -> 8 | L8: =IF(FrictionLossesBySizeFlow[[#This Row],[ID]]>Total_flow_rates*Total_pipeline_sizes,"",4*FrictionLossesBySizeFlow[[#This Row],[Flow rate (Mt CO2/y)]]/Pipe_utilisation_factor*SUMIFS(ConversionFactors[Conversion value],ConversionFactors[Initial unit],"Mt",ConversionFactors[Final unit],"kg")/SUMIFS(ConversionFactors[Conversion value],ConversionFactors[Initial unit],"Year",ConversionFactors[Final unit],"second")/(PI()*SUMIFS(CO2PhysicalProperties[Viscosity (Pas)],CO2PhysicalProperties[Pressure (MPa)],Minimum_pipeline_pressure)*FrictionLossesBySizeFlow[[#This Row],[Pipeline diameter (inches)]]*SUMIFS(ConversionFactors[Conversion value],ConversionFactors[Initial unit],"Inch",ConversionFactors[Final unit],"metre"))) -> 7171983.621 | M8: =IF(FrictionLossesBySizeFlow[[#This Row],[ID]]>Total_flow_rates*Total_pipeline_sizes,"",1.325/(LN(Pipeline_roughness/(3.7*FrictionLossesBySizeFlow[[#This Row],[Pipeline diameter (inches)]]*SUMIFS(ConversionFactors[Conversion value],ConversionFactors[Initial unit],"Inch",ConversionFactors[Final unit],"metre"))+(5.74/FrictionLossesBySizeFlow[[#This Row],[Reynold''s Number]]^0.9)))^2) -> 0.01423340433 | N8: =IF(FrictionLossesBySizeFlow[[#This Row],[ID]]>Total_flow_rates*Total_pipeline_sizes,"",8*FrictionLossesBySizeFlow[[#This Row],[Friction factor]]*(FrictionLossesBySizeFlow[[#This Row],[Flow rate (Mt CO2/y)]]/Pipe_utilisation_factor*SUMIFS(ConversionFactors[Conversion value],ConversionFactors[Initial unit],"Mt",ConversionFactors[Final unit],"kg")/SUMIFS(ConversionFactors[Conversion value],ConversionFactors[Initial unit],"Year",ConversionFactors[Final unit],"second"))^2/(SUMIFS(CO2PhysicalProperties[Density (kg/m3)],CO2PhysicalProperties[Pressure (MPa)],Minimum_pipeline_pressure)*PI()^2*(FrictionLossesBySizeFlow[[#This Row],[Pipeline diameter (inches)]]*SUMIFS(ConversionFactors[Conversion value],ConversionFactors[Initial unit],"Inch",ConversionFactors[Final unit],"metre"))^5)/10^6) -> 0.0002912379349 | P8: 2 | Q8: =IF($P8>Total_pipeline_sizes,"",OFFSET(PipelineSizes[[#Headers],[Pipeline diameter (inches)]],$P8,0)) -> 6 | R8: =IF(OR($P8>Total_pipeline_sizes,R$4>Total_flow_rates),"",SUMIFS(FrictionLossesBySizeFlow[Pressure drop (MPa/m)],FrictionLossesBySizeFlow[Pipeline diameter (inches)],$Q8,FrictionLossesBySizeFlow[Flow rate (Mt CO2/y)],R$6)*10^3) -> 1.296754323 | S8: =IF(OR($P8>Total_pipeline_sizes,S$4>Total_flow_rates),"",SUMIFS(FrictionLossesBySizeFlow[Pressure drop (MPa/m)],FrictionLossesBySizeFlow[Pipeline diameter (inches)],$Q8,FrictionLossesBySizeFlow[Flow rate (Mt CO2/y)],S$6)*10^3) -> 8.069839054 | T8: =IF(OR($P8>Total_pipeline_sizes,T$4>Total_flow_rates),"",SUMIFS(FrictionLossesBySizeFlow[Pressure drop (MPa/m)],FrictionLossesBySizeFlow[Pipeline diameter (inches)],$Q8,FrictionLossesBySizeFlow[Flow rate (Mt CO2/y)],T$6)*10^3) -> 32.22833863 | U8: =IF(OR($P8>Total_pipeline_sizes,U$4>Total_flow_rates),"",SUMIFS(FrictionLossesBySizeFlow[Pressure drop (MPa/m)],FrictionLossesBySizeFlow[Pipeline diameter (inches)],$Q8,FrictionLossesBySizeFlow[Flow rate (Mt CO2/y)],U$6)*10^3) -> 72.4730983 | V8: =IF(OR($P8>Total_pipeline_sizes,V$4>Total_flow_rates),"",SUMIFS(FrictionLossesBySizeFlow[Pressure drop (MPa/m)],FrictionLossesBySizeFlow[Pipeline diameter (inches)],$Q8,FrictionLossesBySizeFlow[Flow rate (Mt CO2/y)],V$6)*10^3) -> 128.8035682 | W8: =IF(OR($P8>Total_pipeline_sizes,W$4>Total_flow_rates),"",SUMIFS(FrictionLossesBySizeFlow[Pressure drop (MPa/m)],FrictionLossesBySizeFlow[Pipeline diameter (inches)],$Q8,FrictionLossesBySizeFlow[Flow rate (Mt CO2/y)],W$6)*10^3) -> 514.9784458 | X8: =IF(OR($P8>Total_pipeline_sizes,X$4>Total_flow_rates),"",SUMIFS(FrictionLossesBySizeFlow[Pressure drop (MPa/m)],FrictionLossesBySizeFlow[Pipeline diameter (inches)],$Q8,FrictionLossesBySizeFlow[Flow rate (Mt CO2/y)],X$6)*10^3) -> 1158.513995 | Y8: =IF(OR($P8>Total_pipeline_sizes,Y$4>Total_flow_rates),"",SUMIFS(FrictionLossesBySizeFlow[Pressure drop (MPa/m)],FrictionLossesBySizeFlow[Pipeline diameter (inches)],$Q8,FrictionLossesBySizeFlow[Flow rate (Mt CO2/y)],Y$6)*10^3) ->  | Z8: =IF(OR($P8>Total_pipeline_sizes,Z$4>Total_flow_rates),"",SUMIFS(FrictionLossesBySizeFlow[Pressure drop (MPa/m)],FrictionLossesBySizeFlow[Pipeline diameter (inches)],$Q8,FrictionLossesBySizeFlow[Flow rate (Mt CO2/y)],Z$6)*10^3) ->  | AA8: =IF(OR($P8>Total_pipeline_sizes,AA$4>Total_flow_rates),"",SUMIFS(FrictionLossesBySizeFlow[Pressure drop (MPa/m)],FrictionLossesBySizeFlow[Pipeline diameter (inches)],$Q8,FrictionLossesBySizeFlow[Flow rate (Mt CO2/y)],AA$6)*10^3) -> 
I9: 4 | J9: =IF(FrictionLossesBySizeFlow[[#This Row],[ID]]>Total_flow_rates*Total_pipeline_sizes,"",OFFSET(FlowRates[[#Headers],[Flow rate (Mt CO2/y)]],QUOTIENT(FrictionLossesBySizeFlow[[#This Row],[ID]]-1,Total_pipeline_sizes)+1,0)) -> 2 | K9: =IF(FrictionLossesBySizeFlow[[#This Row],[ID]]>Total_flow_rates*Total_pipeline_sizes,"",OFFSET(PipelineSizes[[#Headers],[Pipeline diameter (inches)]],MOD(FrictionLossesBySizeFlow[[#This Row],[ID]]-1,Total_pipeline_sizes)+1,0)) -> 10 | L9: =IF(FrictionLossesBySizeFlow[[#This Row],[ID]]>Total_flow_rates*Total_pipeline_sizes,"",4*FrictionLossesBySizeFlow[[#This Row],[Flow rate (Mt CO2/y)]]/Pipe_utilisation_factor*SUMIFS(ConversionFactors[Conversion value],ConversionFactors[Initial unit],"Mt",ConversionFactors[Final unit],"kg")/SUMIFS(ConversionFactors[Conversion value],ConversionFactors[Initial unit],"Year",ConversionFactors[Final unit],"second")/(PI()*SUMIFS(CO2PhysicalProperties[Viscosity (Pas)],CO2PhysicalProperties[Pressure (MPa)],Minimum_pipeline_pressure)*FrictionLossesBySizeFlow[[#This Row],[Pipeline diameter (inches)]]*SUMIFS(ConversionFactors[Conversion value],ConversionFactors[Initial unit],"Inch",ConversionFactors[Final unit],"metre"))) -> 5737586.897 | M9: =IF(FrictionLossesBySizeFlow[[#This Row],[ID]]>Total_flow_rates*Total_pipeline_sizes,"",1.325/(LN(Pipeline_roughness/(3.7*FrictionLossesBySizeFlow[[#This Row],[Pipeline diameter (inches)]]*SUMIFS(ConversionFactors[Conversion value],ConversionFactors[Initial unit],"Inch",ConversionFactors[Final unit],"metre"))+(5.74/FrictionLossesBySizeFlow[[#This Row],[Reynold''s Number]]^0.9)))^2) -> 0.01368370193 | N9: =IF(FrictionLossesBySizeFlow[[#This Row],[ID]]>Total_flow_rates*Total_pipeline_sizes,"",8*FrictionLossesBySizeFlow[[#This Row],[Friction factor]]*(FrictionLossesBySizeFlow[[#This Row],[Flow rate (Mt CO2/y)]]/Pipe_utilisation_factor*SUMIFS(ConversionFactors[Conversion value],ConversionFactors[Initial unit],"Mt",ConversionFactors[Final unit],"kg")/SUMIFS(ConversionFactors[Conversion value],ConversionFactors[Initial unit],"Year",ConversionFactors[Final unit],"second"))^2/(SUMIFS(CO2PhysicalProperties[Density (kg/m3)],CO2PhysicalProperties[Pressure (MPa)],Minimum_pipeline_pressure)*PI()^2*(FrictionLossesBySizeFlow[[#This Row],[Pipeline diameter (inches)]]*SUMIFS(ConversionFactors[Conversion value],ConversionFactors[Initial unit],"Inch",ConversionFactors[Final unit],"metre"))^5)/10^6) -> 9.174717413e-05 | P9: 3 | Q9: =IF($P9>Total_pipeline_sizes,"",OFFSET(PipelineSizes[[#Headers],[Pipeline diameter (inches)]],$P9,0)) -> 8 | R9: =IF(OR($P9>Total_pipeline_sizes,R$4>Total_flow_rates),"",SUMIFS(FrictionLossesBySizeFlow[Pressure drop (MPa/m)],FrictionLossesBySizeFlow[Pipeline diameter (inches)],$Q9,FrictionLossesBySizeFlow[Flow rate (Mt CO2/y)],R$6)*10^3) -> 0.2912379349 | S9: =IF(OR($P9>Total_pipeline_sizes,S$4>Total_flow_rates),"",SUMIFS(FrictionLossesBySizeFlow[Pressure drop (MPa/m)],FrictionLossesBySizeFlow[Pipeline diameter (inches)],$Q9,FrictionLossesBySizeFlow[Flow rate (Mt CO2/y)],S$6)*10^3) -> 1.807344677 | T9: =IF(OR($P9>Total_pipeline_sizes,T$4>Total_flow_rates),"",SUMIFS(FrictionLossesBySizeFlow[Pressure drop (MPa/m)],FrictionLossesBySizeFlow[Pipeline diameter (inches)],$Q9,FrictionLossesBySizeFlow[Flow rate (Mt CO2/y)],T$6)*10^3) -> 7.21038961 | U9: =IF(OR($P9>Total_pipeline_sizes,U$4>Total_flow_rates),"",SUMIFS(FrictionLossesBySizeFlow[Pressure drop (MPa/m)],FrictionLossesBySizeFlow[Pipeline diameter (inches)],$Q9,FrictionLossesBySizeFlow[Flow rate (Mt CO2/y)],U$6)*10^3) -> 16.20820294 | V9: =IF(OR($P9>Total_pipeline_sizes,V$4>Total_flow_rates),"",SUMIFS(FrictionLossesBySizeFlow[Pressure drop (MPa/m)],FrictionLossesBySizeFlow[Pipeline diameter (inches)],$Q9,FrictionLossesBySizeFlow[Flow rate (Mt CO2/y)],V$6)*10^3) -> 28.80057734 | W9: =IF(OR($P9>Total_pipeline_sizes,W$4>Total_flow_rates),"",SUMIFS(FrictionLossesBySizeFlow[Pressure drop (MPa/m)],FrictionLossesBySizeFlow[Pipeline diameter (inches)],$Q9,FrictionLossesBySizeFlow[Flow rate (Mt CO2/y)],W$6)*10^3) -> 115.1141418 | X9: =IF(OR($P9>Total_pipeline_sizes,X$4>Total_flow_rates),"",SUMIFS(FrictionLossesBySizeFlow[Pressure drop (MPa/m)],FrictionLossesBySizeFlow[Pipeline diameter (inches)],$Q9,FrictionLossesBySizeFlow[Flow rate (Mt CO2/y)],X$6)*10^3) -> 258.9366643 | Y9: =IF(OR($P9>Total_pipeline_sizes,Y$4>Total_flow_rates),"",SUMIFS(FrictionLossesBySizeFlow[Pressure drop (MPa/m)],FrictionLossesBySizeFlow[Pipeline diameter (inches)],$Q9,FrictionLossesBySizeFlow[Flow rate (Mt CO2/y)],Y$6)*10^3) ->  | Z9: =IF(OR($P9>Total_pipeline_sizes,Z$4>Total_flow_rates),"",SUMIFS(FrictionLossesBySizeFlow[Pressure drop (MPa/m)],FrictionLossesBySizeFlow[Pipeline diameter (inches)],$Q9,FrictionLossesBySizeFlow[Flow rate (Mt CO2/y)],Z$6)*10^3) ->  | AA9: =IF(OR($P9>Total_pipeline_sizes,AA$4>Total_flow_rates),"",SUMIFS(FrictionLossesBySizeFlow[Pressure drop (MPa/m)],FrictionLossesBySizeFlow[Pipeline diameter (inches)],$Q9,FrictionLossesBySizeFlow[Flow rate (Mt CO2/y)],AA$6)*10^3) -> 
I10: 5 | J10: =IF(FrictionLossesBySizeFlow[[#This Row],[ID]]>Total_flow_rates*Total_pipeline_sizes,"",OFFSET(FlowRates[[#Headers],[Flow rate (Mt CO2/y)]],QUOTIENT(FrictionLossesBySizeFlow[[#This Row],[ID]]-1,Total_pipeline_sizes)+1,0)) -> 2 | K10: =IF(FrictionLossesBySizeFlow[[#This Row],[ID]]>Total_flow_rates*Total_pipeline_sizes,"",OFFSET(PipelineSizes[[#Headers],[Pipeline diameter (inches)]],MOD(FrictionLossesBySizeFlow[[#This Row],[ID]]-1,Total_pipeline_sizes)+1,0)) -> 12 | L10: =IF(FrictionLossesBySizeFlow[[#This Row],[ID]]>Total_flow_rates*Total_pipeline_sizes,"",4*FrictionLossesBySizeFlow[[#This Row],[Flow rate (Mt CO2/y)]]/Pipe_utilisation_factor*SUMIFS(ConversionFactors[Conversion value],ConversionFactors[Initial unit],"Mt",ConversionFactors[Final unit],"kg")/SUMIFS(ConversionFactors[Conversion value],ConversionFactors[Initial unit],"Year",ConversionFactors[Final unit],"second")/(PI()*SUMIFS(CO2PhysicalProperties[Viscosity (Pas)],CO2PhysicalProperties[Pressure (MPa)],Minimum_pipeline_pressure)*FrictionLossesBySizeFlow[[#This Row],[Pipeline diameter (inches)]]*SUMIFS(ConversionFactors[Conversion value],ConversionFactors[Initial unit],"Inch",ConversionFactors[Final unit],"metre"))) -> 4781322.414 | M10: =IF(FrictionLossesBySizeFlow[[#This Row],[ID]]>Total_flow_rates*Total_pipeline_sizes,"",1.325/(LN(Pipeline_roughness/(3.7*FrictionLossesBySizeFlow[[#This Row],[Pipeline diameter (inches)]]*SUMIFS(ConversionFactors[Conversion value],ConversionFactors[Initial unit],"Inch",ConversionFactors[Final unit],"metre"))+(5.74/FrictionLossesBySizeFlow[[#This Row],[Reynold''s Number]]^0.9)))^2) -> 0.01328619169 | N10: =IF(FrictionLossesBySizeFlow[[#This Row],[ID]]>Total_flow_rates*Total_pipeline_sizes,"",8*FrictionLossesBySizeFlow[[#This Row],[Friction factor]]*(FrictionLossesBySizeFlow[[#This Row],[Flow rate (Mt CO2/y)]]/Pipe_utilisation_factor*SUMIFS(ConversionFactors[Conversion value],ConversionFactors[Initial unit],"Mt",ConversionFactors[Final unit],"kg")/SUMIFS(ConversionFactors[Conversion value],ConversionFactors[Initial unit],"Year",ConversionFactors[Final unit],"second"))^2/(SUMIFS(CO2PhysicalProperties[Density (kg/m3)],CO2PhysicalProperties[Pressure (MPa)],Minimum_pipeline_pressure)*PI()^2*(FrictionLossesBySizeFlow[[#This Row],[Pipeline diameter (inches)]]*SUMIFS(ConversionFactors[Conversion value],ConversionFactors[Initial unit],"Inch",ConversionFactors[Final unit],"metre"))^5)/10^6) -> 3.580002872e-05 | P10: 4 | Q10: =IF($P10>Total_pipeline_sizes,"",OFFSET(PipelineSizes[[#Headers],[Pipeline diameter (inches)]],$P10,0)) -> 10 | R10: =IF(OR($P10>Total_pipeline_sizes,R$4>Total_flow_rates),"",SUMIFS(FrictionLossesBySizeFlow[Pressure drop (MPa/m)],FrictionLossesBySizeFlow[Pipeline diameter (inches)],$Q10,FrictionLossesBySizeFlow[Flow rate (Mt CO2/y)],R$6)*10^3) -> 0.09174717413 | S10: =IF(OR($P10>Total_pipeline_sizes,S$4>Total_flow_rates),"",SUMIFS(FrictionLossesBySizeFlow[Pressure drop (MPa/m)],FrictionLossesBySizeFlow[Pipeline diameter (inches)],$Q10,FrictionLossesBySizeFlow[Flow rate (Mt CO2/y)],S$6)*10^3) -> 0.5674869621 | T10: =IF(OR($P10>Total_pipeline_sizes,T$4>Total_flow_rates),"",SUMIFS(FrictionLossesBySizeFlow[Pressure drop (MPa/m)],FrictionLossesBySizeFlow[Pipeline diameter (inches)],$Q10,FrictionLossesBySizeFlow[Flow rate (Mt CO2/y)],T$6)*10^3) -> 2.261135934 | U10: =IF(OR($P10>Total_pipeline_sizes,U$4>Total_flow_rates),"",SUMIFS(FrictionLossesBySizeFlow[Pressure drop (MPa/m)],FrictionLossesBySizeFlow[Pipeline diameter (inches)],$Q10,FrictionLossesBySizeFlow[Flow rate (Mt CO2/y)],U$6)*10^3) -> 5.080492239 | V10: =IF(OR($P10>Total_pipeline_sizes,V$4>Total_flow_rates),"",SUMIFS(FrictionLossesBySizeFlow[Pressure drop (MPa/m)],FrictionLossesBySizeFlow[Pipeline diameter (inches)],$Q10,FrictionLossesBySizeFlow[Flow rate (Mt CO2/y)],V$6)*10^3) -> 9.02545802 | W10: =IF(OR($P10>Total_pipeline_sizes,W$4>Total_flow_rates),"",SUMIFS(FrictionLossesBySizeFlow[Pressure drop (MPa/m)],FrictionLossesBySizeFlow[Pipeline diameter (inches)],$Q10,FrictionLossesBySizeFlow[Flow rate (Mt CO2/y)],W$6)*10^3) -> 36.06069 | X10: =IF(OR($P10>Total_pipeline_sizes,X$4>Total_flow_rates),"",SUMIFS(FrictionLossesBySizeFlow[Pressure drop (MPa/m)],FrictionLossesBySizeFlow[Pipeline diameter (inches)],$Q10,FrictionLossesBySizeFlow[Flow rate (Mt CO2/y)],X$6)*10^3) -> 81.10378515 | Y10: =IF(OR($P10>Total_pipeline_sizes,Y$4>Total_flow_rates),"",SUMIFS(FrictionLossesBySizeFlow[Pressure drop (MPa/m)],FrictionLossesBySizeFlow[Pipeline diameter (inches)],$Q10,FrictionLossesBySizeFlow[Flow rate (Mt CO2/y)],Y$6)*10^3) ->  | Z10: =IF(OR($P10>Total_pipeline_sizes,Z$4>Total_flow_rates),"",SUMIFS(FrictionLossesBySizeFlow[Pressure drop (MPa/m)],FrictionLossesBySizeFlow[Pipeline diameter (inches)],$Q10,FrictionLossesBySizeFlow[Flow rate (Mt CO2/y)],Z$6)*10^3) ->  | AA10: =IF(OR($P10>Total_pipeline_sizes,AA$4>Total_flow_rates),"",SUMIFS(FrictionLossesBySizeFlow[Pressure drop (MPa/m)],FrictionLossesBySizeFlow[Pipeline diameter (inches)],$Q10,FrictionLossesBySizeFlow[Flow rate (Mt CO2/y)],AA$6)*10^3) -> 
I11: 6 | J11: =IF(FrictionLossesBySizeFlow[[#This Row],[ID]]>Total_flow_rates*Total_pipeline_sizes,"",OFFSET(FlowRates[[#Headers],[Flow rate (Mt CO2/y)]],QUOTIENT(FrictionLossesBySizeFlow[[#This Row],[ID]]-1,Total_pipeline_sizes)+1,0)) -> 2 | K11: =IF(FrictionLossesBySizeFlow[[#This Row],[ID]]>Total_flow_rates*Total_pipeline_sizes,"",OFFSET(PipelineSizes[[#Headers],[Pipeline diameter (inches)]],MOD(FrictionLossesBySizeFlow[[#This Row],[ID]]-1,Total_pipeline_sizes)+1,0)) -> 14 | L11: =IF(FrictionLossesBySizeFlow[[#This Row],[ID]]>Total_flow_rates*Total_pipeline_sizes,"",4*FrictionLossesBySizeFlow[[#This Row],[Flow rate (Mt CO2/y)]]/Pipe_utilisation_factor*SUMIFS(ConversionFactors[Conversion value],ConversionFactors[Initial unit],"Mt",ConversionFactors[Final unit],"kg")/SUMIFS(ConversionFactors[Conversion value],ConversionFactors[Initial unit],"Year",ConversionFactors[Final unit],"second")/(PI()*SUMIFS(CO2PhysicalProperties[Viscosity (Pas)],CO2PhysicalProperties[Pressure (MPa)],Minimum_pipeline_pressure)*FrictionLossesBySizeFlow[[#This Row],[Pipeline diameter (inches)]]*SUMIFS(ConversionFactors[Conversion value],ConversionFactors[Initial unit],"Inch",ConversionFactors[Final unit],"metre"))) -> 4098276.355 | M11: =IF(FrictionLossesBySizeFlow[[#This Row],[ID]]>Total_flow_rates*Total_pipeline_sizes,"",1.325/(LN(Pipeline_roughness/(3.7*FrictionLossesBySizeFlow[[#This Row],[Pipeline diameter (inches)]]*SUMIFS(ConversionFactors[Conversion value],ConversionFactors[Initial unit],"Inch",ConversionFactors[Final unit],"metre"))+(5.74/FrictionLossesBySizeFlow[[#This Row],[Reynold''s Number]]^0.9)))^2) -> 0.01298884772 | N11: =IF(FrictionLossesBySizeFlow[[#This Row],[ID]]>Total_flow_rates*Total_pipeline_sizes,"",8*FrictionLossesBySizeFlow[[#This Row],[Friction factor]]*(FrictionLossesBySizeFlow[[#This Row],[Flow rate (Mt CO2/y)]]/Pipe_utilisation_factor*SUMIFS(ConversionFactors[Conversion value],ConversionFactors[Initial unit],"Mt",ConversionFactors[Final unit],"kg")/SUMIFS(ConversionFactors[Conversion value],ConversionFactors[Initial unit],"Year",ConversionFactors[Final unit],"second"))^2/(SUMIFS(CO2PhysicalProperties[Density (kg/m3)],CO2PhysicalProperties[Pressure (MPa)],Minimum_pipeline_pressure)*PI()^2*(FrictionLossesBySizeFlow[[#This Row],[Pipeline diameter (inches)]]*SUMIFS(ConversionFactors[Conversion value],ConversionFactors[Initial unit],"Inch",ConversionFactors[Final unit],"metre"))^5)/10^6) -> 1.619271e-05 | P11: 5 | Q11: =IF($P11>Total_pipeline_sizes,"",OFFSET(PipelineSizes[[#Headers],[Pipeline diameter (inches)]],$P11,0)) -> 12 | R11: =IF(OR($P11>Total_pipeline_sizes,R$4>Total_flow_rates),"",SUMIFS(FrictionLossesBySizeFlow[Pressure drop (MPa/m)],FrictionLossesBySizeFlow[Pipeline diameter (inches)],$Q11,FrictionLossesBySizeFlow[Flow rate (Mt CO2/y)],R$6)*10^3) -> 0.03580002872 | S11: =IF(OR($P11>Total_pipeline_sizes,S$4>Total_flow_rates),"",SUMIFS(FrictionLossesBySizeFlow[Pressure drop (MPa/m)],FrictionLossesBySizeFlow[Pipeline diameter (inches)],$Q11,FrictionLossesBySizeFlow[Flow rate (Mt CO2/y)],S$6)*10^3) -> 0.2206181238 | T11: =IF(OR($P11>Total_pipeline_sizes,T$4>Total_flow_rates),"",SUMIFS(FrictionLossesBySizeFlow[Pressure drop (MPa/m)],FrictionLossesBySizeFlow[Pipeline diameter (inches)],$Q11,FrictionLossesBySizeFlow[Flow rate (Mt CO2/y)],T$6)*10^3) -> 0.8777752157 | U11: =IF(OR($P11>Total_pipeline_sizes,U$4>Total_flow_rates),"",SUMIFS(FrictionLossesBySizeFlow[Pressure drop (MPa/m)],FrictionLossesBySizeFlow[Pipeline diameter (inches)],$Q11,FrictionLossesBySizeFlow[Flow rate (Mt CO2/y)],U$6)*10^3) -> 1.971214841 | V11: =IF(OR($P11>Total_pipeline_sizes,V$4>Total_flow_rates),"",SUMIFS(FrictionLossesBySizeFlow[Pressure drop (MPa/m)],FrictionLossesBySizeFlow[Pipeline diameter (inches)],$Q11,FrictionLossesBySizeFlow[Flow rate (Mt CO2/y)],V$6)*10^3) -> 3.50088373 | W11: =IF(OR($P11>Total_pipeline_sizes,W$4>Total_flow_rates),"",SUMIFS(FrictionLossesBySizeFlow[Pressure drop (MPa/m)],FrictionLossesBySizeFlow[Pipeline diameter (inches)],$Q11,FrictionLossesBySizeFlow[Flow rate (Mt CO2/y)],W$6)*10^3) -> 13.98145868 | X11: =IF(OR($P11>Total_pipeline_sizes,X$4>Total_flow_rates),"",SUMIFS(FrictionLossesBySizeFlow[Pressure drop (MPa/m)],FrictionLossesBySizeFlow[Pipeline diameter (inches)],$Q11,FrictionLossesBySizeFlow[Flow rate (Mt CO2/y)],X$6)*10^3) -> 31.44067978 | Y11: =IF(OR($P11>Total_pipeline_sizes,Y$4>Total_flow_rates),"",SUMIFS(FrictionLossesBySizeFlow[Pressure drop (MPa/m)],FrictionLossesBySizeFlow[Pipeline diameter (inches)],$Q11,FrictionLossesBySizeFlow[Flow rate (Mt CO2/y)],Y$6)*10^3) ->  | Z11: =IF(OR($P11>Total_pipeline_sizes,Z$4>Total_flow_rates),"",SUMIFS(FrictionLossesBySizeFlow[Pressure drop (MPa/m)],FrictionLossesBySizeFlow[Pipeline diameter (inches)],$Q11,FrictionLossesBySizeFlow[Flow rate (Mt CO2/y)],Z$6)*10^3) ->  | AA11: =IF(OR($P11>Total_pipeline_sizes,AA$4>Total_flow_rates),"",SUMIFS(FrictionLossesBySizeFlow[Pressure drop (MPa/m)],FrictionLossesBySizeFlow[Pipeline diameter (inches)],$Q11,FrictionLossesBySizeFlow[Flow rate (Mt CO2/y)],AA$6)*10^3) -> 
I12: 7 | J12: =IF(FrictionLossesBySizeFlow[[#This Row],[ID]]>Total_flow_rates*Total_pipeline_sizes,"",OFFSET(FlowRates[[#Headers],[Flow rate (Mt CO2/y)]],QUOTIENT(FrictionLossesBySizeFlow[[#This Row],[ID]]-1,Total_pipeline_sizes)+1,0)) -> 2 | K12: =IF(FrictionLossesBySizeFlow[[#This Row],[ID]]>Total_flow_rates*Total_pipeline_sizes,"",OFFSET(PipelineSizes[[#Headers],[Pipeline diameter (inches)]],MOD(FrictionLossesBySizeFlow[[#This Row],[ID]]-1,Total_pipeline_sizes)+1,0)) -> 16 | L12: =IF(FrictionLossesBySizeFlow[[#This Row],[ID]]>Total_flow_rates*Total_pipeline_sizes,"",4*FrictionLossesBySizeFlow[[#This Row],[Flow rate (Mt CO2/y)]]/Pipe_utilisation_factor*SUMIFS(ConversionFactors[Conversion value],ConversionFactors[Initial unit],"Mt",ConversionFactors[Final unit],"kg")/SUMIFS(ConversionFactors[Conversion value],ConversionFactors[Initial unit],"Year",ConversionFactors[Final unit],"second")/(PI()*SUMIFS(CO2PhysicalProperties[Viscosity (Pas)],CO2PhysicalProperties[Pressure (MPa)],Minimum_pipeline_pressure)*FrictionLossesBySizeFlow[[#This Row],[Pipeline diameter (inches)]]*SUMIFS(ConversionFactors[Conversion value],ConversionFactors[Initial unit],"Inch",ConversionFactors[Final unit],"metre"))) -> 3585991.811 | M12: =IF(FrictionLossesBySizeFlow[[#This Row],[ID]]>Total_flow_rates*Total_pipeline_sizes,"",1.325/(LN(Pipeline_roughness/(3.7*FrictionLossesBySizeFlow[[#This Row],[Pipeline diameter (inches)]]*SUMIFS(ConversionFactors[Conversion value],ConversionFactors[Initial unit],"Inch",ConversionFactors[Final unit],"metre"))+(5.74/FrictionLossesBySizeFlow[[#This Row],[Reynold''s Number]]^0.9)))^2) -> 0.01276197068 | N12: =IF(FrictionLossesBySizeFlow[[#This Row],[ID]]>Total_flow_rates*Total_pipeline_sizes,"",8*FrictionLossesBySizeFlow[[#This Row],[Friction factor]]*(FrictionLossesBySizeFlow[[#This Row],[Flow rate (Mt CO2/y)]]/Pipe_utilisation_factor*SUMIFS(ConversionFactors[Conversion value],ConversionFactors[Initial unit],"Mt",ConversionFactors[Final unit],"kg")/SUMIFS(ConversionFactors[Conversion value],ConversionFactors[Initial unit],"Year",ConversionFactors[Final unit],"second"))^2/(SUMIFS(CO2PhysicalProperties[Density (kg/m3)],CO2PhysicalProperties[Pressure (MPa)],Minimum_pipeline_pressure)*PI()^2*(FrictionLossesBySizeFlow[[#This Row],[Pipeline diameter (inches)]]*SUMIFS(ConversionFactors[Conversion value],ConversionFactors[Initial unit],"Inch",ConversionFactors[Final unit],"metre"))^5)/10^6) -> 8.160314941e-06 | P12: 6 | Q12: =IF($P12>Total_pipeline_sizes,"",OFFSET(PipelineSizes[[#Headers],[Pipeline diameter (inches)]],$P12,0)) -> 14 | R12: =IF(OR($P12>Total_pipeline_sizes,R$4>Total_flow_rates),"",SUMIFS(FrictionLossesBySizeFlow[Pressure drop (MPa/m)],FrictionLossesBySizeFlow[Pipeline diameter (inches)],$Q12,FrictionLossesBySizeFlow[Flow rate (Mt CO2/y)],R$6)*10^3) -> 0.01619271 | S12: =IF(OR($P12>Total_pipeline_sizes,S$4>Total_flow_rates),"",SUMIFS(FrictionLossesBySizeFlow[Pressure drop (MPa/m)],FrictionLossesBySizeFlow[Pipeline diameter (inches)],$Q12,FrictionLossesBySizeFlow[Flow rate (Mt CO2/y)],S$6)*10^3) -> 0.0993880536 | T12: =IF(OR($P12>Total_pipeline_sizes,T$4>Total_flow_rates),"",SUMIFS(FrictionLossesBySizeFlow[Pressure drop (MPa/m)],FrictionLossesBySizeFlow[Pipeline diameter (inches)],$Q12,FrictionLossesBySizeFlow[Flow rate (Mt CO2/y)],T$6)*10^3) -> 0.3947984677 | U12: =IF(OR($P12>Total_pipeline_sizes,U$4>Total_flow_rates),"",SUMIFS(FrictionLossesBySizeFlow[Pressure drop (MPa/m)],FrictionLossesBySizeFlow[Pipeline diameter (inches)],$Q12,FrictionLossesBySizeFlow[Flow rate (Mt CO2/y)],U$6)*10^3) -> 0.8860714627 | V12: =IF(OR($P12>Total_pipeline_sizes,V$4>Total_flow_rates),"",SUMIFS(FrictionLossesBySizeFlow[Pressure drop (MPa/m)],FrictionLossesBySizeFlow[Pipeline diameter (inches)],$Q12,FrictionLossesBySizeFlow[Flow rate (Mt CO2/y)],V$6)*10^3) -> 1.573175016 | W12: =IF(OR($P12>Total_pipeline_sizes,W$4>Total_flow_rates),"",SUMIFS(FrictionLossesBySizeFlow[Pressure drop (MPa/m)],FrictionLossesBySizeFlow[Pipeline diameter (inches)],$Q12,FrictionLossesBySizeFlow[Flow rate (Mt CO2/y)],W$6)*10^3) -> 6.279659822 | X12: =IF(OR($P12>Total_pipeline_sizes,X$4>Total_flow_rates),"",SUMIFS(FrictionLossesBySizeFlow[Pressure drop (MPa/m)],FrictionLossesBySizeFlow[Pipeline diameter (inches)],$Q12,FrictionLossesBySizeFlow[Flow rate (Mt CO2/y)],X$6)*10^3) -> 14.11882353 | Y12: =IF(OR($P12>Total_pipeline_sizes,Y$4>Total_flow_rates),"",SUMIFS(FrictionLossesBySizeFlow[Pressure drop (MPa/m)],FrictionLossesBySizeFlow[Pipeline diameter (inches)],$Q12,FrictionLossesBySizeFlow[Flow rate (Mt CO2/y)],Y$6)*10^3) ->  | Z12: =IF(OR($P12>Total_pipeline_sizes,Z$4>Total_flow_rates),"",SUMIFS(FrictionLossesBySizeFlow[Pressure drop (MPa/m)],FrictionLossesBySizeFlow[Pipeline diameter (inches)],$Q12,FrictionLossesBySizeFlow[Flow rate (Mt CO2/y)],Z$6)*10^3) ->  | AA12: =IF(OR($P12>Total_pipeline_sizes,AA$4>Total_flow_rates),"",SUMIFS(FrictionLossesBySizeFlow[Pressure drop (MPa/m)],FrictionLossesBySizeFlow[Pipeline diameter (inches)],$Q12,FrictionLossesBySizeFlow[Flow rate (Mt CO2/y)],AA$6)*10^3) -> 
I13: 8 | J13: =IF(FrictionLossesBySizeFlow[[#This Row],[ID]]>Total_flow_rates*Total_pipeline_sizes,"",OFFSET(FlowRates[[#Headers],[Flow rate (Mt CO2/y)]],QUOTIENT(FrictionLossesBySizeFlow[[#This Row],[ID]]-1,Total_pipeline_sizes)+1,0)) -> 2 | K13: =IF(FrictionLossesBySizeFlow[[#This Row],[ID]]>Total_flow_rates*Total_pipeline_sizes,"",OFFSET(PipelineSizes[[#Headers],[Pipeline diameter (inches)]],MOD(FrictionLossesBySizeFlow[[#This Row],[ID]]-1,Total_pipeline_sizes)+1,0)) -> 18 | L13: =IF(FrictionLossesBySizeFlow[[#This Row],[ID]]>Total_flow_rates*Total_pipeline_sizes,"",4*FrictionLossesBySizeFlow[[#This Row],[Flow rate (Mt CO2/y)]]/Pipe_utilisation_factor*SUMIFS(ConversionFactors[Conversion value],ConversionFactors[Initial unit],"Mt",ConversionFactors[Final unit],"kg")/SUMIFS(ConversionFactors[Conversion value],ConversionFactors[Initial unit],"Year",ConversionFactors[Final unit],"second")/(PI()*SUMIFS(CO2PhysicalProperties[Viscosity (Pas)],CO2PhysicalProperties[Pressure (MPa)],Minimum_pipeline_pressure)*FrictionLossesBySizeFlow[[#This Row],[Pipeline diameter (inches)]]*SUMIFS(ConversionFactors[Conversion value],ConversionFactors[Initial unit],"Inch",ConversionFactors[Final unit],"metre"))) -> 3187548.276 | M13: =IF(FrictionLossesBySizeFlow[[#This Row],[ID]]>Total_flow_rates*Total_pipeline_sizes,"",1.325/(LN(Pipeline_roughness/(3.7*FrictionLossesBySizeFlow[[#This Row],[Pipeline diameter (inches)]]*SUMIFS(ConversionFactors[Conversion value],ConversionFactors[Initial unit],"Inch",ConversionFactors[Final unit],"metre"))+(5.74/FrictionLossesBySizeFlow[[#This Row],[Reynold''s Number]]^0.9)))^2) -> 0.0125870034 | N13: =IF(FrictionLossesBySizeFlow[[#This Row],[ID]]>Total_flow_rates*Total_pipeline_sizes,"",8*FrictionLossesBySizeFlow[[#This Row],[Friction factor]]*(FrictionLossesBySizeFlow[[#This Row],[Flow rate (Mt CO2/y)]]/Pipe_utilisation_factor*SUMIFS(ConversionFactors[Conversion value],ConversionFactors[Initial unit],"Mt",ConversionFactors[Final unit],"kg")/SUMIFS(ConversionFactors[Conversion value],ConversionFactors[Initial unit],"Year",ConversionFactors[Final unit],"second"))^2/(SUMIFS(CO2PhysicalProperties[Density (kg/m3)],CO2PhysicalProperties[Pressure (MPa)],Minimum_pipeline_pressure)*PI()^2*(FrictionLossesBySizeFlow[[#This Row],[Pipeline diameter (inches)]]*SUMIFS(ConversionFactors[Conversion value],ConversionFactors[Initial unit],"Inch",ConversionFactors[Final unit],"metre"))^5)/10^6) -> 4.466310533e-06 | P13: 7 | Q13: =IF($P13>Total_pipeline_sizes,"",OFFSET(PipelineSizes[[#Headers],[Pipeline diameter (inches)]],$P13,0)) -> 16 | R13: =IF(OR($P13>Total_pipeline_sizes,R$4>Total_flow_rates),"",SUMIFS(FrictionLossesBySizeFlow[Pressure drop (MPa/m)],FrictionLossesBySizeFlow[Pipeline diameter (inches)],$Q13,FrictionLossesBySizeFlow[Flow rate (Mt CO2/y)],R$6)*10^3) -> 0.008160314941 | S13: =IF(OR($P13>Total_pipeline_sizes,S$4>Total_flow_rates),"",SUMIFS(FrictionLossesBySizeFlow[Pressure drop (MPa/m)],FrictionLossesBySizeFlow[Pipeline diameter (inches)],$Q13,FrictionLossesBySizeFlow[Flow rate (Mt CO2/y)],S$6)*10^3) -> 0.04987414978 | T13: =IF(OR($P13>Total_pipeline_sizes,T$4>Total_flow_rates),"",SUMIFS(FrictionLossesBySizeFlow[Pressure drop (MPa/m)],FrictionLossesBySizeFlow[Pipeline diameter (inches)],$Q13,FrictionLossesBySizeFlow[Flow rate (Mt CO2/y)],T$6)*10^3) -> 0.1977665665 | U13: =IF(OR($P13>Total_pipeline_sizes,U$4>Total_flow_rates),"",SUMIFS(FrictionLossesBySizeFlow[Pressure drop (MPa/m)],FrictionLossesBySizeFlow[Pipeline diameter (inches)],$Q13,FrictionLossesBySizeFlow[Flow rate (Mt CO2/y)],U$6)*10^3) -> 0.4435702405 | V13: =IF(OR($P13>Total_pipeline_sizes,V$4>Total_flow_rates),"",SUMIFS(FrictionLossesBySizeFlow[Pressure drop (MPa/m)],FrictionLossesBySizeFlow[Pipeline diameter (inches)],$Q13,FrictionLossesBySizeFlow[Flow rate (Mt CO2/y)],V$6)*10^3) -> 0.787264454 | W13: =IF(OR($P13>Total_pipeline_sizes,W$4>Total_flow_rates),"",SUMIFS(FrictionLossesBySizeFlow[Pressure drop (MPa/m)],FrictionLossesBySizeFlow[Pipeline diameter (inches)],$Q13,FrictionLossesBySizeFlow[Flow rate (Mt CO2/y)],W$6)*10^3) -> 3.140795782 | X13: =IF(OR($P13>Total_pipeline_sizes,X$4>Total_flow_rates),"",SUMIFS(FrictionLossesBySizeFlow[Pressure drop (MPa/m)],FrictionLossesBySizeFlow[Pipeline diameter (inches)],$Q13,FrictionLossesBySizeFlow[Flow rate (Mt CO2/y)],X$6)*10^3) -> 7.060184504 | Y13: =IF(OR($P13>Total_pipeline_sizes,Y$4>Total_flow_rates),"",SUMIFS(FrictionLossesBySizeFlow[Pressure drop (MPa/m)],FrictionLossesBySizeFlow[Pipeline diameter (inches)],$Q13,FrictionLossesBySizeFlow[Flow rate (Mt CO2/y)],Y$6)*10^3) ->  | Z13: =IF(OR($P13>Total_pipeline_sizes,Z$4>Total_flow_rates),"",SUMIFS(FrictionLossesBySizeFlow[Pressure drop (MPa/m)],FrictionLossesBySizeFlow[Pipeline diameter (inches)],$Q13,FrictionLossesBySizeFlow[Flow rate (Mt CO2/y)],Z$6)*10^3) ->  | AA13: =IF(OR($P13>Total_pipeline_sizes,AA$4>Total_flow_rates),"",SUMIFS(FrictionLossesBySizeFlow[Pressure drop (MPa/m)],FrictionLossesBySizeFlow[Pipeline diameter (inches)],$Q13,FrictionLossesBySizeFlow[Flow rate (Mt CO2/y)],AA$6)*10^3) -> 
I14: 9 | J14: =IF(FrictionLossesBySizeFlow[[#This Row],[ID]]>Total_flow_rates*Total_pipeline_sizes,"",OFFSET(FlowRates[[#Headers],[Flow rate (Mt CO2/y)]],QUOTIENT(FrictionLossesBySizeFlow[[#This Row],[ID]]-1,Total_pipeline_sizes)+1,0)) -> 2 | K14: =IF(FrictionLossesBySizeFlow[[#This Row],[ID]]>Total_flow_rates*Total_pipeline_sizes,"",OFFSET(PipelineSizes[[#Headers],[Pipeline diameter (inches)]],MOD(FrictionLossesBySizeFlow[[#This Row],[ID]]-1,Total_pipeline_sizes)+1,0)) -> 20 | L14: =IF(FrictionLossesBySizeFlow[[#This Row],[ID]]>Total_flow_rates*Total_pipeline_sizes,"",4*FrictionLossesBySizeFlow[[#This Row],[Flow rate (Mt CO2/y)]]/Pipe_utilisation_factor*SUMIFS(ConversionFactors[Conversion value],ConversionFactors[Initial unit],"Mt",ConversionFactors[Final unit],"kg")/SUMIFS(ConversionFactors[Conversion value],ConversionFactors[Initial unit],"Year",ConversionFactors[Final unit],"second")/(PI()*SUMIFS(CO2PhysicalProperties[Viscosity (Pas)],CO2PhysicalProperties[Pressure (MPa)],Minimum_pipeline_pressure)*FrictionLossesBySizeFlow[[#This Row],[Pipeline diameter (inches)]]*SUMIFS(ConversionFactors[Conversion value],ConversionFactors[Initial unit],"Inch",ConversionFactors[Final unit],"metre"))) -> 2868793.448 | M14: =IF(FrictionLossesBySizeFlow[[#This Row],[ID]]>Total_flow_rates*Total_pipeline_sizes,"",1.325/(LN(Pipeline_roughness/(3.7*FrictionLossesBySizeFlow[[#This Row],[Pipeline diameter (inches)]]*SUMIFS(ConversionFactors[Conversion value],ConversionFactors[Initial unit],"Inch",ConversionFactors[Final unit],"metre"))+(5.74/FrictionLossesBySizeFlow[[#This Row],[Reynold''s Number]]^0.9)))^2) -> 0.01245156147 | N14: =IF(FrictionLossesBySizeFlow[[#This Row],[ID]]>Total_flow_rates*Total_pipeline_sizes,"",8*FrictionLossesBySizeFlow[[#This Row],[Friction factor]]*(FrictionLossesBySizeFlow[[#This Row],[Flow rate (Mt CO2/y)]]/Pipe_utilisation_factor*SUMIFS(ConversionFactors[Conversion value],ConversionFactors[Initial unit],"Mt",ConversionFactors[Final unit],"kg")/SUMIFS(ConversionFactors[Conversion value],ConversionFactors[Initial unit],"Year",ConversionFactors[Final unit],"second"))^2/(SUMIFS(CO2PhysicalProperties[Density (kg/m3)],CO2PhysicalProperties[Pressure (MPa)],Minimum_pipeline_pressure)*PI()^2*(FrictionLossesBySizeFlow[[#This Row],[Pipeline diameter (inches)]]*SUMIFS(ConversionFactors[Conversion value],ConversionFactors[Initial unit],"Inch",ConversionFactors[Final unit],"metre"))^5)/10^6) -> 2.608933022e-06 | P14: 8 | Q14: =IF($P14>Total_pipeline_sizes,"",OFFSET(PipelineSizes[[#Headers],[Pipeline diameter (inches)]],$P14,0)) -> 18 | R14: =IF(OR($P14>Total_pipeline_sizes,R$4>Total_flow_rates),"",SUMIFS(FrictionLossesBySizeFlow[Pressure drop (MPa/m)],FrictionLossesBySizeFlow[Pipeline diameter (inches)],$Q14,FrictionLossesBySizeFlow[Flow rate (Mt CO2/y)],R$6)*10^3) -> 0.004466310533 | S14: =IF(OR($P14>Total_pipeline_sizes,S$4>Total_flow_rates),"",SUMIFS(FrictionLossesBySizeFlow[Pressure drop (MPa/m)],FrictionLossesBySizeFlow[Pipeline diameter (inches)],$Q14,FrictionLossesBySizeFlow[Flow rate (Mt CO2/y)],S$6)*10^3) -> 0.02717691231 | T14: =IF(OR($P14>Total_pipeline_sizes,T$4>Total_flow_rates),"",SUMIFS(FrictionLossesBySizeFlow[Pressure drop (MPa/m)],FrictionLossesBySizeFlow[Pipeline diameter (inches)],$Q14,FrictionLossesBySizeFlow[Flow rate (Mt CO2/y)],T$6)*10^3) -> 0.1075621169 | U14: =IF(OR($P14>Total_pipeline_sizes,U$4>Total_flow_rates),"",SUMIFS(FrictionLossesBySizeFlow[Pressure drop (MPa/m)],FrictionLossesBySizeFlow[Pipeline diameter (inches)],$Q14,FrictionLossesBySizeFlow[Flow rate (Mt CO2/y)],U$6)*10^3) -> 0.2410799503 | V14: =IF(OR($P14>Total_pipeline_sizes,V$4>Total_flow_rates),"",SUMIFS(FrictionLossesBySizeFlow[Pressure drop (MPa/m)],FrictionLossesBySizeFlow[Pipeline diameter (inches)],$Q14,FrictionLossesBySizeFlow[Flow rate (Mt CO2/y)],V$6)*10^3) -> 0.4277162255 | W14: =IF(OR($P14>Total_pipeline_sizes,W$4>Total_flow_rates),"",SUMIFS(FrictionLossesBySizeFlow[Pressure drop (MPa/m)],FrictionLossesBySizeFlow[Pipeline diameter (inches)],$Q14,FrictionLossesBySizeFlow[Flow rate (Mt CO2/y)],W$6)*10^3) -> 1.705343281 | X14: =IF(OR($P14>Total_pipeline_sizes,X$4>Total_flow_rates),"",SUMIFS(FrictionLossesBySizeFlow[Pressure drop (MPa/m)],FrictionLossesBySizeFlow[Pipeline diameter (inches)],$Q14,FrictionLossesBySizeFlow[Flow rate (Mt CO2/y)],X$6)*10^3) -> 3.832600227 | Y14: =IF(OR($P14>Total_pipeline_sizes,Y$4>Total_flow_rates),"",SUMIFS(FrictionLossesBySizeFlow[Pressure drop (MPa/m)],FrictionLossesBySizeFlow[Pipeline diameter (inches)],$Q14,FrictionLossesBySizeFlow[Flow rate (Mt CO2/y)],Y$6)*10^3) ->  | Z14: =IF(OR($P14>Total_pipeline_sizes,Z$4>Total_flow_rates),"",SUMIFS(FrictionLossesBySizeFlow[Pressure drop (MPa/m)],FrictionLossesBySizeFlow[Pipeline diameter (inches)],$Q14,FrictionLossesBySizeFlow[Flow rate (Mt CO2/y)],Z$6)*10^3) ->  | AA14: =IF(OR($P14>Total_pipeline_sizes,AA$4>Total_flow_rates),"",SUMIFS(FrictionLossesBySizeFlow[Pressure drop (MPa/m)],FrictionLossesBySizeFlow[Pipeline diameter (inches)],$Q14,FrictionLossesBySizeFlow[Flow rate (Mt CO2/y)],AA$6)*10^3) -> 
I15: 10 | J15: =IF(FrictionLossesBySizeFlow[[#This Row],[ID]]>Total_flow_rates*Total_pipeline_sizes,"",OFFSET(FlowRates[[#Headers],[Flow rate (Mt CO2/y)]],QUOTIENT(FrictionLossesBySizeFlow[[#This Row],[ID]]-1,Total_pipeline_sizes)+1,0)) -> 2 | K15: =IF(FrictionLossesBySizeFlow[[#This Row],[ID]]>Total_flow_rates*Total_pipeline_sizes,"",OFFSET(PipelineSizes[[#Headers],[Pipeline diameter (inches)]],MOD(FrictionLossesBySizeFlow[[#This Row],[ID]]-1,Total_pipeline_sizes)+1,0)) -> 22 | L15: =IF(FrictionLossesBySizeFlow[[#This Row],[ID]]>Total_flow_rates*Total_pipeline_sizes,"",4*FrictionLossesBySizeFlow[[#This Row],[Flow rate (Mt CO2/y)]]/Pipe_utilisation_factor*SUMIFS(ConversionFactors[Conversion value],ConversionFactors[Initial unit],"Mt",ConversionFactors[Final unit],"kg")/SUMIFS(ConversionFactors[Conversion value],ConversionFactors[Initial unit],"Year",ConversionFactors[Final unit],"second")/(PI()*SUMIFS(CO2PhysicalProperties[Viscosity (Pas)],CO2PhysicalProperties[Pressure (MPa)],Minimum_pipeline_pressure)*FrictionLossesBySizeFlow[[#This Row],[Pipeline diameter (inches)]]*SUMIFS(ConversionFactors[Conversion value],ConversionFactors[Initial unit],"Inch",ConversionFactors[Final unit],"metre"))) -> 2607994.044 | M15: =IF(FrictionLossesBySizeFlow[[#This Row],[ID]]>Total_flow_rates*Total_pipeline_sizes,"",1.325/(LN(Pipeline_roughness/(3.7*FrictionLossesBySizeFlow[[#This Row],[Pipeline diameter (inches)]]*SUMIFS(ConversionFactors[Conversion value],ConversionFactors[Initial unit],"Inch",ConversionFactors[Final unit],"metre"))+(5.74/FrictionLossesBySizeFlow[[#This Row],[Reynold''s Number]]^0.9)))^2) -> 0.01234695932 | N15: =IF(FrictionLossesBySizeFlow[[#This Row],[ID]]>Total_flow_rates*Total_pipeline_sizes,"",8*FrictionLossesBySizeFlow[[#This Row],[Friction factor]]*(FrictionLossesBySizeFlow[[#This Row],[Flow rate (Mt CO2/y)]]/Pipe_utilisation_factor*SUMIFS(ConversionFactors[Conversion value],ConversionFactors[Initial unit],"Mt",ConversionFactors[Final unit],"kg")/SUMIFS(ConversionFactors[Conversion value],ConversionFactors[Initial unit],"Year",ConversionFactors[Final unit],"second"))^2/(SUMIFS(CO2PhysicalProperties[Density (kg/m3)],CO2PhysicalProperties[Pressure (MPa)],Minimum_pipeline_pressure)*PI()^2*(FrictionLossesBySizeFlow[[#This Row],[Pipeline diameter (inches)]]*SUMIFS(ConversionFactors[Conversion value],ConversionFactors[Initial unit],"Inch",ConversionFactors[Final unit],"metre"))^5)/10^6) -> 1.606333454e-06 | P15: 9 | Q15: =IF($P15>Total_pipeline_sizes,"",OFFSET(PipelineSizes[[#Headers],[Pipeline diameter (inches)]],$P15,0)) -> 20 | R15: =IF(OR($P15>Total_pipeline_sizes,R$4>Total_flow_rates),"",SUMIFS(FrictionLossesBySizeFlow[Pressure drop (MPa/m)],FrictionLossesBySizeFlow[Pipeline diameter (inches)],$Q15,FrictionLossesBySizeFlow[Flow rate (Mt CO2/y)],R$6)*10^3) -> 0.002608933022 | S15: =IF(OR($P15>Total_pipeline_sizes,S$4>Total_flow_rates),"",SUMIFS(FrictionLossesBySizeFlow[Pressure drop (MPa/m)],FrictionLossesBySizeFlow[Pipeline diameter (inches)],$Q15,FrictionLossesBySizeFlow[Flow rate (Mt CO2/y)],S$6)*10^3) -> 0.01580350292 | T15: =IF(OR($P15>Total_pipeline_sizes,T$4>Total_flow_rates),"",SUMIFS(FrictionLossesBySizeFlow[Pressure drop (MPa/m)],FrictionLossesBySizeFlow[Pipeline diameter (inches)],$Q15,FrictionLossesBySizeFlow[Flow rate (Mt CO2/y)],T$6)*10^3) -> 0.06242357757 | U15: =IF(OR($P15>Total_pipeline_sizes,U$4>Total_flow_rates),"",SUMIFS(FrictionLossesBySizeFlow[Pressure drop (MPa/m)],FrictionLossesBySizeFlow[Pipeline diameter (inches)],$Q15,FrictionLossesBySizeFlow[Flow rate (Mt CO2/y)],U$6)*10^3) -> 0.1398044374 | V15: =IF(OR($P15>Total_pipeline_sizes,V$4>Total_flow_rates),"",SUMIFS(FrictionLossesBySizeFlow[Pressure drop (MPa/m)],FrictionLossesBySizeFlow[Pipeline diameter (inches)],$Q15,FrictionLossesBySizeFlow[Flow rate (Mt CO2/y)],V$6)*10^3) -> 0.2479359168 | W15: =IF(OR($P15>Total_pipeline_sizes,W$4>Total_flow_rates),"",SUMIFS(FrictionLossesBySizeFlow[Pressure drop (MPa/m)],FrictionLossesBySizeFlow[Pipeline diameter (inches)],$Q15,FrictionLossesBySizeFlow[Flow rate (Mt CO2/y)],W$6)*10^3) -> 0.9878953217 | X15: =IF(OR($P15>Total_pipeline_sizes,X$4>Total_flow_rates),"",SUMIFS(FrictionLossesBySizeFlow[Pressure drop (MPa/m)],FrictionLossesBySizeFlow[Pipeline diameter (inches)],$Q15,FrictionLossesBySizeFlow[Flow rate (Mt CO2/y)],X$6)*10^3) -> 2.219676832 | Y15: =IF(OR($P15>Total_pipeline_sizes,Y$4>Total_flow_rates),"",SUMIFS(FrictionLossesBySizeFlow[Pressure drop (MPa/m)],FrictionLossesBySizeFlow[Pipeline diameter (inches)],$Q15,FrictionLossesBySizeFlow[Flow rate (Mt CO2/y)],Y$6)*10^3) ->  | Z15: =IF(OR($P15>Total_pipeline_sizes,Z$4>Total_flow_rates),"",SUMIFS(FrictionLossesBySizeFlow[Pressure drop (MPa/m)],FrictionLossesBySizeFlow[Pipeline diameter (inches)],$Q15,FrictionLossesBySizeFlow[Flow rate (Mt CO2/y)],Z$6)*10^3) ->  | AA15: =IF(OR($P15>Total_pipeline_sizes,AA$4>Total_flow_rates),"",SUMIFS(FrictionLossesBySizeFlow[Pressure drop (MPa/m)],FrictionLossesBySizeFlow[Pipeline diameter (inches)],$Q15,FrictionLossesBySizeFlow[Flow rate (Mt CO2/y)],AA$6)*10^3) -> 
I16: 11 | J16: =IF(FrictionLossesBySizeFlow[[#This Row],[ID]]>Total_flow_rates*Total_pipeline_sizes,"",OFFSET(FlowRates[[#Headers],[Flow rate (Mt CO2/y)]],QUOTIENT(FrictionLossesBySizeFlow[[#This Row],[ID]]-1,Total_pipeline_sizes)+1,0)) -> 2 | K16: =IF(FrictionLossesBySizeFlow[[#This Row],[ID]]>Total_flow_rates*Total_pipeline_sizes,"",OFFSET(PipelineSizes[[#Headers],[Pipeline diameter (inches)]],MOD(FrictionLossesBySizeFlow[[#This Row],[ID]]-1,Total_pipeline_sizes)+1,0)) -> 24 | L16: =IF(FrictionLossesBySizeFlow[[#This Row],[ID]]>Total_flow_rates*Total_pipeline_sizes,"",4*FrictionLossesBySizeFlow[[#This Row],[Flow rate (Mt CO2/y)]]/Pipe_utilisation_factor*SUMIFS(ConversionFactors[Conversion value],ConversionFactors[Initial unit],"Mt",ConversionFactors[Final unit],"kg")/SUMIFS(ConversionFactors[Conversion value],ConversionFactors[Initial unit],"Year",ConversionFactors[Final unit],"second")/(PI()*SUMIFS(CO2PhysicalProperties[Viscosity (Pas)],CO2PhysicalProperties[Pressure (MPa)],Minimum_pipeline_pressure)*FrictionLossesBySizeFlow[[#This Row],[Pipeline diameter (inches)]]*SUMIFS(ConversionFactors[Conversion value],ConversionFactors[Initial unit],"Inch",ConversionFactors[Final unit],"metre"))) -> 2390661.207 | M16: =IF(FrictionLossesBySizeFlow[[#This Row],[ID]]>Total_flow_rates*Total_pipeline_sizes,"",1.325/(LN(Pipeline_roughness/(3.7*FrictionLossesBySizeFlow[[#This Row],[Pipeline diameter (inches)]]*SUMIFS(ConversionFactors[Conversion value],ConversionFactors[Initial unit],"Inch",ConversionFactors[Final unit],"metre"))+(5.74/FrictionLossesBySizeFlow[[#This Row],[Reynold''s Number]]^0.9)))^2) -> 0.01226686825 | N16: =IF(FrictionLossesBySizeFlow[[#This Row],[ID]]>Total_flow_rates*Total_pipeline_sizes,"",8*FrictionLossesBySizeFlow[[#This Row],[Friction factor]]*(FrictionLossesBySizeFlow[[#This Row],[Flow rate (Mt CO2/y)]]/Pipe_utilisation_factor*SUMIFS(ConversionFactors[Conversion value],ConversionFactors[Initial unit],"Mt",ConversionFactors[Final unit],"kg")/SUMIFS(ConversionFactors[Conversion value],ConversionFactors[Initial unit],"Year",ConversionFactors[Final unit],"second"))^2/(SUMIFS(CO2PhysicalProperties[Density (kg/m3)],CO2PhysicalProperties[Pressure (MPa)],Minimum_pipeline_pressure)*PI()^2*(FrictionLossesBySizeFlow[[#This Row],[Pipeline diameter (inches)]]*SUMIFS(ConversionFactors[Conversion value],ConversionFactors[Initial unit],"Inch",ConversionFactors[Final unit],"metre"))^5)/10^6) -> 1.032919755e-06 | P16: 10 | Q16: =IF($P16>Total_pipeline_sizes,"",OFFSET(PipelineSizes[[#Headers],[Pipeline diameter (inches)]],$P16,0)) -> 22 | R16: =IF(OR($P16>Total_pipeline_sizes,R$4>Total_flow_rates),"",SUMIFS(FrictionLossesBySizeFlow[Pressure drop (MPa/m)],FrictionLossesBySizeFlow[Pipeline diameter (inches)],$Q16,FrictionLossesBySizeFlow[Flow rate (Mt CO2/y)],R$6)*10^3) -> 0.001606333454 | S16: =IF(OR($P16>Total_pipeline_sizes,S$4>Total_flow_rates),"",SUMIFS(FrictionLossesBySizeFlow[Pressure drop (MPa/m)],FrictionLossesBySizeFlow[Pipeline diameter (inches)],$Q16,FrictionLossesBySizeFlow[Flow rate (Mt CO2/y)],S$6)*10^3) -> 0.009686038159 | T16: =IF(OR($P16>Total_pipeline_sizes,T$4>Total_flow_rates),"",SUMIFS(FrictionLossesBySizeFlow[Pressure drop (MPa/m)],FrictionLossesBySizeFlow[Pipeline diameter (inches)],$Q16,FrictionLossesBySizeFlow[Flow rate (Mt CO2/y)],T$6)*10^3) -> 0.03818033736 | U16: =IF(OR($P16>Total_pipeline_sizes,U$4>Total_flow_rates),"",SUMIFS(FrictionLossesBySizeFlow[Pressure drop (MPa/m)],FrictionLossesBySizeFlow[Pipeline diameter (inches)],$Q16,FrictionLossesBySizeFlow[Flow rate (Mt CO2/y)],U$6)*10^3) -> 0.08544038785 | V16: =IF(OR($P16>Total_pipeline_sizes,V$4>Total_flow_rates),"",SUMIFS(FrictionLossesBySizeFlow[Pressure drop (MPa/m)],FrictionLossesBySizeFlow[Pipeline diameter (inches)],$Q16,FrictionLossesBySizeFlow[Flow rate (Mt CO2/y)],V$6)*10^3) -> 0.15145863 | W16: =IF(OR($P16>Total_pipeline_sizes,W$4>Total_flow_rates),"",SUMIFS(FrictionLossesBySizeFlow[Pressure drop (MPa/m)],FrictionLossesBySizeFlow[Pipeline diameter (inches)],$Q16,FrictionLossesBySizeFlow[Flow rate (Mt CO2/y)],W$6)*10^3) -> 0.603060024 | X16: =IF(OR($P16>Total_pipeline_sizes,X$4>Total_flow_rates),"",SUMIFS(FrictionLossesBySizeFlow[Pressure drop (MPa/m)],FrictionLossesBySizeFlow[Pipeline diameter (inches)],$Q16,FrictionLossesBySizeFlow[Flow rate (Mt CO2/y)],X$6)*10^3) -> 1.354654619 | Y16: =IF(OR($P16>Total_pipeline_sizes,Y$4>Total_flow_rates),"",SUMIFS(FrictionLossesBySizeFlow[Pressure drop (MPa/m)],FrictionLossesBySizeFlow[Pipeline diameter (inches)],$Q16,FrictionLossesBySizeFlow[Flow rate (Mt CO2/y)],Y$6)*10^3) ->  | Z16: =IF(OR($P16>Total_pipeline_sizes,Z$4>Total_flow_rates),"",SUMIFS(FrictionLossesBySizeFlow[Pressure drop (MPa/m)],FrictionLossesBySizeFlow[Pipeline diameter (inches)],$Q16,FrictionLossesBySizeFlow[Flow rate (Mt CO2/y)],Z$6)*10^3) ->  | AA16: =IF(OR($P16>Total_pipeline_sizes,AA$4>Total_flow_rates),"",SUMIFS(FrictionLossesBySizeFlow[Pressure drop (MPa/m)],FrictionLossesBySizeFlow[Pipeline diameter (inches)],$Q16,FrictionLossesBySizeFlow[Flow rate (Mt CO2/y)],AA$6)*10^3) -> 
I17: 12 | J17: =IF(FrictionLossesBySizeFlow[[#This Row],[ID]]>Total_flow_rates*Total_pipeline_sizes,"",OFFSET(FlowRates[[#Headers],[Flow rate (Mt CO2/y)]],QUOTIENT(FrictionLossesBySizeFlow[[#This Row],[ID]]-1,Total_pipeline_sizes)+1,0)) -> 2 | K17: =IF(FrictionLossesBySizeFlow[[#This Row],[ID]]>Total_flow_rates*Total_pipeline_sizes,"",OFFSET(PipelineSizes[[#Headers],[Pipeline diameter (inches)]],MOD(FrictionLossesBySizeFlow[[#This Row],[ID]]-1,Total_pipeline_sizes)+1,0)) -> 26 | L17: =IF(FrictionLossesBySizeFlow[[#This Row],[ID]]>Total_flow_rates*Total_pipeline_sizes,"",4*FrictionLossesBySizeFlow[[#This Row],[Flow rate (Mt CO2/y)]]/Pipe_utilisation_factor*SUMIFS(ConversionFactors[Conversion value],ConversionFactors[Initial unit],"Mt",ConversionFactors[Final unit],"kg")/SUMIFS(ConversionFactors[Conversion value],ConversionFactors[Initial unit],"Year",ConversionFactors[Final unit],"second")/(PI()*SUMIFS(CO2PhysicalProperties[Viscosity (Pas)],CO2PhysicalProperties[Pressure (MPa)],Minimum_pipeline_pressure)*FrictionLossesBySizeFlow[[#This Row],[Pipeline diameter (inches)]]*SUMIFS(ConversionFactors[Conversion value],ConversionFactors[Initial unit],"Inch",ConversionFactors[Final unit],"metre"))) -> 2206764.191 | M17: =IF(FrictionLossesBySizeFlow[[#This Row],[ID]]>Total_flow_rates*Total_pipeline_sizes,"",1.325/(LN(Pipeline_roughness/(3.7*FrictionLossesBySizeFlow[[#This Row],[Pipeline diameter (inches)]]*SUMIFS(ConversionFactors[Conversion value],ConversionFactors[Initial unit],"Inch",ConversionFactors[Final unit],"metre"))+(5.74/FrictionLossesBySizeFlow[[#This Row],[Reynold''s Number]]^0.9)))^2) -> 0.01220653719 | N17: =IF(FrictionLossesBySizeFlow[[#This Row],[ID]]>Total_flow_rates*Total_pipeline_sizes,"",8*FrictionLossesBySizeFlow[[#This Row],[Friction factor]]*(FrictionLossesBySizeFlow[[#This Row],[Flow rate (Mt CO2/y)]]/Pipe_utilisation_factor*SUMIFS(ConversionFactors[Conversion value],ConversionFactors[Initial unit],"Mt",ConversionFactors[Final unit],"kg")/SUMIFS(ConversionFactors[Conversion value],ConversionFactors[Initial unit],"Year",ConversionFactors[Final unit],"second"))^2/(SUMIFS(CO2PhysicalProperties[Density (kg/m3)],CO2PhysicalProperties[Pressure (MPa)],Minimum_pipeline_pressure)*PI()^2*(FrictionLossesBySizeFlow[[#This Row],[Pipeline diameter (inches)]]*SUMIFS(ConversionFactors[Conversion value],ConversionFactors[Initial unit],"Inch",ConversionFactors[Final unit],"metre"))^5)/10^6) -> 6.88834404e-07 | P17: 11 | Q17: =IF($P17>Total_pipeline_sizes,"",OFFSET(PipelineSizes[[#Headers],[Pipeline diameter (inches)]],$P17,0)) -> 24 | R17: =IF(OR($P17>Total_pipeline_sizes,R$4>Total_flow_rates),"",SUMIFS(FrictionLossesBySizeFlow[Pressure drop (MPa/m)],FrictionLossesBySizeFlow[Pipeline diameter (inches)],$Q17,FrictionLossesBySizeFlow[Flow rate (Mt CO2/y)],R$6)*10^3) -> 0.001032919755 | S17: =IF(OR($P17>Total_pipeline_sizes,S$4>Total_flow_rates),"",SUMIFS(FrictionLossesBySizeFlow[Pressure drop (MPa/m)],FrictionLossesBySizeFlow[Pipeline diameter (inches)],$Q17,FrictionLossesBySizeFlow[Flow rate (Mt CO2/y)],S$6)*10^3) -> 0.006200095407 | T17: =IF(OR($P17>Total_pipeline_sizes,T$4>Total_flow_rates),"",SUMIFS(FrictionLossesBySizeFlow[Pressure drop (MPa/m)],FrictionLossesBySizeFlow[Pipeline diameter (inches)],$Q17,FrictionLossesBySizeFlow[Flow rate (Mt CO2/y)],T$6)*10^3) -> 0.02438709204 | U17: =IF(OR($P17>Total_pipeline_sizes,U$4>Total_flow_rates),"",SUMIFS(FrictionLossesBySizeFlow[Pressure drop (MPa/m)],FrictionLossesBySizeFlow[Pipeline diameter (inches)],$Q17,FrictionLossesBySizeFlow[Flow rate (Mt CO2/y)],U$6)*10^3) -> 0.05452773089 | V17: =IF(OR($P17>Total_pipeline_sizes,V$4>Total_flow_rates),"",SUMIFS(FrictionLossesBySizeFlow[Pressure drop (MPa/m)],FrictionLossesBySizeFlow[Pipeline diameter (inches)],$Q17,FrictionLossesBySizeFlow[Flow rate (Mt CO2/y)],V$6)*10^3) -> 0.09661621355 | W17: =IF(OR($P17>Total_pipeline_sizes,W$4>Total_flow_rates),"",SUMIFS(FrictionLossesBySizeFlow[Pressure drop (MPa/m)],FrictionLossesBySizeFlow[Pipeline diameter (inches)],$Q17,FrictionLossesBySizeFlow[Flow rate (Mt CO2/y)],W$6)*10^3) -> 0.384408027 | X17: =IF(OR($P17>Total_pipeline_sizes,X$4>Total_flow_rates),"",SUMIFS(FrictionLossesBySizeFlow[Pressure drop (MPa/m)],FrictionLossesBySizeFlow[Pipeline diameter (inches)],$Q17,FrictionLossesBySizeFlow[Flow rate (Mt CO2/y)],X$6)*10^3) -> 0.86326107 | Y17: =IF(OR($P17>Total_pipeline_sizes,Y$4>Total_flow_rates),"",SUMIFS(FrictionLossesBySizeFlow[Pressure drop (MPa/m)],FrictionLossesBySizeFlow[Pipeline diameter (inches)],$Q17,FrictionLossesBySizeFlow[Flow rate (Mt CO2/y)],Y$6)*10^3) ->  | Z17: =IF(OR($P17>Total_pipeline_sizes,Z$4>Total_flow_rates),"",SUMIFS(FrictionLossesBySizeFlow[Pressure drop (MPa/m)],FrictionLossesBySizeFlow[Pipeline diameter (inches)],$Q17,FrictionLossesBySizeFlow[Flow rate (Mt CO2/y)],Z$6)*10^3) ->  | AA17: =IF(OR($P17>Total_pipeline_sizes,AA$4>Total_flow_rates),"",SUMIFS(FrictionLossesBySizeFlow[Pressure drop (MPa/m)],FrictionLossesBySizeFlow[Pipeline diameter (inches)],$Q17,FrictionLossesBySizeFlow[Flow rate (Mt CO2/y)],AA$6)*10^3) -> 
I18: 13 | J18: =IF(FrictionLossesBySizeFlow[[#This Row],[ID]]>Total_flow_rates*Total_pipeline_sizes,"",OFFSET(FlowRates[[#Headers],[Flow rate (Mt CO2/y)]],QUOTIENT(FrictionLossesBySizeFlow[[#This Row],[ID]]-1,Total_pipeline_sizes)+1,0)) -> 2 | K18: =IF(FrictionLossesBySizeFlow[[#This Row],[ID]]>Total_flow_rates*Total_pipeline_sizes,"",OFFSET(PipelineSizes[[#Headers],[Pipeline diameter (inches)]],MOD(FrictionLossesBySizeFlow[[#This Row],[ID]]-1,Total_pipeline_sizes)+1,0)) -> 28 | L18: =IF(FrictionLossesBySizeFlow[[#This Row],[ID]]>Total_flow_rates*Total_pipeline_sizes,"",4*FrictionLossesBySizeFlow[[#This Row],[Flow rate (Mt CO2/y)]]/Pipe_utilisation_factor*SUMIFS(ConversionFactors[Conversion value],ConversionFactors[Initial unit],"Mt",ConversionFactors[Final unit],"kg")/SUMIFS(ConversionFactors[Conversion value],ConversionFactors[Initial unit],"Year",ConversionFactors[Final unit],"second")/(PI()*SUMIFS(CO2PhysicalProperties[Viscosity (Pas)],CO2PhysicalProperties[Pressure (MPa)],Minimum_pipeline_pressure)*FrictionLossesBySizeFlow[[#This Row],[Pipeline diameter (inches)]]*SUMIFS(ConversionFactors[Conversion value],ConversionFactors[Initial unit],"Inch",ConversionFactors[Final unit],"metre"))) -> 2049138.177 | M18: =IF(FrictionLossesBySizeFlow[[#This Row],[ID]]>Total_flow_rates*Total_pipeline_sizes,"",1.325/(LN(Pipeline_roughness/(3.7*FrictionLossesBySizeFlow[[#This Row],[Pipeline diameter (inches)]]*SUMIFS(ConversionFactors[Conversion value],ConversionFactors[Initial unit],"Inch",ConversionFactors[Final unit],"metre"))+(5.74/FrictionLossesBySizeFlow[[#This Row],[Reynold''s Number]]^0.9)))^2) -> 0.01216231426 | N18: =IF(FrictionLossesBySizeFlow[[#This Row],[ID]]>Total_flow_rates*Total_pipeline_sizes,"",8*FrictionLossesBySizeFlow[[#This Row],[Friction factor]]*(FrictionLossesBySizeFlow[[#This Row],[Flow rate (Mt CO2/y)]]/Pipe_utilisation_factor*SUMIFS(ConversionFactors[Conversion value],ConversionFactors[Initial unit],"Mt",ConversionFactors[Final unit],"kg")/SUMIFS(ConversionFactors[Conversion value],ConversionFactors[Initial unit],"Year",ConversionFactors[Final unit],"second"))^2/(SUMIFS(CO2PhysicalProperties[Density (kg/m3)],CO2PhysicalProperties[Pressure (MPa)],Minimum_pipeline_pressure)*PI()^2*(FrictionLossesBySizeFlow[[#This Row],[Pipeline diameter (inches)]]*SUMIFS(ConversionFactors[Conversion value],ConversionFactors[Initial unit],"Inch",ConversionFactors[Final unit],"metre"))^5)/10^6) -> 4.738219277e-07 | P18: 12 | Q18: =IF($P18>Total_pipeline_sizes,"",OFFSET(PipelineSizes[[#Headers],[Pipeline diameter (inches)]],$P18,0)) -> 26 | R18: =IF(OR($P18>Total_pipeline_sizes,R$4>Total_flow_rates),"",SUMIFS(FrictionLossesBySizeFlow[Pressure drop (MPa/m)],FrictionLossesBySizeFlow[Pipeline diameter (inches)],$Q18,FrictionLossesBySizeFlow[Flow rate (Mt CO2/y)],R$6)*10^3) -> 0.000688834404 | S18: =IF(OR($P18>Total_pipeline_sizes,S$4>Total_flow_rates),"",SUMIFS(FrictionLossesBySizeFlow[Pressure drop (MPa/m)],FrictionLossesBySizeFlow[Pipeline diameter (inches)],$Q18,FrictionLossesBySizeFlow[Flow rate (Mt CO2/y)],S$6)*10^3) -> 0.004116102201 | T18: =IF(OR($P18>Total_pipeline_sizes,T$4>Total_flow_rates),"",SUMIFS(FrictionLossesBySizeFlow[Pressure drop (MPa/m)],FrictionLossesBySizeFlow[Pipeline diameter (inches)],$Q18,FrictionLossesBySizeFlow[Flow rate (Mt CO2/y)],T$6)*10^3) -> 0.01615446731 | U18: =IF(OR($P18>Total_pipeline_sizes,U$4>Total_flow_rates),"",SUMIFS(FrictionLossesBySizeFlow[Pressure drop (MPa/m)],FrictionLossesBySizeFlow[Pipeline diameter (inches)],$Q18,FrictionLossesBySizeFlow[Flow rate (Mt CO2/y)],U$6)*10^3) -> 0.03608851035 | V18: =IF(OR($P18>Total_pipeline_sizes,V$4>Total_flow_rates),"",SUMIFS(FrictionLossesBySizeFlow[Pressure drop (MPa/m)],FrictionLossesBySizeFlow[Pipeline diameter (inches)],$Q18,FrictionLossesBySizeFlow[Flow rate (Mt CO2/y)],V$6)*10^3) -> 0.06391366611 | W18: =IF(OR($P18>Total_pipeline_sizes,W$4>Total_flow_rates),"",SUMIFS(FrictionLossesBySizeFlow[Pressure drop (MPa/m)],FrictionLossesBySizeFlow[Pipeline diameter (inches)],$Q18,FrictionLossesBySizeFlow[Flow rate (Mt CO2/y)],W$6)*10^3) -> 0.2540938732 | X18: =IF(OR($P18>Total_pipeline_sizes,X$4>Total_flow_rates),"",SUMIFS(FrictionLossesBySizeFlow[Pressure drop (MPa/m)],FrictionLossesBySizeFlow[Pipeline diameter (inches)],$Q18,FrictionLossesBySizeFlow[Flow rate (Mt CO2/y)],X$6)*10^3) -> 0.5704509985 | Y18: =IF(OR($P18>Total_pipeline_sizes,Y$4>Total_flow_rates),"",SUMIFS(FrictionLossesBySizeFlow[Pressure drop (MPa/m)],FrictionLossesBySizeFlow[Pipeline diameter (inches)],$Q18,FrictionLossesBySizeFlow[Flow rate (Mt CO2/y)],Y$6)*10^3) ->  | Z18: =IF(OR($P18>Total_pipeline_sizes,Z$4>Total_flow_rates),"",SUMIFS(FrictionLossesBySizeFlow[Pressure drop (MPa/m)],FrictionLossesBySizeFlow[Pipeline diameter (inches)],$Q18,FrictionLossesBySizeFlow[Flow rate (Mt CO2/y)],Z$6)*10^3) ->  | AA18: =IF(OR($P18>Total_pipeline_sizes,AA$4>Total_flow_rates),"",SUMIFS(FrictionLossesBySizeFlow[Pressure drop (MPa/m)],FrictionLossesBySizeFlow[Pipeline diameter (inches)],$Q18,FrictionLossesBySizeFlow[Flow rate (Mt CO2/y)],AA$6)*10^3) -> 
I19: 14 | J19: =IF(FrictionLossesBySizeFlow[[#This Row],[ID]]>Total_flow_rates*Total_pipeline_sizes,"",OFFSET(FlowRates[[#Headers],[Flow rate (Mt CO2/y)]],QUOTIENT(FrictionLossesBySizeFlow[[#This Row],[ID]]-1,Total_pipeline_sizes)+1,0)) -> 2 | K19: =IF(FrictionLossesBySizeFlow[[#This Row],[ID]]>Total_flow_rates*Total_pipeline_sizes,"",OFFSET(PipelineSizes[[#Headers],[Pipeline diameter (inches)]],MOD(FrictionLossesBySizeFlow[[#This Row],[ID]]-1,Total_pipeline_sizes)+1,0)) -> 32 | L19: =IF(FrictionLossesBySizeFlow[[#This Row],[ID]]>Total_flow_rates*Total_pipeline_sizes,"",4*FrictionLossesBySizeFlow[[#This Row],[Flow rate (Mt CO2/y)]]/Pipe_utilisation_factor*SUMIFS(ConversionFactors[Conversion value],ConversionFactors[Initial unit],"Mt",ConversionFactors[Final unit],"kg")/SUMIFS(ConversionFactors[Conversion value],ConversionFactors[Initial unit],"Year",ConversionFactors[Final unit],"second")/(PI()*SUMIFS(CO2PhysicalProperties[Viscosity (Pas)],CO2PhysicalProperties[Pressure (MPa)],Minimum_pipeline_pressure)*FrictionLossesBySizeFlow[[#This Row],[Pipeline diameter (inches)]]*SUMIFS(ConversionFactors[Conversion value],ConversionFactors[Initial unit],"Inch",ConversionFactors[Final unit],"metre"))) -> 1792995.905 | M19: =IF(FrictionLossesBySizeFlow[[#This Row],[ID]]>Total_flow_rates*Total_pipeline_sizes,"",1.325/(LN(Pipeline_roughness/(3.7*FrictionLossesBySizeFlow[[#This Row],[Pipeline diameter (inches)]]*SUMIFS(ConversionFactors[Conversion value],ConversionFactors[Initial unit],"Inch",ConversionFactors[Final unit],"metre"))+(5.74/FrictionLossesBySizeFlow[[#This Row],[Reynold''s Number]]^0.9)))^2) -> 0.01211133686 | N19: =IF(FrictionLossesBySizeFlow[[#This Row],[ID]]>Total_flow_rates*Total_pipeline_sizes,"",8*FrictionLossesBySizeFlow[[#This Row],[Friction factor]]*(FrictionLossesBySizeFlow[[#This Row],[Flow rate (Mt CO2/y)]]/Pipe_utilisation_factor*SUMIFS(ConversionFactors[Conversion value],ConversionFactors[Initial unit],"Mt",ConversionFactors[Final unit],"kg")/SUMIFS(ConversionFactors[Conversion value],ConversionFactors[Initial unit],"Year",ConversionFactors[Final unit],"second"))^2/(SUMIFS(CO2PhysicalProperties[Density (kg/m3)],CO2PhysicalProperties[Pressure (MPa)],Minimum_pipeline_pressure)*PI()^2*(FrictionLossesBySizeFlow[[#This Row],[Pipeline diameter (inches)]]*SUMIFS(ConversionFactors[Conversion value],ConversionFactors[Initial unit],"Inch",ConversionFactors[Final unit],"metre"))^5)/10^6) -> 2.420088697e-07 | P19: 13 | Q19: =IF($P19>Total_pipeline_sizes,"",OFFSET(PipelineSizes[[#Headers],[Pipeline diameter (inches)]],$P19,0)) -> 28 | R19: =IF(OR($P19>Total_pipeline_sizes,R$4>Total_flow_rates),"",SUMIFS(FrictionLossesBySizeFlow[Pressure drop (MPa/m)],FrictionLossesBySizeFlow[Pipeline diameter (inches)],$Q19,FrictionLossesBySizeFlow[Flow rate (Mt CO2/y)],R$6)*10^3) -> 0.0004738219277 | S19: =IF(OR($P19>Total_pipeline_sizes,S$4>Total_flow_rates),"",SUMIFS(FrictionLossesBySizeFlow[Pressure drop (MPa/m)],FrictionLossesBySizeFlow[Pipeline diameter (inches)],$Q19,FrictionLossesBySizeFlow[Flow rate (Mt CO2/y)],S$6)*10^3) -> 0.00281875869 | T19: =IF(OR($P19>Total_pipeline_sizes,T$4>Total_flow_rates),"",SUMIFS(FrictionLossesBySizeFlow[Pressure drop (MPa/m)],FrictionLossesBySizeFlow[Pipeline diameter (inches)],$Q19,FrictionLossesBySizeFlow[Flow rate (Mt CO2/y)],T$6)*10^3) -> 0.01103805349 | U19: =IF(OR($P19>Total_pipeline_sizes,U$4>Total_flow_rates),"",SUMIFS(FrictionLossesBySizeFlow[Pressure drop (MPa/m)],FrictionLossesBySizeFlow[Pipeline diameter (inches)],$Q19,FrictionLossesBySizeFlow[Flow rate (Mt CO2/y)],U$6)*10^3) -> 0.02463625655 | V19: =IF(OR($P19>Total_pipeline_sizes,V$4>Total_flow_rates),"",SUMIFS(FrictionLossesBySizeFlow[Pressure drop (MPa/m)],FrictionLossesBySizeFlow[Pipeline diameter (inches)],$Q19,FrictionLossesBySizeFlow[Flow rate (Mt CO2/y)],V$6)*10^3) -> 0.04360969269 | W19: =IF(OR($P19>Total_pipeline_sizes,W$4>Total_flow_rates),"",SUMIFS(FrictionLossesBySizeFlow[Pressure drop (MPa/m)],FrictionLossesBySizeFlow[Pipeline diameter (inches)],$Q19,FrictionLossesBySizeFlow[Flow rate (Mt CO2/y)],W$6)*10^3) -> 0.1732306901 | X19: =IF(OR($P19>Total_pipeline_sizes,X$4>Total_flow_rates),"",SUMIFS(FrictionLossesBySizeFlow[Pressure drop (MPa/m)],FrictionLossesBySizeFlow[Pipeline diameter (inches)],$Q19,FrictionLossesBySizeFlow[Flow rate (Mt CO2/y)],X$6)*10^3) -> 0.3887912926 | Y19: =IF(OR($P19>Total_pipeline_sizes,Y$4>Total_flow_rates),"",SUMIFS(FrictionLossesBySizeFlow[Pressure drop (MPa/m)],FrictionLossesBySizeFlow[Pipeline diameter (inches)],$Q19,FrictionLossesBySizeFlow[Flow rate (Mt CO2/y)],Y$6)*10^3) ->  | Z19: =IF(OR($P19>Total_pipeline_sizes,Z$4>Total_flow_rates),"",SUMIFS(FrictionLossesBySizeFlow[Pressure drop (MPa/m)],FrictionLossesBySizeFlow[Pipeline diameter (inches)],$Q19,FrictionLossesBySizeFlow[Flow rate (Mt CO2/y)],Z$6)*10^3) ->  | AA19: =IF(OR($P19>Total_pipeline_sizes,AA$4>Total_flow_rates),"",SUMIFS(FrictionLossesBySizeFlow[Pressure drop (MPa/m)],FrictionLossesBySizeFlow[Pipeline diameter (inches)],$Q19,FrictionLossesBySizeFlow[Flow rate (Mt CO2/y)],AA$6)*10^3) -> 
I20: 15 | J20: =IF(FrictionLossesBySizeFlow[[#This Row],[ID]]>Total_flow_rates*Total_pipeline_sizes,"",OFFSET(FlowRates[[#Headers],[Flow rate (Mt CO2/y)]],QUOTIENT(FrictionLossesBySizeFlow[[#This Row],[ID]]-1,Total_pipeline_sizes)+1,0)) -> 2 | K20: =IF(FrictionLossesBySizeFlow[[#This Row],[ID]]>Total_flow_rates*Total_pipeline_sizes,"",OFFSET(PipelineSizes[[#Headers],[Pipeline diameter (inches)]],MOD(FrictionLossesBySizeFlow[[#This Row],[ID]]-1,Total_pipeline_sizes)+1,0)) -> 36 | L20: =IF(FrictionLossesBySizeFlow[[#This Row],[ID]]>Total_flow_rates*Total_pipeline_sizes,"",4*FrictionLossesBySizeFlow[[#This Row],[Flow rate (Mt CO2/y)]]/Pipe_utilisation_factor*SUMIFS(ConversionFactors[Conversion value],ConversionFactors[Initial unit],"Mt",ConversionFactors[Final unit],"kg")/SUMIFS(ConversionFactors[Conversion value],ConversionFactors[Initial unit],"Year",ConversionFactors[Final unit],"second")/(PI()*SUMIFS(CO2PhysicalProperties[Viscosity (Pas)],CO2PhysicalProperties[Pressure (MPa)],Minimum_pipeline_pressure)*FrictionLossesBySizeFlow[[#This Row],[Pipeline diameter (inches)]]*SUMIFS(ConversionFactors[Conversion value],ConversionFactors[Initial unit],"Inch",ConversionFactors[Final unit],"metre"))) -> 1593774.138 | M20: =IF(FrictionLossesBySizeFlow[[#This Row],[ID]]>Total_flow_rates*Total_pipeline_sizes,"",1.325/(LN(Pipeline_roughness/(3.7*FrictionLossesBySizeFlow[[#This Row],[Pipeline diameter (inches)]]*SUMIFS(ConversionFactors[Conversion value],ConversionFactors[Initial unit],"Inch",ConversionFactors[Final unit],"metre"))+(5.74/FrictionLossesBySizeFlow[[#This Row],[Reynold''s Number]]^0.9)))^2) -> 0.0120972655 | N20: =IF(FrictionLossesBySizeFlow[[#This Row],[ID]]>Total_flow_rates*Total_pipeline_sizes,"",8*FrictionLossesBySizeFlow[[#This Row],[Friction factor]]*(FrictionLossesBySizeFlow[[#This Row],[Flow rate (Mt CO2/y)]]/Pipe_utilisation_factor*SUMIFS(ConversionFactors[Conversion value],ConversionFactors[Initial unit],"Mt",ConversionFactors[Final unit],"kg")/SUMIFS(ConversionFactors[Conversion value],ConversionFactors[Initial unit],"Year",ConversionFactors[Final unit],"second"))^2/(SUMIFS(CO2PhysicalProperties[Density (kg/m3)],CO2PhysicalProperties[Pressure (MPa)],Minimum_pipeline_pressure)*PI()^2*(FrictionLossesBySizeFlow[[#This Row],[Pipeline diameter (inches)]]*SUMIFS(ConversionFactors[Conversion value],ConversionFactors[Initial unit],"Inch",ConversionFactors[Final unit],"metre"))^5)/10^6) -> 1.341416981e-07 | P20: 14 | Q20: =IF($P20>Total_pipeline_sizes,"",OFFSET(PipelineSizes[[#Headers],[Pipeline diameter (inches)]],$P20,0)) -> 32 | R20: =IF(OR($P20>Total_pipeline_sizes,R$4>Total_flow_rates),"",SUMIFS(FrictionLossesBySizeFlow[Pressure drop (MPa/m)],FrictionLossesBySizeFlow[Pipeline diameter (inches)],$Q20,FrictionLossesBySizeFlow[Flow rate (Mt CO2/y)],R$6)*10^3) -> 0.0002420088697 | S20: =IF(OR($P20>Total_pipeline_sizes,S$4>Total_flow_rates),"",SUMIFS(FrictionLossesBySizeFlow[Pressure drop (MPa/m)],FrictionLossesBySizeFlow[Pipeline diameter (inches)],$Q20,FrictionLossesBySizeFlow[Flow rate (Mt CO2/y)],S$6)*10^3) -> 0.001427424078 | T20: =IF(OR($P20>Total_pipeline_sizes,T$4>Total_flow_rates),"",SUMIFS(FrictionLossesBySizeFlow[Pressure drop (MPa/m)],FrictionLossesBySizeFlow[Pipeline diameter (inches)],$Q20,FrictionLossesBySizeFlow[Flow rate (Mt CO2/y)],T$6)*10^3) -> 0.005564377776 | U20: =IF(OR($P20>Total_pipeline_sizes,U$4>Total_flow_rates),"",SUMIFS(FrictionLossesBySizeFlow[Pressure drop (MPa/m)],FrictionLossesBySizeFlow[Pipeline diameter (inches)],$Q20,FrictionLossesBySizeFlow[Flow rate (Mt CO2/y)],U$6)*10^3) -> 0.01239593905 | V20: =IF(OR($P20>Total_pipeline_sizes,V$4>Total_flow_rates),"",SUMIFS(FrictionLossesBySizeFlow[Pressure drop (MPa/m)],FrictionLossesBySizeFlow[Pipeline diameter (inches)],$Q20,FrictionLossesBySizeFlow[Flow rate (Mt CO2/y)],V$6)*10^3) -> 0.02191959235 | W20: =IF(OR($P20>Total_pipeline_sizes,W$4>Total_flow_rates),"",SUMIFS(FrictionLossesBySizeFlow[Pressure drop (MPa/m)],FrictionLossesBySizeFlow[Pipeline diameter (inches)],$Q20,FrictionLossesBySizeFlow[Flow rate (Mt CO2/y)],W$6)*10^3) -> 0.0869183823 | X20: =IF(OR($P20>Total_pipeline_sizes,X$4>Total_flow_rates),"",SUMIFS(FrictionLossesBySizeFlow[Pressure drop (MPa/m)],FrictionLossesBySizeFlow[Pipeline diameter (inches)],$Q20,FrictionLossesBySizeFlow[Flow rate (Mt CO2/y)],X$6)*10^3) -> 0.1949480925 | Y20: =IF(OR($P20>Total_pipeline_sizes,Y$4>Total_flow_rates),"",SUMIFS(FrictionLossesBySizeFlow[Pressure drop (MPa/m)],FrictionLossesBySizeFlow[Pipeline diameter (inches)],$Q20,FrictionLossesBySizeFlow[Flow rate (Mt CO2/y)],Y$6)*10^3) ->  | Z20: =IF(OR($P20>Total_pipeline_sizes,Z$4>Total_flow_rates),"",SUMIFS(FrictionLossesBySizeFlow[Pressure drop (MPa/m)],FrictionLossesBySizeFlow[Pipeline diameter (inches)],$Q20,FrictionLossesBySizeFlow[Flow rate (Mt CO2/y)],Z$6)*10^3) ->  | AA20: =IF(OR($P20>Total_pipeline_sizes,AA$4>Total_flow_rates),"",SUMIFS(FrictionLossesBySizeFlow[Pressure drop (MPa/m)],FrictionLossesBySizeFlow[Pipeline diameter (inches)],$Q20,FrictionLossesBySizeFlow[Flow rate (Mt CO2/y)],AA$6)*10^3) -> 
I21: 16 | J21: =IF(FrictionLossesBySizeFlow[[#This Row],[ID]]>Total_flow_rates*Total_pipeline_sizes,"",OFFSET(FlowRates[[#Headers],[Flow rate (Mt CO2/y)]],QUOTIENT(FrictionLossesBySizeFlow[[#This Row],[ID]]-1,Total_pipeline_sizes)+1,0)) -> 2 | K21: =IF(FrictionLossesBySizeFlow[[#This Row],[ID]]>Total_flow_rates*Total_pipeline_sizes,"",OFFSET(PipelineSizes[[#Headers],[Pipeline diameter (inches)]],MOD(FrictionLossesBySizeFlow[[#This Row],[ID]]-1,Total_pipeline_sizes)+1,0)) -> 40 | L21: =IF(FrictionLossesBySizeFlow[[#This Row],[ID]]>Total_flow_rates*Total_pipeline_sizes,"",4*FrictionLossesBySizeFlow[[#This Row],[Flow rate (Mt CO2/y)]]/Pipe_utilisation_factor*SUMIFS(ConversionFactors[Conversion value],ConversionFactors[Initial unit],"Mt",ConversionFactors[Final unit],"kg")/SUMIFS(ConversionFactors[Conversion value],ConversionFactors[Initial unit],"Year",ConversionFactors[Final unit],"second")/(PI()*SUMIFS(CO2PhysicalProperties[Viscosity (Pas)],CO2PhysicalProperties[Pressure (MPa)],Minimum_pipeline_pressure)*FrictionLossesBySizeFlow[[#This Row],[Pipeline diameter (inches)]]*SUMIFS(ConversionFactors[Conversion value],ConversionFactors[Initial unit],"Inch",ConversionFactors[Final unit],"metre"))) -> 1434396.724 | M21: =IF(FrictionLossesBySizeFlow[[#This Row],[ID]]>Total_flow_rates*Total_pipeline_sizes,"",1.325/(LN(Pipeline_roughness/(3.7*FrictionLossesBySizeFlow[[#This Row],[Pipeline diameter (inches)]]*SUMIFS(ConversionFactors[Conversion value],ConversionFactors[Initial unit],"Inch",ConversionFactors[Final unit],"metre"))+(5.74/FrictionLossesBySizeFlow[[#This Row],[Reynold''s Number]]^0.9)))^2) -> 0.01210911691 | N21: =IF(FrictionLossesBySizeFlow[[#This Row],[ID]]>Total_flow_rates*Total_pipeline_sizes,"",8*FrictionLossesBySizeFlow[[#This Row],[Friction factor]]*(FrictionLossesBySizeFlow[[#This Row],[Flow rate (Mt CO2/y)]]/Pipe_utilisation_factor*SUMIFS(ConversionFactors[Conversion value],ConversionFactors[Initial unit],"Mt",ConversionFactors[Final unit],"kg")/SUMIFS(ConversionFactors[Conversion value],ConversionFactors[Initial unit],"Year",ConversionFactors[Final unit],"second"))^2/(SUMIFS(CO2PhysicalProperties[Density (kg/m3)],CO2PhysicalProperties[Pressure (MPa)],Minimum_pipeline_pressure)*PI()^2*(FrictionLossesBySizeFlow[[#This Row],[Pipeline diameter (inches)]]*SUMIFS(ConversionFactors[Conversion value],ConversionFactors[Initial unit],"Inch",ConversionFactors[Final unit],"metre"))^5)/10^6) -> 7.928693084e-08 | P21: 15 | Q21: =IF($P21>Total_pipeline_sizes,"",OFFSET(PipelineSizes[[#Headers],[Pipeline diameter (inches)]],$P21,0)) -> 36 | R21: =IF(OR($P21>Total_pipeline_sizes,R$4>Total_flow_rates),"",SUMIFS(FrictionLossesBySizeFlow[Pressure drop (MPa/m)],FrictionLossesBySizeFlow[Pipeline diameter (inches)],$Q21,FrictionLossesBySizeFlow[Flow rate (Mt CO2/y)],R$6)*10^3) -> 0.0001341416981 | S21: =IF(OR($P21>Total_pipeline_sizes,S$4>Total_flow_rates),"",SUMIFS(FrictionLossesBySizeFlow[Pressure drop (MPa/m)],FrictionLossesBySizeFlow[Pipeline diameter (inches)],$Q21,FrictionLossesBySizeFlow[Flow rate (Mt CO2/y)],S$6)*10^3) -> 0.0007848560911 | T21: =IF(OR($P21>Total_pipeline_sizes,T$4>Total_flow_rates),"",SUMIFS(FrictionLossesBySizeFlow[Pressure drop (MPa/m)],FrictionLossesBySizeFlow[Pipeline diameter (inches)],$Q21,FrictionLossesBySizeFlow[Flow rate (Mt CO2/y)],T$6)*10^3) -> 0.003045642867 | U21: =IF(OR($P21>Total_pipeline_sizes,U$4>Total_flow_rates),"",SUMIFS(FrictionLossesBySizeFlow[Pressure drop (MPa/m)],FrictionLossesBySizeFlow[Pipeline diameter (inches)],$Q21,FrictionLossesBySizeFlow[Flow rate (Mt CO2/y)],U$6)*10^3) -> 0.006771622262 | V21: =IF(OR($P21>Total_pipeline_sizes,V$4>Total_flow_rates),"",SUMIFS(FrictionLossesBySizeFlow[Pressure drop (MPa/m)],FrictionLossesBySizeFlow[Pipeline diameter (inches)],$Q21,FrictionLossesBySizeFlow[Flow rate (Mt CO2/y)],V$6)*10^3) -> 0.01196097124 | W21: =IF(OR($P21>Total_pipeline_sizes,W$4>Total_flow_rates),"",SUMIFS(FrictionLossesBySizeFlow[Pressure drop (MPa/m)],FrictionLossesBySizeFlow[Pipeline diameter (inches)],$Q21,FrictionLossesBySizeFlow[Flow rate (Mt CO2/y)],W$6)*10^3) -> 0.04734020496 | X21: =IF(OR($P21>Total_pipeline_sizes,X$4>Total_flow_rates),"",SUMIFS(FrictionLossesBySizeFlow[Pressure drop (MPa/m)],FrictionLossesBySizeFlow[Pipeline diameter (inches)],$Q21,FrictionLossesBySizeFlow[Flow rate (Mt CO2/y)],X$6)*10^3) -> 0.1061034074 | Y21: =IF(OR($P21>Total_pipeline_sizes,Y$4>Total_flow_rates),"",SUMIFS(FrictionLossesBySizeFlow[Pressure drop (MPa/m)],FrictionLossesBySizeFlow[Pipeline diameter (inches)],$Q21,FrictionLossesBySizeFlow[Flow rate (Mt CO2/y)],Y$6)*10^3) ->  | Z21: =IF(OR($P21>Total_pipeline_sizes,Z$4>Total_flow_rates),"",SUMIFS(FrictionLossesBySizeFlow[Pressure drop (MPa/m)],FrictionLossesBySizeFlow[Pipeline diameter (inches)],$Q21,FrictionLossesBySizeFlow[Flow rate (Mt CO2/y)],Z$6)*10^3) ->  | AA21: =IF(OR($P21>Total_pipeline_sizes,AA$4>Total_flow_rates),"",SUMIFS(FrictionLossesBySizeFlow[Pressure drop (MPa/m)],FrictionLossesBySizeFlow[Pipeline diameter (inches)],$Q21,FrictionLossesBySizeFlow[Flow rate (Mt CO2/y)],AA$6)*10^3) -> 
I22: 17 | J22: =IF(FrictionLossesBySizeFlow[[#This Row],[ID]]>Total_flow_rates*Total_pipeline_sizes,"",OFFSET(FlowRates[[#Headers],[Flow rate (Mt CO2/y)]],QUOTIENT(FrictionLossesBySizeFlow[[#This Row],[ID]]-1,Total_pipeline_sizes)+1,0)) -> 2 | K22: =IF(FrictionLossesBySizeFlow[[#This Row],[ID]]>Total_flow_rates*Total_pipeline_sizes,"",OFFSET(PipelineSizes[[#Headers],[Pipeline diameter (inches)]],MOD(FrictionLossesBySizeFlow[[#This Row],[ID]]-1,Total_pipeline_sizes)+1,0)) -> 44 | L22: =IF(FrictionLossesBySizeFlow[[#This Row],[ID]]>Total_flow_rates*Total_pipeline_sizes,"",4*FrictionLossesBySizeFlow[[#This Row],[Flow rate (Mt CO2/y)]]/Pipe_utilisation_factor*SUMIFS(ConversionFactors[Conversion value],ConversionFactors[Initial unit],"Mt",ConversionFactors[Final unit],"kg")/SUMIFS(ConversionFactors[Conversion value],ConversionFactors[Initial unit],"Year",ConversionFactors[Final unit],"second")/(PI()*SUMIFS(CO2PhysicalProperties[Viscosity (Pas)],CO2PhysicalProperties[Pressure (MPa)],Minimum_pipeline_pressure)*FrictionLossesBySizeFlow[[#This Row],[Pipeline diameter (inches)]]*SUMIFS(ConversionFactors[Conversion value],ConversionFactors[Initial unit],"Inch",ConversionFactors[Final unit],"metre"))) -> 1303997.022 | M22: =IF(FrictionLossesBySizeFlow[[#This Row],[ID]]>Total_flow_rates*Total_pipeline_sizes,"",1.325/(LN(Pipeline_roughness/(3.7*FrictionLossesBySizeFlow[[#This Row],[Pipeline diameter (inches)]]*SUMIFS(ConversionFactors[Conversion value],ConversionFactors[Initial unit],"Inch",ConversionFactors[Final unit],"metre"))+(5.74/FrictionLossesBySizeFlow[[#This Row],[Reynold''s Number]]^0.9)))^2) -> 0.01213940691 | N22: =IF(FrictionLossesBySizeFlow[[#This Row],[ID]]>Total_flow_rates*Total_pipeline_sizes,"",8*FrictionLossesBySizeFlow[[#This Row],[Friction factor]]*(FrictionLossesBySizeFlow[[#This Row],[Flow rate (Mt CO2/y)]]/Pipe_utilisation_factor*SUMIFS(ConversionFactors[Conversion value],ConversionFactors[Initial unit],"Mt",ConversionFactors[Final unit],"kg")/SUMIFS(ConversionFactors[Conversion value],ConversionFactors[Initial unit],"Year",ConversionFactors[Final unit],"second"))^2/(SUMIFS(CO2PhysicalProperties[Density (kg/m3)],CO2PhysicalProperties[Pressure (MPa)],Minimum_pipeline_pressure)*PI()^2*(FrictionLossesBySizeFlow[[#This Row],[Pipeline diameter (inches)]]*SUMIFS(ConversionFactors[Conversion value],ConversionFactors[Initial unit],"Inch",ConversionFactors[Final unit],"metre"))^5)/10^6) -> 4.935409332e-08 | P22: 16 | Q22: =IF($P22>Total_pipeline_sizes,"",OFFSET(PipelineSizes[[#Headers],[Pipeline diameter (inches)]],$P22,0)) -> 40 | R22: =IF(OR($P22>Total_pipeline_sizes,R$4>Total_flow_rates),"",SUMIFS(FrictionLossesBySizeFlow[Pressure drop (MPa/m)],FrictionLossesBySizeFlow[Pipeline diameter (inches)],$Q22,FrictionLossesBySizeFlow[Flow rate (Mt CO2/y)],R$6)*10^3) -> 7.928693084e-05 | S22: =IF(OR($P22>Total_pipeline_sizes,S$4>Total_flow_rates),"",SUMIFS(FrictionLossesBySizeFlow[Pressure drop (MPa/m)],FrictionLossesBySizeFlow[Pipeline diameter (inches)],$Q22,FrictionLossesBySizeFlow[Flow rate (Mt CO2/y)],S$6)*10^3) -> 0.0004604530728 | T22: =IF(OR($P22>Total_pipeline_sizes,T$4>Total_flow_rates),"",SUMIFS(FrictionLossesBySizeFlow[Pressure drop (MPa/m)],FrictionLossesBySizeFlow[Pipeline diameter (inches)],$Q22,FrictionLossesBySizeFlow[Flow rate (Mt CO2/y)],T$6)*10^3) -> 0.001778801814 | U22: =IF(OR($P22>Total_pipeline_sizes,U$4>Total_flow_rates),"",SUMIFS(FrictionLossesBySizeFlow[Pressure drop (MPa/m)],FrictionLossesBySizeFlow[Pipeline diameter (inches)],$Q22,FrictionLossesBySizeFlow[Flow rate (Mt CO2/y)],U$6)*10^3) -> 0.003947075053 | V22: =IF(OR($P22>Total_pipeline_sizes,V$4>Total_flow_rates),"",SUMIFS(FrictionLossesBySizeFlow[Pressure drop (MPa/m)],FrictionLossesBySizeFlow[Pipeline diameter (inches)],$Q22,FrictionLossesBySizeFlow[Flow rate (Mt CO2/y)],V$6)*10^3) -> 0.006963893824 | W22: =IF(OR($P22>Total_pipeline_sizes,W$4>Total_flow_rates),"",SUMIFS(FrictionLossesBySizeFlow[Pressure drop (MPa/m)],FrictionLossesBySizeFlow[Pipeline diameter (inches)],$Q22,FrictionLossesBySizeFlow[Flow rate (Mt CO2/y)],W$6)*10^3) -> 0.02750782869 | X22: =IF(OR($P22>Total_pipeline_sizes,X$4>Total_flow_rates),"",SUMIFS(FrictionLossesBySizeFlow[Pressure drop (MPa/m)],FrictionLossesBySizeFlow[Pipeline diameter (inches)],$Q22,FrictionLossesBySizeFlow[Flow rate (Mt CO2/y)],X$6)*10^3) -> 0.06160642042 | Y22: =IF(OR($P22>Total_pipeline_sizes,Y$4>Total_flow_rates),"",SUMIFS(FrictionLossesBySizeFlow[Pressure drop (MPa/m)],FrictionLossesBySizeFlow[Pipeline diameter (inches)],$Q22,FrictionLossesBySizeFlow[Flow rate (Mt CO2/y)],Y$6)*10^3) ->  | Z22: =IF(OR($P22>Total_pipeline_sizes,Z$4>Total_flow_rates),"",SUMIFS(FrictionLossesBySizeFlow[Pressure drop (MPa/m)],FrictionLossesBySizeFlow[Pipeline diameter (inches)],$Q22,FrictionLossesBySizeFlow[Flow rate (Mt CO2/y)],Z$6)*10^3) ->  | AA22: =IF(OR($P22>Total_pipeline_sizes,AA$4>Total_flow_rates),"",SUMIFS(FrictionLossesBySizeFlow[Pressure drop (MPa/m)],FrictionLossesBySizeFlow[Pipeline diameter (inches)],$Q22,FrictionLossesBySizeFlow[Flow rate (Mt CO2/y)],AA$6)*10^3) -> 
I23: 18 | J23: =IF(FrictionLossesBySizeFlow[[#This Row],[ID]]>Total_flow_rates*Total_pipeline_sizes,"",OFFSET(FlowRates[[#Headers],[Flow rate (Mt CO2/y)]],QUOTIENT(FrictionLossesBySizeFlow[[#This Row],[ID]]-1,Total_pipeline_sizes)+1,0)) -> 2 | K23: =IF(FrictionLossesBySizeFlow[[#This Row],[ID]]>Total_flow_rates*Total_pipeline_sizes,"",OFFSET(PipelineSizes[[#Headers],[Pipeline diameter (inches)]],MOD(FrictionLossesBySizeFlow[[#This Row],[ID]]-1,Total_pipeline_sizes)+1,0)) -> 48 | L23: =IF(FrictionLossesBySizeFlow[[#This Row],[ID]]>Total_flow_rates*Total_pipeline_sizes,"",4*FrictionLossesBySizeFlow[[#This Row],[Flow rate (Mt CO2/y)]]/Pipe_utilisation_factor*SUMIFS(ConversionFactors[Conversion value],ConversionFactors[Initial unit],"Mt",ConversionFactors[Final unit],"kg")/SUMIFS(ConversionFactors[Conversion value],ConversionFactors[Initial unit],"Year",ConversionFactors[Final unit],"second")/(PI()*SUMIFS(CO2PhysicalProperties[Viscosity (Pas)],CO2PhysicalProperties[Pressure (MPa)],Minimum_pipeline_pressure)*FrictionLossesBySizeFlow[[#This Row],[Pipeline diameter (inches)]]*SUMIFS(ConversionFactors[Conversion value],ConversionFactors[Initial unit],"Inch",ConversionFactors[Final unit],"metre"))) -> 1195330.604 | M23: =IF(FrictionLossesBySizeFlow[[#This Row],[ID]]>Total_flow_rates*Total_pipeline_sizes,"",1.325/(LN(Pipeline_roughness/(3.7*FrictionLossesBySizeFlow[[#This Row],[Pipeline diameter (inches)]]*SUMIFS(ConversionFactors[Conversion value],ConversionFactors[Initial unit],"Inch",ConversionFactors[Final unit],"metre"))+(5.74/FrictionLossesBySizeFlow[[#This Row],[Reynold''s Number]]^0.9)))^2) -> 0.01218290844 | N23: =IF(FrictionLossesBySizeFlow[[#This Row],[ID]]>Total_flow_rates*Total_pipeline_sizes,"",8*FrictionLossesBySizeFlow[[#This Row],[Friction factor]]*(FrictionLossesBySizeFlow[[#This Row],[Flow rate (Mt CO2/y)]]/Pipe_utilisation_factor*SUMIFS(ConversionFactors[Conversion value],ConversionFactors[Initial unit],"Mt",ConversionFactors[Final unit],"kg")/SUMIFS(ConversionFactors[Conversion value],ConversionFactors[Initial unit],"Year",ConversionFactors[Final unit],"second"))^2/(SUMIFS(CO2PhysicalProperties[Density (kg/m3)],CO2PhysicalProperties[Pressure (MPa)],Minimum_pipeline_pressure)*PI()^2*(FrictionLossesBySizeFlow[[#This Row],[Pipeline diameter (inches)]]*SUMIFS(ConversionFactors[Conversion value],ConversionFactors[Initial unit],"Inch",ConversionFactors[Final unit],"metre"))^5)/10^6) -> 3.205781252e-08 | P23: 17 | Q23: =IF($P23>Total_pipeline_sizes,"",OFFSET(PipelineSizes[[#Headers],[Pipeline diameter (inches)]],$P23,0)) -> 44 | R23: =IF(OR($P23>Total_pipeline_sizes,R$4>Total_flow_rates),"",SUMIFS(FrictionLossesBySizeFlow[Pressure drop (MPa/m)],FrictionLossesBySizeFlow[Pipeline diameter (inches)],$Q23,FrictionLossesBySizeFlow[Flow rate (Mt CO2/y)],R$6)*10^3) -> 4.935409332e-05 | S23: =IF(OR($P23>Total_pipeline_sizes,S$4>Total_flow_rates),"",SUMIFS(FrictionLossesBySizeFlow[Pressure drop (MPa/m)],FrictionLossesBySizeFlow[Pipeline diameter (inches)],$Q23,FrictionLossesBySizeFlow[Flow rate (Mt CO2/y)],S$6)*10^3) -> 0.0002846588135 | T23: =IF(OR($P23>Total_pipeline_sizes,T$4>Total_flow_rates),"",SUMIFS(FrictionLossesBySizeFlow[Pressure drop (MPa/m)],FrictionLossesBySizeFlow[Pipeline diameter (inches)],$Q23,FrictionLossesBySizeFlow[Flow rate (Mt CO2/y)],T$6)*10^3) -> 0.001094892624 | U23: =IF(OR($P23>Total_pipeline_sizes,U$4>Total_flow_rates),"",SUMIFS(FrictionLossesBySizeFlow[Pressure drop (MPa/m)],FrictionLossesBySizeFlow[Pipeline diameter (inches)],$Q23,FrictionLossesBySizeFlow[Flow rate (Mt CO2/y)],U$6)*10^3) -> 0.002424641994 | V23: =IF(OR($P23>Total_pipeline_sizes,V$4>Total_flow_rates),"",SUMIFS(FrictionLossesBySizeFlow[Pressure drop (MPa/m)],FrictionLossesBySizeFlow[Pipeline diameter (inches)],$Q23,FrictionLossesBySizeFlow[Flow rate (Mt CO2/y)],V$6)*10^3) -> 0.004272829643 | W23: =IF(OR($P23>Total_pipeline_sizes,W$4>Total_flow_rates),"",SUMIFS(FrictionLossesBySizeFlow[Pressure drop (MPa/m)],FrictionLossesBySizeFlow[Pipeline diameter (inches)],$Q23,FrictionLossesBySizeFlow[Flow rate (Mt CO2/y)],W$6)*10^3) -> 0.01684319562 | X23: =IF(OR($P23>Total_pipeline_sizes,X$4>Total_flow_rates),"",SUMIFS(FrictionLossesBySizeFlow[Pressure drop (MPa/m)],FrictionLossesBySizeFlow[Pipeline diameter (inches)],$Q23,FrictionLossesBySizeFlow[Flow rate (Mt CO2/y)],X$6)*10^3) -> 0.03769169155 | Y23: =IF(OR($P23>Total_pipeline_sizes,Y$4>Total_flow_rates),"",SUMIFS(FrictionLossesBySizeFlow[Pressure drop (MPa/m)],FrictionLossesBySizeFlow[Pipeline diameter (inches)],$Q23,FrictionLossesBySizeFlow[Flow rate (Mt CO2/y)],Y$6)*10^3) ->  | Z23: =IF(OR($P23>Total_pipeline_sizes,Z$4>Total_flow_rates),"",SUMIFS(FrictionLossesBySizeFlow[Pressure drop (MPa/m)],FrictionLossesBySizeFlow[Pipeline diameter (inches)],$Q23,FrictionLossesBySizeFlow[Flow rate (Mt CO2/y)],Z$6)*10^3) ->  | AA23: =IF(OR($P23>Total_pipeline_sizes,AA$4>Total_flow_rates),"",SUMIFS(FrictionLossesBySizeFlow[Pressure drop (MPa/m)],FrictionLossesBySizeFlow[Pipeline diameter (inches)],$Q23,FrictionLossesBySizeFlow[Flow rate (Mt CO2/y)],AA$6)*10^3) -> 
I24: 19 | J24: =IF(FrictionLossesBySizeFlow[[#This Row],[ID]]>Total_flow_rates*Total_pipeline_sizes,"",OFFSET(FlowRates[[#Headers],[Flow rate (Mt CO2/y)]],QUOTIENT(FrictionLossesBySizeFlow[[#This Row],[ID]]-1,Total_pipeline_sizes)+1,0)) -> 2 | K24: =IF(FrictionLossesBySizeFlow[[#This Row],[ID]]>Total_flow_rates*Total_pipeline_sizes,"",OFFSET(PipelineSizes[[#Headers],[Pipeline diameter (inches)]],MOD(FrictionLossesBySizeFlow[[#This Row],[ID]]-1,Total_pipeline_sizes)+1,0)) -> 52 | L24: =IF(FrictionLossesBySizeFlow[[#This Row],[ID]]>Total_flow_rates*Total_pipeline_sizes,"",4*FrictionLossesBySizeFlow[[#This Row],[Flow rate (Mt CO2/y)]]/Pipe_utilisation_factor*SUMIFS(ConversionFactors[Conversion value],ConversionFactors[Initial unit],"Mt",ConversionFactors[Final unit],"kg")/SUMIFS(ConversionFactors[Conversion value],ConversionFactors[Initial unit],"Year",ConversionFactors[Final unit],"second")/(PI()*SUMIFS(CO2PhysicalProperties[Viscosity (Pas)],CO2PhysicalProperties[Pressure (MPa)],Minimum_pipeline_pressure)*FrictionLossesBySizeFlow[[#This Row],[Pipeline diameter (inches)]]*SUMIFS(ConversionFactors[Conversion value],ConversionFactors[Initial unit],"Inch",ConversionFactors[Final unit],"metre"))) -> 1103382.096 | M24: =IF(FrictionLossesBySizeFlow[[#This Row],[ID]]>Total_flow_rates*Total_pipeline_sizes,"",1.325/(LN(Pipeline_roughness/(3.7*FrictionLossesBySizeFlow[[#This Row],[Pipeline diameter (inches)]]*SUMIFS(ConversionFactors[Conversion value],ConversionFactors[Initial unit],"Inch",ConversionFactors[Final unit],"metre"))+(5.74/FrictionLossesBySizeFlow[[#This Row],[Reynold''s Number]]^0.9)))^2) -> 0.01223590121 | N24: =IF(FrictionLossesBySizeFlow[[#This Row],[ID]]>Total_flow_rates*Total_pipeline_sizes,"",8*FrictionLossesBySizeFlow[[#This Row],[Friction factor]]*(FrictionLossesBySizeFlow[[#This Row],[Flow rate (Mt CO2/y)]]/Pipe_utilisation_factor*SUMIFS(ConversionFactors[Conversion value],ConversionFactors[Initial unit],"Mt",ConversionFactors[Final unit],"kg")/SUMIFS(ConversionFactors[Conversion value],ConversionFactors[Initial unit],"Year",ConversionFactors[Final unit],"second"))^2/(SUMIFS(CO2PhysicalProperties[Density (kg/m3)],CO2PhysicalProperties[Pressure (MPa)],Minimum_pipeline_pressure)*PI()^2*(FrictionLossesBySizeFlow[[#This Row],[Pipeline diameter (inches)]]*SUMIFS(ConversionFactors[Conversion value],ConversionFactors[Initial unit],"Inch",ConversionFactors[Final unit],"metre"))^5)/10^6) -> 2.157785821e-08 | P24: 18 | Q24: =IF($P24>Total_pipeline_sizes,"",OFFSET(PipelineSizes[[#Headers],[Pipeline diameter (inches)]],$P24,0)) -> 48 | R24: =IF(OR($P24>Total_pipeline_sizes,R$4>Total_flow_rates),"",SUMIFS(FrictionLossesBySizeFlow[Pressure drop (MPa/m)],FrictionLossesBySizeFlow[Pipeline diameter (inches)],$Q24,FrictionLossesBySizeFlow[Flow rate (Mt CO2/y)],R$6)*10^3) -> 3.205781252e-05 | S24: =IF(OR($P24>Total_pipeline_sizes,S$4>Total_flow_rates),"",SUMIFS(FrictionLossesBySizeFlow[Pressure drop (MPa/m)],FrictionLossesBySizeFlow[Pipeline diameter (inches)],$Q24,FrictionLossesBySizeFlow[Flow rate (Mt CO2/y)],S$6)*10^3) -> 0.0001837415089 | T24: =IF(OR($P24>Total_pipeline_sizes,T$4>Total_flow_rates),"",SUMIFS(FrictionLossesBySizeFlow[Pressure drop (MPa/m)],FrictionLossesBySizeFlow[Pipeline diameter (inches)],$Q24,FrictionLossesBySizeFlow[Flow rate (Mt CO2/y)],T$6)*10^3) -> 0.000703764023 | U24: =IF(OR($P24>Total_pipeline_sizes,U$4>Total_flow_rates),"",SUMIFS(FrictionLossesBySizeFlow[Pressure drop (MPa/m)],FrictionLossesBySizeFlow[Pipeline diameter (inches)],$Q24,FrictionLossesBySizeFlow[Flow rate (Mt CO2/y)],U$6)*10^3) -> 0.001555374255 | V24: =IF(OR($P24>Total_pipeline_sizes,V$4>Total_flow_rates),"",SUMIFS(FrictionLossesBySizeFlow[Pressure drop (MPa/m)],FrictionLossesBySizeFlow[Pipeline diameter (inches)],$Q24,FrictionLossesBySizeFlow[Flow rate (Mt CO2/y)],V$6)*10^3) -> 0.002737709767 | W24: =IF(OR($P24>Total_pipeline_sizes,W$4>Total_flow_rates),"",SUMIFS(FrictionLossesBySizeFlow[Pressure drop (MPa/m)],FrictionLossesBySizeFlow[Pipeline diameter (inches)],$Q24,FrictionLossesBySizeFlow[Flow rate (Mt CO2/y)],W$6)*10^3) -> 0.01076894346 | X24: =IF(OR($P24>Total_pipeline_sizes,X$4>Total_flow_rates),"",SUMIFS(FrictionLossesBySizeFlow[Pressure drop (MPa/m)],FrictionLossesBySizeFlow[Pipeline diameter (inches)],$Q24,FrictionLossesBySizeFlow[Flow rate (Mt CO2/y)],X$6)*10^3) -> 0.02407847713 | Y24: =IF(OR($P24>Total_pipeline_sizes,Y$4>Total_flow_rates),"",SUMIFS(FrictionLossesBySizeFlow[Pressure drop (MPa/m)],FrictionLossesBySizeFlow[Pipeline diameter (inches)],$Q24,FrictionLossesBySizeFlow[Flow rate (Mt CO2/y)],Y$6)*10^3) ->  | Z24: =IF(OR($P24>Total_pipeline_sizes,Z$4>Total_flow_rates),"",SUMIFS(FrictionLossesBySizeFlow[Pressure drop (MPa/m)],FrictionLossesBySizeFlow[Pipeline diameter (inches)],$Q24,FrictionLossesBySizeFlow[Flow rate (Mt CO2/y)],Z$6)*10^3) ->  | AA24: =IF(OR($P24>Total_pipeline_sizes,AA$4>Total_flow_rates),"",SUMIFS(FrictionLossesBySizeFlow[Pressure drop (MPa/m)],FrictionLossesBySizeFlow[Pipeline diameter (inches)],$Q24,FrictionLossesBySizeFlow[Flow rate (Mt CO2/y)],AA$6)*10^3) -> 
I25: 20 | J25: =IF(FrictionLossesBySizeFlow[[#This Row],[ID]]>Total_flow_rates*Total_pipeline_sizes,"",OFFSET(FlowRates[[#Headers],[Flow rate (Mt CO2/y)]],QUOTIENT(FrictionLossesBySizeFlow[[#This Row],[ID]]-1,Total_pipeline_sizes)+1,0)) -> 2 | K25: =IF(FrictionLossesBySizeFlow[[#This Row],[ID]]>Total_flow_rates*Total_pipeline_sizes,"",OFFSET(PipelineSizes[[#Headers],[Pipeline diameter (inches)]],MOD(FrictionLossesBySizeFlow[[#This Row],[ID]]-1,Total_pipeline_sizes)+1,0)) -> 56 | L25: =IF(FrictionLossesBySizeFlow[[#This Row],[ID]]>Total_flow_rates*Total_pipeline_sizes,"",4*FrictionLossesBySizeFlow[[#This Row],[Flow rate (Mt CO2/y)]]/Pipe_utilisation_factor*SUMIFS(ConversionFactors[Conversion value],ConversionFactors[Initial unit],"Mt",ConversionFactors[Final unit],"kg")/SUMIFS(ConversionFactors[Conversion value],ConversionFactors[Initial unit],"Year",ConversionFactors[Final unit],"second")/(PI()*SUMIFS(CO2PhysicalProperties[Viscosity (Pas)],CO2PhysicalProperties[Pressure (MPa)],Minimum_pipeline_pressure)*FrictionLossesBySizeFlow[[#This Row],[Pipeline diameter (inches)]]*SUMIFS(ConversionFactors[Conversion value],ConversionFactors[Initial unit],"Inch",ConversionFactors[Final unit],"metre"))) -> 1024569.089 | M25: =IF(FrictionLossesBySizeFlow[[#This Row],[ID]]>Total_flow_rates*Total_pipeline_sizes,"",1.325/(LN(Pipeline_roughness/(3.7*FrictionLossesBySizeFlow[[#This Row],[Pipeline diameter (inches)]]*SUMIFS(ConversionFactors[Conversion value],ConversionFactors[Initial unit],"Inch",ConversionFactors[Final unit],"metre"))+(5.74/FrictionLossesBySizeFlow[[#This Row],[Reynold''s Number]]^0.9)))^2) -> 0.01229569729 | N25: =IF(FrictionLossesBySizeFlow[[#This Row],[ID]]>Total_flow_rates*Total_pipeline_sizes,"",8*FrictionLossesBySizeFlow[[#This Row],[Friction factor]]*(FrictionLossesBySizeFlow[[#This Row],[Flow rate (Mt CO2/y)]]/Pipe_utilisation_factor*SUMIFS(ConversionFactors[Conversion value],ConversionFactors[Initial unit],"Mt",ConversionFactors[Final unit],"kg")/SUMIFS(ConversionFactors[Conversion value],ConversionFactors[Initial unit],"Year",ConversionFactors[Final unit],"second"))^2/(SUMIFS(CO2PhysicalProperties[Density (kg/m3)],CO2PhysicalProperties[Pressure (MPa)],Minimum_pipeline_pressure)*PI()^2*(FrictionLossesBySizeFlow[[#This Row],[Pipeline diameter (inches)]]*SUMIFS(ConversionFactors[Conversion value],ConversionFactors[Initial unit],"Inch",ConversionFactors[Final unit],"metre"))^5)/10^6) -> 1.49693216e-08 | P25: 19 | Q25: =IF($P25>Total_pipeline_sizes,"",OFFSET(PipelineSizes[[#Headers],[Pipeline diameter (inches)]],$P25,0)) -> 52 | R25: =IF(OR($P25>Total_pipeline_sizes,R$4>Total_flow_rates),"",SUMIFS(FrictionLossesBySizeFlow[Pressure drop (MPa/m)],FrictionLossesBySizeFlow[Pipeline diameter (inches)],$Q25,FrictionLossesBySizeFlow[Flow rate (Mt CO2/y)],R$6)*10^3) -> 2.157785821e-05 | S25: =IF(OR($P25>Total_pipeline_sizes,S$4>Total_flow_rates),"",SUMIFS(FrictionLossesBySizeFlow[Pressure drop (MPa/m)],FrictionLossesBySizeFlow[Pipeline diameter (inches)],$Q25,FrictionLossesBySizeFlow[Flow rate (Mt CO2/y)],S$6)*10^3) -> 0.0001229686325 | T25: =IF(OR($P25>Total_pipeline_sizes,T$4>Total_flow_rates),"",SUMIFS(FrictionLossesBySizeFlow[Pressure drop (MPa/m)],FrictionLossesBySizeFlow[Pipeline diameter (inches)],$Q25,FrictionLossesBySizeFlow[Flow rate (Mt CO2/y)],T$6)*10^3) -> 0.0004691008793 | U25: =IF(OR($P25>Total_pipeline_sizes,U$4>Total_flow_rates),"",SUMIFS(FrictionLossesBySizeFlow[Pressure drop (MPa/m)],FrictionLossesBySizeFlow[Pipeline diameter (inches)],$Q25,FrictionLossesBySizeFlow[Flow rate (Mt CO2/y)],U$6)*10^3) -> 0.001034705897 | V25: =IF(OR($P25>Total_pipeline_sizes,V$4>Total_flow_rates),"",SUMIFS(FrictionLossesBySizeFlow[Pressure drop (MPa/m)],FrictionLossesBySizeFlow[Pipeline diameter (inches)],$Q25,FrictionLossesBySizeFlow[Flow rate (Mt CO2/y)],V$6)*10^3) -> 0.001819080213 | W25: =IF(OR($P25>Total_pipeline_sizes,W$4>Total_flow_rates),"",SUMIFS(FrictionLossesBySizeFlow[Pressure drop (MPa/m)],FrictionLossesBySizeFlow[Pipeline diameter (inches)],$Q25,FrictionLossesBySizeFlow[Flow rate (Mt CO2/y)],W$6)*10^3) -> 0.007139923139 | X25: =IF(OR($P25>Total_pipeline_sizes,X$4>Total_flow_rates),"",SUMIFS(FrictionLossesBySizeFlow[Pressure drop (MPa/m)],FrictionLossesBySizeFlow[Pipeline diameter (inches)],$Q25,FrictionLossesBySizeFlow[Flow rate (Mt CO2/y)],X$6)*10^3) -> 0.01595033383 | Y25: =IF(OR($P25>Total_pipeline_sizes,Y$4>Total_flow_rates),"",SUMIFS(FrictionLossesBySizeFlow[Pressure drop (MPa/m)],FrictionLossesBySizeFlow[Pipeline diameter (inches)],$Q25,FrictionLossesBySizeFlow[Flow rate (Mt CO2/y)],Y$6)*10^3) ->  | Z25: =IF(OR($P25>Total_pipeline_sizes,Z$4>Total_flow_rates),"",SUMIFS(FrictionLossesBySizeFlow[Pressure drop (MPa/m)],FrictionLossesBySizeFlow[Pipeline diameter (inches)],$Q25,FrictionLossesBySizeFlow[Flow rate (Mt CO2/y)],Z$6)*10^3) ->  | AA25: =IF(OR($P25>Total_pipeline_sizes,AA$4>Total_flow_rates),"",SUMIFS(FrictionLossesBySizeFlow[Pressure drop (MPa/m)],FrictionLossesBySizeFlow[Pipeline diameter (inches)],$Q25,FrictionLossesBySizeFlow[Flow rate (Mt CO2/y)],AA$6)*10^3) -> 
I26: 21 | J26: =IF(FrictionLossesBySizeFlow[[#This Row],[ID]]>Total_flow_rates*Total_pipeline_sizes,"",OFFSET(FlowRates[[#Headers],[Flow rate (Mt CO2/y)]],QUOTIENT(FrictionLossesBySizeFlow[[#This Row],[ID]]-1,Total_pipeline_sizes)+1,0)) -> 5 | K26: =IF(FrictionLossesBySizeFlow[[#This Row],[ID]]>Total_flow_rates*Total_pipeline_sizes,"",OFFSET(PipelineSizes[[#Headers],[Pipeline diameter (inches)]],MOD(FrictionLossesBySizeFlow[[#This Row],[ID]]-1,Total_pipeline_sizes)+1,0)) -> 4.5 | L26: =IF(FrictionLossesBySizeFlow[[#This Row],[ID]]>Total_flow_rates*Total_pipeline_sizes,"",4*FrictionLossesBySizeFlow[[#This Row],[Flow rate (Mt CO2/y)]]/Pipe_utilisation_factor*SUMIFS(ConversionFactors[Conversion value],ConversionFactors[Initial unit],"Mt",ConversionFactors[Final unit],"kg")/SUMIFS(ConversionFactors[Conversion value],ConversionFactors[Initial unit],"Year",ConversionFactors[Final unit],"second")/(PI()*SUMIFS(CO2PhysicalProperties[Viscosity (Pas)],CO2PhysicalProperties[Pressure (MPa)],Minimum_pipeline_pressure)*FrictionLossesBySizeFlow[[#This Row],[Pipeline diameter (inches)]]*SUMIFS(ConversionFactors[Conversion value],ConversionFactors[Initial unit],"Inch",ConversionFactors[Final unit],"metre"))) -> 31875482.76 | M26: =IF(FrictionLossesBySizeFlow[[#This Row],[ID]]>Total_flow_rates*Total_pipeline_sizes,"",1.325/(LN(Pipeline_roughness/(3.7*FrictionLossesBySizeFlow[[#This Row],[Pipeline diameter (inches)]]*SUMIFS(ConversionFactors[Conversion value],ConversionFactors[Initial unit],"Inch",ConversionFactors[Final unit],"metre"))+(5.74/FrictionLossesBySizeFlow[[#This Row],[Reynold''s Number]]^0.9)))^2) -> 0.01591065617 | N26: =IF(FrictionLossesBySizeFlow[[#This Row],[ID]]>Total_flow_rates*Total_pipeline_sizes,"",8*FrictionLossesBySizeFlow[[#This Row],[Friction factor]]*(FrictionLossesBySizeFlow[[#This Row],[Flow rate (Mt CO2/y)]]/Pipe_utilisation_factor*SUMIFS(ConversionFactors[Conversion value],ConversionFactors[Initial unit],"Mt",ConversionFactors[Final unit],"kg")/SUMIFS(ConversionFactors[Conversion value],ConversionFactors[Initial unit],"Year",ConversionFactors[Final unit],"second"))^2/(SUMIFS(CO2PhysicalProperties[Density (kg/m3)],CO2PhysicalProperties[Pressure (MPa)],Minimum_pipeline_pressure)*PI()^2*(FrictionLossesBySizeFlow[[#This Row],[Pipeline diameter (inches)]]*SUMIFS(ConversionFactors[Conversion value],ConversionFactors[Initial unit],"Inch",ConversionFactors[Final unit],"metre"))^5)/10^6) -> 0.03613221872 | P26: 20 | Q26: =IF($P26>Total_pipeline_sizes,"",OFFSET(PipelineSizes[[#Headers],[Pipeline diameter (inches)]],$P26,0)) -> 56 | R26: =IF(OR($P26>Total_pipeline_sizes,R$4>Total_flow_rates),"",SUMIFS(FrictionLossesBySizeFlow[Pressure drop (MPa/m)],FrictionLossesBySizeFlow[Pipeline diameter (inches)],$Q26,FrictionLossesBySizeFlow[Flow rate (Mt CO2/y)],R$6)*10^3) -> 1.49693216e-05 | S26: =IF(OR($P26>Total_pipeline_sizes,S$4>Total_flow_rates),"",SUMIFS(FrictionLossesBySizeFlow[Pressure drop (MPa/m)],FrictionLossesBySizeFlow[Pipeline diameter (inches)],$Q26,FrictionLossesBySizeFlow[Flow rate (Mt CO2/y)],S$6)*10^3) -> 8.486406889e-05 | T26: =IF(OR($P26>Total_pipeline_sizes,T$4>Total_flow_rates),"",SUMIFS(FrictionLossesBySizeFlow[Pressure drop (MPa/m)],FrictionLossesBySizeFlow[Pipeline diameter (inches)],$Q26,FrictionLossesBySizeFlow[Flow rate (Mt CO2/y)],T$6)*10^3) -> 0.00032250291 | U26: =IF(OR($P26>Total_pipeline_sizes,U$4>Total_flow_rates),"",SUMIFS(FrictionLossesBySizeFlow[Pressure drop (MPa/m)],FrictionLossesBySizeFlow[Pipeline diameter (inches)],$Q26,FrictionLossesBySizeFlow[Flow rate (Mt CO2/y)],U$6)*10^3) -> 0.0007099770029 | V26: =IF(OR($P26>Total_pipeline_sizes,V$4>Total_flow_rates),"",SUMIFS(FrictionLossesBySizeFlow[Pressure drop (MPa/m)],FrictionLossesBySizeFlow[Pipeline diameter (inches)],$Q26,FrictionLossesBySizeFlow[Flow rate (Mt CO2/y)],V$6)*10^3) -> 0.001246704195 | W26: =IF(OR($P26>Total_pipeline_sizes,W$4>Total_flow_rates),"",SUMIFS(FrictionLossesBySizeFlow[Pressure drop (MPa/m)],FrictionLossesBySizeFlow[Pipeline diameter (inches)],$Q26,FrictionLossesBySizeFlow[Flow rate (Mt CO2/y)],W$6)*10^3) -> 0.004882552187 | X26: =IF(OR($P26>Total_pipeline_sizes,X$4>Total_flow_rates),"",SUMIFS(FrictionLossesBySizeFlow[Pressure drop (MPa/m)],FrictionLossesBySizeFlow[Pipeline diameter (inches)],$Q26,FrictionLossesBySizeFlow[Flow rate (Mt CO2/y)],X$6)*10^3) -> 0.01089760661 | Y26: =IF(OR($P26>Total_pipeline_sizes,Y$4>Total_flow_rates),"",SUMIFS(FrictionLossesBySizeFlow[Pressure drop (MPa/m)],FrictionLossesBySizeFlow[Pipeline diameter (inches)],$Q26,FrictionLossesBySizeFlow[Flow rate (Mt CO2/y)],Y$6)*10^3) ->  | Z26: =IF(OR($P26>Total_pipeline_sizes,Z$4>Total_flow_rates),"",SUMIFS(FrictionLossesBySizeFlow[Pressure drop (MPa/m)],FrictionLossesBySizeFlow[Pipeline diameter (inches)],$Q26,FrictionLossesBySizeFlow[Flow rate (Mt CO2/y)],Z$6)*10^3) ->  | AA26: =IF(OR($P26>Total_pipeline_sizes,AA$4>Total_flow_rates),"",SUMIFS(FrictionLossesBySizeFlow[Pressure drop (MPa/m)],FrictionLossesBySizeFlow[Pipeline diameter (inches)],$Q26,FrictionLossesBySizeFlow[Flow rate (Mt CO2/y)],AA$6)*10^3) -> 
I27: 22 | J27: =IF(FrictionLossesBySizeFlow[[#This Row],[ID]]>Total_flow_rates*Total_pipeline_sizes,"",OFFSET(FlowRates[[#Headers],[Flow rate (Mt CO2/y)]],QUOTIENT(FrictionLossesBySizeFlow[[#This Row],[ID]]-1,Total_pipeline_sizes)+1,0)) -> 5 | K27: =IF(FrictionLossesBySizeFlow[[#This Row],[ID]]>Total_flow_rates*Total_pipeline_sizes,"",OFFSET(PipelineSizes[[#Headers],[Pipeline diameter (inches)]],MOD(FrictionLossesBySizeFlow[[#This Row],[ID]]-1,Total_pipeline_sizes)+1,0)) -> 6 | L27: =IF(FrictionLossesBySizeFlow[[#This Row],[ID]]>Total_flow_rates*Total_pipeline_sizes,"",4*FrictionLossesBySizeFlow[[#This Row],[Flow rate (Mt CO2/y)]]/Pipe_utilisation_factor*SUMIFS(ConversionFactors[Conversion value],ConversionFactors[Initial unit],"Mt",ConversionFactors[Final unit],"kg")/SUMIFS(ConversionFactors[Conversion value],ConversionFactors[Initial unit],"Year",ConversionFactors[Final unit],"second")/(PI()*SUMIFS(CO2PhysicalProperties[Viscosity (Pas)],CO2PhysicalProperties[Pressure (MPa)],Minimum_pipeline_pressure)*FrictionLossesBySizeFlow[[#This Row],[Pipeline diameter (inches)]]*SUMIFS(ConversionFactors[Conversion value],ConversionFactors[Initial unit],"Inch",ConversionFactors[Final unit],"metre"))) -> 23906612.07 | M27: =IF(FrictionLossesBySizeFlow[[#This Row],[ID]]>Total_flow_rates*Total_pipeline_sizes,"",1.325/(LN(Pipeline_roughness/(3.7*FrictionLossesBySizeFlow[[#This Row],[Pipeline diameter (inches)]]*SUMIFS(ConversionFactors[Conversion value],ConversionFactors[Initial unit],"Inch",ConversionFactors[Final unit],"metre"))+(5.74/FrictionLossesBySizeFlow[[#This Row],[Reynold''s Number]]^0.9)))^2) -> 0.01497448919 | N27: =IF(FrictionLossesBySizeFlow[[#This Row],[ID]]>Total_flow_rates*Total_pipeline_sizes,"",8*FrictionLossesBySizeFlow[[#This Row],[Friction factor]]*(FrictionLossesBySizeFlow[[#This Row],[Flow rate (Mt CO2/y)]]/Pipe_utilisation_factor*SUMIFS(ConversionFactors[Conversion value],ConversionFactors[Initial unit],"Mt",ConversionFactors[Final unit],"kg")/SUMIFS(ConversionFactors[Conversion value],ConversionFactors[Initial unit],"Year",ConversionFactors[Final unit],"second"))^2/(SUMIFS(CO2PhysicalProperties[Density (kg/m3)],CO2PhysicalProperties[Pressure (MPa)],Minimum_pipeline_pressure)*PI()^2*(FrictionLossesBySizeFlow[[#This Row],[Pipeline diameter (inches)]]*SUMIFS(ConversionFactors[Conversion value],ConversionFactors[Initial unit],"Inch",ConversionFactors[Final unit],"metre"))^5)/10^6) -> 0.008069839054 | P27: 21 | Q27: =IF($P27>Total_pipeline_sizes,"",OFFSET(PipelineSizes[[#Headers],[Pipeline diameter (inches)]],$P27,0)) ->  | R27: =IF(OR($P27>Total_pipeline_sizes,R$4>Total_flow_rates),"",SUMIFS(FrictionLossesBySizeFlow[Pressure drop (MPa/m)],FrictionLossesBySizeFlow[Pipeline diameter (inches)],$Q27,FrictionLossesBySizeFlow[Flow rate (Mt CO2/y)],R$6)*10^3) ->  | S27: =IF(OR($P27>Total_pipeline_sizes,S$4>Total_flow_rates),"",SUMIFS(FrictionLossesBySizeFlow[Pressure drop (MPa/m)],FrictionLossesBySizeFlow[Pipeline diameter (inches)],$Q27,FrictionLossesBySizeFlow[Flow rate (Mt CO2/y)],S$6)*10^3) ->  | T27: =IF(OR($P27>Total_pipeline_sizes,T$4>Total_flow_rates),"",SUMIFS(FrictionLossesBySizeFlow[Pressure drop (MPa/m)],FrictionLossesBySizeFlow[Pipeline diameter (inches)],$Q27,FrictionLossesBySizeFlow[Flow rate (Mt CO2/y)],T$6)*10^3) ->  | U27: =IF(OR($P27>Total_pipeline_sizes,U$4>Total_flow_rates),"",SUMIFS(FrictionLossesBySizeFlow[Pressure drop (MPa/m)],FrictionLossesBySizeFlow[Pipeline diameter (inches)],$Q27,FrictionLossesBySizeFlow[Flow rate (Mt CO2/y)],U$6)*10^3) ->  | V27: =IF(OR($P27>Total_pipeline_sizes,V$4>Total_flow_rates),"",SUMIFS(FrictionLossesBySizeFlow[Pressure drop (MPa/m)],FrictionLossesBySizeFlow[Pipeline diameter (inches)],$Q27,FrictionLossesBySizeFlow[Flow rate (Mt CO2/y)],V$6)*10^3) ->  | W27: =IF(OR($P27>Total_pipeline_sizes,W$4>Total_flow_rates),"",SUMIFS(FrictionLossesBySizeFlow[Pressure drop (MPa/m)],FrictionLossesBySizeFlow[Pipeline diameter (inches)],$Q27,FrictionLossesBySizeFlow[Flow rate (Mt CO2/y)],W$6)*10^3) ->  | X27: =IF(OR($P27>Total_pipeline_sizes,X$4>Total_flow_rates),"",SUMIFS(FrictionLossesBySizeFlow[Pressure drop (MPa/m)],FrictionLossesBySizeFlow[Pipeline diameter (inches)],$Q27,FrictionLossesBySizeFlow[Flow rate (Mt CO2/y)],X$6)*10^3) ->  | Y27: =IF(OR($P27>Total_pipeline_sizes,Y$4>Total_flow_rates),"",SUMIFS(FrictionLossesBySizeFlow[Pressure drop (MPa/m)],FrictionLossesBySizeFlow[Pipeline diameter (inches)],$Q27,FrictionLossesBySizeFlow[Flow rate (Mt CO2/y)],Y$6)*10^3) ->  | Z27: =IF(OR($P27>Total_pipeline_sizes,Z$4>Total_flow_rates),"",SUMIFS(FrictionLossesBySizeFlow[Pressure drop (MPa/m)],FrictionLossesBySizeFlow[Pipeline diameter (inches)],$Q27,FrictionLossesBySizeFlow[Flow rate (Mt CO2/y)],Z$6)*10^3) ->  | AA27: =IF(OR($P27>Total_pipeline_sizes,AA$4>Total_flow_rates),"",SUMIFS(FrictionLossesBySizeFlow[Pressure drop (MPa/m)],FrictionLossesBySizeFlow[Pipeline diameter (inches)],$Q27,FrictionLossesBySizeFlow[Flow rate (Mt CO2/y)],AA$6)*10^3) -> 
I28: 23 | J28: =IF(FrictionLossesBySizeFlow[[#This Row],[ID]]>Total_flow_rates*Total_pipeline_sizes,"",OFFSET(FlowRates[[#Headers],[Flow rate (Mt CO2/y)]],QUOTIENT(FrictionLossesBySizeFlow[[#This Row],[ID]]-1,Total_pipeline_sizes)+1,0)) -> 5 | K28: =IF(FrictionLossesBySizeFlow[[#This Row],[ID]]>Total_flow_rates*Total_pipeline_sizes,"",OFFSET(PipelineSizes[[#Headers],[Pipeline diameter (inches)]],MOD(FrictionLossesBySizeFlow[[#This Row],[ID]]-1,Total_pipeline_sizes)+1,0)) -> 8 | L28: =IF(FrictionLossesBySizeFlow[[#This Row],[ID]]>Total_flow_rates*Total_pipeline_sizes,"",4*FrictionLossesBySizeFlow[[#This Row],[Flow rate (Mt CO2/y)]]/Pipe_utilisation_factor*SUMIFS(ConversionFactors[Conversion value],ConversionFactors[Initial unit],"Mt",ConversionFactors[Final unit],"kg")/SUMIFS(ConversionFactors[Conversion value],ConversionFactors[Initial unit],"Year",ConversionFactors[Final unit],"second")/(PI()*SUMIFS(CO2PhysicalProperties[Viscosity (Pas)],CO2PhysicalProperties[Pressure (MPa)],Minimum_pipeline_pressure)*FrictionLossesBySizeFlow[[#This Row],[Pipeline diameter (inches)]]*SUMIFS(ConversionFactors[Conversion value],ConversionFactors[Initial unit],"Inch",ConversionFactors[Final unit],"metre"))) -> 17929959.05 | M28: =IF(FrictionLossesBySizeFlow[[#This Row],[ID]]>Total_flow_rates*Total_pipeline_sizes,"",1.325/(LN(Pipeline_roughness/(3.7*FrictionLossesBySizeFlow[[#This Row],[Pipeline diameter (inches)]]*SUMIFS(ConversionFactors[Conversion value],ConversionFactors[Initial unit],"Inch",ConversionFactors[Final unit],"metre"))+(5.74/FrictionLossesBySizeFlow[[#This Row],[Reynold''s Number]]^0.9)))^2) -> 0.01413259166 | N28: =IF(FrictionLossesBySizeFlow[[#This Row],[ID]]>Total_flow_rates*Total_pipeline_sizes,"",8*FrictionLossesBySizeFlow[[#This Row],[Friction factor]]*(FrictionLossesBySizeFlow[[#This Row],[Flow rate (Mt CO2/y)]]/Pipe_utilisation_factor*SUMIFS(ConversionFactors[Conversion value],ConversionFactors[Initial unit],"Mt",ConversionFactors[Final unit],"kg")/SUMIFS(ConversionFactors[Conversion value],ConversionFactors[Initial unit],"Year",ConversionFactors[Final unit],"second"))^2/(SUMIFS(CO2PhysicalProperties[Density (kg/m3)],CO2PhysicalProperties[Pressure (MPa)],Minimum_pipeline_pressure)*PI()^2*(FrictionLossesBySizeFlow[[#This Row],[Pipeline diameter (inches)]]*SUMIFS(ConversionFactors[Conversion value],ConversionFactors[Initial unit],"Inch",ConversionFactors[Final unit],"metre"))^5)/10^6) -> 0.001807344677 | P28: 22 | Q28: =IF($P28>Total_pipeline_sizes,"",OFFSET(PipelineSizes[[#Headers],[Pipeline diameter (inches)]],$P28,0)) ->  | R28: =IF(OR($P28>Total_pipeline_sizes,R$4>Total_flow_rates),"",SUMIFS(FrictionLossesBySizeFlow[Pressure drop (MPa/m)],FrictionLossesBySizeFlow[Pipeline diameter (inches)],$Q28,FrictionLossesBySizeFlow[Flow rate (Mt CO2/y)],R$6)*10^3) ->  | S28: =IF(OR($P28>Total_pipeline_sizes,S$4>Total_flow_rates),"",SUMIFS(FrictionLossesBySizeFlow[Pressure drop (MPa/m)],FrictionLossesBySizeFlow[Pipeline diameter (inches)],$Q28,FrictionLossesBySizeFlow[Flow rate (Mt CO2/y)],S$6)*10^3) ->  | T28: =IF(OR($P28>Total_pipeline_sizes,T$4>Total_flow_rates),"",SUMIFS(FrictionLossesBySizeFlow[Pressure drop (MPa/m)],FrictionLossesBySizeFlow[Pipeline diameter (inches)],$Q28,FrictionLossesBySizeFlow[Flow rate (Mt CO2/y)],T$6)*10^3) ->  | U28: =IF(OR($P28>Total_pipeline_sizes,U$4>Total_flow_rates),"",SUMIFS(FrictionLossesBySizeFlow[Pressure drop (MPa/m)],FrictionLossesBySizeFlow[Pipeline diameter (inches)],$Q28,FrictionLossesBySizeFlow[Flow rate (Mt CO2/y)],U$6)*10^3) ->  | V28: =IF(OR($P28>Total_pipeline_sizes,V$4>Total_flow_rates),"",SUMIFS(FrictionLossesBySizeFlow[Pressure drop (MPa/m)],FrictionLossesBySizeFlow[Pipeline diameter (inches)],$Q28,FrictionLossesBySizeFlow[Flow rate (Mt CO2/y)],V$6)*10^3) ->  | W28: =IF(OR($P28>Total_pipeline_sizes,W$4>Total_flow_rates),"",SUMIFS(FrictionLossesBySizeFlow[Pressure drop (MPa/m)],FrictionLossesBySizeFlow[Pipeline diameter (inches)],$Q28,FrictionLossesBySizeFlow[Flow rate (Mt CO2/y)],W$6)*10^3) ->  | X28: =IF(OR($P28>Total_pipeline_sizes,X$4>Total_flow_rates),"",SUMIFS(FrictionLossesBySizeFlow[Pressure drop (MPa/m)],FrictionLossesBySizeFlow[Pipeline diameter (inches)],$Q28,FrictionLossesBySizeFlow[Flow rate (Mt CO2/y)],X$6)*10^3) ->  | Y28: =IF(OR($P28>Total_pipeline_sizes,Y$4>Total_flow_rates),"",SUMIFS(FrictionLossesBySizeFlow[Pressure drop (MPa/m)],FrictionLossesBySizeFlow[Pipeline diameter (inches)],$Q28,FrictionLossesBySizeFlow[Flow rate (Mt CO2/y)],Y$6)*10^3) ->  | Z28: =IF(OR($P28>Total_pipeline_sizes,Z$4>Total_flow_rates),"",SUMIFS(FrictionLossesBySizeFlow[Pressure drop (MPa/m)],FrictionLossesBySizeFlow[Pipeline diameter (inches)],$Q28,FrictionLossesBySizeFlow[Flow rate (Mt CO2/y)],Z$6)*10^3) ->  | AA28: =IF(OR($P28>Total_pipeline_sizes,AA$4>Total_flow_rates),"",SUMIFS(FrictionLossesBySizeFlow[Pressure drop (MPa/m)],FrictionLossesBySizeFlow[Pipeline diameter (inches)],$Q28,FrictionLossesBySizeFlow[Flow rate (Mt CO2/y)],AA$6)*10^3) -> 
I29: 24 | J29: =IF(FrictionLossesBySizeFlow[[#This Row],[ID]]>Total_flow_rates*Total_pipeline_sizes,"",OFFSET(FlowRates[[#Headers],[Flow rate (Mt CO2/y)]],QUOTIENT(FrictionLossesBySizeFlow[[#This Row],[ID]]-1,Total_pipeline_sizes)+1,0)) -> 5 | K29: =IF(FrictionLossesBySizeFlow[[#This Row],[ID]]>Total_flow_rates*Total_pipeline_sizes,"",OFFSET(PipelineSizes[[#Headers],[Pipeline diameter (inches)]],MOD(FrictionLossesBySizeFlow[[#This Row],[ID]]-1,Total_pipeline_sizes)+1,0)) -> 10 | L29: =IF(FrictionLossesBySizeFlow[[#This Row],[ID]]>Total_flow_rates*Total_pipeline_sizes,"",4*FrictionLossesBySizeFlow[[#This Row],[Flow rate (Mt CO2/y)]]/Pipe_utilisation_factor*SUMIFS(ConversionFactors[Conversion value],ConversionFactors[Initial unit],"Mt",ConversionFactors[Final unit],"kg")/SUMIFS(ConversionFactors[Conversion value],ConversionFactors[Initial unit],"Year",ConversionFactors[Final unit],"second")/(PI()*SUMIFS(CO2PhysicalProperties[Viscosity (Pas)],CO2PhysicalProperties[Pressure (MPa)],Minimum_pipeline_pressure)*FrictionLossesBySizeFlow[[#This Row],[Pipeline diameter (inches)]]*SUMIFS(ConversionFactors[Conversion value],ConversionFactors[Initial unit],"Inch",ConversionFactors[Final unit],"metre"))) -> 14343967.24 | M29: =IF(FrictionLossesBySizeFlow[[#This Row],[ID]]>Total_flow_rates*Total_pipeline_sizes,"",1.325/(LN(Pipeline_roughness/(3.7*FrictionLossesBySizeFlow[[#This Row],[Pipeline diameter (inches)]]*SUMIFS(ConversionFactors[Conversion value],ConversionFactors[Initial unit],"Inch",ConversionFactors[Final unit],"metre"))+(5.74/FrictionLossesBySizeFlow[[#This Row],[Reynold''s Number]]^0.9)))^2) -> 0.01354212379 | N29: =IF(FrictionLossesBySizeFlow[[#This Row],[ID]]>Total_flow_rates*Total_pipeline_sizes,"",8*FrictionLossesBySizeFlow[[#This Row],[Friction factor]]*(FrictionLossesBySizeFlow[[#This Row],[Flow rate (Mt CO2/y)]]/Pipe_utilisation_factor*SUMIFS(ConversionFactors[Conversion value],ConversionFactors[Initial unit],"Mt",ConversionFactors[Final unit],"kg")/SUMIFS(ConversionFactors[Conversion value],ConversionFactors[Initial unit],"Year",ConversionFactors[Final unit],"second"))^2/(SUMIFS(CO2PhysicalProperties[Density (kg/m3)],CO2PhysicalProperties[Pressure (MPa)],Minimum_pipeline_pressure)*PI()^2*(FrictionLossesBySizeFlow[[#This Row],[Pipeline diameter (inches)]]*SUMIFS(ConversionFactors[Conversion value],ConversionFactors[Initial unit],"Inch",ConversionFactors[Final unit],"metre"))^5)/10^6) -> 0.0005674869621 | P29: 23 | Q29: =IF($P29>Total_pipeline_sizes,"",OFFSET(PipelineSizes[[#Headers],[Pipeline diameter (inches)]],$P29,0)) ->  | R29: =IF(OR($P29>Total_pipeline_sizes,R$4>Total_flow_rates),"",SUMIFS(FrictionLossesBySizeFlow[Pressure drop (MPa/m)],FrictionLossesBySizeFlow[Pipeline diameter (inches)],$Q29,FrictionLossesBySizeFlow[Flow rate (Mt CO2/y)],R$6)*10^3) ->  | S29: =IF(OR($P29>Total_pipeline_sizes,S$4>Total_flow_rates),"",SUMIFS(FrictionLossesBySizeFlow[Pressure drop (MPa/m)],FrictionLossesBySizeFlow[Pipeline diameter (inches)],$Q29,FrictionLossesBySizeFlow[Flow rate (Mt CO2/y)],S$6)*10^3) ->  | T29: =IF(OR($P29>Total_pipeline_sizes,T$4>Total_flow_rates),"",SUMIFS(FrictionLossesBySizeFlow[Pressure drop (MPa/m)],FrictionLossesBySizeFlow[Pipeline diameter (inches)],$Q29,FrictionLossesBySizeFlow[Flow rate (Mt CO2/y)],T$6)*10^3) ->  | U29: =IF(OR($P29>Total_pipeline_sizes,U$4>Total_flow_rates),"",SUMIFS(FrictionLossesBySizeFlow[Pressure drop (MPa/m)],FrictionLossesBySizeFlow[Pipeline diameter (inches)],$Q29,FrictionLossesBySizeFlow[Flow rate (Mt CO2/y)],U$6)*10^3) ->  | V29: =IF(OR($P29>Total_pipeline_sizes,V$4>Total_flow_rates),"",SUMIFS(FrictionLossesBySizeFlow[Pressure drop (MPa/m)],FrictionLossesBySizeFlow[Pipeline diameter (inches)],$Q29,FrictionLossesBySizeFlow[Flow rate (Mt CO2/y)],V$6)*10^3) ->  | W29: =IF(OR($P29>Total_pipeline_sizes,W$4>Total_flow_rates),"",SUMIFS(FrictionLossesBySizeFlow[Pressure drop (MPa/m)],FrictionLossesBySizeFlow[Pipeline diameter (inches)],$Q29,FrictionLossesBySizeFlow[Flow rate (Mt CO2/y)],W$6)*10^3) ->  | X29: =IF(OR($P29>Total_pipeline_sizes,X$4>Total_flow_rates),"",SUMIFS(FrictionLossesBySizeFlow[Pressure drop (MPa/m)],FrictionLossesBySizeFlow[Pipeline diameter (inches)],$Q29,FrictionLossesBySizeFlow[Flow rate (Mt CO2/y)],X$6)*10^3) ->  | Y29: =IF(OR($P29>Total_pipeline_sizes,Y$4>Total_flow_rates),"",SUMIFS(FrictionLossesBySizeFlow[Pressure drop (MPa/m)],FrictionLossesBySizeFlow[Pipeline diameter (inches)],$Q29,FrictionLossesBySizeFlow[Flow rate (Mt CO2/y)],Y$6)*10^3) ->  | Z29: =IF(OR($P29>Total_pipeline_sizes,Z$4>Total_flow_rates),"",SUMIFS(FrictionLossesBySizeFlow[Pressure drop (MPa/m)],FrictionLossesBySizeFlow[Pipeline diameter (inches)],$Q29,FrictionLossesBySizeFlow[Flow rate (Mt CO2/y)],Z$6)*10^3) ->  | AA29: =IF(OR($P29>Total_pipeline_sizes,AA$4>Total_flow_rates),"",SUMIFS(FrictionLossesBySizeFlow[Pressure drop (MPa/m)],FrictionLossesBySizeFlow[Pipeline diameter (inches)],$Q29,FrictionLossesBySizeFlow[Flow rate (Mt CO2/y)],AA$6)*10^3) -> 
I30: 25 | J30: =IF(FrictionLossesBySizeFlow[[#This Row],[ID]]>Total_flow_rates*Total_pipeline_sizes,"",OFFSET(FlowRates[[#Headers],[Flow rate (Mt CO2/y)]],QUOTIENT(FrictionLossesBySizeFlow[[#This Row],[ID]]-1,Total_pipeline_sizes)+1,0)) -> 5 | K30: =IF(FrictionLossesBySizeFlow[[#This Row],[ID]]>Total_flow_rates*Total_pipeline_sizes,"",OFFSET(PipelineSizes[[#Headers],[Pipeline diameter (inches)]],MOD(FrictionLossesBySizeFlow[[#This Row],[ID]]-1,Total_pipeline_sizes)+1,0)) -> 12 | L30: =IF(FrictionLossesBySizeFlow[[#This Row],[ID]]>Total_flow_rates*Total_pipeline_sizes,"",4*FrictionLossesBySizeFlow[[#This Row],[Flow rate (Mt CO2/y)]]/Pipe_utilisation_factor*SUMIFS(ConversionFactors[Conversion value],ConversionFactors[Initial unit],"Mt",ConversionFactors[Final unit],"kg")/SUMIFS(ConversionFactors[Conversion value],ConversionFactors[Initial unit],"Year",ConversionFactors[Final unit],"second")/(PI()*SUMIFS(CO2PhysicalProperties[Viscosity (Pas)],CO2PhysicalProperties[Pressure (MPa)],Minimum_pipeline_pressure)*FrictionLossesBySizeFlow[[#This Row],[Pipeline diameter (inches)]]*SUMIFS(ConversionFactors[Conversion value],ConversionFactors[Initial unit],"Inch",ConversionFactors[Final unit],"metre"))) -> 11953306.04 | M30: =IF(FrictionLossesBySizeFlow[[#This Row],[ID]]>Total_flow_rates*Total_pipeline_sizes,"",1.325/(LN(Pipeline_roughness/(3.7*FrictionLossesBySizeFlow[[#This Row],[Pipeline diameter (inches)]]*SUMIFS(ConversionFactors[Conversion value],ConversionFactors[Initial unit],"Inch",ConversionFactors[Final unit],"metre"))+(5.74/FrictionLossesBySizeFlow[[#This Row],[Reynold''s Number]]^0.9)))^2) -> 0.01310021154 | N30: =IF(FrictionLossesBySizeFlow[[#This Row],[ID]]>Total_flow_rates*Total_pipeline_sizes,"",8*FrictionLossesBySizeFlow[[#This Row],[Friction factor]]*(FrictionLossesBySizeFlow[[#This Row],[Flow rate (Mt CO2/y)]]/Pipe_utilisation_factor*SUMIFS(ConversionFactors[Conversion value],ConversionFactors[Initial unit],"Mt",ConversionFactors[Final unit],"kg")/SUMIFS(ConversionFactors[Conversion value],ConversionFactors[Initial unit],"Year",ConversionFactors[Final unit],"second"))^2/(SUMIFS(CO2PhysicalProperties[Density (kg/m3)],CO2PhysicalProperties[Pressure (MPa)],Minimum_pipeline_pressure)*PI()^2*(FrictionLossesBySizeFlow[[#This Row],[Pipeline diameter (inches)]]*SUMIFS(ConversionFactors[Conversion value],ConversionFactors[Initial unit],"Inch",ConversionFactors[Final unit],"metre"))^5)/10^6) -> 0.0002206181238 | P30: 24 | Q30: =IF($P30>Total_pipeline_sizes,"",OFFSET(PipelineSizes[[#Headers],[Pipeline diameter (inches)]],$P30,0)) ->  | R30: =IF(OR($P30>Total_pipeline_sizes,R$4>Total_flow_rates),"",SUMIFS(FrictionLossesBySizeFlow[Pressure drop (MPa/m)],FrictionLossesBySizeFlow[Pipeline diameter (inches)],$Q30,FrictionLossesBySizeFlow[Flow rate (Mt CO2/y)],R$6)*10^3) ->  | S30: =IF(OR($P30>Total_pipeline_sizes,S$4>Total_flow_rates),"",SUMIFS(FrictionLossesBySizeFlow[Pressure drop (MPa/m)],FrictionLossesBySizeFlow[Pipeline diameter (inches)],$Q30,FrictionLossesBySizeFlow[Flow rate (Mt CO2/y)],S$6)*10^3) ->  | T30: =IF(OR($P30>Total_pipeline_sizes,T$4>Total_flow_rates),"",SUMIFS(FrictionLossesBySizeFlow[Pressure drop (MPa/m)],FrictionLossesBySizeFlow[Pipeline diameter (inches)],$Q30,FrictionLossesBySizeFlow[Flow rate (Mt CO2/y)],T$6)*10^3) ->  | U30: =IF(OR($P30>Total_pipeline_sizes,U$4>Total_flow_rates),"",SUMIFS(FrictionLossesBySizeFlow[Pressure drop (MPa/m)],FrictionLossesBySizeFlow[Pipeline diameter (inches)],$Q30,FrictionLossesBySizeFlow[Flow rate (Mt CO2/y)],U$6)*10^3) ->  | V30: =IF(OR($P30>Total_pipeline_sizes,V$4>Total_flow_rates),"",SUMIFS(FrictionLossesBySizeFlow[Pressure drop (MPa/m)],FrictionLossesBySizeFlow[Pipeline diameter (inches)],$Q30,FrictionLossesBySizeFlow[Flow rate (Mt CO2/y)],V$6)*10^3) ->  | W30: =IF(OR($P30>Total_pipeline_sizes,W$4>Total_flow_rates),"",SUMIFS(FrictionLossesBySizeFlow[Pressure drop (MPa/m)],FrictionLossesBySizeFlow[Pipeline diameter (inches)],$Q30,FrictionLossesBySizeFlow[Flow rate (Mt CO2/y)],W$6)*10^3) ->  | X30: =IF(OR($P30>Total_pipeline_sizes,X$4>Total_flow_rates),"",SUMIFS(FrictionLossesBySizeFlow[Pressure drop (MPa/m)],FrictionLossesBySizeFlow[Pipeline diameter (inches)],$Q30,FrictionLossesBySizeFlow[Flow rate (Mt CO2/y)],X$6)*10^3) ->  | Y30: =IF(OR($P30>Total_pipeline_sizes,Y$4>Total_flow_rates),"",SUMIFS(FrictionLossesBySizeFlow[Pressure drop (MPa/m)],FrictionLossesBySizeFlow[Pipeline diameter (inches)],$Q30,FrictionLossesBySizeFlow[Flow rate (Mt CO2/y)],Y$6)*10^3) ->  | Z30: =IF(OR($P30>Total_pipeline_sizes,Z$4>Total_flow_rates),"",SUMIFS(FrictionLossesBySizeFlow[Pressure drop (MPa/m)],FrictionLossesBySizeFlow[Pipeline diameter (inches)],$Q30,FrictionLossesBySizeFlow[Flow rate (Mt CO2/y)],Z$6)*10^3) ->  | AA30: =IF(OR($P30>Total_pipeline_sizes,AA$4>Total_flow_rates),"",SUMIFS(FrictionLossesBySizeFlow[Pressure drop (MPa/m)],FrictionLossesBySizeFlow[Pipeline diameter (inches)],$Q30,FrictionLossesBySizeFlow[Flow rate (Mt CO2/y)],AA$6)*10^3) -> 
I31: 26 | J31: =IF(FrictionLossesBySizeFlow[[#This Row],[ID]]>Total_flow_rates*Total_pipeline_sizes,"",OFFSET(FlowRates[[#Headers],[Flow rate (Mt CO2/y)]],QUOTIENT(FrictionLossesBySizeFlow[[#This Row],[ID]]-1,Total_pipeline_sizes)+1,0)) -> 5 | K31: =IF(FrictionLossesBySizeFlow[[#This Row],[ID]]>Total_flow_rates*Total_pipeline_sizes,"",OFFSET(PipelineSizes[[#Headers],[Pipeline diameter (inches)]],MOD(FrictionLossesBySizeFlow[[#This Row],[ID]]-1,Total_pipeline_sizes)+1,0)) -> 14 | L31: =IF(FrictionLossesBySizeFlow[[#This Row],[ID]]>Total_flow_rates*Total_pipeline_sizes,"",4*FrictionLossesBySizeFlow[[#This Row],[Flow rate (Mt CO2/y)]]/Pipe_utilisation_factor*SUMIFS(ConversionFactors[Conversion value],ConversionFactors[Initial unit],"Mt",ConversionFactors[Final unit],"kg")/SUMIFS(ConversionFactors[Conversion value],ConversionFactors[Initial unit],"Year",ConversionFactors[Final unit],"second")/(PI()*SUMIFS(CO2PhysicalProperties[Viscosity (Pas)],CO2PhysicalProperties[Pressure (MPa)],Minimum_pipeline_pressure)*FrictionLossesBySizeFlow[[#This Row],[Pipeline diameter (inches)]]*SUMIFS(ConversionFactors[Conversion value],ConversionFactors[Initial unit],"Inch",ConversionFactors[Final unit],"metre"))) -> 10245690.89 | M31: =IF(FrictionLossesBySizeFlow[[#This Row],[ID]]>Total_flow_rates*Total_pipeline_sizes,"",1.325/(LN(Pipeline_roughness/(3.7*FrictionLossesBySizeFlow[[#This Row],[Pipeline diameter (inches)]]*SUMIFS(ConversionFactors[Conversion value],ConversionFactors[Initial unit],"Inch",ConversionFactors[Final unit],"metre"))+(5.74/FrictionLossesBySizeFlow[[#This Row],[Reynold''s Number]]^0.9)))^2) -> 0.01275572816 | N31: =IF(FrictionLossesBySizeFlow[[#This Row],[ID]]>Total_flow_rates*Total_pipeline_sizes,"",8*FrictionLossesBySizeFlow[[#This Row],[Friction factor]]*(FrictionLossesBySizeFlow[[#This Row],[Flow rate (Mt CO2/y)]]/Pipe_utilisation_factor*SUMIFS(ConversionFactors[Conversion value],ConversionFactors[Initial unit],"Mt",ConversionFactors[Final unit],"kg")/SUMIFS(ConversionFactors[Conversion value],ConversionFactors[Initial unit],"Year",ConversionFactors[Final unit],"second"))^2/(SUMIFS(CO2PhysicalProperties[Density (kg/m3)],CO2PhysicalProperties[Pressure (MPa)],Minimum_pipeline_pressure)*PI()^2*(FrictionLossesBySizeFlow[[#This Row],[Pipeline diameter (inches)]]*SUMIFS(ConversionFactors[Conversion value],ConversionFactors[Initial unit],"Inch",ConversionFactors[Final unit],"metre"))^5)/10^6) -> 9.93880536e-05 | P31: 25 | Q31: =IF($P31>Total_pipeline_sizes,"",OFFSET(PipelineSizes[[#Headers],[Pipeline diameter (inches)]],$P31,0)) ->  | R31: =IF(OR($P31>Total_pipeline_sizes,R$4>Total_flow_rates),"",SUMIFS(FrictionLossesBySizeFlow[Pressure drop (MPa/m)],FrictionLossesBySizeFlow[Pipeline diameter (inches)],$Q31,FrictionLossesBySizeFlow[Flow rate (Mt CO2/y)],R$6)*10^3) ->  | S31: =IF(OR($P31>Total_pipeline_sizes,S$4>Total_flow_rates),"",SUMIFS(FrictionLossesBySizeFlow[Pressure drop (MPa/m)],FrictionLossesBySizeFlow[Pipeline diameter (inches)],$Q31,FrictionLossesBySizeFlow[Flow rate (Mt CO2/y)],S$6)*10^3) ->  | T31: =IF(OR($P31>Total_pipeline_sizes,T$4>Total_flow_rates),"",SUMIFS(FrictionLossesBySizeFlow[Pressure drop (MPa/m)],FrictionLossesBySizeFlow[Pipeline diameter (inches)],$Q31,FrictionLossesBySizeFlow[Flow rate (Mt CO2/y)],T$6)*10^3) ->  | U31: =IF(OR($P31>Total_pipeline_sizes,U$4>Total_flow_rates),"",SUMIFS(FrictionLossesBySizeFlow[Pressure drop (MPa/m)],FrictionLossesBySizeFlow[Pipeline diameter (inches)],$Q31,FrictionLossesBySizeFlow[Flow rate (Mt CO2/y)],U$6)*10^3) ->  | V31: =IF(OR($P31>Total_pipeline_sizes,V$4>Total_flow_rates),"",SUMIFS(FrictionLossesBySizeFlow[Pressure drop (MPa/m)],FrictionLossesBySizeFlow[Pipeline diameter (inches)],$Q31,FrictionLossesBySizeFlow[Flow rate (Mt CO2/y)],V$6)*10^3) ->  | W31: =IF(OR($P31>Total_pipeline_sizes,W$4>Total_flow_rates),"",SUMIFS(FrictionLossesBySizeFlow[Pressure drop (MPa/m)],FrictionLossesBySizeFlow[Pipeline diameter (inches)],$Q31,FrictionLossesBySizeFlow[Flow rate (Mt CO2/y)],W$6)*10^3) ->  | X31: =IF(OR($P31>Total_pipeline_sizes,X$4>Total_flow_rates),"",SUMIFS(FrictionLossesBySizeFlow[Pressure drop (MPa/m)],FrictionLossesBySizeFlow[Pipeline diameter (inches)],$Q31,FrictionLossesBySizeFlow[Flow rate (Mt CO2/y)],X$6)*10^3) ->  | Y31: =IF(OR($P31>Total_pipeline_sizes,Y$4>Total_flow_rates),"",SUMIFS(FrictionLossesBySizeFlow[Pressure drop (MPa/m)],FrictionLossesBySizeFlow[Pipeline diameter (inches)],$Q31,FrictionLossesBySizeFlow[Flow rate (Mt CO2/y)],Y$6)*10^3) ->  | Z31: =IF(OR($P31>Total_pipeline_sizes,Z$4>Total_flow_rates),"",SUMIFS(FrictionLossesBySizeFlow[Pressure drop (MPa/m)],FrictionLossesBySizeFlow[Pipeline diameter (inches)],$Q31,FrictionLossesBySizeFlow[Flow rate (Mt CO2/y)],Z$6)*10^3) ->  | AA31: =IF(OR($P31>Total_pipeline_sizes,AA$4>Total_flow_rates),"",SUMIFS(FrictionLossesBySizeFlow[Pressure drop (MPa/m)],FrictionLossesBySizeFlow[Pipeline diameter (inches)],$Q31,FrictionLossesBySizeFlow[Flow rate (Mt CO2/y)],AA$6)*10^3) -> 
I32: 27 | J32: =IF(FrictionLossesBySizeFlow[[#This Row],[ID]]>Total_flow_rates*Total_pipeline_sizes,"",OFFSET(FlowRates[[#Headers],[Flow rate (Mt CO2/y)]],QUOTIENT(FrictionLossesBySizeFlow[[#This Row],[ID]]-1,Total_pipeline_sizes)+1,0)) -> 5 | K32: =IF(FrictionLossesBySizeFlow[[#This Row],[ID]]>Total_flow_rates*Total_pipeline_sizes,"",OFFSET(PipelineSizes[[#Headers],[Pipeline diameter (inches)]],MOD(FrictionLossesBySizeFlow[[#This Row],[ID]]-1,Total_pipeline_sizes)+1,0)) -> 16 | L32: =IF(FrictionLossesBySizeFlow[[#This Row],[ID]]>Total_flow_rates*Total_pipeline_sizes,"",4*FrictionLossesBySizeFlow[[#This Row],[Flow rate (Mt CO2/y)]]/Pipe_utilisation_factor*SUMIFS(ConversionFactors[Conversion value],ConversionFactors[Initial unit],"Mt",ConversionFactors[Final unit],"kg")/SUMIFS(ConversionFactors[Conversion value],ConversionFactors[Initial unit],"Year",ConversionFactors[Final unit],"second")/(PI()*SUMIFS(CO2PhysicalProperties[Viscosity (Pas)],CO2PhysicalProperties[Pressure (MPa)],Minimum_pipeline_pressure)*FrictionLossesBySizeFlow[[#This Row],[Pipeline diameter (inches)]]*SUMIFS(ConversionFactors[Conversion value],ConversionFactors[Initial unit],"Inch",ConversionFactors[Final unit],"metre"))) -> 8964979.526 | M32: =IF(FrictionLossesBySizeFlow[[#This Row],[ID]]>Total_flow_rates*Total_pipeline_sizes,"",1.325/(LN(Pipeline_roughness/(3.7*FrictionLossesBySizeFlow[[#This Row],[Pipeline diameter (inches)]]*SUMIFS(ConversionFactors[Conversion value],ConversionFactors[Initial unit],"Inch",ConversionFactors[Final unit],"metre"))+(5.74/FrictionLossesBySizeFlow[[#This Row],[Reynold''s Number]]^0.9)))^2) -> 0.0124797622 | N32: =IF(FrictionLossesBySizeFlow[[#This Row],[ID]]>Total_flow_rates*Total_pipeline_sizes,"",8*FrictionLossesBySizeFlow[[#This Row],[Friction factor]]*(FrictionLossesBySizeFlow[[#This Row],[Flow rate (Mt CO2/y)]]/Pipe_utilisation_factor*SUMIFS(ConversionFactors[Conversion value],ConversionFactors[Initial unit],"Mt",ConversionFactors[Final unit],"kg")/SUMIFS(ConversionFactors[Conversion value],ConversionFactors[Initial unit],"Year",ConversionFactors[Final unit],"second"))^2/(SUMIFS(CO2PhysicalProperties[Density (kg/m3)],CO2PhysicalProperties[Pressure (MPa)],Minimum_pipeline_pressure)*PI()^2*(FrictionLossesBySizeFlow[[#This Row],[Pipeline diameter (inches)]]*SUMIFS(ConversionFactors[Conversion value],ConversionFactors[Initial unit],"Inch",ConversionFactors[Final unit],"metre"))^5)/10^6) -> 4.987414978e-05
I33: 28 | J33: =IF(FrictionLossesBySizeFlow[[#This Row],[ID]]>Total_flow_rates*Total_pipeline_sizes,"",OFFSET(FlowRates[[#Headers],[Flow rate (Mt CO2/y)]],QUOTIENT(FrictionLossesBySizeFlow[[#This Row],[ID]]-1,Total_pipeline_sizes)+1,0)) -> 5 | K33: =IF(FrictionLossesBySizeFlow[[#This Row],[ID]]>Total_flow_rates*Total_pipeline_sizes,"",OFFSET(PipelineSizes[[#Headers],[Pipeline diameter (inches)]],MOD(FrictionLossesBySizeFlow[[#This Row],[ID]]-1,Total_pipeline_sizes)+1,0)) -> 18 | L33: =IF(FrictionLossesBySizeFlow[[#This Row],[ID]]>Total_flow_rates*Total_pipeline_sizes,"",4*FrictionLossesBySizeFlow[[#This Row],[Flow rate (Mt CO2/y)]]/Pipe_utilisation_factor*SUMIFS(ConversionFactors[Conversion value],ConversionFactors[Initial unit],"Mt",ConversionFactors[Final unit],"kg")/SUMIFS(ConversionFactors[Conversion value],ConversionFactors[Initial unit],"Year",ConversionFactors[Final unit],"second")/(PI()*SUMIFS(CO2PhysicalProperties[Viscosity (Pas)],CO2PhysicalProperties[Pressure (MPa)],Minimum_pipeline_pressure)*FrictionLossesBySizeFlow[[#This Row],[Pipeline diameter (inches)]]*SUMIFS(ConversionFactors[Conversion value],ConversionFactors[Initial unit],"Inch",ConversionFactors[Final unit],"metre"))) -> 7968870.69 | M33: =IF(FrictionLossesBySizeFlow[[#This Row],[ID]]>Total_flow_rates*Total_pipeline_sizes,"",1.325/(LN(Pipeline_roughness/(3.7*FrictionLossesBySizeFlow[[#This Row],[Pipeline diameter (inches)]]*SUMIFS(ConversionFactors[Conversion value],ConversionFactors[Initial unit],"Inch",ConversionFactors[Final unit],"metre"))+(5.74/FrictionLossesBySizeFlow[[#This Row],[Reynold''s Number]]^0.9)))^2) -> 0.0122544417 | N33: =IF(FrictionLossesBySizeFlow[[#This Row],[ID]]>Total_flow_rates*Total_pipeline_sizes,"",8*FrictionLossesBySizeFlow[[#This Row],[Friction factor]]*(FrictionLossesBySizeFlow[[#This Row],[Flow rate (Mt CO2/y)]]/Pipe_utilisation_factor*SUMIFS(ConversionFactors[Conversion value],ConversionFactors[Initial unit],"Mt",ConversionFactors[Final unit],"kg")/SUMIFS(ConversionFactors[Conversion value],ConversionFactors[Initial unit],"Year",ConversionFactors[Final unit],"second"))^2/(SUMIFS(CO2PhysicalProperties[Density (kg/m3)],CO2PhysicalProperties[Pressure (MPa)],Minimum_pipeline_pressure)*PI()^2*(FrictionLossesBySizeFlow[[#This Row],[Pipeline diameter (inches)]]*SUMIFS(ConversionFactors[Conversion value],ConversionFactors[Initial unit],"Inch",ConversionFactors[Final unit],"metre"))^5)/10^6) -> 2.717691231e-05
I34: 29 | J34: =IF(FrictionLossesBySizeFlow[[#This Row],[ID]]>Total_flow_rates*Total_pipeline_sizes,"",OFFSET(FlowRates[[#Headers],[Flow rate (Mt CO2/y)]],QUOTIENT(FrictionLossesBySizeFlow[[#This Row],[ID]]-1,Total_pipeline_sizes)+1,0)) -> 5 | K34: =IF(FrictionLossesBySizeFlow[[#This Row],[ID]]>Total_flow_rates*Total_pipeline_sizes,"",OFFSET(PipelineSizes[[#Headers],[Pipeline diameter (inches)]],MOD(FrictionLossesBySizeFlow[[#This Row],[ID]]-1,Total_pipeline_sizes)+1,0)) -> 20 | L34: =IF(FrictionLossesBySizeFlow[[#This Row],[ID]]>Total_flow_rates*Total_pipeline_sizes,"",4*FrictionLossesBySizeFlow[[#This Row],[Flow rate (Mt CO2/y)]]/Pipe_utilisation_factor*SUMIFS(ConversionFactors[Conversion value],ConversionFactors[Initial unit],"Mt",ConversionFactors[Final unit],"kg")/SUMIFS(ConversionFactors[Conversion value],ConversionFactors[Initial unit],"Year",ConversionFactors[Final unit],"second")/(PI()*SUMIFS(CO2PhysicalProperties[Viscosity (Pas)],CO2PhysicalProperties[Pressure (MPa)],Minimum_pipeline_pressure)*FrictionLossesBySizeFlow[[#This Row],[Pipeline diameter (inches)]]*SUMIFS(ConversionFactors[Conversion value],ConversionFactors[Initial unit],"Inch",ConversionFactors[Final unit],"metre"))) -> 7171983.621 | M34: =IF(FrictionLossesBySizeFlow[[#This Row],[ID]]>Total_flow_rates*Total_pipeline_sizes,"",1.325/(LN(Pipeline_roughness/(3.7*FrictionLossesBySizeFlow[[#This Row],[Pipeline diameter (inches)]]*SUMIFS(ConversionFactors[Conversion value],ConversionFactors[Initial unit],"Inch",ConversionFactors[Final unit],"metre"))+(5.74/FrictionLossesBySizeFlow[[#This Row],[Reynold''s Number]]^0.9)))^2) -> 0.01206797024 | N34: =IF(FrictionLossesBySizeFlow[[#This Row],[ID]]>Total_flow_rates*Total_pipeline_sizes,"",8*FrictionLossesBySizeFlow[[#This Row],[Friction factor]]*(FrictionLossesBySizeFlow[[#This Row],[Flow rate (Mt CO2/y)]]/Pipe_utilisation_factor*SUMIFS(ConversionFactors[Conversion value],ConversionFactors[Initial unit],"Mt",ConversionFactors[Final unit],"kg")/SUMIFS(ConversionFactors[Conversion value],ConversionFactors[Initial unit],"Year",ConversionFactors[Final unit],"second"))^2/(SUMIFS(CO2PhysicalProperties[Density (kg/m3)],CO2PhysicalProperties[Pressure (MPa)],Minimum_pipeline_pressure)*PI()^2*(FrictionLossesBySizeFlow[[#This Row],[Pipeline diameter (inches)]]*SUMIFS(ConversionFactors[Conversion value],ConversionFactors[Initial unit],"Inch",ConversionFactors[Final unit],"metre"))^5)/10^6) -> 1.580350292e-05
I35: 30 | J35: =IF(FrictionLossesBySizeFlow[[#This Row],[ID]]>Total_flow_rates*Total_pipeline_sizes,"",OFFSET(FlowRates[[#Headers],[Flow rate (Mt CO2/y)]],QUOTIENT(FrictionLossesBySizeFlow[[#This Row],[ID]]-1,Total_pipeline_sizes)+1,0)) -> 5 | K35: =IF(FrictionLossesBySizeFlow[[#This Row],[ID]]>Total_flow_rates*Total_pipeline_sizes,"",OFFSET(PipelineSizes[[#Headers],[Pipeline diameter (inches)]],MOD(FrictionLossesBySizeFlow[[#This Row],[ID]]-1,Total_pipeline_sizes)+1,0)) -> 22 | L35: =IF(FrictionLossesBySizeFlow[[#This Row],[ID]]>Total_flow_rates*Total_pipeline_sizes,"",4*FrictionLossesBySizeFlow[[#This Row],[Flow rate (Mt CO2/y)]]/Pipe_utilisation_factor*SUMIFS(ConversionFactors[Conversion value],ConversionFactors[Initial unit],"Mt",ConversionFactors[Final unit],"kg")/SUMIFS(ConversionFactors[Conversion value],ConversionFactors[Initial unit],"Year",ConversionFactors[Final unit],"second")/(PI()*SUMIFS(CO2PhysicalProperties[Viscosity (Pas)],CO2PhysicalProperties[Pressure (MPa)],Minimum_pipeline_pressure)*FrictionLossesBySizeFlow[[#This Row],[Pipeline diameter (inches)]]*SUMIFS(ConversionFactors[Conversion value],ConversionFactors[Initial unit],"Inch",ConversionFactors[Final unit],"metre"))) -> 6519985.11 | M35: =IF(FrictionLossesBySizeFlow[[#This Row],[ID]]>Total_flow_rates*Total_pipeline_sizes,"",1.325/(LN(Pipeline_roughness/(3.7*FrictionLossesBySizeFlow[[#This Row],[Pipeline diameter (inches)]]*SUMIFS(ConversionFactors[Conversion value],ConversionFactors[Initial unit],"Inch",ConversionFactors[Final unit],"metre"))+(5.74/FrictionLossesBySizeFlow[[#This Row],[Reynold''s Number]]^0.9)))^2) -> 0.01191215871 | N35: =IF(FrictionLossesBySizeFlow[[#This Row],[ID]]>Total_flow_rates*Total_pipeline_sizes,"",8*FrictionLossesBySizeFlow[[#This Row],[Friction factor]]*(FrictionLossesBySizeFlow[[#This Row],[Flow rate (Mt CO2/y)]]/Pipe_utilisation_factor*SUMIFS(ConversionFactors[Conversion value],ConversionFactors[Initial unit],"Mt",ConversionFactors[Final unit],"kg")/SUMIFS(ConversionFactors[Conversion value],ConversionFactors[Initial unit],"Year",ConversionFactors[Final unit],"second"))^2/(SUMIFS(CO2PhysicalProperties[Density (kg/m3)],CO2PhysicalProperties[Pressure (MPa)],Minimum_pipeline_pressure)*PI()^2*(FrictionLossesBySizeFlow[[#This Row],[Pipeline diameter (inches)]]*SUMIFS(ConversionFactors[Conversion value],ConversionFactors[Initial unit],"Inch",ConversionFactors[Final unit],"metre"))^5)/10^6) -> 9.686038159e-06
I36: 31 | J36: =IF(FrictionLossesBySizeFlow[[#This Row],[ID]]>Total_flow_rates*Total_pipeline_sizes,"",OFFSET(FlowRates[[#Headers],[Flow rate (Mt CO2/y)]],QUOTIENT(FrictionLossesBySizeFlow[[#This Row],[ID]]-1,Total_pipeline_sizes)+1,0)) -> 5 | K36: =IF(FrictionLossesBySizeFlow[[#This Row],[ID]]>Total_flow_rates*Total_pipeline_sizes,"",OFFSET(PipelineSizes[[#Headers],[Pipeline diameter (inches)]],MOD(FrictionLossesBySizeFlow[[#This Row],[ID]]-1,Total_pipeline_sizes)+1,0)) -> 24 | L36: =IF(FrictionLossesBySizeFlow[[#This Row],[ID]]>Total_flow_rates*Total_pipeline_sizes,"",4*FrictionLossesBySizeFlow[[#This Row],[Flow rate (Mt CO2/y)]]/Pipe_utilisation_factor*SUMIFS(ConversionFactors[Conversion value],ConversionFactors[Initial unit],"Mt",ConversionFactors[Final unit],"kg")/SUMIFS(ConversionFactors[Conversion value],ConversionFactors[Initial unit],"Year",ConversionFactors[Final unit],"second")/(PI()*SUMIFS(CO2PhysicalProperties[Viscosity (Pas)],CO2PhysicalProperties[Pressure (MPa)],Minimum_pipeline_pressure)*FrictionLossesBySizeFlow[[#This Row],[Pipeline diameter (inches)]]*SUMIFS(ConversionFactors[Conversion value],ConversionFactors[Initial unit],"Inch",ConversionFactors[Final unit],"metre"))) -> 5976653.018 | M36: =IF(FrictionLossesBySizeFlow[[#This Row],[ID]]>Total_flow_rates*Total_pipeline_sizes,"",1.325/(LN(Pipeline_roughness/(3.7*FrictionLossesBySizeFlow[[#This Row],[Pipeline diameter (inches)]]*SUMIFS(ConversionFactors[Conversion value],ConversionFactors[Initial unit],"Inch",ConversionFactors[Final unit],"metre"))+(5.74/FrictionLossesBySizeFlow[[#This Row],[Reynold''s Number]]^0.9)))^2) -> 0.01178108997 | N36: =IF(FrictionLossesBySizeFlow[[#This Row],[ID]]>Total_flow_rates*Total_pipeline_sizes,"",8*FrictionLossesBySizeFlow[[#This Row],[Friction factor]]*(FrictionLossesBySizeFlow[[#This Row],[Flow rate (Mt CO2/y)]]/Pipe_utilisation_factor*SUMIFS(ConversionFactors[Conversion value],ConversionFactors[Initial unit],"Mt",ConversionFactors[Final unit],"kg")/SUMIFS(ConversionFactors[Conversion value],ConversionFactors[Initial unit],"Year",ConversionFactors[Final unit],"second"))^2/(SUMIFS(CO2PhysicalProperties[Density (kg/m3)],CO2PhysicalProperties[Pressure (MPa)],Minimum_pipeline_pressure)*PI()^2*(FrictionLossesBySizeFlow[[#This Row],[Pipeline diameter (inches)]]*SUMIFS(ConversionFactors[Conversion value],ConversionFactors[Initial unit],"Inch",ConversionFactors[Final unit],"metre"))^5)/10^6) -> 6.200095407e-06
I37: 32 | J37: =IF(FrictionLossesBySizeFlow[[#This Row],[ID]]>Total_flow_rates*Total_pipeline_sizes,"",OFFSET(FlowRates[[#Headers],[Flow rate (Mt CO2/y)]],QUOTIENT(FrictionLossesBySizeFlow[[#This Row],[ID]]-1,Total_pipeline_sizes)+1,0)) -> 5 | K37: =IF(FrictionLossesBySizeFlow[[#This Row],[ID]]>Total_flow_rates*Total_pipeline_sizes,"",OFFSET(PipelineSizes[[#Headers],[Pipeline diameter (inches)]],MOD(FrictionLossesBySizeFlow[[#This Row],[ID]]-1,Total_pipeline_sizes)+1,0)) -> 26 | L37: =IF(FrictionLossesBySizeFlow[[#This Row],[ID]]>Total_flow_rates*Total_pipeline_sizes,"",4*FrictionLossesBySizeFlow[[#This Row],[Flow rate (Mt CO2/y)]]/Pipe_utilisation_factor*SUMIFS(ConversionFactors[Conversion value],ConversionFactors[Initial unit],"Mt",ConversionFactors[Final unit],"kg")/SUMIFS(ConversionFactors[Conversion value],ConversionFactors[Initial unit],"Year",ConversionFactors[Final unit],"second")/(PI()*SUMIFS(CO2PhysicalProperties[Viscosity (Pas)],CO2PhysicalProperties[Pressure (MPa)],Minimum_pipeline_pressure)*FrictionLossesBySizeFlow[[#This Row],[Pipeline diameter (inches)]]*SUMIFS(ConversionFactors[Conversion value],ConversionFactors[Initial unit],"Inch",ConversionFactors[Final unit],"metre"))) -> 5516910.478 | M37: =IF(FrictionLossesBySizeFlow[[#This Row],[ID]]>Total_flow_rates*Total_pipeline_sizes,"",1.325/(LN(Pipeline_roughness/(3.7*FrictionLossesBySizeFlow[[#This Row],[Pipeline diameter (inches)]]*SUMIFS(ConversionFactors[Conversion value],ConversionFactors[Initial unit],"Inch",ConversionFactors[Final unit],"metre"))+(5.74/FrictionLossesBySizeFlow[[#This Row],[Reynold''s Number]]^0.9)))^2) -> 0.01167034731 | N37: =IF(FrictionLossesBySizeFlow[[#This Row],[ID]]>Total_flow_rates*Total_pipeline_sizes,"",8*FrictionLossesBySizeFlow[[#This Row],[Friction factor]]*(FrictionLossesBySizeFlow[[#This Row],[Flow rate (Mt CO2/y)]]/Pipe_utilisation_factor*SUMIFS(ConversionFactors[Conversion value],ConversionFactors[Initial unit],"Mt",ConversionFactors[Final unit],"kg")/SUMIFS(ConversionFactors[Conversion value],ConversionFactors[Initial unit],"Year",ConversionFactors[Final unit],"second"))^2/(SUMIFS(CO2PhysicalProperties[Density (kg/m3)],CO2PhysicalProperties[Pressure (MPa)],Minimum_pipeline_pressure)*PI()^2*(FrictionLossesBySizeFlow[[#This Row],[Pipeline diameter (inches)]]*SUMIFS(ConversionFactors[Conversion value],ConversionFactors[Initial unit],"Inch",ConversionFactors[Final unit],"metre"))^5)/10^6) -> 4.116102201e-06
I38: 33 | J38: =IF(FrictionLossesBySizeFlow[[#This Row],[ID]]>Total_flow_rates*Total_pipeline_sizes,"",OFFSET(FlowRates[[#Headers],[Flow rate (Mt CO2/y)]],QUOTIENT(FrictionLossesBySizeFlow[[#This Row],[ID]]-1,Total_pipeline_sizes)+1,0)) -> 5 | K38: =IF(FrictionLossesBySizeFlow[[#This Row],[ID]]>Total_flow_rates*Total_pipeline_sizes,"",OFFSET(PipelineSizes[[#Headers],[Pipeline diameter (inches)]],MOD(FrictionLossesBySizeFlow[[#This Row],[ID]]-1,Total_pipeline_sizes)+1,0)) -> 28 | L38: =IF(FrictionLossesBySizeFlow[[#This Row],[ID]]>Total_flow_rates*Total_pipeline_sizes,"",4*FrictionLossesBySizeFlow[[#This Row],[Flow rate (Mt CO2/y)]]/Pipe_utilisation_factor*SUMIFS(ConversionFactors[Conversion value],ConversionFactors[Initial unit],"Mt",ConversionFactors[Final unit],"kg")/SUMIFS(ConversionFactors[Conversion value],ConversionFactors[Initial unit],"Year",ConversionFactors[Final unit],"second")/(PI()*SUMIFS(CO2PhysicalProperties[Viscosity (Pas)],CO2PhysicalProperties[Pressure (MPa)],Minimum_pipeline_pressure)*FrictionLossesBySizeFlow[[#This Row],[Pipeline diameter (inches)]]*SUMIFS(ConversionFactors[Conversion value],ConversionFactors[Initial unit],"Inch",ConversionFactors[Final unit],"metre"))) -> 5122845.444 | M38: =IF(FrictionLossesBySizeFlow[[#This Row],[ID]]>Total_flow_rates*Total_pipeline_sizes,"",1.325/(LN(Pipeline_roughness/(3.7*FrictionLossesBySizeFlow[[#This Row],[Pipeline diameter (inches)]]*SUMIFS(ConversionFactors[Conversion value],ConversionFactors[Initial unit],"Inch",ConversionFactors[Final unit],"metre"))+(5.74/FrictionLossesBySizeFlow[[#This Row],[Reynold''s Number]]^0.9)))^2) -> 0.01157654452 | N38: =IF(FrictionLossesBySizeFlow[[#This Row],[ID]]>Total_flow_rates*Total_pipeline_sizes,"",8*FrictionLossesBySizeFlow[[#This Row],[Friction factor]]*(FrictionLossesBySizeFlow[[#This Row],[Flow rate (Mt CO2/y)]]/Pipe_utilisation_factor*SUMIFS(ConversionFactors[Conversion value],ConversionFactors[Initial unit],"Mt",ConversionFactors[Final unit],"kg")/SUMIFS(ConversionFactors[Conversion value],ConversionFactors[Initial unit],"Year",ConversionFactors[Final unit],"second"))^2/(SUMIFS(CO2PhysicalProperties[Density (kg/m3)],CO2PhysicalProperties[Pressure (MPa)],Minimum_pipeline_pressure)*PI()^2*(FrictionLossesBySizeFlow[[#This Row],[Pipeline diameter (inches)]]*SUMIFS(ConversionFactors[Conversion value],ConversionFactors[Initial unit],"Inch",ConversionFactors[Final unit],"metre"))^5)/10^6) -> 2.81875869e-06
I39: 34 | J39: =IF(FrictionLossesBySizeFlow[[#This Row],[ID]]>Total_flow_rates*Total_pipeline_sizes,"",OFFSET(FlowRates[[#Headers],[Flow rate (Mt CO2/y)]],QUOTIENT(FrictionLossesBySizeFlow[[#This Row],[ID]]-1,Total_pipeline_sizes)+1,0)) -> 5 | K39: =IF(FrictionLossesBySizeFlow[[#This Row],[ID]]>Total_flow_rates*Total_pipeline_sizes,"",OFFSET(PipelineSizes[[#Headers],[Pipeline diameter (inches)]],MOD(FrictionLossesBySizeFlow[[#This Row],[ID]]-1,Total_pipeline_sizes)+1,0)) -> 32 | L39: =IF(FrictionLossesBySizeFlow[[#This Row],[ID]]>Total_flow_rates*Total_pipeline_sizes,"",4*FrictionLossesBySizeFlow[[#This Row],[Flow rate (Mt CO2/y)]]/Pipe_utilisation_factor*SUMIFS(ConversionFactors[Conversion value],ConversionFactors[Initial unit],"Mt",ConversionFactors[Final unit],"kg")/SUMIFS(ConversionFactors[Conversion value],ConversionFactors[Initial unit],"Year",ConversionFactors[Final unit],"second")/(PI()*SUMIFS(CO2PhysicalProperties[Viscosity (Pas)],CO2PhysicalProperties[Pressure (MPa)],Minimum_pipeline_pressure)*FrictionLossesBySizeFlow[[#This Row],[Pipeline diameter (inches)]]*SUMIFS(ConversionFactors[Conversion value],ConversionFactors[Initial unit],"Inch",ConversionFactors[Final unit],"metre"))) -> 4482489.763 | M39: =IF(FrictionLossesBySizeFlow[[#This Row],[ID]]>Total_flow_rates*Total_pipeline_sizes,"",1.325/(LN(Pipeline_roughness/(3.7*FrictionLossesBySizeFlow[[#This Row],[Pipeline diameter (inches)]]*SUMIFS(ConversionFactors[Conversion value],ConversionFactors[Initial unit],"Inch",ConversionFactors[Final unit],"metre"))+(5.74/FrictionLossesBySizeFlow[[#This Row],[Reynold''s Number]]^0.9)))^2) -> 0.01142967289 | N39: =IF(FrictionLossesBySizeFlow[[#This Row],[ID]]>Total_flow_rates*Total_pipeline_sizes,"",8*FrictionLossesBySizeFlow[[#This Row],[Friction factor]]*(FrictionLossesBySizeFlow[[#This Row],[Flow rate (Mt CO2/y)]]/Pipe_utilisation_factor*SUMIFS(ConversionFactors[Conversion value],ConversionFactors[Initial unit],"Mt",ConversionFactors[Final unit],"kg")/SUMIFS(ConversionFactors[Conversion value],ConversionFactors[Initial unit],"Year",ConversionFactors[Final unit],"second"))^2/(SUMIFS(CO2PhysicalProperties[Density (kg/m3)],CO2PhysicalProperties[Pressure (MPa)],Minimum_pipeline_pressure)*PI()^2*(FrictionLossesBySizeFlow[[#This Row],[Pipeline diameter (inches)]]*SUMIFS(ConversionFactors[Conversion value],ConversionFactors[Initial unit],"Inch",ConversionFactors[Final unit],"metre"))^5)/10^6) -> 1.427424078e-06
I40: 35 | J40: =IF(FrictionLossesBySizeFlow[[#This Row],[ID]]>Total_flow_rates*Total_pipeline_sizes,"",OFFSET(FlowRates[[#Headers],[Flow rate (Mt CO2/y)]],QUOTIENT(FrictionLossesBySizeFlow[[#This Row],[ID]]-1,Total_pipeline_sizes)+1,0)) -> 5 | K40: =IF(FrictionLossesBySizeFlow[[#This Row],[ID]]>Total_flow_rates*Total_pipeline_sizes,"",OFFSET(PipelineSizes[[#Headers],[Pipeline diameter (inches)]],MOD(FrictionLossesBySizeFlow[[#This Row],[ID]]-1,Total_pipeline_sizes)+1,0)) -> 36 | L40: =IF(FrictionLossesBySizeFlow[[#This Row],[ID]]>Total_flow_rates*Total_pipeline_sizes,"",4*FrictionLossesBySizeFlow[[#This Row],[Flow rate (Mt CO2/y)]]/Pipe_utilisation_factor*SUMIFS(ConversionFactors[Conversion value],ConversionFactors[Initial unit],"Mt",ConversionFactors[Final unit],"kg")/SUMIFS(ConversionFactors[Conversion value],ConversionFactors[Initial unit],"Year",ConversionFactors[Final unit],"second")/(PI()*SUMIFS(CO2PhysicalProperties[Viscosity (Pas)],CO2PhysicalProperties[Pressure (MPa)],Minimum_pipeline_pressure)*FrictionLossesBySizeFlow[[#This Row],[Pipeline diameter (inches)]]*SUMIFS(ConversionFactors[Conversion value],ConversionFactors[Initial unit],"Inch",ConversionFactors[Final unit],"metre"))) -> 3984435.345 | M40: =IF(FrictionLossesBySizeFlow[[#This Row],[ID]]>Total_flow_rates*Total_pipeline_sizes,"",1.325/(LN(Pipeline_roughness/(3.7*FrictionLossesBySizeFlow[[#This Row],[Pipeline diameter (inches)]]*SUMIFS(ConversionFactors[Conversion value],ConversionFactors[Initial unit],"Inch",ConversionFactors[Final unit],"metre"))+(5.74/FrictionLossesBySizeFlow[[#This Row],[Reynold''s Number]]^0.9)))^2) -> 0.01132487529 | N40: =IF(FrictionLossesBySizeFlow[[#This Row],[ID]]>Total_flow_rates*Total_pipeline_sizes,"",8*FrictionLossesBySizeFlow[[#This Row],[Friction factor]]*(FrictionLossesBySizeFlow[[#This Row],[Flow rate (Mt CO2/y)]]/Pipe_utilisation_factor*SUMIFS(ConversionFactors[Conversion value],ConversionFactors[Initial unit],"Mt",ConversionFactors[Final unit],"kg")/SUMIFS(ConversionFactors[Conversion value],ConversionFactors[Initial unit],"Year",ConversionFactors[Final unit],"second"))^2/(SUMIFS(CO2PhysicalProperties[Density (kg/m3)],CO2PhysicalProperties[Pressure (MPa)],Minimum_pipeline_pressure)*PI()^2*(FrictionLossesBySizeFlow[[#This Row],[Pipeline diameter (inches)]]*SUMIFS(ConversionFactors[Conversion value],ConversionFactors[Initial unit],"Inch",ConversionFactors[Final unit],"metre"))^5)/10^6) -> 7.848560911e-07
I41: 36 | J41: =IF(FrictionLossesBySizeFlow[[#This Row],[ID]]>Total_flow_rates*Total_pipeline_sizes,"",OFFSET(FlowRates[[#Headers],[Flow rate (Mt CO2/y)]],QUOTIENT(FrictionLossesBySizeFlow[[#This Row],[ID]]-1,Total_pipeline_sizes)+1,0)) -> 5 | K41: =IF(FrictionLossesBySizeFlow[[#This Row],[ID]]>Total_flow_rates*Total_pipeline_sizes,"",OFFSET(PipelineSizes[[#Headers],[Pipeline diameter (inches)]],MOD(FrictionLossesBySizeFlow[[#This Row],[ID]]-1,Total_pipeline_sizes)+1,0)) -> 40 | L41: =IF(FrictionLossesBySizeFlow[[#This Row],[ID]]>Total_flow_rates*Total_pipeline_sizes,"",4*FrictionLossesBySizeFlow[[#This Row],[Flow rate (Mt CO2/y)]]/Pipe_utilisation_factor*SUMIFS(ConversionFactors[Conversion value],ConversionFactors[Initial unit],"Mt",ConversionFactors[Final unit],"kg")/SUMIFS(ConversionFactors[Conversion value],ConversionFactors[Initial unit],"Year",ConversionFactors[Final unit],"second")/(PI()*SUMIFS(CO2PhysicalProperties[Viscosity (Pas)],CO2PhysicalProperties[Pressure (MPa)],Minimum_pipeline_pressure)*FrictionLossesBySizeFlow[[#This Row],[Pipeline diameter (inches)]]*SUMIFS(ConversionFactors[Conversion value],ConversionFactors[Initial unit],"Inch",ConversionFactors[Final unit],"metre"))) -> 3585991.811 | M41: =IF(FrictionLossesBySizeFlow[[#This Row],[ID]]>Total_flow_rates*Total_pipeline_sizes,"",1.325/(LN(Pipeline_roughness/(3.7*FrictionLossesBySizeFlow[[#This Row],[Pipeline diameter (inches)]]*SUMIFS(ConversionFactors[Conversion value],ConversionFactors[Initial unit],"Inch",ConversionFactors[Final unit],"metre"))+(5.74/FrictionLossesBySizeFlow[[#This Row],[Reynold''s Number]]^0.9)))^2) -> 0.01125165024 | N41: =IF(FrictionLossesBySizeFlow[[#This Row],[ID]]>Total_flow_rates*Total_pipeline_sizes,"",8*FrictionLossesBySizeFlow[[#This Row],[Friction factor]]*(FrictionLossesBySizeFlow[[#This Row],[Flow rate (Mt CO2/y)]]/Pipe_utilisation_factor*SUMIFS(ConversionFactors[Conversion value],ConversionFactors[Initial unit],"Mt",ConversionFactors[Final unit],"kg")/SUMIFS(ConversionFactors[Conversion value],ConversionFactors[Initial unit],"Year",ConversionFactors[Final unit],"second"))^2/(SUMIFS(CO2PhysicalProperties[Density (kg/m3)],CO2PhysicalProperties[Pressure (MPa)],Minimum_pipeline_pressure)*PI()^2*(FrictionLossesBySizeFlow[[#This Row],[Pipeline diameter (inches)]]*SUMIFS(ConversionFactors[Conversion value],ConversionFactors[Initial unit],"Inch",ConversionFactors[Final unit],"metre"))^5)/10^6) -> 4.604530728e-07
I42: 37 | J42: =IF(FrictionLossesBySizeFlow[[#This Row],[ID]]>Total_flow_rates*Total_pipeline_sizes,"",OFFSET(FlowRates[[#Headers],[Flow rate (Mt CO2/y)]],QUOTIENT(FrictionLossesBySizeFlow[[#This Row],[ID]]-1,Total_pipeline_sizes)+1,0)) -> 5 | K42: =IF(FrictionLossesBySizeFlow[[#This Row],[ID]]>Total_flow_rates*Total_pipeline_sizes,"",OFFSET(PipelineSizes[[#Headers],[Pipeline diameter (inches)]],MOD(FrictionLossesBySizeFlow[[#This Row],[ID]]-1,Total_pipeline_sizes)+1,0)) -> 44 | L42: =IF(FrictionLossesBySizeFlow[[#This Row],[ID]]>Total_flow_rates*Total_pipeline_sizes,"",4*FrictionLossesBySizeFlow[[#This Row],[Flow rate (Mt CO2/y)]]/Pipe_utilisation_factor*SUMIFS(ConversionFactors[Conversion value],ConversionFactors[Initial unit],"Mt",ConversionFactors[Final unit],"kg")/SUMIFS(ConversionFactors[Conversion value],ConversionFactors[Initial unit],"Year",ConversionFactors[Final unit],"second")/(PI()*SUMIFS(CO2PhysicalProperties[Viscosity (Pas)],CO2PhysicalProperties[Pressure (MPa)],Minimum_pipeline_pressure)*FrictionLossesBySizeFlow[[#This Row],[Pipeline diameter (inches)]]*SUMIFS(ConversionFactors[Conversion value],ConversionFactors[Initial unit],"Inch",ConversionFactors[Final unit],"metre"))) -> 3259992.555 | M42: =IF(FrictionLossesBySizeFlow[[#This Row],[ID]]>Total_flow_rates*Total_pipeline_sizes,"",1.325/(LN(Pipeline_roughness/(3.7*FrictionLossesBySizeFlow[[#This Row],[Pipeline diameter (inches)]]*SUMIFS(ConversionFactors[Conversion value],ConversionFactors[Initial unit],"Inch",ConversionFactors[Final unit],"metre"))+(5.74/FrictionLossesBySizeFlow[[#This Row],[Reynold''s Number]]^0.9)))^2) -> 0.01120260205 | N42: =IF(FrictionLossesBySizeFlow[[#This Row],[ID]]>Total_flow_rates*Total_pipeline_sizes,"",8*FrictionLossesBySizeFlow[[#This Row],[Friction factor]]*(FrictionLossesBySizeFlow[[#This Row],[Flow rate (Mt CO2/y)]]/Pipe_utilisation_factor*SUMIFS(ConversionFactors[Conversion value],ConversionFactors[Initial unit],"Mt",ConversionFactors[Final unit],"kg")/SUMIFS(ConversionFactors[Conversion value],ConversionFactors[Initial unit],"Year",ConversionFactors[Final unit],"second"))^2/(SUMIFS(CO2PhysicalProperties[Density (kg/m3)],CO2PhysicalProperties[Pressure (MPa)],Minimum_pipeline_pressure)*PI()^2*(FrictionLossesBySizeFlow[[#This Row],[Pipeline diameter (inches)]]*SUMIFS(ConversionFactors[Conversion value],ConversionFactors[Initial unit],"Inch",ConversionFactors[Final unit],"metre"))^5)/10^6) -> 2.846588135e-07
I43: 38 | J43: =IF(FrictionLossesBySizeFlow[[#This Row],[ID]]>Total_flow_rates*Total_pipeline_sizes,"",OFFSET(FlowRates[[#Headers],[Flow rate (Mt CO2/y)]],QUOTIENT(FrictionLossesBySizeFlow[[#This Row],[ID]]-1,Total_pipeline_sizes)+1,0)) -> 5 | K43: =IF(FrictionLossesBySizeFlow[[#This Row],[ID]]>Total_flow_rates*Total_pipeline_sizes,"",OFFSET(PipelineSizes[[#Headers],[Pipeline diameter (inches)]],MOD(FrictionLossesBySizeFlow[[#This Row],[ID]]-1,Total_pipeline_sizes)+1,0)) -> 48 | L43: =IF(FrictionLossesBySizeFlow[[#This Row],[ID]]>Total_flow_rates*Total_pipeline_sizes,"",4*FrictionLossesBySizeFlow[[#This Row],[Flow rate (Mt CO2/y)]]/Pipe_utilisation_factor*SUMIFS(ConversionFactors[Conversion value],ConversionFactors[Initial unit],"Mt",ConversionFactors[Final unit],"kg")/SUMIFS(ConversionFactors[Conversion value],ConversionFactors[Initial unit],"Year",ConversionFactors[Final unit],"second")/(PI()*SUMIFS(CO2PhysicalProperties[Viscosity (Pas)],CO2PhysicalProperties[Pressure (MPa)],Minimum_pipeline_pressure)*FrictionLossesBySizeFlow[[#This Row],[Pipeline diameter (inches)]]*SUMIFS(ConversionFactors[Conversion value],ConversionFactors[Initial unit],"Inch",ConversionFactors[Final unit],"metre"))) -> 2988326.509 | M43: =IF(FrictionLossesBySizeFlow[[#This Row],[ID]]>Total_flow_rates*Total_pipeline_sizes,"",1.325/(LN(Pipeline_roughness/(3.7*FrictionLossesBySizeFlow[[#This Row],[Pipeline diameter (inches)]]*SUMIFS(ConversionFactors[Conversion value],ConversionFactors[Initial unit],"Inch",ConversionFactors[Final unit],"metre"))+(5.74/FrictionLossesBySizeFlow[[#This Row],[Reynold''s Number]]^0.9)))^2) -> 0.01117234548 | N43: =IF(FrictionLossesBySizeFlow[[#This Row],[ID]]>Total_flow_rates*Total_pipeline_sizes,"",8*FrictionLossesBySizeFlow[[#This Row],[Friction factor]]*(FrictionLossesBySizeFlow[[#This Row],[Flow rate (Mt CO2/y)]]/Pipe_utilisation_factor*SUMIFS(ConversionFactors[Conversion value],ConversionFactors[Initial unit],"Mt",ConversionFactors[Final unit],"kg")/SUMIFS(ConversionFactors[Conversion value],ConversionFactors[Initial unit],"Year",ConversionFactors[Final unit],"second"))^2/(SUMIFS(CO2PhysicalProperties[Density (kg/m3)],CO2PhysicalProperties[Pressure (MPa)],Minimum_pipeline_pressure)*PI()^2*(FrictionLossesBySizeFlow[[#This Row],[Pipeline diameter (inches)]]*SUMIFS(ConversionFactors[Conversion value],ConversionFactors[Initial unit],"Inch",ConversionFactors[Final unit],"metre"))^5)/10^6) -> 1.837415089e-07
I44: 39 | J44: =IF(FrictionLossesBySizeFlow[[#This Row],[ID]]>Total_flow_rates*Total_pipeline_sizes,"",OFFSET(FlowRates[[#Headers],[Flow rate (Mt CO2/y)]],QUOTIENT(FrictionLossesBySizeFlow[[#This Row],[ID]]-1,Total_pipeline_sizes)+1,0)) -> 5 | K44: =IF(FrictionLossesBySizeFlow[[#This Row],[ID]]>Total_flow_rates*Total_pipeline_sizes,"",OFFSET(PipelineSizes[[#Headers],[Pipeline diameter (inches)]],MOD(FrictionLossesBySizeFlow[[#This Row],[ID]]-1,Total_pipeline_sizes)+1,0)) -> 52 | L44: =IF(FrictionLossesBySizeFlow[[#This Row],[ID]]>Total_flow_rates*Total_pipeline_sizes,"",4*FrictionLossesBySizeFlow[[#This Row],[Flow rate (Mt CO2/y)]]/Pipe_utilisation_factor*SUMIFS(ConversionFactors[Conversion value],ConversionFactors[Initial unit],"Mt",ConversionFactors[Final unit],"kg")/SUMIFS(ConversionFactors[Conversion value],ConversionFactors[Initial unit],"Year",ConversionFactors[Final unit],"second")/(PI()*SUMIFS(CO2PhysicalProperties[Viscosity (Pas)],CO2PhysicalProperties[Pressure (MPa)],Minimum_pipeline_pressure)*FrictionLossesBySizeFlow[[#This Row],[Pipeline diameter (inches)]]*SUMIFS(ConversionFactors[Conversion value],ConversionFactors[Initial unit],"Inch",ConversionFactors[Final unit],"metre"))) -> 2758455.239 | M44: =IF(FrictionLossesBySizeFlow[[#This Row],[ID]]>Total_flow_rates*Total_pipeline_sizes,"",1.325/(LN(Pipeline_roughness/(3.7*FrictionLossesBySizeFlow[[#This Row],[Pipeline diameter (inches)]]*SUMIFS(ConversionFactors[Conversion value],ConversionFactors[Initial unit],"Inch",ConversionFactors[Final unit],"metre"))+(5.74/FrictionLossesBySizeFlow[[#This Row],[Reynold''s Number]]^0.9)))^2) -> 0.01115685922 | N44: =IF(FrictionLossesBySizeFlow[[#This Row],[ID]]>Total_flow_rates*Total_pipeline_sizes,"",8*FrictionLossesBySizeFlow[[#This Row],[Friction factor]]*(FrictionLossesBySizeFlow[[#This Row],[Flow rate (Mt CO2/y)]]/Pipe_utilisation_factor*SUMIFS(ConversionFactors[Conversion value],ConversionFactors[Initial unit],"Mt",ConversionFactors[Final unit],"kg")/SUMIFS(ConversionFactors[Conversion value],ConversionFactors[Initial unit],"Year",ConversionFactors[Final unit],"second"))^2/(SUMIFS(CO2PhysicalProperties[Density (kg/m3)],CO2PhysicalProperties[Pressure (MPa)],Minimum_pipeline_pressure)*PI()^2*(FrictionLossesBySizeFlow[[#This Row],[Pipeline diameter (inches)]]*SUMIFS(ConversionFactors[Conversion value],ConversionFactors[Initial unit],"Inch",ConversionFactors[Final unit],"metre"))^5)/10^6) -> 1.229686325e-07
I45: 40 | J45: =IF(FrictionLossesBySizeFlow[[#This Row],[ID]]>Total_flow_rates*Total_pipeline_sizes,"",OFFSET(FlowRates[[#Headers],[Flow rate (Mt CO2/y)]],QUOTIENT(FrictionLossesBySizeFlow[[#This Row],[ID]]-1,Total_pipeline_sizes)+1,0)) -> 5 | K45: =IF(FrictionLossesBySizeFlow[[#This Row],[ID]]>Total_flow_rates*Total_pipeline_sizes,"",OFFSET(PipelineSizes[[#Headers],[Pipeline diameter (inches)]],MOD(FrictionLossesBySizeFlow[[#This Row],[ID]]-1,Total_pipeline_sizes)+1,0)) -> 56 | L45: =IF(FrictionLossesBySizeFlow[[#This Row],[ID]]>Total_flow_rates*Total_pipeline_sizes,"",4*FrictionLossesBySizeFlow[[#This Row],[Flow rate (Mt CO2/y)]]/Pipe_utilisation_factor*SUMIFS(ConversionFactors[Conversion value],ConversionFactors[Initial unit],"Mt",ConversionFactors[Final unit],"kg")/SUMIFS(ConversionFactors[Conversion value],ConversionFactors[Initial unit],"Year",ConversionFactors[Final unit],"second")/(PI()*SUMIFS(CO2PhysicalProperties[Viscosity (Pas)],CO2PhysicalProperties[Pressure (MPa)],Minimum_pipeline_pressure)*FrictionLossesBySizeFlow[[#This Row],[Pipeline diameter (inches)]]*SUMIFS(ConversionFactors[Conversion value],ConversionFactors[Initial unit],"Inch",ConversionFactors[Final unit],"metre"))) -> 2561422.722 | M45: =IF(FrictionLossesBySizeFlow[[#This Row],[ID]]>Total_flow_rates*Total_pipeline_sizes,"",1.325/(LN(Pipeline_roughness/(3.7*FrictionLossesBySizeFlow[[#This Row],[Pipeline diameter (inches)]]*SUMIFS(ConversionFactors[Conversion value],ConversionFactors[Initial unit],"Inch",ConversionFactors[Final unit],"metre"))+(5.74/FrictionLossesBySizeFlow[[#This Row],[Reynold''s Number]]^0.9)))^2) -> 0.01115308153 | N45: =IF(FrictionLossesBySizeFlow[[#This Row],[ID]]>Total_flow_rates*Total_pipeline_sizes,"",8*FrictionLossesBySizeFlow[[#This Row],[Friction factor]]*(FrictionLossesBySizeFlow[[#This Row],[Flow rate (Mt CO2/y)]]/Pipe_utilisation_factor*SUMIFS(ConversionFactors[Conversion value],ConversionFactors[Initial unit],"Mt",ConversionFactors[Final unit],"kg")/SUMIFS(ConversionFactors[Conversion value],ConversionFactors[Initial unit],"Year",ConversionFactors[Final unit],"second"))^2/(SUMIFS(CO2PhysicalProperties[Density (kg/m3)],CO2PhysicalProperties[Pressure (MPa)],Minimum_pipeline_pressure)*PI()^2*(FrictionLossesBySizeFlow[[#This Row],[Pipeline diameter (inches)]]*SUMIFS(ConversionFactors[Conversion value],ConversionFactors[Initial unit],"Inch",ConversionFactors[Final unit],"metre"))^5)/10^6) -> 8.486406889e-08
I46: 41 | J46: =IF(FrictionLossesBySizeFlow[[#This Row],[ID]]>Total_flow_rates*Total_pipeline_sizes,"",OFFSET(FlowRates[[#Headers],[Flow rate (Mt CO2/y)]],QUOTIENT(FrictionLossesBySizeFlow[[#This Row],[ID]]-1,Total_pipeline_sizes)+1,0)) -> 10 | K46: =IF(FrictionLossesBySizeFlow[[#This Row],[ID]]>Total_flow_rates*Total_pipeline_sizes,"",OFFSET(PipelineSizes[[#Headers],[Pipeline diameter (inches)]],MOD(FrictionLossesBySizeFlow[[#This Row],[ID]]-1,Total_pipeline_sizes)+1,0)) -> 4.5 | L46: =IF(FrictionLossesBySizeFlow[[#This Row],[ID]]>Total_flow_rates*Total_pipeline_sizes,"",4*FrictionLossesBySizeFlow[[#This Row],[Flow rate (Mt CO2/y)]]/Pipe_utilisation_factor*SUMIFS(ConversionFactors[Conversion value],ConversionFactors[Initial unit],"Mt",ConversionFactors[Final unit],"kg")/SUMIFS(ConversionFactors[Conversion value],ConversionFactors[Initial unit],"Year",ConversionFactors[Final unit],"second")/(PI()*SUMIFS(CO2PhysicalProperties[Viscosity (Pas)],CO2PhysicalProperties[Pressure (MPa)],Minimum_pipeline_pressure)*FrictionLossesBySizeFlow[[#This Row],[Pipeline diameter (inches)]]*SUMIFS(ConversionFactors[Conversion value],ConversionFactors[Initial unit],"Inch",ConversionFactors[Final unit],"metre"))) -> 63750965.52 | M46: =IF(FrictionLossesBySizeFlow[[#This Row],[ID]]>Total_flow_rates*Total_pipeline_sizes,"",1.325/(LN(Pipeline_roughness/(3.7*FrictionLossesBySizeFlow[[#This Row],[Pipeline diameter (inches)]]*SUMIFS(ConversionFactors[Conversion value],ConversionFactors[Initial unit],"Inch",ConversionFactors[Final unit],"metre"))+(5.74/FrictionLossesBySizeFlow[[#This Row],[Reynold''s Number]]^0.9)))^2) -> 0.01589556475 | N46: =IF(FrictionLossesBySizeFlow[[#This Row],[ID]]>Total_flow_rates*Total_pipeline_sizes,"",8*FrictionLossesBySizeFlow[[#This Row],[Friction factor]]*(FrictionLossesBySizeFlow[[#This Row],[Flow rate (Mt CO2/y)]]/Pipe_utilisation_factor*SUMIFS(ConversionFactors[Conversion value],ConversionFactors[Initial unit],"Mt",ConversionFactors[Final unit],"kg")/SUMIFS(ConversionFactors[Conversion value],ConversionFactors[Initial unit],"Year",ConversionFactors[Final unit],"second"))^2/(SUMIFS(CO2PhysicalProperties[Density (kg/m3)],CO2PhysicalProperties[Pressure (MPa)],Minimum_pipeline_pressure)*PI()^2*(FrictionLossesBySizeFlow[[#This Row],[Pipeline diameter (inches)]]*SUMIFS(ConversionFactors[Conversion value],ConversionFactors[Initial unit],"Inch",ConversionFactors[Final unit],"metre"))^5)/10^6) -> 0.1443917877
I47: 42 | J47: =IF(FrictionLossesBySizeFlow[[#This Row],[ID]]>Total_flow_rates*Total_pipeline_sizes,"",OFFSET(FlowRates[[#Headers],[Flow rate (Mt CO2/y)]],QUOTIENT(FrictionLossesBySizeFlow[[#This Row],[ID]]-1,Total_pipeline_sizes)+1,0)) -> 10 | K47: =IF(FrictionLossesBySizeFlow[[#This Row],[ID]]>Total_flow_rates*Total_pipeline_sizes,"",OFFSET(PipelineSizes[[#Headers],[Pipeline diameter (inches)]],MOD(FrictionLossesBySizeFlow[[#This Row],[ID]]-1,Total_pipeline_sizes)+1,0)) -> 6 | L47: =IF(FrictionLossesBySizeFlow[[#This Row],[ID]]>Total_flow_rates*Total_pipeline_sizes,"",4*FrictionLossesBySizeFlow[[#This Row],[Flow rate (Mt CO2/y)]]/Pipe_utilisation_factor*SUMIFS(ConversionFactors[Conversion value],ConversionFactors[Initial unit],"Mt",ConversionFactors[Final unit],"kg")/SUMIFS(ConversionFactors[Conversion value],ConversionFactors[Initial unit],"Year",ConversionFactors[Final unit],"second")/(PI()*SUMIFS(CO2PhysicalProperties[Viscosity (Pas)],CO2PhysicalProperties[Pressure (MPa)],Minimum_pipeline_pressure)*FrictionLossesBySizeFlow[[#This Row],[Pipeline diameter (inches)]]*SUMIFS(ConversionFactors[Conversion value],ConversionFactors[Initial unit],"Inch",ConversionFactors[Final unit],"metre"))) -> 47813224.14 | M47: =IF(FrictionLossesBySizeFlow[[#This Row],[ID]]>Total_flow_rates*Total_pipeline_sizes,"",1.325/(LN(Pipeline_roughness/(3.7*FrictionLossesBySizeFlow[[#This Row],[Pipeline diameter (inches)]]*SUMIFS(ConversionFactors[Conversion value],ConversionFactors[Initial unit],"Inch",ConversionFactors[Final unit],"metre"))+(5.74/FrictionLossesBySizeFlow[[#This Row],[Reynold''s Number]]^0.9)))^2) -> 0.01495082197 | N47: =IF(FrictionLossesBySizeFlow[[#This Row],[ID]]>Total_flow_rates*Total_pipeline_sizes,"",8*FrictionLossesBySizeFlow[[#This Row],[Friction factor]]*(FrictionLossesBySizeFlow[[#This Row],[Flow rate (Mt CO2/y)]]/Pipe_utilisation_factor*SUMIFS(ConversionFactors[Conversion value],ConversionFactors[Initial unit],"Mt",ConversionFactors[Final unit],"kg")/SUMIFS(ConversionFactors[Conversion value],ConversionFactors[Initial unit],"Year",ConversionFactors[Final unit],"second"))^2/(SUMIFS(CO2PhysicalProperties[Density (kg/m3)],CO2PhysicalProperties[Pressure (MPa)],Minimum_pipeline_pressure)*PI()^2*(FrictionLossesBySizeFlow[[#This Row],[Pipeline diameter (inches)]]*SUMIFS(ConversionFactors[Conversion value],ConversionFactors[Initial unit],"Inch",ConversionFactors[Final unit],"metre"))^5)/10^6) -> 0.03222833863
I48: 43 | J48: =IF(FrictionLossesBySizeFlow[[#This Row],[ID]]>Total_flow_rates*Total_pipeline_sizes,"",OFFSET(FlowRates[[#Headers],[Flow rate (Mt CO2/y)]],QUOTIENT(FrictionLossesBySizeFlow[[#This Row],[ID]]-1,Total_pipeline_sizes)+1,0)) -> 10 | K48: =IF(FrictionLossesBySizeFlow[[#This Row],[ID]]>Total_flow_rates*Total_pipeline_sizes,"",OFFSET(PipelineSizes[[#Headers],[Pipeline diameter (inches)]],MOD(FrictionLossesBySizeFlow[[#This Row],[ID]]-1,Total_pipeline_sizes)+1,0)) -> 8 | L48: =IF(FrictionLossesBySizeFlow[[#This Row],[ID]]>Total_flow_rates*Total_pipeline_sizes,"",4*FrictionLossesBySizeFlow[[#This Row],[Flow rate (Mt CO2/y)]]/Pipe_utilisation_factor*SUMIFS(ConversionFactors[Conversion value],ConversionFactors[Initial unit],"Mt",ConversionFactors[Final unit],"kg")/SUMIFS(ConversionFactors[Conversion value],ConversionFactors[Initial unit],"Year",ConversionFactors[Final unit],"second")/(PI()*SUMIFS(CO2PhysicalProperties[Viscosity (Pas)],CO2PhysicalProperties[Pressure (MPa)],Minimum_pipeline_pressure)*FrictionLossesBySizeFlow[[#This Row],[Pipeline diameter (inches)]]*SUMIFS(ConversionFactors[Conversion value],ConversionFactors[Initial unit],"Inch",ConversionFactors[Final unit],"metre"))) -> 35859918.11 | M48: =IF(FrictionLossesBySizeFlow[[#This Row],[ID]]>Total_flow_rates*Total_pipeline_sizes,"",1.325/(LN(Pipeline_roughness/(3.7*FrictionLossesBySizeFlow[[#This Row],[Pipeline diameter (inches)]]*SUMIFS(ConversionFactors[Conversion value],ConversionFactors[Initial unit],"Inch",ConversionFactors[Final unit],"metre"))+(5.74/FrictionLossesBySizeFlow[[#This Row],[Reynold''s Number]]^0.9)))^2) -> 0.01409547019 | N48: =IF(FrictionLossesBySizeFlow[[#This Row],[ID]]>Total_flow_rates*Total_pipeline_sizes,"",8*FrictionLossesBySizeFlow[[#This Row],[Friction factor]]*(FrictionLossesBySizeFlow[[#This Row],[Flow rate (Mt CO2/y)]]/Pipe_utilisation_factor*SUMIFS(ConversionFactors[Conversion value],ConversionFactors[Initial unit],"Mt",ConversionFactors[Final unit],"kg")/SUMIFS(ConversionFactors[Conversion value],ConversionFactors[Initial unit],"Year",ConversionFactors[Final unit],"second"))^2/(SUMIFS(CO2PhysicalProperties[Density (kg/m3)],CO2PhysicalProperties[Pressure (MPa)],Minimum_pipeline_pressure)*PI()^2*(FrictionLossesBySizeFlow[[#This Row],[Pipeline diameter (inches)]]*SUMIFS(ConversionFactors[Conversion value],ConversionFactors[Initial unit],"Inch",ConversionFactors[Final unit],"metre"))^5)/10^6) -> 0.00721038961
I49: 44 | J49: =IF(FrictionLossesBySizeFlow[[#This Row],[ID]]>Total_flow_rates*Total_pipeline_sizes,"",OFFSET(FlowRates[[#Headers],[Flow rate (Mt CO2/y)]],QUOTIENT(FrictionLossesBySizeFlow[[#This Row],[ID]]-1,Total_pipeline_sizes)+1,0)) -> 10 | K49: =IF(FrictionLossesBySizeFlow[[#This Row],[ID]]>Total_flow_rates*Total_pipeline_sizes,"",OFFSET(PipelineSizes[[#Headers],[Pipeline diameter (inches)]],MOD(FrictionLossesBySizeFlow[[#This Row],[ID]]-1,Total_pipeline_sizes)+1,0)) -> 10 | L49: =IF(FrictionLossesBySizeFlow[[#This Row],[ID]]>Total_flow_rates*Total_pipeline_sizes,"",4*FrictionLossesBySizeFlow[[#This Row],[Flow rate (Mt CO2/y)]]/Pipe_utilisation_factor*SUMIFS(ConversionFactors[Conversion value],ConversionFactors[Initial unit],"Mt",ConversionFactors[Final unit],"kg")/SUMIFS(ConversionFactors[Conversion value],ConversionFactors[Initial unit],"Year",ConversionFactors[Final unit],"second")/(PI()*SUMIFS(CO2PhysicalProperties[Viscosity (Pas)],CO2PhysicalProperties[Pressure (MPa)],Minimum_pipeline_pressure)*FrictionLossesBySizeFlow[[#This Row],[Pipeline diameter (inches)]]*SUMIFS(ConversionFactors[Conversion value],ConversionFactors[Initial unit],"Inch",ConversionFactors[Final unit],"metre"))) -> 28687934.48 | M49: =IF(FrictionLossesBySizeFlow[[#This Row],[ID]]>Total_flow_rates*Total_pipeline_sizes,"",1.325/(LN(Pipeline_roughness/(3.7*FrictionLossesBySizeFlow[[#This Row],[Pipeline diameter (inches)]]*SUMIFS(ConversionFactors[Conversion value],ConversionFactors[Initial unit],"Inch",ConversionFactors[Final unit],"metre"))+(5.74/FrictionLossesBySizeFlow[[#This Row],[Reynold''s Number]]^0.9)))^2) -> 0.01348955341 | N49: =IF(FrictionLossesBySizeFlow[[#This Row],[ID]]>Total_flow_rates*Total_pipeline_sizes,"",8*FrictionLossesBySizeFlow[[#This Row],[Friction factor]]*(FrictionLossesBySizeFlow[[#This Row],[Flow rate (Mt CO2/y)]]/Pipe_utilisation_factor*SUMIFS(ConversionFactors[Conversion value],ConversionFactors[Initial unit],"Mt",ConversionFactors[Final unit],"kg")/SUMIFS(ConversionFactors[Conversion value],ConversionFactors[Initial unit],"Year",ConversionFactors[Final unit],"second"))^2/(SUMIFS(CO2PhysicalProperties[Density (kg/m3)],CO2PhysicalProperties[Pressure (MPa)],Minimum_pipeline_pressure)*PI()^2*(FrictionLossesBySizeFlow[[#This Row],[Pipeline diameter (inches)]]*SUMIFS(ConversionFactors[Conversion value],ConversionFactors[Initial unit],"Inch",ConversionFactors[Final unit],"metre"))^5)/10^6) -> 0.002261135934
I50: 45 | J50: =IF(FrictionLossesBySizeFlow[[#This Row],[ID]]>Total_flow_rates*Total_pipeline_sizes,"",OFFSET(FlowRates[[#Headers],[Flow rate (Mt CO2/y)]],QUOTIENT(FrictionLossesBySizeFlow[[#This Row],[ID]]-1,Total_pipeline_sizes)+1,0)) -> 10 | K50: =IF(FrictionLossesBySizeFlow[[#This Row],[ID]]>Total_flow_rates*Total_pipeline_sizes,"",OFFSET(PipelineSizes[[#Headers],[Pipeline diameter (inches)]],MOD(FrictionLossesBySizeFlow[[#This Row],[ID]]-1,Total_pipeline_sizes)+1,0)) -> 12 | L50: =IF(FrictionLossesBySizeFlow[[#This Row],[ID]]>Total_flow_rates*Total_pipeline_sizes,"",4*FrictionLossesBySizeFlow[[#This Row],[Flow rate (Mt CO2/y)]]/Pipe_utilisation_factor*SUMIFS(ConversionFactors[Conversion value],ConversionFactors[Initial unit],"Mt",ConversionFactors[Final unit],"kg")/SUMIFS(ConversionFactors[Conversion value],ConversionFactors[Initial unit],"Year",ConversionFactors[Final unit],"second")/(PI()*SUMIFS(CO2PhysicalProperties[Viscosity (Pas)],CO2PhysicalProperties[Pressure (MPa)],Minimum_pipeline_pressure)*FrictionLossesBySizeFlow[[#This Row],[Pipeline diameter (inches)]]*SUMIFS(ConversionFactors[Conversion value],ConversionFactors[Initial unit],"Inch",ConversionFactors[Final unit],"metre"))) -> 23906612.07 | M50: =IF(FrictionLossesBySizeFlow[[#This Row],[ID]]>Total_flow_rates*Total_pipeline_sizes,"",1.325/(LN(Pipeline_roughness/(3.7*FrictionLossesBySizeFlow[[#This Row],[Pipeline diameter (inches)]]*SUMIFS(ConversionFactors[Conversion value],ConversionFactors[Initial unit],"Inch",ConversionFactors[Final unit],"metre"))+(5.74/FrictionLossesBySizeFlow[[#This Row],[Reynold''s Number]]^0.9)))^2) -> 0.01303048092 | N50: =IF(FrictionLossesBySizeFlow[[#This Row],[ID]]>Total_flow_rates*Total_pipeline_sizes,"",8*FrictionLossesBySizeFlow[[#This Row],[Friction factor]]*(FrictionLossesBySizeFlow[[#This Row],[Flow rate (Mt CO2/y)]]/Pipe_utilisation_factor*SUMIFS(ConversionFactors[Conversion value],ConversionFactors[Initial unit],"Mt",ConversionFactors[Final unit],"kg")/SUMIFS(ConversionFactors[Conversion value],ConversionFactors[Initial unit],"Year",ConversionFactors[Final unit],"second"))^2/(SUMIFS(CO2PhysicalProperties[Density (kg/m3)],CO2PhysicalProperties[Pressure (MPa)],Minimum_pipeline_pressure)*PI()^2*(FrictionLossesBySizeFlow[[#This Row],[Pipeline diameter (inches)]]*SUMIFS(ConversionFactors[Conversion value],ConversionFactors[Initial unit],"Inch",ConversionFactors[Final unit],"metre"))^5)/10^6) -> 0.0008777752157
I51: 46 | J51: =IF(FrictionLossesBySizeFlow[[#This Row],[ID]]>Total_flow_rates*Total_pipeline_sizes,"",OFFSET(FlowRates[[#Headers],[Flow rate (Mt CO2/y)]],QUOTIENT(FrictionLossesBySizeFlow[[#This Row],[ID]]-1,Total_pipeline_sizes)+1,0)) -> 10 | K51: =IF(FrictionLossesBySizeFlow[[#This Row],[ID]]>Total_flow_rates*Total_pipeline_sizes,"",OFFSET(PipelineSizes[[#Headers],[Pipeline diameter (inches)]],MOD(FrictionLossesBySizeFlow[[#This Row],[ID]]-1,Total_pipeline_sizes)+1,0)) -> 14 | L51: =IF(FrictionLossesBySizeFlow[[#This Row],[ID]]>Total_flow_rates*Total_pipeline_sizes,"",4*FrictionLossesBySizeFlow[[#This Row],[Flow rate (Mt CO2/y)]]/Pipe_utilisation_factor*SUMIFS(ConversionFactors[Conversion value],ConversionFactors[Initial unit],"Mt",ConversionFactors[Final unit],"kg")/SUMIFS(ConversionFactors[Conversion value],ConversionFactors[Initial unit],"Year",ConversionFactors[Final unit],"second")/(PI()*SUMIFS(CO2PhysicalProperties[Viscosity (Pas)],CO2PhysicalProperties[Pressure (MPa)],Minimum_pipeline_pressure)*FrictionLossesBySizeFlow[[#This Row],[Pipeline diameter (inches)]]*SUMIFS(ConversionFactors[Conversion value],ConversionFactors[Initial unit],"Inch",ConversionFactors[Final unit],"metre"))) -> 20491381.77 | M51: =IF(FrictionLossesBySizeFlow[[#This Row],[ID]]>Total_flow_rates*Total_pipeline_sizes,"",1.325/(LN(Pipeline_roughness/(3.7*FrictionLossesBySizeFlow[[#This Row],[Pipeline diameter (inches)]]*SUMIFS(ConversionFactors[Conversion value],ConversionFactors[Initial unit],"Inch",ConversionFactors[Final unit],"metre"))+(5.74/FrictionLossesBySizeFlow[[#This Row],[Reynold''s Number]]^0.9)))^2) -> 0.01266737236 | N51: =IF(FrictionLossesBySizeFlow[[#This Row],[ID]]>Total_flow_rates*Total_pipeline_sizes,"",8*FrictionLossesBySizeFlow[[#This Row],[Friction factor]]*(FrictionLossesBySizeFlow[[#This Row],[Flow rate (Mt CO2/y)]]/Pipe_utilisation_factor*SUMIFS(ConversionFactors[Conversion value],ConversionFactors[Initial unit],"Mt",ConversionFactors[Final unit],"kg")/SUMIFS(ConversionFactors[Conversion value],ConversionFactors[Initial unit],"Year",ConversionFactors[Final unit],"second"))^2/(SUMIFS(CO2PhysicalProperties[Density (kg/m3)],CO2PhysicalProperties[Pressure (MPa)],Minimum_pipeline_pressure)*PI()^2*(FrictionLossesBySizeFlow[[#This Row],[Pipeline diameter (inches)]]*SUMIFS(ConversionFactors[Conversion value],ConversionFactors[Initial unit],"Inch",ConversionFactors[Final unit],"metre"))^5)/10^6) -> 0.0003947984677
I52: 47 | J52: =IF(FrictionLossesBySizeFlow[[#This Row],[ID]]>Total_flow_rates*Total_pipeline_sizes,"",OFFSET(FlowRates[[#Headers],[Flow rate (Mt CO2/y)]],QUOTIENT(FrictionLossesBySizeFlow[[#This Row],[ID]]-1,Total_pipeline_sizes)+1,0)) -> 10 | K52: =IF(FrictionLossesBySizeFlow[[#This Row],[ID]]>Total_flow_rates*Total_pipeline_sizes,"",OFFSET(PipelineSizes[[#Headers],[Pipeline diameter (inches)]],MOD(FrictionLossesBySizeFlow[[#This Row],[ID]]-1,Total_pipeline_sizes)+1,0)) -> 16 | L52: =IF(FrictionLossesBySizeFlow[[#This Row],[ID]]>Total_flow_rates*Total_pipeline_sizes,"",4*FrictionLossesBySizeFlow[[#This Row],[Flow rate (Mt CO2/y)]]/Pipe_utilisation_factor*SUMIFS(ConversionFactors[Conversion value],ConversionFactors[Initial unit],"Mt",ConversionFactors[Final unit],"kg")/SUMIFS(ConversionFactors[Conversion value],ConversionFactors[Initial unit],"Year",ConversionFactors[Final unit],"second")/(PI()*SUMIFS(CO2PhysicalProperties[Viscosity (Pas)],CO2PhysicalProperties[Pressure (MPa)],Minimum_pipeline_pressure)*FrictionLossesBySizeFlow[[#This Row],[Pipeline diameter (inches)]]*SUMIFS(ConversionFactors[Conversion value],ConversionFactors[Initial unit],"Inch",ConversionFactors[Final unit],"metre"))) -> 17929959.05 | M52: =IF(FrictionLossesBySizeFlow[[#This Row],[ID]]>Total_flow_rates*Total_pipeline_sizes,"",1.325/(LN(Pipeline_roughness/(3.7*FrictionLossesBySizeFlow[[#This Row],[Pipeline diameter (inches)]]*SUMIFS(ConversionFactors[Conversion value],ConversionFactors[Initial unit],"Inch",ConversionFactors[Final unit],"metre"))+(5.74/FrictionLossesBySizeFlow[[#This Row],[Reynold''s Number]]^0.9)))^2) -> 0.01237153782 | N52: =IF(FrictionLossesBySizeFlow[[#This Row],[ID]]>Total_flow_rates*Total_pipeline_sizes,"",8*FrictionLossesBySizeFlow[[#This Row],[Friction factor]]*(FrictionLossesBySizeFlow[[#This Row],[Flow rate (Mt CO2/y)]]/Pipe_utilisation_factor*SUMIFS(ConversionFactors[Conversion value],ConversionFactors[Initial unit],"Mt",ConversionFactors[Final unit],"kg")/SUMIFS(ConversionFactors[Conversion value],ConversionFactors[Initial unit],"Year",ConversionFactors[Final unit],"second"))^2/(SUMIFS(CO2PhysicalProperties[Density (kg/m3)],CO2PhysicalProperties[Pressure (MPa)],Minimum_pipeline_pressure)*PI()^2*(FrictionLossesBySizeFlow[[#This Row],[Pipeline diameter (inches)]]*SUMIFS(ConversionFactors[Conversion value],ConversionFactors[Initial unit],"Inch",ConversionFactors[Final unit],"metre"))^5)/10^6) -> 0.0001977665665
I53: 48 | J53: =IF(FrictionLossesBySizeFlow[[#This Row],[ID]]>Total_flow_rates*Total_pipeline_sizes,"",OFFSET(FlowRates[[#Headers],[Flow rate (Mt CO2/y)]],QUOTIENT(FrictionLossesBySizeFlow[[#This Row],[ID]]-1,Total_pipeline_sizes)+1,0)) -> 10 | K53: =IF(FrictionLossesBySizeFlow[[#This Row],[ID]]>Total_flow_rates*Total_pipeline_sizes,"",OFFSET(PipelineSizes[[#Headers],[Pipeline diameter (inches)]],MOD(FrictionLossesBySizeFlow[[#This Row],[ID]]-1,Total_pipeline_sizes)+1,0)) -> 18 | L53: =IF(FrictionLossesBySizeFlow[[#This Row],[ID]]>Total_flow_rates*Total_pipeline_sizes,"",4*FrictionLossesBySizeFlow[[#This Row],[Flow rate (Mt CO2/y)]]/Pipe_utilisation_factor*SUMIFS(ConversionFactors[Conversion value],ConversionFactors[Initial unit],"Mt",ConversionFactors[Final unit],"kg")/SUMIFS(ConversionFactors[Conversion value],ConversionFactors[Initial unit],"Year",ConversionFactors[Final unit],"second")/(PI()*SUMIFS(CO2PhysicalProperties[Viscosity (Pas)],CO2PhysicalProperties[Pressure (MPa)],Minimum_pipeline_pressure)*FrictionLossesBySizeFlow[[#This Row],[Pipeline diameter (inches)]]*SUMIFS(ConversionFactors[Conversion value],ConversionFactors[Initial unit],"Inch",ConversionFactors[Final unit],"metre"))) -> 15937741.38 | M53: =IF(FrictionLossesBySizeFlow[[#This Row],[ID]]>Total_flow_rates*Total_pipeline_sizes,"",1.325/(LN(Pipeline_roughness/(3.7*FrictionLossesBySizeFlow[[#This Row],[Pipeline diameter (inches)]]*SUMIFS(ConversionFactors[Conversion value],ConversionFactors[Initial unit],"Inch",ConversionFactors[Final unit],"metre"))+(5.74/FrictionLossesBySizeFlow[[#This Row],[Reynold''s Number]]^0.9)))^2) -> 0.01212530765 | N53: =IF(FrictionLossesBySizeFlow[[#This Row],[ID]]>Total_flow_rates*Total_pipeline_sizes,"",8*FrictionLossesBySizeFlow[[#This Row],[Friction factor]]*(FrictionLossesBySizeFlow[[#This Row],[Flow rate (Mt CO2/y)]]/Pipe_utilisation_factor*SUMIFS(ConversionFactors[Conversion value],ConversionFactors[Initial unit],"Mt",ConversionFactors[Final unit],"kg")/SUMIFS(ConversionFactors[Conversion value],ConversionFactors[Initial unit],"Year",ConversionFactors[Final unit],"second"))^2/(SUMIFS(CO2PhysicalProperties[Density (kg/m3)],CO2PhysicalProperties[Pressure (MPa)],Minimum_pipeline_pressure)*PI()^2*(FrictionLossesBySizeFlow[[#This Row],[Pipeline diameter (inches)]]*SUMIFS(ConversionFactors[Conversion value],ConversionFactors[Initial unit],"Inch",ConversionFactors[Final unit],"metre"))^5)/10^6) -> 0.0001075621169
I54: 49 | J54: =IF(FrictionLossesBySizeFlow[[#This Row],[ID]]>Total_flow_rates*Total_pipeline_sizes,"",OFFSET(FlowRates[[#Headers],[Flow rate (Mt CO2/y)]],QUOTIENT(FrictionLossesBySizeFlow[[#This Row],[ID]]-1,Total_pipeline_sizes)+1,0)) -> 10 | K54: =IF(FrictionLossesBySizeFlow[[#This Row],[ID]]>Total_flow_rates*Total_pipeline_sizes,"",OFFSET(PipelineSizes[[#Headers],[Pipeline diameter (inches)]],MOD(FrictionLossesBySizeFlow[[#This Row],[ID]]-1,Total_pipeline_sizes)+1,0)) -> 20 | L54: =IF(FrictionLossesBySizeFlow[[#This Row],[ID]]>Total_flow_rates*Total_pipeline_sizes,"",4*FrictionLossesBySizeFlow[[#This Row],[Flow rate (Mt CO2/y)]]/Pipe_utilisation_factor*SUMIFS(ConversionFactors[Conversion value],ConversionFactors[Initial unit],"Mt",ConversionFactors[Final unit],"kg")/SUMIFS(ConversionFactors[Conversion value],ConversionFactors[Initial unit],"Year",ConversionFactors[Final unit],"second")/(PI()*SUMIFS(CO2PhysicalProperties[Viscosity (Pas)],CO2PhysicalProperties[Pressure (MPa)],Minimum_pipeline_pressure)*FrictionLossesBySizeFlow[[#This Row],[Pipeline diameter (inches)]]*SUMIFS(ConversionFactors[Conversion value],ConversionFactors[Initial unit],"Inch",ConversionFactors[Final unit],"metre"))) -> 14343967.24 | M54: =IF(FrictionLossesBySizeFlow[[#This Row],[ID]]>Total_flow_rates*Total_pipeline_sizes,"",1.325/(LN(Pipeline_roughness/(3.7*FrictionLossesBySizeFlow[[#This Row],[Pipeline diameter (inches)]]*SUMIFS(ConversionFactors[Conversion value],ConversionFactors[Initial unit],"Inch",ConversionFactors[Final unit],"metre"))+(5.74/FrictionLossesBySizeFlow[[#This Row],[Reynold''s Number]]^0.9)))^2) -> 0.01191707118 | N54: =IF(FrictionLossesBySizeFlow[[#This Row],[ID]]>Total_flow_rates*Total_pipeline_sizes,"",8*FrictionLossesBySizeFlow[[#This Row],[Friction factor]]*(FrictionLossesBySizeFlow[[#This Row],[Flow rate (Mt CO2/y)]]/Pipe_utilisation_factor*SUMIFS(ConversionFactors[Conversion value],ConversionFactors[Initial unit],"Mt",ConversionFactors[Final unit],"kg")/SUMIFS(ConversionFactors[Conversion value],ConversionFactors[Initial unit],"Year",ConversionFactors[Final unit],"second"))^2/(SUMIFS(CO2PhysicalProperties[Density (kg/m3)],CO2PhysicalProperties[Pressure (MPa)],Minimum_pipeline_pressure)*PI()^2*(FrictionLossesBySizeFlow[[#This Row],[Pipeline diameter (inches)]]*SUMIFS(ConversionFactors[Conversion value],ConversionFactors[Initial unit],"Inch",ConversionFactors[Final unit],"metre"))^5)/10^6) -> 6.242357757e-05
I55: 50 | J55: =IF(FrictionLossesBySizeFlow[[#This Row],[ID]]>Total_flow_rates*Total_pipeline_sizes,"",OFFSET(FlowRates[[#Headers],[Flow rate (Mt CO2/y)]],QUOTIENT(FrictionLossesBySizeFlow[[#This Row],[ID]]-1,Total_pipeline_sizes)+1,0)) -> 10 | K55: =IF(FrictionLossesBySizeFlow[[#This Row],[ID]]>Total_flow_rates*Total_pipeline_sizes,"",OFFSET(PipelineSizes[[#Headers],[Pipeline diameter (inches)]],MOD(FrictionLossesBySizeFlow[[#This Row],[ID]]-1,Total_pipeline_sizes)+1,0)) -> 22 | L55: =IF(FrictionLossesBySizeFlow[[#This Row],[ID]]>Total_flow_rates*Total_pipeline_sizes,"",4*FrictionLossesBySizeFlow[[#This Row],[Flow rate (Mt CO2/y)]]/Pipe_utilisation_factor*SUMIFS(ConversionFactors[Conversion value],ConversionFactors[Initial unit],"Mt",ConversionFactors[Final unit],"kg")/SUMIFS(ConversionFactors[Conversion value],ConversionFactors[Initial unit],"Year",ConversionFactors[Final unit],"second")/(PI()*SUMIFS(CO2PhysicalProperties[Viscosity (Pas)],CO2PhysicalProperties[Pressure (MPa)],Minimum_pipeline_pressure)*FrictionLossesBySizeFlow[[#This Row],[Pipeline diameter (inches)]]*SUMIFS(ConversionFactors[Conversion value],ConversionFactors[Initial unit],"Inch",ConversionFactors[Final unit],"metre"))) -> 13039970.22 | M55: =IF(FrictionLossesBySizeFlow[[#This Row],[ID]]>Total_flow_rates*Total_pipeline_sizes,"",1.325/(LN(Pipeline_roughness/(3.7*FrictionLossesBySizeFlow[[#This Row],[Pipeline diameter (inches)]]*SUMIFS(ConversionFactors[Conversion value],ConversionFactors[Initial unit],"Inch",ConversionFactors[Final unit],"metre"))+(5.74/FrictionLossesBySizeFlow[[#This Row],[Reynold''s Number]]^0.9)))^2) -> 0.01173880979 | N55: =IF(FrictionLossesBySizeFlow[[#This Row],[ID]]>Total_flow_rates*Total_pipeline_sizes,"",8*FrictionLossesBySizeFlow[[#This Row],[Friction factor]]*(FrictionLossesBySizeFlow[[#This Row],[Flow rate (Mt CO2/y)]]/Pipe_utilisation_factor*SUMIFS(ConversionFactors[Conversion value],ConversionFactors[Initial unit],"Mt",ConversionFactors[Final unit],"kg")/SUMIFS(ConversionFactors[Conversion value],ConversionFactors[Initial unit],"Year",ConversionFactors[Final unit],"second"))^2/(SUMIFS(CO2PhysicalProperties[Density (kg/m3)],CO2PhysicalProperties[Pressure (MPa)],Minimum_pipeline_pressure)*PI()^2*(FrictionLossesBySizeFlow[[#This Row],[Pipeline diameter (inches)]]*SUMIFS(ConversionFactors[Conversion value],ConversionFactors[Initial unit],"Inch",ConversionFactors[Final unit],"metre"))^5)/10^6) -> 3.818033736e-05
I56: 51 | J56: =IF(FrictionLossesBySizeFlow[[#This Row],[ID]]>Total_flow_rates*Total_pipeline_sizes,"",OFFSET(FlowRates[[#Headers],[Flow rate (Mt CO2/y)]],QUOTIENT(FrictionLossesBySizeFlow[[#This Row],[ID]]-1,Total_pipeline_sizes)+1,0)) -> 10 | K56: =IF(FrictionLossesBySizeFlow[[#This Row],[ID]]>Total_flow_rates*Total_pipeline_sizes,"",OFFSET(PipelineSizes[[#Headers],[Pipeline diameter (inches)]],MOD(FrictionLossesBySizeFlow[[#This Row],[ID]]-1,Total_pipeline_sizes)+1,0)) -> 24 | L56: =IF(FrictionLossesBySizeFlow[[#This Row],[ID]]>Total_flow_rates*Total_pipeline_sizes,"",4*FrictionLossesBySizeFlow[[#This Row],[Flow rate (Mt CO2/y)]]/Pipe_utilisation_factor*SUMIFS(ConversionFactors[Conversion value],ConversionFactors[Initial unit],"Mt",ConversionFactors[Final unit],"kg")/SUMIFS(ConversionFactors[Conversion value],ConversionFactors[Initial unit],"Year",ConversionFactors[Final unit],"second")/(PI()*SUMIFS(CO2PhysicalProperties[Viscosity (Pas)],CO2PhysicalProperties[Pressure (MPa)],Minimum_pipeline_pressure)*FrictionLossesBySizeFlow[[#This Row],[Pipeline diameter (inches)]]*SUMIFS(ConversionFactors[Conversion value],ConversionFactors[Initial unit],"Inch",ConversionFactors[Final unit],"metre"))) -> 11953306.04 | M56: =IF(FrictionLossesBySizeFlow[[#This Row],[ID]]>Total_flow_rates*Total_pipeline_sizes,"",1.325/(LN(Pipeline_roughness/(3.7*FrictionLossesBySizeFlow[[#This Row],[Pipeline diameter (inches)]]*SUMIFS(ConversionFactors[Conversion value],ConversionFactors[Initial unit],"Inch",ConversionFactors[Final unit],"metre"))+(5.74/FrictionLossesBySizeFlow[[#This Row],[Reynold''s Number]]^0.9)))^2) -> 0.01158476227 | N56: =IF(FrictionLossesBySizeFlow[[#This Row],[ID]]>Total_flow_rates*Total_pipeline_sizes,"",8*FrictionLossesBySizeFlow[[#This Row],[Friction factor]]*(FrictionLossesBySizeFlow[[#This Row],[Flow rate (Mt CO2/y)]]/Pipe_utilisation_factor*SUMIFS(ConversionFactors[Conversion value],ConversionFactors[Initial unit],"Mt",ConversionFactors[Final unit],"kg")/SUMIFS(ConversionFactors[Conversion value],ConversionFactors[Initial unit],"Year",ConversionFactors[Final unit],"second"))^2/(SUMIFS(CO2PhysicalProperties[Density (kg/m3)],CO2PhysicalProperties[Pressure (MPa)],Minimum_pipeline_pressure)*PI()^2*(FrictionLossesBySizeFlow[[#This Row],[Pipeline diameter (inches)]]*SUMIFS(ConversionFactors[Conversion value],ConversionFactors[Initial unit],"Inch",ConversionFactors[Final unit],"metre"))^5)/10^6) -> 2.438709204e-05
I57: 52 | J57: =IF(FrictionLossesBySizeFlow[[#This Row],[ID]]>Total_flow_rates*Total_pipeline_sizes,"",OFFSET(FlowRates[[#Headers],[Flow rate (Mt CO2/y)]],QUOTIENT(FrictionLossesBySizeFlow[[#This Row],[ID]]-1,Total_pipeline_sizes)+1,0)) -> 10 | K57: =IF(FrictionLossesBySizeFlow[[#This Row],[ID]]>Total_flow_rates*Total_pipeline_sizes,"",OFFSET(PipelineSizes[[#Headers],[Pipeline diameter (inches)]],MOD(FrictionLossesBySizeFlow[[#This Row],[ID]]-1,Total_pipeline_sizes)+1,0)) -> 26 | L57: =IF(FrictionLossesBySizeFlow[[#This Row],[ID]]>Total_flow_rates*Total_pipeline_sizes,"",4*FrictionLossesBySizeFlow[[#This Row],[Flow rate (Mt CO2/y)]]/Pipe_utilisation_factor*SUMIFS(ConversionFactors[Conversion value],ConversionFactors[Initial unit],"Mt",ConversionFactors[Final unit],"kg")/SUMIFS(ConversionFactors[Conversion value],ConversionFactors[Initial unit],"Year",ConversionFactors[Final unit],"second")/(PI()*SUMIFS(CO2PhysicalProperties[Viscosity (Pas)],CO2PhysicalProperties[Pressure (MPa)],Minimum_pipeline_pressure)*FrictionLossesBySizeFlow[[#This Row],[Pipeline diameter (inches)]]*SUMIFS(ConversionFactors[Conversion value],ConversionFactors[Initial unit],"Inch",ConversionFactors[Final unit],"metre"))) -> 11033820.96 | M57: =IF(FrictionLossesBySizeFlow[[#This Row],[ID]]>Total_flow_rates*Total_pipeline_sizes,"",1.325/(LN(Pipeline_roughness/(3.7*FrictionLossesBySizeFlow[[#This Row],[Pipeline diameter (inches)]]*SUMIFS(ConversionFactors[Conversion value],ConversionFactors[Initial unit],"Inch",ConversionFactors[Final unit],"metre"))+(5.74/FrictionLossesBySizeFlow[[#This Row],[Reynold''s Number]]^0.9)))^2) -> 0.01145065373 | N57: =IF(FrictionLossesBySizeFlow[[#This Row],[ID]]>Total_flow_rates*Total_pipeline_sizes,"",8*FrictionLossesBySizeFlow[[#This Row],[Friction factor]]*(FrictionLossesBySizeFlow[[#This Row],[Flow rate (Mt CO2/y)]]/Pipe_utilisation_factor*SUMIFS(ConversionFactors[Conversion value],ConversionFactors[Initial unit],"Mt",ConversionFactors[Final unit],"kg")/SUMIFS(ConversionFactors[Conversion value],ConversionFactors[Initial unit],"Year",ConversionFactors[Final unit],"second"))^2/(SUMIFS(CO2PhysicalProperties[Density (kg/m3)],CO2PhysicalProperties[Pressure (MPa)],Minimum_pipeline_pressure)*PI()^2*(FrictionLossesBySizeFlow[[#This Row],[Pipeline diameter (inches)]]*SUMIFS(ConversionFactors[Conversion value],ConversionFactors[Initial unit],"Inch",ConversionFactors[Final unit],"metre"))^5)/10^6) -> 1.615446731e-05
I58: 53 | J58: =IF(FrictionLossesBySizeFlow[[#This Row],[ID]]>Total_flow_rates*Total_pipeline_sizes,"",OFFSET(FlowRates[[#Headers],[Flow rate (Mt CO2/y)]],QUOTIENT(FrictionLossesBySizeFlow[[#This Row],[ID]]-1,Total_pipeline_sizes)+1,0)) -> 10 | K58: =IF(FrictionLossesBySizeFlow[[#This Row],[ID]]>Total_flow_rates*Total_pipeline_sizes,"",OFFSET(PipelineSizes[[#Headers],[Pipeline diameter (inches)]],MOD(FrictionLossesBySizeFlow[[#This Row],[ID]]-1,Total_pipeline_sizes)+1,0)) -> 28 | L58: =IF(FrictionLossesBySizeFlow[[#This Row],[ID]]>Total_flow_rates*Total_pipeline_sizes,"",4*FrictionLossesBySizeFlow[[#This Row],[Flow rate (Mt CO2/y)]]/Pipe_utilisation_factor*SUMIFS(ConversionFactors[Conversion value],ConversionFactors[Initial unit],"Mt",ConversionFactors[Final unit],"kg")/SUMIFS(ConversionFactors[Conversion value],ConversionFactors[Initial unit],"Year",ConversionFactors[Final unit],"second")/(PI()*SUMIFS(CO2PhysicalProperties[Viscosity (Pas)],CO2PhysicalProperties[Pressure (MPa)],Minimum_pipeline_pressure)*FrictionLossesBySizeFlow[[#This Row],[Pipeline diameter (inches)]]*SUMIFS(ConversionFactors[Conversion value],ConversionFactors[Initial unit],"Inch",ConversionFactors[Final unit],"metre"))) -> 10245690.89 | M58: =IF(FrictionLossesBySizeFlow[[#This Row],[ID]]>Total_flow_rates*Total_pipeline_sizes,"",1.325/(LN(Pipeline_roughness/(3.7*FrictionLossesBySizeFlow[[#This Row],[Pipeline diameter (inches)]]*SUMIFS(ConversionFactors[Conversion value],ConversionFactors[Initial unit],"Inch",ConversionFactors[Final unit],"metre"))+(5.74/FrictionLossesBySizeFlow[[#This Row],[Reynold''s Number]]^0.9)))^2) -> 0.01133322605 | N58: =IF(FrictionLossesBySizeFlow[[#This Row],[ID]]>Total_flow_rates*Total_pipeline_sizes,"",8*FrictionLossesBySizeFlow[[#This Row],[Friction factor]]*(FrictionLossesBySizeFlow[[#This Row],[Flow rate (Mt CO2/y)]]/Pipe_utilisation_factor*SUMIFS(ConversionFactors[Conversion value],ConversionFactors[Initial unit],"Mt",ConversionFactors[Final unit],"kg")/SUMIFS(ConversionFactors[Conversion value],ConversionFactors[Initial unit],"Year",ConversionFactors[Final unit],"second"))^2/(SUMIFS(CO2PhysicalProperties[Density (kg/m3)],CO2PhysicalProperties[Pressure (MPa)],Minimum_pipeline_pressure)*PI()^2*(FrictionLossesBySizeFlow[[#This Row],[Pipeline diameter (inches)]]*SUMIFS(ConversionFactors[Conversion value],ConversionFactors[Initial unit],"Inch",ConversionFactors[Final unit],"metre"))^5)/10^6) -> 1.103805349e-05
I59: 54 | J59: =IF(FrictionLossesBySizeFlow[[#This Row],[ID]]>Total_flow_rates*Total_pipeline_sizes,"",OFFSET(FlowRates[[#Headers],[Flow rate (Mt CO2/y)]],QUOTIENT(FrictionLossesBySizeFlow[[#This Row],[ID]]-1,Total_pipeline_sizes)+1,0)) -> 10 | K59: =IF(FrictionLossesBySizeFlow[[#This Row],[ID]]>Total_flow_rates*Total_pipeline_sizes,"",OFFSET(PipelineSizes[[#Headers],[Pipeline diameter (inches)]],MOD(FrictionLossesBySizeFlow[[#This Row],[ID]]-1,Total_pipeline_sizes)+1,0)) -> 32 | L59: =IF(FrictionLossesBySizeFlow[[#This Row],[ID]]>Total_flow_rates*Total_pipeline_sizes,"",4*FrictionLossesBySizeFlow[[#This Row],[Flow rate (Mt CO2/y)]]/Pipe_utilisation_factor*SUMIFS(ConversionFactors[Conversion value],ConversionFactors[Initial unit],"Mt",ConversionFactors[Final unit],"kg")/SUMIFS(ConversionFactors[Conversion value],ConversionFactors[Initial unit],"Year",ConversionFactors[Final unit],"second")/(PI()*SUMIFS(CO2PhysicalProperties[Viscosity (Pas)],CO2PhysicalProperties[Pressure (MPa)],Minimum_pipeline_pressure)*FrictionLossesBySizeFlow[[#This Row],[Pipeline diameter (inches)]]*SUMIFS(ConversionFactors[Conversion value],ConversionFactors[Initial unit],"Inch",ConversionFactors[Final unit],"metre"))) -> 8964979.526 | M59: =IF(FrictionLossesBySizeFlow[[#This Row],[ID]]>Total_flow_rates*Total_pipeline_sizes,"",1.325/(LN(Pipeline_roughness/(3.7*FrictionLossesBySizeFlow[[#This Row],[Pipeline diameter (inches)]]*SUMIFS(ConversionFactors[Conversion value],ConversionFactors[Initial unit],"Inch",ConversionFactors[Final unit],"metre"))+(5.74/FrictionLossesBySizeFlow[[#This Row],[Reynold''s Number]]^0.9)))^2) -> 0.01113877417 | N59: =IF(FrictionLossesBySizeFlow[[#This Row],[ID]]>Total_flow_rates*Total_pipeline_sizes,"",8*FrictionLossesBySizeFlow[[#This Row],[Friction factor]]*(FrictionLossesBySizeFlow[[#This Row],[Flow rate (Mt CO2/y)]]/Pipe_utilisation_factor*SUMIFS(ConversionFactors[Conversion value],ConversionFactors[Initial unit],"Mt",ConversionFactors[Final unit],"kg")/SUMIFS(ConversionFactors[Conversion value],ConversionFactors[Initial unit],"Year",ConversionFactors[Final unit],"second"))^2/(SUMIFS(CO2PhysicalProperties[Density (kg/m3)],CO2PhysicalProperties[Pressure (MPa)],Minimum_pipeline_pressure)*PI()^2*(FrictionLossesBySizeFlow[[#This Row],[Pipeline diameter (inches)]]*SUMIFS(ConversionFactors[Conversion value],ConversionFactors[Initial unit],"Inch",ConversionFactors[Final unit],"metre"))^5)/10^6) -> 5.564377776e-06
I60: 55 | J60: =IF(FrictionLossesBySizeFlow[[#This Row],[ID]]>Total_flow_rates*Total_pipeline_sizes,"",OFFSET(FlowRates[[#Headers],[Flow rate (Mt CO2/y)]],QUOTIENT(FrictionLossesBySizeFlow[[#This Row],[ID]]-1,Total_pipeline_sizes)+1,0)) -> 10 | K60: =IF(FrictionLossesBySizeFlow[[#This Row],[ID]]>Total_flow_rates*Total_pipeline_sizes,"",OFFSET(PipelineSizes[[#Headers],[Pipeline diameter (inches)]],MOD(FrictionLossesBySizeFlow[[#This Row],[ID]]-1,Total_pipeline_sizes)+1,0)) -> 36 | L60: =IF(FrictionLossesBySizeFlow[[#This Row],[ID]]>Total_flow_rates*Total_pipeline_sizes,"",4*FrictionLossesBySizeFlow[[#This Row],[Flow rate (Mt CO2/y)]]/Pipe_utilisation_factor*SUMIFS(ConversionFactors[Conversion value],ConversionFactors[Initial unit],"Mt",ConversionFactors[Final unit],"kg")/SUMIFS(ConversionFactors[Conversion value],ConversionFactors[Initial unit],"Year",ConversionFactors[Final unit],"second")/(PI()*SUMIFS(CO2PhysicalProperties[Viscosity (Pas)],CO2PhysicalProperties[Pressure (MPa)],Minimum_pipeline_pressure)*FrictionLossesBySizeFlow[[#This Row],[Pipeline diameter (inches)]]*SUMIFS(ConversionFactors[Conversion value],ConversionFactors[Initial unit],"Inch",ConversionFactors[Final unit],"metre"))) -> 7968870.69 | M60: =IF(FrictionLossesBySizeFlow[[#This Row],[ID]]>Total_flow_rates*Total_pipeline_sizes,"",1.325/(LN(Pipeline_roughness/(3.7*FrictionLossesBySizeFlow[[#This Row],[Pipeline diameter (inches)]]*SUMIFS(ConversionFactors[Conversion value],ConversionFactors[Initial unit],"Inch",ConversionFactors[Final unit],"metre"))+(5.74/FrictionLossesBySizeFlow[[#This Row],[Reynold''s Number]]^0.9)))^2) -> 0.01098657641 | N60: =IF(FrictionLossesBySizeFlow[[#This Row],[ID]]>Total_flow_rates*Total_pipeline_sizes,"",8*FrictionLossesBySizeFlow[[#This Row],[Friction factor]]*(FrictionLossesBySizeFlow[[#This Row],[Flow rate (Mt CO2/y)]]/Pipe_utilisation_factor*SUMIFS(ConversionFactors[Conversion value],ConversionFactors[Initial unit],"Mt",ConversionFactors[Final unit],"kg")/SUMIFS(ConversionFactors[Conversion value],ConversionFactors[Initial unit],"Year",ConversionFactors[Final unit],"second"))^2/(SUMIFS(CO2PhysicalProperties[Density (kg/m3)],CO2PhysicalProperties[Pressure (MPa)],Minimum_pipeline_pressure)*PI()^2*(FrictionLossesBySizeFlow[[#This Row],[Pipeline diameter (inches)]]*SUMIFS(ConversionFactors[Conversion value],ConversionFactors[Initial unit],"Inch",ConversionFactors[Final unit],"metre"))^5)/10^6) -> 3.045642867e-06
I61: 56 | J61: =IF(FrictionLossesBySizeFlow[[#This Row],[ID]]>Total_flow_rates*Total_pipeline_sizes,"",OFFSET(FlowRates[[#Headers],[Flow rate (Mt CO2/y)]],QUOTIENT(FrictionLossesBySizeFlow[[#This Row],[ID]]-1,Total_pipeline_sizes)+1,0)) -> 10 | K61: =IF(FrictionLossesBySizeFlow[[#This Row],[ID]]>Total_flow_rates*Total_pipeline_sizes,"",OFFSET(PipelineSizes[[#Headers],[Pipeline diameter (inches)]],MOD(FrictionLossesBySizeFlow[[#This Row],[ID]]-1,Total_pipeline_sizes)+1,0)) -> 40 | L61: =IF(FrictionLossesBySizeFlow[[#This Row],[ID]]>Total_flow_rates*Total_pipeline_sizes,"",4*FrictionLossesBySizeFlow[[#This Row],[Flow rate (Mt CO2/y)]]/Pipe_utilisation_factor*SUMIFS(ConversionFactors[Conversion value],ConversionFactors[Initial unit],"Mt",ConversionFactors[Final unit],"kg")/SUMIFS(ConversionFactors[Conversion value],ConversionFactors[Initial unit],"Year",ConversionFactors[Final unit],"second")/(PI()*SUMIFS(CO2PhysicalProperties[Viscosity (Pas)],CO2PhysicalProperties[Pressure (MPa)],Minimum_pipeline_pressure)*FrictionLossesBySizeFlow[[#This Row],[Pipeline diameter (inches)]]*SUMIFS(ConversionFactors[Conversion value],ConversionFactors[Initial unit],"Inch",ConversionFactors[Final unit],"metre"))) -> 7171983.621 | M61: =IF(FrictionLossesBySizeFlow[[#This Row],[ID]]>Total_flow_rates*Total_pipeline_sizes,"",1.325/(LN(Pipeline_roughness/(3.7*FrictionLossesBySizeFlow[[#This Row],[Pipeline diameter (inches)]]*SUMIFS(ConversionFactors[Conversion value],ConversionFactors[Initial unit],"Inch",ConversionFactors[Final unit],"metre"))+(5.74/FrictionLossesBySizeFlow[[#This Row],[Reynold''s Number]]^0.9)))^2) -> 0.01086671859 | N61: =IF(FrictionLossesBySizeFlow[[#This Row],[ID]]>Total_flow_rates*Total_pipeline_sizes,"",8*FrictionLossesBySizeFlow[[#This Row],[Friction factor]]*(FrictionLossesBySizeFlow[[#This Row],[Flow rate (Mt CO2/y)]]/Pipe_utilisation_factor*SUMIFS(ConversionFactors[Conversion value],ConversionFactors[Initial unit],"Mt",ConversionFactors[Final unit],"kg")/SUMIFS(ConversionFactors[Conversion value],ConversionFactors[Initial unit],"Year",ConversionFactors[Final unit],"second"))^2/(SUMIFS(CO2PhysicalProperties[Density (kg/m3)],CO2PhysicalProperties[Pressure (MPa)],Minimum_pipeline_pressure)*PI()^2*(FrictionLossesBySizeFlow[[#This Row],[Pipeline diameter (inches)]]*SUMIFS(ConversionFactors[Conversion value],ConversionFactors[Initial unit],"Inch",ConversionFactors[Final unit],"metre"))^5)/10^6) -> 1.778801814e-06
I62: 57 | J62: =IF(FrictionLossesBySizeFlow[[#This Row],[ID]]>Total_flow_rates*Total_pipeline_sizes,"",OFFSET(FlowRates[[#Headers],[Flow rate (Mt CO2/y)]],QUOTIENT(FrictionLossesBySizeFlow[[#This Row],[ID]]-1,Total_pipeline_sizes)+1,0)) -> 10 | K62: =IF(FrictionLossesBySizeFlow[[#This Row],[ID]]>Total_flow_rates*Total_pipeline_sizes,"",OFFSET(PipelineSizes[[#Headers],[Pipeline diameter (inches)]],MOD(FrictionLossesBySizeFlow[[#This Row],[ID]]-1,Total_pipeline_sizes)+1,0)) -> 44 | L62: =IF(FrictionLossesBySizeFlow[[#This Row],[ID]]>Total_flow_rates*Total_pipeline_sizes,"",4*FrictionLossesBySizeFlow[[#This Row],[Flow rate (Mt CO2/y)]]/Pipe_utilisation_factor*SUMIFS(ConversionFactors[Conversion value],ConversionFactors[Initial unit],"Mt",ConversionFactors[Final unit],"kg")/SUMIFS(ConversionFactors[Conversion value],ConversionFactors[Initial unit],"Year",ConversionFactors[Final unit],"second")/(PI()*SUMIFS(CO2PhysicalProperties[Viscosity (Pas)],CO2PhysicalProperties[Pressure (MPa)],Minimum_pipeline_pressure)*FrictionLossesBySizeFlow[[#This Row],[Pipeline diameter (inches)]]*SUMIFS(ConversionFactors[Conversion value],ConversionFactors[Initial unit],"Inch",ConversionFactors[Final unit],"metre"))) -> 6519985.11 | M62: =IF(FrictionLossesBySizeFlow[[#This Row],[ID]]>Total_flow_rates*Total_pipeline_sizes,"",1.325/(LN(Pipeline_roughness/(3.7*FrictionLossesBySizeFlow[[#This Row],[Pipeline diameter (inches)]]*SUMIFS(ConversionFactors[Conversion value],ConversionFactors[Initial unit],"Inch",ConversionFactors[Final unit],"metre"))+(5.74/FrictionLossesBySizeFlow[[#This Row],[Reynold''s Number]]^0.9)))^2) -> 0.01077223483 | N62: =IF(FrictionLossesBySizeFlow[[#This Row],[ID]]>Total_flow_rates*Total_pipeline_sizes,"",8*FrictionLossesBySizeFlow[[#This Row],[Friction factor]]*(FrictionLossesBySizeFlow[[#This Row],[Flow rate (Mt CO2/y)]]/Pipe_utilisation_factor*SUMIFS(ConversionFactors[Conversion value],ConversionFactors[Initial unit],"Mt",ConversionFactors[Final unit],"kg")/SUMIFS(ConversionFactors[Conversion value],ConversionFactors[Initial unit],"Year",ConversionFactors[Final unit],"second"))^2/(SUMIFS(CO2PhysicalProperties[Density (kg/m3)],CO2PhysicalProperties[Pressure (MPa)],Minimum_pipeline_pressure)*PI()^2*(FrictionLossesBySizeFlow[[#This Row],[Pipeline diameter (inches)]]*SUMIFS(ConversionFactors[Conversion value],ConversionFactors[Initial unit],"Inch",ConversionFactors[Final unit],"metre"))^5)/10^6) -> 1.094892624e-06
I63: 58 | J63: =IF(FrictionLossesBySizeFlow[[#This Row],[ID]]>Total_flow_rates*Total_pipeline_sizes,"",OFFSET(FlowRates[[#Headers],[Flow rate (Mt CO2/y)]],QUOTIENT(FrictionLossesBySizeFlow[[#This Row],[ID]]-1,Total_pipeline_sizes)+1,0)) -> 10 | K63: =IF(FrictionLossesBySizeFlow[[#This Row],[ID]]>Total_flow_rates*Total_pipeline_sizes,"",OFFSET(PipelineSizes[[#Headers],[Pipeline diameter (inches)]],MOD(FrictionLossesBySizeFlow[[#This Row],[ID]]-1,Total_pipeline_sizes)+1,0)) -> 48 | L63: =IF(FrictionLossesBySizeFlow[[#This Row],[ID]]>Total_flow_rates*Total_pipeline_sizes,"",4*FrictionLossesBySizeFlow[[#This Row],[Flow rate (Mt CO2/y)]]/Pipe_utilisation_factor*SUMIFS(ConversionFactors[Conversion value],ConversionFactors[Initial unit],"Mt",ConversionFactors[Final unit],"kg")/SUMIFS(ConversionFactors[Conversion value],ConversionFactors[Initial unit],"Year",ConversionFactors[Final unit],"second")/(PI()*SUMIFS(CO2PhysicalProperties[Viscosity (Pas)],CO2PhysicalProperties[Pressure (MPa)],Minimum_pipeline_pressure)*FrictionLossesBySizeFlow[[#This Row],[Pipeline diameter (inches)]]*SUMIFS(ConversionFactors[Conversion value],ConversionFactors[Initial unit],"Inch",ConversionFactors[Final unit],"metre"))) -> 5976653.018 | M63: =IF(FrictionLossesBySizeFlow[[#This Row],[ID]]>Total_flow_rates*Total_pipeline_sizes,"",1.325/(LN(Pipeline_roughness/(3.7*FrictionLossesBySizeFlow[[#This Row],[Pipeline diameter (inches)]]*SUMIFS(ConversionFactors[Conversion value],ConversionFactors[Initial unit],"Inch",ConversionFactors[Final unit],"metre"))+(5.74/FrictionLossesBySizeFlow[[#This Row],[Reynold''s Number]]^0.9)))^2) -> 0.0106980383 | N63: =IF(FrictionLossesBySizeFlow[[#This Row],[ID]]>Total_flow_rates*Total_pipeline_sizes,"",8*FrictionLossesBySizeFlow[[#This Row],[Friction factor]]*(FrictionLossesBySizeFlow[[#This Row],[Flow rate (Mt CO2/y)]]/Pipe_utilisation_factor*SUMIFS(ConversionFactors[Conversion value],ConversionFactors[Initial unit],"Mt",ConversionFactors[Final unit],"kg")/SUMIFS(ConversionFactors[Conversion value],ConversionFactors[Initial unit],"Year",ConversionFactors[Final unit],"second"))^2/(SUMIFS(CO2PhysicalProperties[Density (kg/m3)],CO2PhysicalProperties[Pressure (MPa)],Minimum_pipeline_pressure)*PI()^2*(FrictionLossesBySizeFlow[[#This Row],[Pipeline diameter (inches)]]*SUMIFS(ConversionFactors[Conversion value],ConversionFactors[Initial unit],"Inch",ConversionFactors[Final unit],"metre"))^5)/10^6) -> 7.03764023e-07
I64: 59 | J64: =IF(FrictionLossesBySizeFlow[[#This Row],[ID]]>Total_flow_rates*Total_pipeline_sizes,"",OFFSET(FlowRates[[#Headers],[Flow rate (Mt CO2/y)]],QUOTIENT(FrictionLossesBySizeFlow[[#This Row],[ID]]-1,Total_pipeline_sizes)+1,0)) -> 10 | K64: =IF(FrictionLossesBySizeFlow[[#This Row],[ID]]>Total_flow_rates*Total_pipeline_sizes,"",OFFSET(PipelineSizes[[#Headers],[Pipeline diameter (inches)]],MOD(FrictionLossesBySizeFlow[[#This Row],[ID]]-1,Total_pipeline_sizes)+1,0)) -> 52 | L64: =IF(FrictionLossesBySizeFlow[[#This Row],[ID]]>Total_flow_rates*Total_pipeline_sizes,"",4*FrictionLossesBySizeFlow[[#This Row],[Flow rate (Mt CO2/y)]]/Pipe_utilisation_factor*SUMIFS(ConversionFactors[Conversion value],ConversionFactors[Initial unit],"Mt",ConversionFactors[Final unit],"kg")/SUMIFS(ConversionFactors[Conversion value],ConversionFactors[Initial unit],"Year",ConversionFactors[Final unit],"second")/(PI()*SUMIFS(CO2PhysicalProperties[Viscosity (Pas)],CO2PhysicalProperties[Pressure (MPa)],Minimum_pipeline_pressure)*FrictionLossesBySizeFlow[[#This Row],[Pipeline diameter (inches)]]*SUMIFS(ConversionFactors[Conversion value],ConversionFactors[Initial unit],"Inch",ConversionFactors[Final unit],"metre"))) -> 5516910.478 | M64: =IF(FrictionLossesBySizeFlow[[#This Row],[ID]]>Total_flow_rates*Total_pipeline_sizes,"",1.325/(LN(Pipeline_roughness/(3.7*FrictionLossesBySizeFlow[[#This Row],[Pipeline diameter (inches)]]*SUMIFS(ConversionFactors[Conversion value],ConversionFactors[Initial unit],"Inch",ConversionFactors[Final unit],"metre"))+(5.74/FrictionLossesBySizeFlow[[#This Row],[Reynold''s Number]]^0.9)))^2) -> 0.01064029981 | N64: =IF(FrictionLossesBySizeFlow[[#This Row],[ID]]>Total_flow_rates*Total_pipeline_sizes,"",8*FrictionLossesBySizeFlow[[#This Row],[Friction factor]]*(FrictionLossesBySizeFlow[[#This Row],[Flow rate (Mt CO2/y)]]/Pipe_utilisation_factor*SUMIFS(ConversionFactors[Conversion value],ConversionFactors[Initial unit],"Mt",ConversionFactors[Final unit],"kg")/SUMIFS(ConversionFactors[Conversion value],ConversionFactors[Initial unit],"Year",ConversionFactors[Final unit],"second"))^2/(SUMIFS(CO2PhysicalProperties[Density (kg/m3)],CO2PhysicalProperties[Pressure (MPa)],Minimum_pipeline_pressure)*PI()^2*(FrictionLossesBySizeFlow[[#This Row],[Pipeline diameter (inches)]]*SUMIFS(ConversionFactors[Conversion value],ConversionFactors[Initial unit],"Inch",ConversionFactors[Final unit],"metre"))^5)/10^6) -> 4.691008793e-07
I65: 60 | J65: =IF(FrictionLossesBySizeFlow[[#This Row],[ID]]>Total_flow_rates*Total_pipeline_sizes,"",OFFSET(FlowRates[[#Headers],[Flow rate (Mt CO2/y)]],QUOTIENT(FrictionLossesBySizeFlow[[#This Row],[ID]]-1,Total_pipeline_sizes)+1,0)) -> 10 | K65: =IF(FrictionLossesBySizeFlow[[#This Row],[ID]]>Total_flow_rates*Total_pipeline_sizes,"",OFFSET(PipelineSizes[[#Headers],[Pipeline diameter (inches)]],MOD(FrictionLossesBySizeFlow[[#This Row],[ID]]-1,Total_pipeline_sizes)+1,0)) -> 56 | L65: =IF(FrictionLossesBySizeFlow[[#This Row],[ID]]>Total_flow_rates*Total_pipeline_sizes,"",4*FrictionLossesBySizeFlow[[#This Row],[Flow rate (Mt CO2/y)]]/Pipe_utilisation_factor*SUMIFS(ConversionFactors[Conversion value],ConversionFactors[Initial unit],"Mt",ConversionFactors[Final unit],"kg")/SUMIFS(ConversionFactors[Conversion value],ConversionFactors[Initial unit],"Year",ConversionFactors[Final unit],"second")/(PI()*SUMIFS(CO2PhysicalProperties[Viscosity (Pas)],CO2PhysicalProperties[Pressure (MPa)],Minimum_pipeline_pressure)*FrictionLossesBySizeFlow[[#This Row],[Pipeline diameter (inches)]]*SUMIFS(ConversionFactors[Conversion value],ConversionFactors[Initial unit],"Inch",ConversionFactors[Final unit],"metre"))) -> 5122845.444 | M65: =IF(FrictionLossesBySizeFlow[[#This Row],[ID]]>Total_flow_rates*Total_pipeline_sizes,"",1.325/(LN(Pipeline_roughness/(3.7*FrictionLossesBySizeFlow[[#This Row],[Pipeline diameter (inches)]]*SUMIFS(ConversionFactors[Conversion value],ConversionFactors[Initial unit],"Inch",ConversionFactors[Final unit],"metre"))+(5.74/FrictionLossesBySizeFlow[[#This Row],[Reynold''s Number]]^0.9)))^2) -> 0.01059606644 | N65: =IF(FrictionLossesBySizeFlow[[#This Row],[ID]]>Total_flow_rates*Total_pipeline_sizes,"",8*FrictionLossesBySizeFlow[[#This Row],[Friction factor]]*(FrictionLossesBySizeFlow[[#This Row],[Flow rate (Mt CO2/y)]]/Pipe_utilisation_factor*SUMIFS(ConversionFactors[Conversion value],ConversionFactors[Initial unit],"Mt",ConversionFactors[Final unit],"kg")/SUMIFS(ConversionFactors[Conversion value],ConversionFactors[Initial unit],"Year",ConversionFactors[Final unit],"second"))^2/(SUMIFS(CO2PhysicalProperties[Density (kg/m3)],CO2PhysicalProperties[Pressure (MPa)],Minimum_pipeline_pressure)*PI()^2*(FrictionLossesBySizeFlow[[#This Row],[Pipeline diameter (inches)]]*SUMIFS(ConversionFactors[Conversion value],ConversionFactors[Initial unit],"Inch",ConversionFactors[Final unit],"metre"))^5)/10^6) -> 3.2250291e-07
I66: 61 | J66: =IF(FrictionLossesBySizeFlow[[#This Row],[ID]]>Total_flow_rates*Total_pipeline_sizes,"",OFFSET(FlowRates[[#Headers],[Flow rate (Mt CO2/y)]],QUOTIENT(FrictionLossesBySizeFlow[[#This Row],[ID]]-1,Total_pipeline_sizes)+1,0)) -> 15 | K66: =IF(FrictionLossesBySizeFlow[[#This Row],[ID]]>Total_flow_rates*Total_pipeline_sizes,"",OFFSET(PipelineSizes[[#Headers],[Pipeline diameter (inches)]],MOD(FrictionLossesBySizeFlow[[#This Row],[ID]]-1,Total_pipeline_sizes)+1,0)) -> 4.5 | L66: =IF(FrictionLossesBySizeFlow[[#This Row],[ID]]>Total_flow_rates*Total_pipeline_sizes,"",4*FrictionLossesBySizeFlow[[#This Row],[Flow rate (Mt CO2/y)]]/Pipe_utilisation_factor*SUMIFS(ConversionFactors[Conversion value],ConversionFactors[Initial unit],"Mt",ConversionFactors[Final unit],"kg")/SUMIFS(ConversionFactors[Conversion value],ConversionFactors[Initial unit],"Year",ConversionFactors[Final unit],"second")/(PI()*SUMIFS(CO2PhysicalProperties[Viscosity (Pas)],CO2PhysicalProperties[Pressure (MPa)],Minimum_pipeline_pressure)*FrictionLossesBySizeFlow[[#This Row],[Pipeline diameter (inches)]]*SUMIFS(ConversionFactors[Conversion value],ConversionFactors[Initial unit],"Inch",ConversionFactors[Final unit],"metre"))) -> 95626448.28 | M66: =IF(FrictionLossesBySizeFlow[[#This Row],[ID]]>Total_flow_rates*Total_pipeline_sizes,"",1.325/(LN(Pipeline_roughness/(3.7*FrictionLossesBySizeFlow[[#This Row],[Pipeline diameter (inches)]]*SUMIFS(ConversionFactors[Conversion value],ConversionFactors[Initial unit],"Inch",ConversionFactors[Final unit],"metre"))+(5.74/FrictionLossesBySizeFlow[[#This Row],[Reynold''s Number]]^0.9)))^2) -> 0.01589022653 | N66: =IF(FrictionLossesBySizeFlow[[#This Row],[ID]]>Total_flow_rates*Total_pipeline_sizes,"",8*FrictionLossesBySizeFlow[[#This Row],[Friction factor]]*(FrictionLossesBySizeFlow[[#This Row],[Flow rate (Mt CO2/y)]]/Pipe_utilisation_factor*SUMIFS(ConversionFactors[Conversion value],ConversionFactors[Initial unit],"Mt",ConversionFactors[Final unit],"kg")/SUMIFS(ConversionFactors[Conversion value],ConversionFactors[Initial unit],"Year",ConversionFactors[Final unit],"second"))^2/(SUMIFS(CO2PhysicalProperties[Density (kg/m3)],CO2PhysicalProperties[Pressure (MPa)],Minimum_pipeline_pressure)*PI()^2*(FrictionLossesBySizeFlow[[#This Row],[Pipeline diameter (inches)]]*SUMIFS(ConversionFactors[Conversion value],ConversionFactors[Initial unit],"Inch",ConversionFactors[Final unit],"metre"))^5)/10^6) -> 0.3247724172
I67: 62 | J67: =IF(FrictionLossesBySizeFlow[[#This Row],[ID]]>Total_flow_rates*Total_pipeline_sizes,"",OFFSET(FlowRates[[#Headers],[Flow rate (Mt CO2/y)]],QUOTIENT(FrictionLossesBySizeFlow[[#This Row],[ID]]-1,Total_pipeline_sizes)+1,0)) -> 15 | K67: =IF(FrictionLossesBySizeFlow[[#This Row],[ID]]>Total_flow_rates*Total_pipeline_sizes,"",OFFSET(PipelineSizes[[#Headers],[Pipeline diameter (inches)]],MOD(FrictionLossesBySizeFlow[[#This Row],[ID]]-1,Total_pipeline_sizes)+1,0)) -> 6 | L67: =IF(FrictionLossesBySizeFlow[[#This Row],[ID]]>Total_flow_rates*Total_pipeline_sizes,"",4*FrictionLossesBySizeFlow[[#This Row],[Flow rate (Mt CO2/y)]]/Pipe_utilisation_factor*SUMIFS(ConversionFactors[Conversion value],ConversionFactors[Initial unit],"Mt",ConversionFactors[Final unit],"kg")/SUMIFS(ConversionFactors[Conversion value],ConversionFactors[Initial unit],"Year",ConversionFactors[Final unit],"second")/(PI()*SUMIFS(CO2PhysicalProperties[Viscosity (Pas)],CO2PhysicalProperties[Pressure (MPa)],Minimum_pipeline_pressure)*FrictionLossesBySizeFlow[[#This Row],[Pipeline diameter (inches)]]*SUMIFS(ConversionFactors[Conversion value],ConversionFactors[Initial unit],"Inch",ConversionFactors[Final unit],"metre"))) -> 71719836.21 | M67: =IF(FrictionLossesBySizeFlow[[#This Row],[ID]]>Total_flow_rates*Total_pipeline_sizes,"",1.325/(LN(Pipeline_roughness/(3.7*FrictionLossesBySizeFlow[[#This Row],[Pipeline diameter (inches)]]*SUMIFS(ConversionFactors[Conversion value],ConversionFactors[Initial unit],"Inch",ConversionFactors[Final unit],"metre"))+(5.74/FrictionLossesBySizeFlow[[#This Row],[Reynold''s Number]]^0.9)))^2) -> 0.01494243799 | N67: =IF(FrictionLossesBySizeFlow[[#This Row],[ID]]>Total_flow_rates*Total_pipeline_sizes,"",8*FrictionLossesBySizeFlow[[#This Row],[Friction factor]]*(FrictionLossesBySizeFlow[[#This Row],[Flow rate (Mt CO2/y)]]/Pipe_utilisation_factor*SUMIFS(ConversionFactors[Conversion value],ConversionFactors[Initial unit],"Mt",ConversionFactors[Final unit],"kg")/SUMIFS(ConversionFactors[Conversion value],ConversionFactors[Initial unit],"Year",ConversionFactors[Final unit],"second"))^2/(SUMIFS(CO2PhysicalProperties[Density (kg/m3)],CO2PhysicalProperties[Pressure (MPa)],Minimum_pipeline_pressure)*PI()^2*(FrictionLossesBySizeFlow[[#This Row],[Pipeline diameter (inches)]]*SUMIFS(ConversionFactors[Conversion value],ConversionFactors[Initial unit],"Inch",ConversionFactors[Final unit],"metre"))^5)/10^6) -> 0.0724730983
I68: 63 | J68: =IF(FrictionLossesBySizeFlow[[#This Row],[ID]]>Total_flow_rates*Total_pipeline_sizes,"",OFFSET(FlowRates[[#Headers],[Flow rate (Mt CO2/y)]],QUOTIENT(FrictionLossesBySizeFlow[[#This Row],[ID]]-1,Total_pipeline_sizes)+1,0)) -> 15 | K68: =IF(FrictionLossesBySizeFlow[[#This Row],[ID]]>Total_flow_rates*Total_pipeline_sizes,"",OFFSET(PipelineSizes[[#Headers],[Pipeline diameter (inches)]],MOD(FrictionLossesBySizeFlow[[#This Row],[ID]]-1,Total_pipeline_sizes)+1,0)) -> 8 | L68: =IF(FrictionLossesBySizeFlow[[#This Row],[ID]]>Total_flow_rates*Total_pipeline_sizes,"",4*FrictionLossesBySizeFlow[[#This Row],[Flow rate (Mt CO2/y)]]/Pipe_utilisation_factor*SUMIFS(ConversionFactors[Conversion value],ConversionFactors[Initial unit],"Mt",ConversionFactors[Final unit],"kg")/SUMIFS(ConversionFactors[Conversion value],ConversionFactors[Initial unit],"Year",ConversionFactors[Final unit],"second")/(PI()*SUMIFS(CO2PhysicalProperties[Viscosity (Pas)],CO2PhysicalProperties[Pressure (MPa)],Minimum_pipeline_pressure)*FrictionLossesBySizeFlow[[#This Row],[Pipeline diameter (inches)]]*SUMIFS(ConversionFactors[Conversion value],ConversionFactors[Initial unit],"Inch",ConversionFactors[Final unit],"metre"))) -> 53789877.16 | M68: =IF(FrictionLossesBySizeFlow[[#This Row],[ID]]>Total_flow_rates*Total_pipeline_sizes,"",1.325/(LN(Pipeline_roughness/(3.7*FrictionLossesBySizeFlow[[#This Row],[Pipeline diameter (inches)]]*SUMIFS(ConversionFactors[Conversion value],ConversionFactors[Initial unit],"Inch",ConversionFactors[Final unit],"metre"))+(5.74/FrictionLossesBySizeFlow[[#This Row],[Reynold''s Number]]^0.9)))^2) -> 0.01408228673 | N68: =IF(FrictionLossesBySizeFlow[[#This Row],[ID]]>Total_flow_rates*Total_pipeline_sizes,"",8*FrictionLossesBySizeFlow[[#This Row],[Friction factor]]*(FrictionLossesBySizeFlow[[#This Row],[Flow rate (Mt CO2/y)]]/Pipe_utilisation_factor*SUMIFS(ConversionFactors[Conversion value],ConversionFactors[Initial unit],"Mt",ConversionFactors[Final unit],"kg")/SUMIFS(ConversionFactors[Conversion value],ConversionFactors[Initial unit],"Year",ConversionFactors[Final unit],"second"))^2/(SUMIFS(CO2PhysicalProperties[Density (kg/m3)],CO2PhysicalProperties[Pressure (MPa)],Minimum_pipeline_pressure)*PI()^2*(FrictionLossesBySizeFlow[[#This Row],[Pipeline diameter (inches)]]*SUMIFS(ConversionFactors[Conversion value],ConversionFactors[Initial unit],"Inch",ConversionFactors[Final unit],"metre"))^5)/10^6) -> 0.01620820294
I69: 64 | J69: =IF(FrictionLossesBySizeFlow[[#This Row],[ID]]>Total_flow_rates*Total_pipeline_sizes,"",OFFSET(FlowRates[[#Headers],[Flow rate (Mt CO2/y)]],QUOTIENT(FrictionLossesBySizeFlow[[#This Row],[ID]]-1,Total_pipeline_sizes)+1,0)) -> 15 | K69: =IF(FrictionLossesBySizeFlow[[#This Row],[ID]]>Total_flow_rates*Total_pipeline_sizes,"",OFFSET(PipelineSizes[[#Headers],[Pipeline diameter (inches)]],MOD(FrictionLossesBySizeFlow[[#This Row],[ID]]-1,Total_pipeline_sizes)+1,0)) -> 10 | L69: =IF(FrictionLossesBySizeFlow[[#This Row],[ID]]>Total_flow_rates*Total_pipeline_sizes,"",4*FrictionLossesBySizeFlow[[#This Row],[Flow rate (Mt CO2/y)]]/Pipe_utilisation_factor*SUMIFS(ConversionFactors[Conversion value],ConversionFactors[Initial unit],"Mt",ConversionFactors[Final unit],"kg")/SUMIFS(ConversionFactors[Conversion value],ConversionFactors[Initial unit],"Year",ConversionFactors[Final unit],"second")/(PI()*SUMIFS(CO2PhysicalProperties[Viscosity (Pas)],CO2PhysicalProperties[Pressure (MPa)],Minimum_pipeline_pressure)*FrictionLossesBySizeFlow[[#This Row],[Pipeline diameter (inches)]]*SUMIFS(ConversionFactors[Conversion value],ConversionFactors[Initial unit],"Inch",ConversionFactors[Final unit],"metre"))) -> 43031901.73 | M69: =IF(FrictionLossesBySizeFlow[[#This Row],[ID]]>Total_flow_rates*Total_pipeline_sizes,"",1.325/(LN(Pipeline_roughness/(3.7*FrictionLossesBySizeFlow[[#This Row],[Pipeline diameter (inches)]]*SUMIFS(ConversionFactors[Conversion value],ConversionFactors[Initial unit],"Inch",ConversionFactors[Final unit],"metre"))+(5.74/FrictionLossesBySizeFlow[[#This Row],[Reynold''s Number]]^0.9)))^2) -> 0.01347082438 | N69: =IF(FrictionLossesBySizeFlow[[#This Row],[ID]]>Total_flow_rates*Total_pipeline_sizes,"",8*FrictionLossesBySizeFlow[[#This Row],[Friction factor]]*(FrictionLossesBySizeFlow[[#This Row],[Flow rate (Mt CO2/y)]]/Pipe_utilisation_factor*SUMIFS(ConversionFactors[Conversion value],ConversionFactors[Initial unit],"Mt",ConversionFactors[Final unit],"kg")/SUMIFS(ConversionFactors[Conversion value],ConversionFactors[Initial unit],"Year",ConversionFactors[Final unit],"second"))^2/(SUMIFS(CO2PhysicalProperties[Density (kg/m3)],CO2PhysicalProperties[Pressure (MPa)],Minimum_pipeline_pressure)*PI()^2*(FrictionLossesBySizeFlow[[#This Row],[Pipeline diameter (inches)]]*SUMIFS(ConversionFactors[Conversion value],ConversionFactors[Initial unit],"Inch",ConversionFactors[Final unit],"metre"))^5)/10^6) -> 0.005080492239
I70: 65 | J70: =IF(FrictionLossesBySizeFlow[[#This Row],[ID]]>Total_flow_rates*Total_pipeline_sizes,"",OFFSET(FlowRates[[#Headers],[Flow rate (Mt CO2/y)]],QUOTIENT(FrictionLossesBySizeFlow[[#This Row],[ID]]-1,Total_pipeline_sizes)+1,0)) -> 15 | K70: =IF(FrictionLossesBySizeFlow[[#This Row],[ID]]>Total_flow_rates*Total_pipeline_sizes,"",OFFSET(PipelineSizes[[#Headers],[Pipeline diameter (inches)]],MOD(FrictionLossesBySizeFlow[[#This Row],[ID]]-1,Total_pipeline_sizes)+1,0)) -> 12 | L70: =IF(FrictionLossesBySizeFlow[[#This Row],[ID]]>Total_flow_rates*Total_pipeline_sizes,"",4*FrictionLossesBySizeFlow[[#This Row],[Flow rate (Mt CO2/y)]]/Pipe_utilisation_factor*SUMIFS(ConversionFactors[Conversion value],ConversionFactors[Initial unit],"Mt",ConversionFactors[Final unit],"kg")/SUMIFS(ConversionFactors[Conversion value],ConversionFactors[Initial unit],"Year",ConversionFactors[Final unit],"second")/(PI()*SUMIFS(CO2PhysicalProperties[Viscosity (Pas)],CO2PhysicalProperties[Pressure (MPa)],Minimum_pipeline_pressure)*FrictionLossesBySizeFlow[[#This Row],[Pipeline diameter (inches)]]*SUMIFS(ConversionFactors[Conversion value],ConversionFactors[Initial unit],"Inch",ConversionFactors[Final unit],"metre"))) -> 35859918.11 | M70: =IF(FrictionLossesBySizeFlow[[#This Row],[ID]]>Total_flow_rates*Total_pipeline_sizes,"",1.325/(LN(Pipeline_roughness/(3.7*FrictionLossesBySizeFlow[[#This Row],[Pipeline diameter (inches)]]*SUMIFS(ConversionFactors[Conversion value],ConversionFactors[Initial unit],"Inch",ConversionFactors[Final unit],"metre"))+(5.74/FrictionLossesBySizeFlow[[#This Row],[Reynold''s Number]]^0.9)))^2) -> 0.01300554549 | N70: =IF(FrictionLossesBySizeFlow[[#This Row],[ID]]>Total_flow_rates*Total_pipeline_sizes,"",8*FrictionLossesBySizeFlow[[#This Row],[Friction factor]]*(FrictionLossesBySizeFlow[[#This Row],[Flow rate (Mt CO2/y)]]/Pipe_utilisation_factor*SUMIFS(ConversionFactors[Conversion value],ConversionFactors[Initial unit],"Mt",ConversionFactors[Final unit],"kg")/SUMIFS(ConversionFactors[Conversion value],ConversionFactors[Initial unit],"Year",ConversionFactors[Final unit],"second"))^2/(SUMIFS(CO2PhysicalProperties[Density (kg/m3)],CO2PhysicalProperties[Pressure (MPa)],Minimum_pipeline_pressure)*PI()^2*(FrictionLossesBySizeFlow[[#This Row],[Pipeline diameter (inches)]]*SUMIFS(ConversionFactors[Conversion value],ConversionFactors[Initial unit],"Inch",ConversionFactors[Final unit],"metre"))^5)/10^6) -> 0.001971214841
I71: 66 | J71: =IF(FrictionLossesBySizeFlow[[#This Row],[ID]]>Total_flow_rates*Total_pipeline_sizes,"",OFFSET(FlowRates[[#Headers],[Flow rate (Mt CO2/y)]],QUOTIENT(FrictionLossesBySizeFlow[[#This Row],[ID]]-1,Total_pipeline_sizes)+1,0)) -> 15 | K71: =IF(FrictionLossesBySizeFlow[[#This Row],[ID]]>Total_flow_rates*Total_pipeline_sizes,"",OFFSET(PipelineSizes[[#Headers],[Pipeline diameter (inches)]],MOD(FrictionLossesBySizeFlow[[#This Row],[ID]]-1,Total_pipeline_sizes)+1,0)) -> 14 | L71: =IF(FrictionLossesBySizeFlow[[#This Row],[ID]]>Total_flow_rates*Total_pipeline_sizes,"",4*FrictionLossesBySizeFlow[[#This Row],[Flow rate (Mt CO2/y)]]/Pipe_utilisation_factor*SUMIFS(ConversionFactors[Conversion value],ConversionFactors[Initial unit],"Mt",ConversionFactors[Final unit],"kg")/SUMIFS(ConversionFactors[Conversion value],ConversionFactors[Initial unit],"Year",ConversionFactors[Final unit],"second")/(PI()*SUMIFS(CO2PhysicalProperties[Viscosity (Pas)],CO2PhysicalProperties[Pressure (MPa)],Minimum_pipeline_pressure)*FrictionLossesBySizeFlow[[#This Row],[Pipeline diameter (inches)]]*SUMIFS(ConversionFactors[Conversion value],ConversionFactors[Initial unit],"Inch",ConversionFactors[Final unit],"metre"))) -> 30737072.66 | M71: =IF(FrictionLossesBySizeFlow[[#This Row],[ID]]>Total_flow_rates*Total_pipeline_sizes,"",1.325/(LN(Pipeline_roughness/(3.7*FrictionLossesBySizeFlow[[#This Row],[Pipeline diameter (inches)]]*SUMIFS(ConversionFactors[Conversion value],ConversionFactors[Initial unit],"Inch",ConversionFactors[Final unit],"metre"))+(5.74/FrictionLossesBySizeFlow[[#This Row],[Reynold''s Number]]^0.9)))^2) -> 0.01263564192 | N71: =IF(FrictionLossesBySizeFlow[[#This Row],[ID]]>Total_flow_rates*Total_pipeline_sizes,"",8*FrictionLossesBySizeFlow[[#This Row],[Friction factor]]*(FrictionLossesBySizeFlow[[#This Row],[Flow rate (Mt CO2/y)]]/Pipe_utilisation_factor*SUMIFS(ConversionFactors[Conversion value],ConversionFactors[Initial unit],"Mt",ConversionFactors[Final unit],"kg")/SUMIFS(ConversionFactors[Conversion value],ConversionFactors[Initial unit],"Year",ConversionFactors[Final unit],"second"))^2/(SUMIFS(CO2PhysicalProperties[Density (kg/m3)],CO2PhysicalProperties[Pressure (MPa)],Minimum_pipeline_pressure)*PI()^2*(FrictionLossesBySizeFlow[[#This Row],[Pipeline diameter (inches)]]*SUMIFS(ConversionFactors[Conversion value],ConversionFactors[Initial unit],"Inch",ConversionFactors[Final unit],"metre"))^5)/10^6) -> 0.0008860714627
I72: 67 | J72: =IF(FrictionLossesBySizeFlow[[#This Row],[ID]]>Total_flow_rates*Total_pipeline_sizes,"",OFFSET(FlowRates[[#Headers],[Flow rate (Mt CO2/y)]],QUOTIENT(FrictionLossesBySizeFlow[[#This Row],[ID]]-1,Total_pipeline_sizes)+1,0)) -> 15 | K72: =IF(FrictionLossesBySizeFlow[[#This Row],[ID]]>Total_flow_rates*Total_pipeline_sizes,"",OFFSET(PipelineSizes[[#Headers],[Pipeline diameter (inches)]],MOD(FrictionLossesBySizeFlow[[#This Row],[ID]]-1,Total_pipeline_sizes)+1,0)) -> 16 | L72: =IF(FrictionLossesBySizeFlow[[#This Row],[ID]]>Total_flow_rates*Total_pipeline_sizes,"",4*FrictionLossesBySizeFlow[[#This Row],[Flow rate (Mt CO2/y)]]/Pipe_utilisation_factor*SUMIFS(ConversionFactors[Conversion value],ConversionFactors[Initial unit],"Mt",ConversionFactors[Final unit],"kg")/SUMIFS(ConversionFactors[Conversion value],ConversionFactors[Initial unit],"Year",ConversionFactors[Final unit],"second")/(PI()*SUMIFS(CO2PhysicalProperties[Viscosity (Pas)],CO2PhysicalProperties[Pressure (MPa)],Minimum_pipeline_pressure)*FrictionLossesBySizeFlow[[#This Row],[Pipeline diameter (inches)]]*SUMIFS(ConversionFactors[Conversion value],ConversionFactors[Initial unit],"Inch",ConversionFactors[Final unit],"metre"))) -> 26894938.58 | M72: =IF(FrictionLossesBySizeFlow[[#This Row],[ID]]>Total_flow_rates*Total_pipeline_sizes,"",1.325/(LN(Pipeline_roughness/(3.7*FrictionLossesBySizeFlow[[#This Row],[Pipeline diameter (inches)]]*SUMIFS(ConversionFactors[Conversion value],ConversionFactors[Initial unit],"Inch",ConversionFactors[Final unit],"metre"))+(5.74/FrictionLossesBySizeFlow[[#This Row],[Reynold''s Number]]^0.9)))^2) -> 0.01233248786 | N72: =IF(FrictionLossesBySizeFlow[[#This Row],[ID]]>Total_flow_rates*Total_pipeline_sizes,"",8*FrictionLossesBySizeFlow[[#This Row],[Friction factor]]*(FrictionLossesBySizeFlow[[#This Row],[Flow rate (Mt CO2/y)]]/Pipe_utilisation_factor*SUMIFS(ConversionFactors[Conversion value],ConversionFactors[Initial unit],"Mt",ConversionFactors[Final unit],"kg")/SUMIFS(ConversionFactors[Conversion value],ConversionFactors[Initial unit],"Year",ConversionFactors[Final unit],"second"))^2/(SUMIFS(CO2PhysicalProperties[Density (kg/m3)],CO2PhysicalProperties[Pressure (MPa)],Minimum_pipeline_pressure)*PI()^2*(FrictionLossesBySizeFlow[[#This Row],[Pipeline diameter (inches)]]*SUMIFS(ConversionFactors[Conversion value],ConversionFactors[Initial unit],"Inch",ConversionFactors[Final unit],"metre"))^5)/10^6) -> 0.0004435702405
I73: 68 | J73: =IF(FrictionLossesBySizeFlow[[#This Row],[ID]]>Total_flow_rates*Total_pipeline_sizes,"",OFFSET(FlowRates[[#Headers],[Flow rate (Mt CO2/y)]],QUOTIENT(FrictionLossesBySizeFlow[[#This Row],[ID]]-1,Total_pipeline_sizes)+1,0)) -> 15 | K73: =IF(FrictionLossesBySizeFlow[[#This Row],[ID]]>Total_flow_rates*Total_pipeline_sizes,"",OFFSET(PipelineSizes[[#Headers],[Pipeline diameter (inches)]],MOD(FrictionLossesBySizeFlow[[#This Row],[ID]]-1,Total_pipeline_sizes)+1,0)) -> 18 | L73: =IF(FrictionLossesBySizeFlow[[#This Row],[ID]]>Total_flow_rates*Total_pipeline_sizes,"",4*FrictionLossesBySizeFlow[[#This Row],[Flow rate (Mt CO2/y)]]/Pipe_utilisation_factor*SUMIFS(ConversionFactors[Conversion value],ConversionFactors[Initial unit],"Mt",ConversionFactors[Final unit],"kg")/SUMIFS(ConversionFactors[Conversion value],ConversionFactors[Initial unit],"Year",ConversionFactors[Final unit],"second")/(PI()*SUMIFS(CO2PhysicalProperties[Viscosity (Pas)],CO2PhysicalProperties[Pressure (MPa)],Minimum_pipeline_pressure)*FrictionLossesBySizeFlow[[#This Row],[Pipeline diameter (inches)]]*SUMIFS(ConversionFactors[Conversion value],ConversionFactors[Initial unit],"Inch",ConversionFactors[Final unit],"metre"))) -> 23906612.07 | M73: =IF(FrictionLossesBySizeFlow[[#This Row],[ID]]>Total_flow_rates*Total_pipeline_sizes,"",1.325/(LN(Pipeline_roughness/(3.7*FrictionLossesBySizeFlow[[#This Row],[Pipeline diameter (inches)]]*SUMIFS(ConversionFactors[Conversion value],ConversionFactors[Initial unit],"Inch",ConversionFactors[Final unit],"metre"))+(5.74/FrictionLossesBySizeFlow[[#This Row],[Reynold''s Number]]^0.9)))^2) -> 0.01207847211 | N73: =IF(FrictionLossesBySizeFlow[[#This Row],[ID]]>Total_flow_rates*Total_pipeline_sizes,"",8*FrictionLossesBySizeFlow[[#This Row],[Friction factor]]*(FrictionLossesBySizeFlow[[#This Row],[Flow rate (Mt CO2/y)]]/Pipe_utilisation_factor*SUMIFS(ConversionFactors[Conversion value],ConversionFactors[Initial unit],"Mt",ConversionFactors[Final unit],"kg")/SUMIFS(ConversionFactors[Conversion value],ConversionFactors[Initial unit],"Year",ConversionFactors[Final unit],"second"))^2/(SUMIFS(CO2PhysicalProperties[Density (kg/m3)],CO2PhysicalProperties[Pressure (MPa)],Minimum_pipeline_pressure)*PI()^2*(FrictionLossesBySizeFlow[[#This Row],[Pipeline diameter (inches)]]*SUMIFS(ConversionFactors[Conversion value],ConversionFactors[Initial unit],"Inch",ConversionFactors[Final unit],"metre"))^5)/10^6) -> 0.0002410799503
I74: 69 | J74: =IF(FrictionLossesBySizeFlow[[#This Row],[ID]]>Total_flow_rates*Total_pipeline_sizes,"",OFFSET(FlowRates[[#Headers],[Flow rate (Mt CO2/y)]],QUOTIENT(FrictionLossesBySizeFlow[[#This Row],[ID]]-1,Total_pipeline_sizes)+1,0)) -> 15 | K74: =IF(FrictionLossesBySizeFlow[[#This Row],[ID]]>Total_flow_rates*Total_pipeline_sizes,"",OFFSET(PipelineSizes[[#Headers],[Pipeline diameter (inches)]],MOD(FrictionLossesBySizeFlow[[#This Row],[ID]]-1,Total_pipeline_sizes)+1,0)) -> 20 | L74: =IF(FrictionLossesBySizeFlow[[#This Row],[ID]]>Total_flow_rates*Total_pipeline_sizes,"",4*FrictionLossesBySizeFlow[[#This Row],[Flow rate (Mt CO2/y)]]/Pipe_utilisation_factor*SUMIFS(ConversionFactors[Conversion value],ConversionFactors[Initial unit],"Mt",ConversionFactors[Final unit],"kg")/SUMIFS(ConversionFactors[Conversion value],ConversionFactors[Initial unit],"Year",ConversionFactors[Final unit],"second")/(PI()*SUMIFS(CO2PhysicalProperties[Viscosity (Pas)],CO2PhysicalProperties[Pressure (MPa)],Minimum_pipeline_pressure)*FrictionLossesBySizeFlow[[#This Row],[Pipeline diameter (inches)]]*SUMIFS(ConversionFactors[Conversion value],ConversionFactors[Initial unit],"Inch",ConversionFactors[Final unit],"metre"))) -> 21515950.86 | M74: =IF(FrictionLossesBySizeFlow[[#This Row],[ID]]>Total_flow_rates*Total_pipeline_sizes,"",1.325/(LN(Pipeline_roughness/(3.7*FrictionLossesBySizeFlow[[#This Row],[Pipeline diameter (inches)]]*SUMIFS(ConversionFactors[Conversion value],ConversionFactors[Initial unit],"Inch",ConversionFactors[Final unit],"metre"))+(5.74/FrictionLossesBySizeFlow[[#This Row],[Reynold''s Number]]^0.9)))^2) -> 0.01186203815 | N74: =IF(FrictionLossesBySizeFlow[[#This Row],[ID]]>Total_flow_rates*Total_pipeline_sizes,"",8*FrictionLossesBySizeFlow[[#This Row],[Friction factor]]*(FrictionLossesBySizeFlow[[#This Row],[Flow rate (Mt CO2/y)]]/Pipe_utilisation_factor*SUMIFS(ConversionFactors[Conversion value],ConversionFactors[Initial unit],"Mt",ConversionFactors[Final unit],"kg")/SUMIFS(ConversionFactors[Conversion value],ConversionFactors[Initial unit],"Year",ConversionFactors[Final unit],"second"))^2/(SUMIFS(CO2PhysicalProperties[Density (kg/m3)],CO2PhysicalProperties[Pressure (MPa)],Minimum_pipeline_pressure)*PI()^2*(FrictionLossesBySizeFlow[[#This Row],[Pipeline diameter (inches)]]*SUMIFS(ConversionFactors[Conversion value],ConversionFactors[Initial unit],"Inch",ConversionFactors[Final unit],"metre"))^5)/10^6) -> 0.0001398044374
I75: 70 | J75: =IF(FrictionLossesBySizeFlow[[#This Row],[ID]]>Total_flow_rates*Total_pipeline_sizes,"",OFFSET(FlowRates[[#Headers],[Flow rate (Mt CO2/y)]],QUOTIENT(FrictionLossesBySizeFlow[[#This Row],[ID]]-1,Total_pipeline_sizes)+1,0)) -> 15 | K75: =IF(FrictionLossesBySizeFlow[[#This Row],[ID]]>Total_flow_rates*Total_pipeline_sizes,"",OFFSET(PipelineSizes[[#Headers],[Pipeline diameter (inches)]],MOD(FrictionLossesBySizeFlow[[#This Row],[ID]]-1,Total_pipeline_sizes)+1,0)) -> 22 | L75: =IF(FrictionLossesBySizeFlow[[#This Row],[ID]]>Total_flow_rates*Total_pipeline_sizes,"",4*FrictionLossesBySizeFlow[[#This Row],[Flow rate (Mt CO2/y)]]/Pipe_utilisation_factor*SUMIFS(ConversionFactors[Conversion value],ConversionFactors[Initial unit],"Mt",ConversionFactors[Final unit],"kg")/SUMIFS(ConversionFactors[Conversion value],ConversionFactors[Initial unit],"Year",ConversionFactors[Final unit],"second")/(PI()*SUMIFS(CO2PhysicalProperties[Viscosity (Pas)],CO2PhysicalProperties[Pressure (MPa)],Minimum_pipeline_pressure)*FrictionLossesBySizeFlow[[#This Row],[Pipeline diameter (inches)]]*SUMIFS(ConversionFactors[Conversion value],ConversionFactors[Initial unit],"Inch",ConversionFactors[Final unit],"metre"))) -> 19559955.33 | M75: =IF(FrictionLossesBySizeFlow[[#This Row],[ID]]>Total_flow_rates*Total_pipeline_sizes,"",1.325/(LN(Pipeline_roughness/(3.7*FrictionLossesBySizeFlow[[#This Row],[Pipeline diameter (inches)]]*SUMIFS(ConversionFactors[Conversion value],ConversionFactors[Initial unit],"Inch",ConversionFactors[Final unit],"metre"))+(5.74/FrictionLossesBySizeFlow[[#This Row],[Reynold''s Number]]^0.9)))^2) -> 0.01167521797 | N75: =IF(FrictionLossesBySizeFlow[[#This Row],[ID]]>Total_flow_rates*Total_pipeline_sizes,"",8*FrictionLossesBySizeFlow[[#This Row],[Friction factor]]*(FrictionLossesBySizeFlow[[#This Row],[Flow rate (Mt CO2/y)]]/Pipe_utilisation_factor*SUMIFS(ConversionFactors[Conversion value],ConversionFactors[Initial unit],"Mt",ConversionFactors[Final unit],"kg")/SUMIFS(ConversionFactors[Conversion value],ConversionFactors[Initial unit],"Year",ConversionFactors[Final unit],"second"))^2/(SUMIFS(CO2PhysicalProperties[Density (kg/m3)],CO2PhysicalProperties[Pressure (MPa)],Minimum_pipeline_pressure)*PI()^2*(FrictionLossesBySizeFlow[[#This Row],[Pipeline diameter (inches)]]*SUMIFS(ConversionFactors[Conversion value],ConversionFactors[Initial unit],"Inch",ConversionFactors[Final unit],"metre"))^5)/10^6) -> 8.544038785e-05
I76: 71 | J76: =IF(FrictionLossesBySizeFlow[[#This Row],[ID]]>Total_flow_rates*Total_pipeline_sizes,"",OFFSET(FlowRates[[#Headers],[Flow rate (Mt CO2/y)]],QUOTIENT(FrictionLossesBySizeFlow[[#This Row],[ID]]-1,Total_pipeline_sizes)+1,0)) -> 15 | K76: =IF(FrictionLossesBySizeFlow[[#This Row],[ID]]>Total_flow_rates*Total_pipeline_sizes,"",OFFSET(PipelineSizes[[#Headers],[Pipeline diameter (inches)]],MOD(FrictionLossesBySizeFlow[[#This Row],[ID]]-1,Total_pipeline_sizes)+1,0)) -> 24 | L76: =IF(FrictionLossesBySizeFlow[[#This Row],[ID]]>Total_flow_rates*Total_pipeline_sizes,"",4*FrictionLossesBySizeFlow[[#This Row],[Flow rate (Mt CO2/y)]]/Pipe_utilisation_factor*SUMIFS(ConversionFactors[Conversion value],ConversionFactors[Initial unit],"Mt",ConversionFactors[Final unit],"kg")/SUMIFS(ConversionFactors[Conversion value],ConversionFactors[Initial unit],"Year",ConversionFactors[Final unit],"second")/(PI()*SUMIFS(CO2PhysicalProperties[Viscosity (Pas)],CO2PhysicalProperties[Pressure (MPa)],Minimum_pipeline_pressure)*FrictionLossesBySizeFlow[[#This Row],[Pipeline diameter (inches)]]*SUMIFS(ConversionFactors[Conversion value],ConversionFactors[Initial unit],"Inch",ConversionFactors[Final unit],"metre"))) -> 17929959.05 | M76: =IF(FrictionLossesBySizeFlow[[#This Row],[ID]]>Total_flow_rates*Total_pipeline_sizes,"",1.325/(LN(Pipeline_roughness/(3.7*FrictionLossesBySizeFlow[[#This Row],[Pipeline diameter (inches)]]*SUMIFS(ConversionFactors[Conversion value],ConversionFactors[Initial unit],"Inch",ConversionFactors[Final unit],"metre"))+(5.74/FrictionLossesBySizeFlow[[#This Row],[Reynold''s Number]]^0.9)))^2) -> 0.01151229782 | N76: =IF(FrictionLossesBySizeFlow[[#This Row],[ID]]>Total_flow_rates*Total_pipeline_sizes,"",8*FrictionLossesBySizeFlow[[#This Row],[Friction factor]]*(FrictionLossesBySizeFlow[[#This Row],[Flow rate (Mt CO2/y)]]/Pipe_utilisation_factor*SUMIFS(ConversionFactors[Conversion value],ConversionFactors[Initial unit],"Mt",ConversionFactors[Final unit],"kg")/SUMIFS(ConversionFactors[Conversion value],ConversionFactors[Initial unit],"Year",ConversionFactors[Final unit],"second"))^2/(SUMIFS(CO2PhysicalProperties[Density (kg/m3)],CO2PhysicalProperties[Pressure (MPa)],Minimum_pipeline_pressure)*PI()^2*(FrictionLossesBySizeFlow[[#This Row],[Pipeline diameter (inches)]]*SUMIFS(ConversionFactors[Conversion value],ConversionFactors[Initial unit],"Inch",ConversionFactors[Final unit],"metre"))^5)/10^6) -> 5.452773089e-05
I77: 72 | J77: =IF(FrictionLossesBySizeFlow[[#This Row],[ID]]>Total_flow_rates*Total_pipeline_sizes,"",OFFSET(FlowRates[[#Headers],[Flow rate (Mt CO2/y)]],QUOTIENT(FrictionLossesBySizeFlow[[#This Row],[ID]]-1,Total_pipeline_sizes)+1,0)) -> 15 | K77: =IF(FrictionLossesBySizeFlow[[#This Row],[ID]]>Total_flow_rates*Total_pipeline_sizes,"",OFFSET(PipelineSizes[[#Headers],[Pipeline diameter (inches)]],MOD(FrictionLossesBySizeFlow[[#This Row],[ID]]-1,Total_pipeline_sizes)+1,0)) -> 26 | L77: =IF(FrictionLossesBySizeFlow[[#This Row],[ID]]>Total_flow_rates*Total_pipeline_sizes,"",4*FrictionLossesBySizeFlow[[#This Row],[Flow rate (Mt CO2/y)]]/Pipe_utilisation_factor*SUMIFS(ConversionFactors[Conversion value],ConversionFactors[Initial unit],"Mt",ConversionFactors[Final unit],"kg")/SUMIFS(ConversionFactors[Conversion value],ConversionFactors[Initial unit],"Year",ConversionFactors[Final unit],"second")/(PI()*SUMIFS(CO2PhysicalProperties[Viscosity (Pas)],CO2PhysicalProperties[Pressure (MPa)],Minimum_pipeline_pressure)*FrictionLossesBySizeFlow[[#This Row],[Pipeline diameter (inches)]]*SUMIFS(ConversionFactors[Conversion value],ConversionFactors[Initial unit],"Inch",ConversionFactors[Final unit],"metre"))) -> 16550731.43 | M77: =IF(FrictionLossesBySizeFlow[[#This Row],[ID]]>Total_flow_rates*Total_pipeline_sizes,"",1.325/(LN(Pipeline_roughness/(3.7*FrictionLossesBySizeFlow[[#This Row],[Pipeline diameter (inches)]]*SUMIFS(ConversionFactors[Conversion value],ConversionFactors[Initial unit],"Inch",ConversionFactors[Final unit],"metre"))+(5.74/FrictionLossesBySizeFlow[[#This Row],[Reynold''s Number]]^0.9)))^2) -> 0.01136904741 | N77: =IF(FrictionLossesBySizeFlow[[#This Row],[ID]]>Total_flow_rates*Total_pipeline_sizes,"",8*FrictionLossesBySizeFlow[[#This Row],[Friction factor]]*(FrictionLossesBySizeFlow[[#This Row],[Flow rate (Mt CO2/y)]]/Pipe_utilisation_factor*SUMIFS(ConversionFactors[Conversion value],ConversionFactors[Initial unit],"Mt",ConversionFactors[Final unit],"kg")/SUMIFS(ConversionFactors[Conversion value],ConversionFactors[Initial unit],"Year",ConversionFactors[Final unit],"second"))^2/(SUMIFS(CO2PhysicalProperties[Density (kg/m3)],CO2PhysicalProperties[Pressure (MPa)],Minimum_pipeline_pressure)*PI()^2*(FrictionLossesBySizeFlow[[#This Row],[Pipeline diameter (inches)]]*SUMIFS(ConversionFactors[Conversion value],ConversionFactors[Initial unit],"Inch",ConversionFactors[Final unit],"metre"))^5)/10^6) -> 3.608851035e-05
I78: 73 | J78: =IF(FrictionLossesBySizeFlow[[#This Row],[ID]]>Total_flow_rates*Total_pipeline_sizes,"",OFFSET(FlowRates[[#Headers],[Flow rate (Mt CO2/y)]],QUOTIENT(FrictionLossesBySizeFlow[[#This Row],[ID]]-1,Total_pipeline_sizes)+1,0)) -> 15 | K78: =IF(FrictionLossesBySizeFlow[[#This Row],[ID]]>Total_flow_rates*Total_pipeline_sizes,"",OFFSET(PipelineSizes[[#Headers],[Pipeline diameter (inches)]],MOD(FrictionLossesBySizeFlow[[#This Row],[ID]]-1,Total_pipeline_sizes)+1,0)) -> 28 | L78: =IF(FrictionLossesBySizeFlow[[#This Row],[ID]]>Total_flow_rates*Total_pipeline_sizes,"",4*FrictionLossesBySizeFlow[[#This Row],[Flow rate (Mt CO2/y)]]/Pipe_utilisation_factor*SUMIFS(ConversionFactors[Conversion value],ConversionFactors[Initial unit],"Mt",ConversionFactors[Final unit],"kg")/SUMIFS(ConversionFactors[Conversion value],ConversionFactors[Initial unit],"Year",ConversionFactors[Final unit],"second")/(PI()*SUMIFS(CO2PhysicalProperties[Viscosity (Pas)],CO2PhysicalProperties[Pressure (MPa)],Minimum_pipeline_pressure)*FrictionLossesBySizeFlow[[#This Row],[Pipeline diameter (inches)]]*SUMIFS(ConversionFactors[Conversion value],ConversionFactors[Initial unit],"Inch",ConversionFactors[Final unit],"metre"))) -> 15368536.33 | M78: =IF(FrictionLossesBySizeFlow[[#This Row],[ID]]>Total_flow_rates*Total_pipeline_sizes,"",1.325/(LN(Pipeline_roughness/(3.7*FrictionLossesBySizeFlow[[#This Row],[Pipeline diameter (inches)]]*SUMIFS(ConversionFactors[Conversion value],ConversionFactors[Initial unit],"Inch",ConversionFactors[Final unit],"metre"))+(5.74/FrictionLossesBySizeFlow[[#This Row],[Reynold''s Number]]^0.9)))^2) -> 0.01124225047 | N78: =IF(FrictionLossesBySizeFlow[[#This Row],[ID]]>Total_flow_rates*Total_pipeline_sizes,"",8*FrictionLossesBySizeFlow[[#This Row],[Friction factor]]*(FrictionLossesBySizeFlow[[#This Row],[Flow rate (Mt CO2/y)]]/Pipe_utilisation_factor*SUMIFS(ConversionFactors[Conversion value],ConversionFactors[Initial unit],"Mt",ConversionFactors[Final unit],"kg")/SUMIFS(ConversionFactors[Conversion value],ConversionFactors[Initial unit],"Year",ConversionFactors[Final unit],"second"))^2/(SUMIFS(CO2PhysicalProperties[Density (kg/m3)],CO2PhysicalProperties[Pressure (MPa)],Minimum_pipeline_pressure)*PI()^2*(FrictionLossesBySizeFlow[[#This Row],[Pipeline diameter (inches)]]*SUMIFS(ConversionFactors[Conversion value],ConversionFactors[Initial unit],"Inch",ConversionFactors[Final unit],"metre"))^5)/10^6) -> 2.463625655e-05
I79: 74 | J79: =IF(FrictionLossesBySizeFlow[[#This Row],[ID]]>Total_flow_rates*Total_pipeline_sizes,"",OFFSET(FlowRates[[#Headers],[Flow rate (Mt CO2/y)]],QUOTIENT(FrictionLossesBySizeFlow[[#This Row],[ID]]-1,Total_pipeline_sizes)+1,0)) -> 15 | K79: =IF(FrictionLossesBySizeFlow[[#This Row],[ID]]>Total_flow_rates*Total_pipeline_sizes,"",OFFSET(PipelineSizes[[#Headers],[Pipeline diameter (inches)]],MOD(FrictionLossesBySizeFlow[[#This Row],[ID]]-1,Total_pipeline_sizes)+1,0)) -> 32 | L79: =IF(FrictionLossesBySizeFlow[[#This Row],[ID]]>Total_flow_rates*Total_pipeline_sizes,"",4*FrictionLossesBySizeFlow[[#This Row],[Flow rate (Mt CO2/y)]]/Pipe_utilisation_factor*SUMIFS(ConversionFactors[Conversion value],ConversionFactors[Initial unit],"Mt",ConversionFactors[Final unit],"kg")/SUMIFS(ConversionFactors[Conversion value],ConversionFactors[Initial unit],"Year",ConversionFactors[Final unit],"second")/(PI()*SUMIFS(CO2PhysicalProperties[Viscosity (Pas)],CO2PhysicalProperties[Pressure (MPa)],Minimum_pipeline_pressure)*FrictionLossesBySizeFlow[[#This Row],[Pipeline diameter (inches)]]*SUMIFS(ConversionFactors[Conversion value],ConversionFactors[Initial unit],"Inch",ConversionFactors[Final unit],"metre"))) -> 13447469.29 | M79: =IF(FrictionLossesBySizeFlow[[#This Row],[ID]]>Total_flow_rates*Total_pipeline_sizes,"",1.325/(LN(Pipeline_roughness/(3.7*FrictionLossesBySizeFlow[[#This Row],[Pipeline diameter (inches)]]*SUMIFS(ConversionFactors[Conversion value],ConversionFactors[Initial unit],"Inch",ConversionFactors[Final unit],"metre"))+(5.74/FrictionLossesBySizeFlow[[#This Row],[Reynold''s Number]]^0.9)))^2) -> 0.01102853195 | N79: =IF(FrictionLossesBySizeFlow[[#This Row],[ID]]>Total_flow_rates*Total_pipeline_sizes,"",8*FrictionLossesBySizeFlow[[#This Row],[Friction factor]]*(FrictionLossesBySizeFlow[[#This Row],[Flow rate (Mt CO2/y)]]/Pipe_utilisation_factor*SUMIFS(ConversionFactors[Conversion value],ConversionFactors[Initial unit],"Mt",ConversionFactors[Final unit],"kg")/SUMIFS(ConversionFactors[Conversion value],ConversionFactors[Initial unit],"Year",ConversionFactors[Final unit],"second"))^2/(SUMIFS(CO2PhysicalProperties[Density (kg/m3)],CO2PhysicalProperties[Pressure (MPa)],Minimum_pipeline_pressure)*PI()^2*(FrictionLossesBySizeFlow[[#This Row],[Pipeline diameter (inches)]]*SUMIFS(ConversionFactors[Conversion value],ConversionFactors[Initial unit],"Inch",ConversionFactors[Final unit],"metre"))^5)/10^6) -> 1.239593905e-05
